Workbook

Sheet Emission factors (hidden)
A1: Global Warming Potential and Conversion Factors
B3: Gas | C3: CO2-e
B4: CH4 | C4: 28
B5: N2O | C5: 265

Sheet Data for graphs (hidden)
A1: Data for pie chart summary page | D1: Column graph chart | E1: Baseline | F1: Example baseline farm | G1: Typical averages (baseline farm) | H1: Typical averages (example baseline farm) | J1: Whole farm strategy column graph | L1: Baseline farm | M1: Strategy farm | O1: Column graph chart | P1: Current 2024 methodology | Q1: 1990 methodology | R1: 2015 methodology | S1: 2022 methodology | W1: Column graphs | X1: Strategy farm | Y1: Increased milk production | Z1: Feed additive | AA1: Extended lactation | AB1: Extended longevity | AC1: Replacing Sup with a source of fat | AD1: Supp with dietary fats | AE1: Improve diet DMD by management | AF1: Improve diet DMD by supplementation | AG1: N inhibitor applied to fertiliser | AH1: N Inhibitor applied to feed/animal
A2: Enteric methane | B2: ='Baseline farm'!K123 ->  | D2: Enteric methane | E2: ='Baseline farm'!K123/'Baseline farm'!K139 ->  | F2: ='Example baseline farm'!L122 -> 0.5659273606 | G2: =X23 ->  | H2: =G2 ->  | J2: Methane | K2: Enteric fermentation | L2: =IF('Baseline farm'!$D$32="kg milksolids per herd per annum",'Baseline farm'!K123*1000*'Baseline farm'!$Q$282/'Baseline farm'!$R$218,'Baseline farm'!K123*1000*'Baseline farm'!$Q$282/'Baseline farm'!$R$223) ->  | M2: =IF('Strategy farm'!$D$32="kg milksolids per herd per annum",'Strategy farm'!K122*1000*'Strategy farm'!$P$324/'Strategy farm'!$Q$260,'Strategy farm'!K122*1000*'Strategy farm'!$P$324/'Strategy farm'!$Q$265) ->  | O2: Enteric methane | P2: ='Baseline farm'!L123 ->  | Q2: ='1990 methodology comparison'!L114 ->  | R2: ='2015 methodology comparison '!$L$115 ->  | S2: ='2022 methodology comparison'!L122 -> 
A3: Manure methane | B3: ='Baseline farm'!K124 ->  | D3: Manure methane | E3: ='Baseline farm'!K124/'Baseline farm'!K139 ->  | F3: ='Example baseline farm'!L123 -> 0.08688100111 | H3: =G3 ->  | K3: Manure management | L3: =IF('Baseline farm'!$D$32="kg milksolids per herd per annum",'Baseline farm'!K124*1000*'Baseline farm'!$Q$282/'Baseline farm'!$R$218,'Baseline farm'!K124*1000*'Baseline farm'!$Q$282/'Baseline farm'!$R$223) ->  | M3: =IF('Strategy farm'!$D$32="kg milksolids per herd per annum",'Strategy farm'!K123*1000*'Strategy farm'!$P$324/'Strategy farm'!$Q$260,'Strategy farm'!K123*1000*'Strategy farm'!$P$324/'Strategy farm'!$Q$265) ->  | O3: Manure methane | P3: ='Baseline farm'!L124 ->  | Q3: ='1990 methodology comparison'!L115 ->  | R3: ='2015 methodology comparison '!$L$116 ->  | S3: ='2022 methodology comparison'!L123 ->  | W3: Carbon credit income | X3: ='Strategy farm'!F248 -> 0 | Y3: ='Reduce CH4 and or Increase milk'!$C$49 ->  | Z3: ='Diet additives'!$C$67 ->  | AA3: ='Extended lactation'!C77 ->  | AB3: ='Extended longevity'!C61 ->  | AC3: ='Replacing Sup with dietary fats'!C91 ->  | AD3: ='Supplementing with dietary fats'!C85 ->  | AE3: ='Improved diet DMD by management'!C79 ->  | AF3: ='Improved diet DMD by Supplement'!C80 ->  | AG3: ='N fertiliser inhibitor coated'!C90 -> 0 | AH3: =' N inhibitor applied to feed'!C72 -> 
A4: N2O animal waste | B4: ='Baseline farm'!K125+'Baseline farm'!K126+'Baseline farm'!K127 ->  | D4: Direct N2O animal waste | E4: =SUM('Baseline farm'!K125:K126)/'Baseline farm'!K139 ->  | F4: =SUM('Example baseline farm'!L124:L125) -> 0.04347120423 | J4: Nitrous oxide | K4: Dung & urine voided | L4: =IF('Baseline farm'!$D$32="kg milksolids per herd per annum",'Baseline farm'!K125*1000*'Baseline farm'!$Q$282/'Baseline farm'!$R$218,'Baseline farm'!K125*1000*'Baseline farm'!$Q$282/'Baseline farm'!$R$223) ->  | M4: =IF('Strategy farm'!$D$32="kg milksolids per herd per annum",'Strategy farm'!K124*1000*'Strategy farm'!$P$324/'Strategy farm'!$Q$260,'Strategy farm'!K124*1000*'Strategy farm'!$P$324/'Strategy farm'!$Q$265) ->  | O4: Direct N2O from animal waste | P4: ='Baseline farm'!L125+'Baseline farm'!L126 ->  | Q4: ='1990 methodology comparison'!L116+'1990 methodology comparison'!L117 ->  | R4: ='2015 methodology comparison '!$L$117+'2015 methodology comparison '!$L$118 ->  | S4: ='2022 methodology comparison'!L124+'2022 methodology comparison'!L125 ->  | W4: Implementation expenses | X4: ='Strategy farm'!F251 -> -6500 | Y4: ='Reduce CH4 and or Increase milk'!$C$50 -> 0 | Z4: ='Diet additives'!$C$68 ->  | AA4: ='Extended lactation'!C78 -> 0 | AB4: ='Extended longevity'!$C$62 -> 236500 | AC4: ='Replacing Sup with dietary fats'!C92 ->  | AD4: ='Supplementing with dietary fats'!C86 -> 0 | AE4: ='Improved diet DMD by management'!C80 -> 5000 | AF4: ='Improved diet DMD by Supplement'!C81 -> 0 | AG4: ='N fertiliser inhibitor coated'!C91 -> 0 | AH4: =' N inhibitor applied to feed'!C73 -> 0
A5: N2O N fertiliser | B5: ='Baseline farm'!K128+'Baseline farm'!K129 -> 0 | D5: Indirect N2O animal waste | E5: ='Baseline farm'!K127/'Baseline farm'!K139 ->  | F5: ='Example baseline farm'!L126 -> 0.03684194665 | K5: Manure during storage and spread | L5: =IF('Baseline farm'!$D$32="kg milksolids per herd per annum",'Baseline farm'!K126*1000*'Baseline farm'!$Q$282/'Baseline farm'!$R$218,'Baseline farm'!K126*1000*'Baseline farm'!$Q$282/'Baseline farm'!$R$223) ->  | M5: =IF('Strategy farm'!$D$32="kg milksolids per herd per annum",'Strategy farm'!K125*1000*'Strategy farm'!$P$324/'Strategy farm'!$Q$260,'Strategy farm'!K125*1000*'Strategy farm'!$P$324/'Strategy farm'!$Q$265) ->  | O5: Direct N2O from N fertiliser | P5: ='Baseline farm'!L128 ->  | Q5: ='1990 methodology comparison'!L119 ->  | R5: ='2015 methodology comparison '!$L$120 ->  | S5: ='2022 methodology comparison'!L127 ->  | W5: Additional milk income | X5: ='Strategy farm'!F253 -> 0 | Y5: ='Reduce CH4 and or Increase milk'!$C$52 -> 0 | Z5: ='Diet additives'!$C$69 -> 0 | AA5: ='Extended lactation'!C79 -> 0 | AB5: 0 | AC5: ='Replacing Sup with dietary fats'!C93 ->  | AD5: ='Supplementing with dietary fats'!C87 ->  | AE5: ='Improved diet DMD by management'!C81 ->  | AF5: ='Improved diet DMD by Supplement'!C82 ->  | AG5: ='N fertiliser inhibitor coated'!C92 -> 20854.9971 | AH5: =' N inhibitor applied to feed'!C74 -> 0
A6: Energy consumption | B6: =SUM('Baseline farm'!K130:K133) -> 0 | D6: Direct N2O N fertiliser | E6: ='Baseline farm'!K128/'Baseline farm'!K139 ->  | F6: ='Example baseline farm'!L127 -> 0.03775369617 | K6: Indirect N waste | L6: =IF('Baseline farm'!$D$32="kg milksolids per herd per annum",'Baseline farm'!K127*1000*'Baseline farm'!$Q$282/'Baseline farm'!$R$218,'Baseline farm'!K127*1000*'Baseline farm'!$Q$282/'Baseline farm'!$R$223) ->  | M6: =IF('Strategy farm'!$D$32="kg milksolids per herd per annum",'Strategy farm'!K126*1000*'Strategy farm'!$P$324/'Strategy farm'!$Q$260,'Strategy farm'!K126*1000*'Strategy farm'!$P$324/'Strategy farm'!$Q$265) ->  | O6: Indirect N2O from animal waste | P6: ='Baseline farm'!L127 ->  | Q6: ='1990 methodology comparison'!L118 ->  | R6: ='2015 methodology comparison '!$L$119 ->  | S6: ='2022 methodology comparison'!L126 ->  | W6: Total farm benefit | X6: ='Strategy farm'!F254 -> 6500 | Y6: ='Reduce CH4 and or Increase milk'!$C$53 ->  | Z6: ='Diet additives'!$C$70 ->  | AA6: ='Extended lactation'!C80 ->  | AB6: ='Extended longevity'!C64 ->  | AC6: ='Replacing Sup with dietary fats'!C94 ->  | AD6: ='Supplementing with dietary fats'!C88 ->  | AE6: ='Improved diet DMD by management'!C82 ->  | AF6: ='Improved diet DMD by Supplement'!C83 ->  | AG6: ='N fertiliser inhibitor coated'!C93 -> 20854.9971 | AH6: =' N inhibitor applied to feed'!C75 -> 
A7: Urea and lime | B7: ='Baseline farm'!K134 -> 0 | D7: Indirect N2O N fertiliser | E7: ='Baseline farm'!K129/'Baseline farm'!K139 ->  | F7: ='Example baseline farm'!L128 -> 0.01970870919 | K7: Direct N fertiliser | L7: =IF('Baseline farm'!$D$32="kg milksolids per herd per annum",'Baseline farm'!K128*1000*'Baseline farm'!$Q$282/'Baseline farm'!$R$218,'Baseline farm'!K128*1000*'Baseline farm'!$Q$282/'Baseline farm'!$R$223) ->  | M7: =IF('Strategy farm'!$D$32="kg milksolids per herd per annum",'Strategy farm'!K127*1000*'Strategy farm'!$P$324/'Strategy farm'!$Q$260,'Strategy farm'!K127*1000*'Strategy farm'!$P$324/'Strategy farm'!$Q$265) ->  | O7: Indirect N2O from N fertiliser | P7: ='Baseline farm'!L129 ->  | Q7: ='1990 methodology comparison'!L120 ->  | R7: ='2015 methodology comparison '!$L$121 ->  | S7: ='2022 methodology comparison'!L128 -> 
A8: Pre-farm embedded | B8: =SUM('Baseline farm'!K135:K137) -> 0 | D8: Energy consumption | E8: =SUM('Baseline farm'!K130:K133)/'Baseline farm'!K139 ->  | F8: =SUM('Example baseline farm'!$L$129:$L$132) -> 0.0520457103 | K8: Indirect N fertiliser | L8: =IF('Baseline farm'!$D$32="kg milksolids per herd per annum",'Baseline farm'!K129*1000*'Baseline farm'!$Q$282/'Baseline farm'!$R$218,'Baseline farm'!K129*1000*'Baseline farm'!$Q$282/'Baseline farm'!$R$223) ->  | M8: =IF('Strategy farm'!$D$32="kg milksolids per herd per annum",'Strategy farm'!K128*1000*'Strategy farm'!$P$324/'Strategy farm'!$Q$260,'Strategy farm'!K128*1000*'Strategy farm'!$P$324/'Strategy farm'!$Q$265) ->  | O8: Energy consumption | P8: ='Baseline farm'!L130+'Baseline farm'!L132+'Baseline farm'!L131+'Baseline farm'!L133 ->  | Q8: ='1990 methodology comparison'!L121+'1990 methodology comparison'!L122 ->  | R8: ='2015 methodology comparison '!$L$122+'2015 methodology comparison '!$L$123 ->  | S8: ='2022 methodology comparison'!L129+'2022 methodology comparison'!L130+'2022 methodology comparison'!L131+'2022 methodology comparison'!L132 -> 
A9: Tree carbon sequestration | B9: ='Baseline farm'!K142 -> 0 | D9: Urea and lime | E9: ='Baseline farm'!$K$134/'Baseline farm'!$K$139 ->  | F9: ='Example baseline farm'!L133 -> 0.04171148314 | J9: Carbon dioxide: | K9: Electricity | L9: =IF('Baseline farm'!$D$32="kg milksolids per herd per annum",'Baseline farm'!K130*1000*'Baseline farm'!$Q$282/'Baseline farm'!$R$218,'Baseline farm'!K130*1000*'Baseline farm'!$Q$282/'Baseline farm'!$R$223) ->  | M9: =IF('Strategy farm'!$D$32="kg milksolids per herd per annum",'Strategy farm'!K129*1000*'Strategy farm'!$P$324/'Strategy farm'!$Q$260,'Strategy farm'!K129*1000*'Strategy farm'!$P$324/'Strategy farm'!$Q$265) ->  | O9: CO2 urea and lime | P9: ='Baseline farm'!L134 ->  | Q9: 0 | R9: 0 | S9: ='2022 methodology comparison'!L133 -> 
D10: Pre-farm embedded | E10: =SUM('Baseline farm'!K135:K137)/'Baseline farm'!K139 ->  | F10: =SUM('Example baseline farm'!L134:L136) -> 0.1156588886 | K10: Diesel and unleaded petrol | L10: =IF('Baseline farm'!$D$32="kg milksolids per herd per annum",'Baseline farm'!K131*1000*'Baseline farm'!$Q$282/'Baseline farm'!$R$218,'Baseline farm'!K131*1000*'Baseline farm'!$Q$282/'Baseline farm'!$R$223) ->  | M10: =IF('Strategy farm'!$D$32="kg milksolids per herd per annum",'Strategy farm'!K130*1000*'Strategy farm'!$P$324/'Strategy farm'!$Q$260,'Strategy farm'!K130*1000*'Strategy farm'!$P$324/'Strategy farm'!$Q$265) ->  | O10: Pre-farm embedded | P10: =SUM('Baseline farm'!L135:L137) ->  | Q10: =SUM('1990 methodology comparison'!L123:L125) ->  | R10: ='2015 methodology comparison '!$L$124+'2015 methodology comparison '!$L$125+'2015 methodology comparison '!$L$126 ->  | S10: ='2022 methodology comparison'!L134+'2022 methodology comparison'!L135+'2022 methodology comparison'!L136 -> 
D11: Tree carbon sequestration | E11: ='Baseline farm'!K142/'Baseline farm'!K139 ->  | F11: ='Example baseline farm'!K141/'Example baseline farm'!K138 -> -0.008202765714 | H11: =G11 ->  | K11: Urea and Lime | L11: =IF('Baseline farm'!$D$32="kg milksolids per herd per annum",'Baseline farm'!K132*1000*'Baseline farm'!$Q$282/'Baseline farm'!$R$218,'Baseline farm'!K132*1000*'Baseline farm'!$Q$282/'Baseline farm'!$R$223) ->  | M11: =IF('Strategy farm'!$D$32="kg milksolids per herd per annum",'Strategy farm'!K131*1000*'Strategy farm'!$P$324/'Strategy farm'!$Q$260,'Strategy farm'!K131*1000*'Strategy farm'!$P$324/'Strategy farm'!$Q$265) ->  | P11: =SUM(P2:P10) ->  | Q11: =SUM(Q2:Q10) ->  | R11: =SUM(R2:R10) ->  | S11: =SUM(S2:S10) -> 
E12: =SUM(E2:E11) ->  | F12: =SUM(F2:F11) -> 0.9917972343 | G12: =SUM(G2:G11) ->  | H12: =SUM(H2:H11) ->  | J12: Pre-farm embedded | K12: Grain/ concentrates | L12: =IF('Baseline farm'!$D$32="kg milksolids per herd per annum",'Baseline farm'!K133*1000*'Baseline farm'!$Q$282/'Baseline farm'!$R$218,'Baseline farm'!K133*1000*'Baseline farm'!$Q$282/'Baseline farm'!$R$223) ->  | M12: =IF('Strategy farm'!$D$32="kg milksolids per herd per annum",'Strategy farm'!K132*1000*'Strategy farm'!$P$324/'Strategy farm'!$Q$260,'Strategy farm'!K132*1000*'Strategy farm'!$P$324/'Strategy farm'!$Q$265) -> 
K13: Forages | L13: =IF('Baseline farm'!$D$32="kg milksolids per herd per annum",'Baseline farm'!K134*1000*'Baseline farm'!$Q$282/'Baseline farm'!$R$218,'Baseline farm'!K134*1000*'Baseline farm'!$Q$282/'Baseline farm'!$R$223) ->  | M13: =IF('Strategy farm'!$D$32="kg milksolids per herd per annum",'Strategy farm'!K133*1000*'Strategy farm'!$P$324/'Strategy farm'!$Q$260,'Strategy farm'!K133*1000*'Strategy farm'!$P$324/'Strategy farm'!$Q$265) -> 
K14: Fertilisers | L14: =IF('Baseline farm'!$D$32="kg milksolids per herd per annum",'Baseline farm'!K135*1000*'Baseline farm'!$Q$282/'Baseline farm'!$R$218,'Baseline farm'!K135*1000*'Baseline farm'!$Q$282/'Baseline farm'!$R$223) ->  | M14: =IF('Strategy farm'!$D$32="kg milksolids per herd per annum",'Strategy farm'!K134*1000*'Strategy farm'!$P$324/'Strategy farm'!$Q$260,'Strategy farm'!K134*1000*'Strategy farm'!$P$324/'Strategy farm'!$Q$265) -> 
J15: Sequestration | K15: Tree plantings (minus) | L15: =IF('Baseline farm'!$D$32="kg milksolids per herd per annum",'Baseline farm'!K136*1000*'Baseline farm'!$Q$282/'Baseline farm'!$R$218,'Baseline farm'!K136*1000*'Baseline farm'!$Q$282/'Baseline farm'!$R$223) ->  | M15: =IF('Strategy farm'!$D$32="kg milksolids per herd per annum",'Strategy farm'!K135*1000*'Strategy farm'!$P$324/'Strategy farm'!$Q$260,'Strategy farm'!K135*1000*'Strategy farm'!$P$324/'Strategy farm'!$Q$265) -> 
J17: GHG emissions intensity | L17: =IF('Baseline farm'!D32="kg milksolids per herd per annum","kg CO2e per kg milksolids","kg CO2e per litre of fat and protein corrected milk") -> kg CO2e per litre of fat and protein corrected milk
E21: % emissions each source for ADCC industry average graph (data for 2018-19 to 2022/23 average) | X21: Selected Baseline farm | Y21: Selected Example Baseline farm
F22: Australia-wide | G22: Victoria | H22: Victoria- Gippsland | I22: Victoria- Northern | J22: Victoria- South West | K22: New South Wales | L22: NSW- North | M22: NSW- South | N22: Queensland | O22: QLD- North | P22: QLD- South | Q22: South Australia | R22: Tasmania | S22: Western Australia | T22: Low grain (< 1 t DM/cow.annum) | U22: Medium grain (1-2 t DM/cow.annum) | V22: High grain (> 2 t DM/cow.annum) | X22: ='Baseline farm'!K231 -> 0 | Y22: ='Example baseline farm'!H13 -> Victoria- South West
E23: Enteric methane | F23: 0.622186697 | G23: 0.6089609183 | H23: 0.6191004397 | I23: 0.6192545371 | J23: 0.587045497 | K23: 0.6088872974 | L23: 0.6131190474 | M23: 0.6044631952 | N23: 0.5921987657 | O23: 0.6172193316 | P23: 0.5831635613 | Q23: 0.6514069973 | R23: 0.6733984786 | S23: 0.6161313702 | T23: 0.6591876389 | U23: 0.6228440245 | V23: 0.6150791288 | X23: =HLOOKUP(X22,E22:V36,2,FALSE) ->  | Y23: =HLOOKUP(Y22,E22:V36,2,FALSE) -> 0.587045497
E24: Waste methane | F24: 0.08546636218 | G24: 0.09412009431 | H24: 0.09449630766 | I24: 0.1013764396 | J24: 0.08544262195 | K24: 0.0836563085 | L24: 0.07585639237 | M24: 0.09181076628 | N24: 0.1328092357 | O24: 0.1332741092 | P24: 0.1326413647 | Q24: 0.03806291119 | R24: 0.0790453042 | S24: 0.08107464839 | T24: 0.08556127074 | U24: 0.08724339887 | V24: 0.08383660034 | X24: =HLOOKUP(X23,E23:V37,2,FALSE) ->  | Y24: 0.08544262195
E25: N2O direct grazing + manure storage | F25: 0.04207377359 | G25: 0.04007773841 | H25: 0.04129194002 | I25: 0.04043250788 | J25: 0.03845768054 | K25: 0.04198411133 | L25: 0.04238493534 | M25: 0.04156506804 | N25: 0.04537622361 | O25: 0.04289944926 | P25: 0.04627061434 | Q25: 0.0434467756 | R25: 0.04531631256 | S25: 0.04254816866 | T25: 0.04628810676 | U25: 0.041276117 | V25: 0.04205624872 | Y25: 0.03845768054
E26: Indirect N waste | F26: 0.03635078123 | G26: 0.03510913968 | H26: 0.03639574732 | I26: 0.03513008439 | J26: 0.03379857131 | K26: 0.03544427253 | L26: 0.03608171017 | M26: 0.03477786046 | N26: 0.03595759909 | O26: 0.03663304735 | P26: 0.03571368721 | Q26: 0.03752198204 | R26: 0.03998432426 | S26: 0.03676031201 | T26: 0.04066581315 | U26: 0.03609012971 | V26: 0.03582808376 | Y26: 0.03379857131
E27: Direct N fert | F27: 0.02853301896 | G27: 0.02773126946 | H27: 0.03204618208 | I27: 0.01654660585 | J27: 0.03621161201 | K27: 0.03029542015 | L27: 0.03622824819 | M27: 0.0240929181 | N27: 0.02563468442 | O27: 0.02328117961 | P27: 0.02648456115 | Q27: 0.02554397575 | R27: 0.02765107375 | S27: 0.03275403888 | T27: 0.02689974185 | U27: 0.02895958107 | V27: 0.02843321842 | Y27: 0.03621161201
E28: Indirect N fert | F28: 0.01489923996 | G28: 0.0144766627 | H28: 0.01672919336 | I28: 0.008637889156 | J28: 0.01890368898 | K28: 0.01583701282 | L28: 0.01895497991 | M28: 0.01257731996 | N28: 0.01338217424 | O28: 0.01215356495 | P28: 0.0138258387 | Q28: 0.01333482124 | R28: 0.01443479782 | S28: 0.0170987186 | T28: 0.0140425771 | U28: 0.01512714961 | V28: 0.01484310385 | Y28: 0.01890368898
E29: Energy | F29: 0.05257876101 | G29: 0.05787670734 | H29: 0.04874013127 | I29: 0.06133934225 | J29: 0.06305202908 | K29: 0.07363286876 | L29: 0.08008665331 | M29: 0.06688573037 | N29: 0.03402492025 | O29: 0.02586345465 | P29: 0.03697211616 | Q29: 0.06114205179 | R29: 0.01293704856 | S29: 0.05286531306 | T29: 0.03244581827 | U29: 0.04987913374 | V29: 0.05857198771 | Y29: 0.06305202908
E30: Urea & Lime | F30: 0.01546215925 | G30: 0.01702864046 | H30: 0.01856145639 | I30: 0.01235310638 | J30: 0.02084463553 | K30: 0.01978636648 | L30: 0.02245311465 | M30: 0.01699840249 | N30: 0.01503249853 | O30: 0.01263589513 | P30: 0.01589793865 | Q30: 0.01149027299 | R30: 0.01396987952 | S30: 0.008672190351 | T30: 0.01455350903 | U30: 0.01531481325 | V30: 0.01575580018 | Y30: 0.02084463553
E31: Pre-farm embedded | F31: 0.1136948812 | G31: 0.1142647732 | H31: 0.1145647389 | I31: 0.1091380572 | J31: 0.1198297707 | K31: 0.1194566031 | L31: 0.1267895189 | M31: 0.1117903729 | N31: 0.1055838985 | O31: 0.09603996828 | P31: 0.1090303178 | Q31: 0.1182904081 | R31: 0.1003381995 | S31: 0.1192546687 | T31: 0.08367322149 | U31: 0.1104943484 | V31: 0.1218828672 | Y31: 0.1198297707
E32: Trees | F32: -0.01124567438 | G32: -0.00964594389 | H32: -0.02192613669 | I32: -0.004208569743 | J32: -0.003586107116 | K32: -0.02898026103 | L32: -0.0519546002 | M32: -0.004961633724 | N32: 0 | O32: 0 | P32: 0 | Q32: -0.0002401960097 | R32: -0.007075418763 | S32: -0.007159428862 | T32: -0.003317697313 | U32: -0.007228696187 | V32: -0.01628703897 | Y32: -0.003586107116

Sheet Industry averages (hidden)
A1: Emissions intensity for regions/ grain feeding groups (2018-19 to 2022-23 averages)
U2: Industry average accessing
C3: Australia-wide | D3: Victoria | E3: Victoria- Gippsland | F3: Victoria- Northern | G3: Victoria- South West | H3: New South Wales | I3: NSW- North | J3: NSW- South | K3: Queensland | L3: QLD- North | M3: QLD- South | N3: South Australia | O3: Tasmania | P3: Western Australia | Q3: Low grain (< 1 t DM/cow.annum) | R3: Medium grain (1-2 t DM/cow.annum) | S3: High grain (> 2 t DM/cow.annum) | U3: ='Baseline farm'!K231 -> 0
B4: Milk EI | C4: 0.9045847892 | D4: 0.8994778322 | E4: 0.9020658053 | F4: 0.8681136357 | G4: 0.9327704999 | H4: 0.9420148854 | I4: 0.9628033142 | J4: 0.9202815279 | K4: 1.027933241 | L4: 1.041969318 | M4: 1.022864658 | N4: 0.8439907938 | O4: 0.8743963311 | P4: 0.9280520705 | Q4: 0.9424979798 | R4: 0.8941302867 | S4: 0.9074031859 | U4: =HLOOKUP('Baseline farm'!$K$231,'Industry averages'!$B$3:$S$21,2,FALSE) -> 
B5: Meat EI | C5: 4.70612419 | D5: 4.650043976 | E5: 4.700122945 | F5: 4.369369706 | G5: 4.921056372 | H5: 4.808408119 | I5: 4.895000826 | J5: 4.71787938 | K5: 5.073763941 | L5: 5.10509214 | M5: 5.062450981 | N5: 4.372545134 | O5: 4.709884348 | P5: 4.90041475 | Q5: 5.161168526 | R5: 4.660545335 | S5: 4.667425091 | U5: =HLOOKUP('Baseline farm'!$K$231,'Industry averages'!$B$3:$S$21,3,FALSE) -> 
B6: Milk MS EI | C6: 12.64199999 | D6: 12.50997798 | E6: 12.52118031 | F6: 12.08591838 | G6: 12.98389984 | H6: 13.27590228 | I6: 13.57876075 | J6: 12.95927751 | K6: 14.45719137 | L6: 14.80542531 | M6: 14.33144022 | N6: 11.84441833 | O6: 12.05570407 | P6: 13.13385561 | Q6: 12.99166203 | R6: 12.42874419 | S6: 12.77404918 | U6: =HLOOKUP('Baseline farm'!$K$231,'Industry averages'!$B$3:$S$21,4,FALSE) -> 
B7: Enteric methane | C7: 0.5581865574 | D7: 0.5449537767 | E7: 0.5557898465 | F7: 0.5351925083 | G7: 0.5452845981 | H7: 0.5631533429 | I7: 0.5724401181 | J7: 0.5534444415 | K7: 0.6075082947 | L7: 0.6429949648 | M7: 0.5946936638 | N7: 0.5415909211 | O7: 0.5811837211 | P7: 0.5685350524 | Q7: 0.6172928821 | R7: 0.5528727991 | S7: 0.5526093066 | U7: =HLOOKUP('Baseline farm'!$K$231,'Industry averages'!$B$3:$S$21,5,FALSE) -> 
B8: Waste methane | C8: 0.0779544983 | D8: 0.08452318805 | E8: 0.08512600828 | F8: 0.08834030275 | G8: 0.07955358861 | H8: 0.07887041758 | I8: 0.07159214763 | J8: 0.08647951798 | K8: 0.1373643839 | L8: 0.1394111144 | M8: 0.1366252868 | N8: 0.04479387378 | O8: 0.07336059619 | P8: 0.08034574731 | Q8: 0.08078287138 | R8: 0.07836374122 | S8: 0.07708532158 | U8: =HLOOKUP('Baseline farm'!$K$231,'Industry averages'!$B$3:$S$21,6,FALSE) -> 
B9: N2O direct grazing | C9: 0.03126205868 | D9: 0.03067606931 | E9: 0.03206428291 | F9: 0.02911542294 | G9: 0.03107323516 | H9: 0.03017270603 | I9: 0.03190585809 | J9: 0.02836077433 | K9: 0.02833454475 | L9: 0.03366435201 | M9: 0.02640989213 | N9: 0.02864380306 | O9: 0.0340238239 | P9: 0.03200471725 | Q9: 0.03796642433 | R9: 0.03130029909 | S9: 0.03004760872 | U9: =HLOOKUP('Baseline farm'!$K$231,'Industry averages'!$B$3:$S$21,7,FALSE) -> 
B10: Manure storage & spread | C10: 0.006582849277 | D10: 0.005235536905 | E10: 0.00498499532 | F10: 0.005948082278 | G10: 0.004670926583 | H10: 0.008754058351 | I10: 0.00784123044 | J10: 0.009708378441 | K10: 0.01807550062 | L10: 0.01114775861 | M10: 0.02057718524 | N10: 0.009191011925 | O10: 0.006141851531 | P10: 0.008393207003 | Q10: 0.005404694634 | R10: 0.005381396798 | S10: 0.00788075288 | U10: =HLOOKUP('Baseline farm'!$K$231,'Industry averages'!$B$3:$S$21,8,FALSE) -> 
B11: Indirect N waste | C11: 0.03267559533 | D11: 0.02566544189 | E11: 0.02918290902 | F11: 0.01490246472 | G11: 0.03446082066 | H11: 0.02880288612 | I11: 0.03493937924 | J11: 0.02238746149 | K11: 0.03687433379 | L11: 0.02399689648 | M11: 0.03638759404 | N11: 0.03172018564 | O11: 0.03478589075 | P11: 0.03422440034 | Q11: 0.03811356749 | R11: 0.03206714487 | S11: 0.03227100484 | U11: =HLOOKUP('Baseline farm'!$K$231,'Industry averages'!$B$3:$S$21,9,FALSE) -> 
B12: Direct N fert | C12: 0.02628042194 | D12: 0.03145422785 | E12: 0.03265889106 | F12: 0.03043979033 | G12: 0.03141008116 | H12: 0.03288558392 | I12: 0.03385157889 | J12: 0.03187568009 | K12: 0.02652037792 | L12: 0.03822222846 | M12: 0.02743163511 | N12: 0.02082103405 | O12: 0.02371948936 | P12: 0.02947300239 | Q12: 0.02612459061 | R12: 0.02658366319 | S12: 0.02603258315 | U12: =HLOOKUP('Baseline farm'!$K$231,'Industry averages'!$B$3:$S$21,10,FALSE) -> 
B13: Indirect N fert | C13: 0.01371348733 | D13: 0.01339823068 | E13: 0.01523446776 | F13: 0.00777959175 | G13: 0.01798971655 | H13: 0.01500488262 | I13: 0.01817849628 | J13: 0.01168701379 | K13: 0.01384453627 | L13: 0.01252719342 | M13: 0.01432024341 | N13: 0.01086928557 | O13: 0.01238237749 | P13: 0.01538590633 | Q13: 0.01363792188 | R13: 0.0138642966 | S13: 0.01358989087 | U13: =HLOOKUP('Baseline farm'!$K$231,'Industry averages'!$B$3:$S$21,11,FALSE) -> 
B14: Electricity | C14: 0.0248693355 | D14: 0.03241329355 | E14: 0.0304237339 | F14: 0.03167941133 | G14: 0.03524241446 | H14: 0.03864554758 | I14: 0.04427933121 | J14: 0.03275568287 | K14: 0.035 | L14: 0.035 | M14: 0.035 | N14: 0.01426981445 | O14: 0.002751779718 | P14: 0.01973827557 | Q14: 0.01525436671 | R14: 0.02506286525 | S14: 0.02638556804 | U14: =HLOOKUP('Baseline farm'!$K$231,'Industry averages'!$B$3:$S$21,12,FALSE) -> 
B15: Fuel | C15: 0.02308020065 | D15: 0.02005336909 | E15: 0.01347597986 | F15: 0.02206529865 | G15: 0.02432911092 | H15: 0.0302835865 | I15: 0.03181799897 | J15: 0.02867942801 | K15: 0.03096796976 | L15: 0.0228187177 | M15: 0.03391075523 | N15: 0.03701732902 | O15: 0.01147715154 | P15: 0.02958507393 | Q15: 0.01618591636 | R15: 0.0203553459 | S15: 0.02676677762 | U15: =HLOOKUP('Baseline farm'!$K$231,'Industry averages'!$B$3:$S$21,13,FALSE) -> 
B16: Urea & Lime | C16: 0.01430172583 | D16: 0.01573014141 | E16: 0.01716644984 | F16: 0.0110001902 | G16: 0.01970489716 | H16: 0.01847320768 | I16: 0.02098265354 | J16: 0.0158496961 | K16: 0.01569288382 | L16: 0.01298240779 | M16: 0.01667166684 | N16: 0.009844427352 | O16: 0.01248343648 | P16: 0.008338293812 | Q16: 0.01436262531 | R16: 0.01423577072 | S16: 0.01435087874 | U16: =HLOOKUP('Baseline farm'!$K$231,'Industry averages'!$B$3:$S$21,14,FALSE) -> 
B17: Concs | C17: 0.04241768653 | D17: 0.04240571045 | E17: 0.04310319425 | F17: 0.03901422447 | G17: 0.0455880866 | H17: 0.04479865596 | I17: 0.0453562028 | J17: 0.04421576609 | K17: 0.04776468467 | L17: 0.04285494213 | M17: 0.04953764726 | N17: 0.04101320434 | O17: 0.0333666014 | P17: 0.04776815274 | Q17: 0.02374325883 | R17: 0.03914052796 | S17: 0.04867850445 | U17: =HLOOKUP('Baseline farm'!$K$231,'Industry averages'!$B$3:$S$21,15,FALSE) -> 
B18: Fodder | C18: 0.01345327585 | D18: 0.01517405719 | E18: 0.009467831997 | F18: 0.02847751171 | G18: 0.005661130401 | H18: 0.01599365048 | I18: 0.01242205041 | J18: 0.01972759601 | K18: 0.01628407576 | L18: 0.01692116217 | M18: 0.01605401678 | N18: 0.04101320434 | O18: 0.01001795357 | P18: 0.005250816801 | Q18: 0.008079732569 | R18: 0.01296829997 | S18: 0.01483905986 | U18: =HLOOKUP('Baseline farm'!$K$231,'Industry averages'!$B$3:$S$21,16,FALSE) -> 
B19: Fertiliser | C19: 0.04712564798 | D19: 0.04567024087 | E19: 0.05082713508 | F19: 0.02773651355 | G19: 0.06102953071 | H19: 0.05109370548 | I19: 0.06233342057 | J19: 0.03934309424 | K19: 0.04444144738 | L19: 0.04001124741 | M19: 0.04604124182 | N19: 0.04101320434 | O19: 0.04273833947 | P19: 0.0542073825 | Q19: 0.04846568997 | R19: 0.04725024929 | S19: 0.04677674284 | U19: =HLOOKUP('Baseline farm'!$K$231,'Industry averages'!$B$3:$S$21,17,FALSE) -> 
B20: Milk to meat ratio | C20: 0.8616584112 | D20: 0.8773051951 | E20: 0.8776159497 | F20: 0.8817392046 | G20: 0.8719219335 | H20: 0.8646538231 | I20: 0.8543777835 | J20: 0.8753969553 | K20: 0.8132445657 | L20: 0.8129641431 | M20: 0.8133487227 | N20: 0.04101320434 | O20: 0.8631403673 | P20: 0.8088198499 | Q20: 0.8510550831 | R20: 0.8708381979 | S20: 0.8552535054 | U20: =HLOOKUP('Baseline farm'!$K$231,'Industry averages'!$B$3:$S$21,18,FALSE) -> 
B21: Meat to milk ratio | C21: 0.1383415888 | D21: 0.1226948049 | E21: 0.1223840503 | F21: 0.1182607954 | G21: 0.1280780665 | H21: 0.1353461769 | I21: 0.1456222165 | J21: 0.1246030447 | K21: 0.1867554343 | L21: 0.1870358569 | M21: 0.1866512773 | N21: 0.04101320434 | O21: 0.1368596327 | P21: 0.1911801501 | Q21: 0.1489449169 | R21: 0.1291618021 | S21: 0.1447464946 | U21: =HLOOKUP('Baseline farm'!$K$231,'Industry averages'!$B$3:$S$21,19,FALSE) -> 
B23: Datasets accessed | C23: 971 | D23: 393 | E23: 125 | F23: 143 | G23: 125 | H23: 180 | I23: 92 | J23: 88 | K23: 49 | L23: 13 | M23: 36 | N23: 93 | O23: 154 | P23: 132 | Q23: 82 | R23: 423 | S23: 466
B25: Data generated from the file:
B26: Data generated from the folder 2023 consultancy to DA > Updated 2024 methodology data > All states updated results > Pivot table for EIs tab
B28: Electricity usage for QLD looks to be way too low, like < 10 kWh/thousand litres
B29: Made the value here be 0.035 just for electricity, but did not bother with the milk or meats EIs as they area already rather high

Sheet Introduction
C2: Australian Dairy Carbon Calculator
G7: Version 5.4, February 2025
B9: Introduction
B10: The Australian Dairy Carbon Calculator (ADCC, and previously known as DGAS) was developed to explore the implications of a range of diet, herd or feedbase management options on the greenhouse gas (GHG) emissions for a dairy enterprise. In addition, a replication of the baseline farm is provided to users to give them the ability to alter one or more components of the whole farm system.
B14: The GHG emissions estimations are based on Australia's current National Greenhouse Gas Inventory (NGGI) methodology. This is changing in 2022, with updated global warming potential values and some other minor changes. ADCC estimates the carbon dioxide, methane and nitrous oxide emissions of an Australian dairy enterprise based on carbon dioxide equivalents. More information on the NGGI methodology can be found at:
B17: https://www.dcceew.gov.au/climate-change/publications/national-inventory-report-2022
B19: How to enter data into the Australian Dairy Carbon Calculator
B20: The first step in using the carbon calculator is to enter data on the baseline farm sheet. This is the farm system prior to exploring any mitigation options or strategies. The accuracy of the baseline farm system is important, both in terms of an accurate assessment of it's GHG emissions and the ramifications for when an abatement strategy is implemented. An example of a baseline farm can be viewed on the Example worksheet. There are comments attached to many of the cells to assist with additional information regarding what the question is asking for.
B26: Users then progress to the Abatement Strategies schematic worksheet and select which abatement strategy they wish to explore. Abatement options are segmented into three theme areas: Herd and breeding management, Diet manipulation, Feedbase management. Clicking on an abatement strategy box below any of these theme areas will take the user to the relevant worksheet. Alternatively, users can click on the relevant tab at the bottom of the workbook. In addition, by clicking on the Whole farm abatement strategy link, users will progress to the Strategy farm where they can alter one or more components of the whole farm system. When comparing the baseline farm system to the abatement strategy farm system, you are comparing two steady state systems, the change from one farm to the other has been fully completed. This is especially important with the reproductive strategies which will take many years to fully achieve (e.g. extended lactation for the whole herd). Therefore the reduction in GHG emissions and/or increase in farm profitability will not reach the results presented here until the abatement strategy has been fully implemented.
B38: Entering data for the strategy specific worksheets
B39: Once the user has clicked on the box representing the abatement strategy they wish to explore, the worksheet is divided into 6 sections.
B40: Where applicable, users are informed of what each question is asking for (shown by hovering over the cell) and the factors users need to consider (e.g. indirect expenses associated with implementing an abatement strategy).
B43: The Introduction section (coloured grey) is a brief explanation of what the abatement strategy explores and how to fill in the data.
B45: The second Baseline farm system section (coloured green) is a series of baseline farm data questions. For most abatement strategies, the baseline data for the herd is already linked to the baseline worksheet and therefore the user does not need to enter any data. An equation will appear in the green coloured data cell and it will also be protected. However, if the cells corresponding to the questions relating to the baseline farm system are coloured white, a figure will need to be entered by the user. For example, with the 'Extended lactation' strategy, the user needs to enter the baseline daily milk production for both the 1st lactation cows and subsequent lactation cows as this distinction cannot be made with respect to milk production when entering the baseline farm data.
B51: The third Key variables section (coloured pink) is a series of key questions relevant to the abatement strategy being explored (e.g. percentage reduction in enteric methane as a result of breeding or management). Data is entered either by using the up/down arrows or entering data (e.g. calving date for the extended lactation strategy). All the cells that require numbers will begin at zero when the carbon calculator is opened for the first time.
B55: The fourth Variation in production section (coloured purple) contains production changes (e.g. increase in milk production).
B57: The fifth GHG and economic results section (coloured blue) contains the reductions in GHG emissions and changes in financial results as a consequence of implementing the abatement strategy. Unlike all other sections, this section is consistent across all abatement strategies.
B60: The Graphics section illustrates the relative change in economic results when implementing an abatement strategy. There are four columns and all are monetary figures representing an increase in income and expenses relative to the baseline farm system. Carbon credits represents an additional source of income the farmer would receive if the abatement strategy explored qualified for payment as part of a carbon offset scheme. Implementation expenses represents the additional expenses associated with implementing the abatement strategy being explored. Additional milk income represents any additional income from increased milk production if the strategy resulted in more energy available for milk production. Total farm benefit represents the sum of income from carbon credits and additional milk production minus the implementation expenses.
B67: Entering data for the Abatement strategy whole farm worksheet
B68: When opening up the Abatement strategy whole farm worksheet for the first time, it looks like a mirror image of the baseline farm system as all data entry cells are linked to the baseline farm system worksheet. Users then can alter one or more cells by typing in a new figure (e.g. increasing the herd size, reducing N fertiliser inputs etc). Wherever new data is entered, the cells will change from being coloured white with black text to being coloured red with white text. This gives the user a visual indication of which cells have been altered between the baseline and strategy farm systems (see image below showing that the milking cow and heifers > 1 numbers have been altered but Heifers < 1 have not). If the user has made a mistake and incorrect cells were altered, the link to the baseline farm system has been broken and the user has three options available to re-correct. If the error is identified straight away, they can click on the blue undo button generally located at the top left hand of the worksheet. However, if several changes have been made, it will take a lot of clicks of the undo button to get the data correct again. Users can then either re-enter the correct equation back into the cell (e.g. retyping ='Baseline farm'!D9:F9 in the Strategy farm D9 cell to correct the strategy owner ID) or manually typing in the correct number. Once any one of these three options is completed, the cell will go back to being white with black text to indicate that it is now exactly the same as per the baseline farm system.
B86: Results of the changes to the whole farm abatement strategy are presented in table form as per the baseline farm system results. In addition, a column chart shows the baseline and whole farm abatement results for each GHG source, on a per kg of fat and protein corrected milk (FPCM) basis. Unlike all other strategy-specific worksheets, with this strategy we have very few questions relating to the economics associated with implementation.
B91: What the Australian Dairy Carbon Calculator can't do
B92: The carbon calculator is built using a static approach. ADCC is not dynamic and therefore can't inform the users if the abatement strategy being explored can be achieved on farm.
B93: For example, if the abatement strategy being explored is the Extended lactation strategy, the milkers spend a greater proportion of their time lactating, it may be that there are larger feed deficits at times of the year, such as autumn, where feed demand is higher with the strategy farm compared to the baseline farm. Users need to firstly identify if this would be true for the farm system being explored and then decide how best to reduce this feed deficit, for example with additional grain/supplements which need to added to the analysis.
B98: The Australian Dairy Carbon Calculator development and disclaimers
B100: The Australian Dairy Carbon Calculator (versions 1 through 4) was developed by staff from the University of Tasmania, University of Melbourne and the Victorian Department of Environment and Primary Industries and was funded by the Australian Department of Agriculture, Dairy Australia, Meat and Livestock Australia and Australian Wool Innovation as part of the WFSAM project.
B104: ADCC (version 5) was funded by Dairy Australia, and developed by staff from the University of Tasmania, with input from staff at Dairy Australia, University of Melbourne, Agriculture Victoria and XCheque.
B107: The funding bodies and developers of the calculator do not guarantee that the calculator is without flaw of any kind and therefore disclaims all liability for any error, loss or other consequence which may arise from reliance on any information contained herein.
B109: The calculator is subject to development at all times and the methodology for estimating GHG emissions alters over time so we take no responsibility for the calculator being current. If required, professional advice should be sought when entering the baseline farm systems, deciding on the degree of change possible when implementing an abatement strategy and interpretation of the results. The carbon calculator can be used as a first review of the potential changes in GHG emissions associated with implementing any of the intervention strategies currently available. However, the marginal economic analysis is only a guide and therefore a full farm systems and economic analysis is recommended to better inform the productivity and profitability implications on farm, especially if capital investment is required to implement a strategy.
B123: Changes between versions 5.2 and 5.4 (intermediate version 5.3 was limited release)
B124: 1. Altered emission factors for direct nitrous oxide emissions from fertiliser and animal waste
B125: 2. Altered fractions of emissions to each manure management system and their corresponding methane conversion factor, resulting in a change to the state-based integrated methane factor
B126: 3. Allocated purchased supplementary feeds based on whether fed on the milking platform (allocated to the milk enterprise) vs the support block (proportionally allocated to milk and meat enterprises)
B127: 4. Included ADCC version 5.2 methodology, to allow a comparison with all changes made for version 5.4
B128: 5. Allow users to now define the percentage of lagoon-destined waste that is pre-treated and allocated to solid storage (default remains 20% at this stage)
B129: 6. New Other Livestock help tab to assist with the data requirements for the Other stock < 1 yr old and Other stock > 1 yr old
B130: 7. Added default DMD% and CP% values into the equations if the cells are not completed; these are 75% and 20% as per the national inventory
B131: 8. Extended the tree vegetation tab to also include 3 areas which are based on data generated from other tools/calculators (e.g. LOOC-C, FullCAM etc)
B132: 9. Added a few extra common fertilisers into the Fertiliser help tab
B133: 10. Updated the national, state, regional and grain feeding rate averages based on DFMP and QDAF data from 2018-19 to 2022-23
B134: 11. Added a new intervention tab (Diet additives) which needs expert data entry, such as rate of active ingredient feeding, cost of active ingredient, grams reduction in CH4 per kg DMI etc
B135: 12. Estimated the relative change in net farm, CH4 and N2O emissions with each intervention, relative to the baseline farm system
B136: 13. Inclusion of a printable-sized Data Summary tab containing the main results for the Baseline farm system
B138: Changes between version 5.1 and 5.2
B139: 1. Implementation of a pathway to import a DairyBase farm dataset into ADCC, including how to implement macros which everyone will need to do, not just those importing a dataset from DairyBase
B140: 2. Ability to clear all data entry for the baseline farm tab
B141: 3. Clarification around electricity consumption now only based on that purchased from the national grid
B142: 4. Altered the design of the tree carbon sequestration section, including removing the data entry drop-down list for soils and disengaged the Vlookup function to determine soil type for sequestration estimates. There was only a very small number of regions by tree species interaction that resulted in slight difference in results (formulas still intact if we decide to re-instate in the future),
B143: 5. Built in the option to explore up to four areas of trees for carbon sequestration
B144: 6. Fixed the cell protection not allowing to pick the other option from the drop-down list and altered to being a white cell to identify that this is a data entry cell
B145: 7. Tidying up of a few spelling mistakes
B146: 8. Amended an equation error for non-state based manure management for livestock when heifers manure is stored in a sump/dispersal system prior to spreading onto pastures
B147: 9. Included industry comparison emissions intensities, broken down into each source, per kg FPCM, kg MS and kg LW and ratio of emissions to milk vs meat
B148: 10. A rebuild of the Reduce enteric methane through breeding or management (renamed Inc. milk or reduce CH4 so that we can explore multiple options of either no change or change in enteric methane and/or milk production with or without a change in diet quality
B149: 11. Altered the Reduce CH4 through breeding or management to now just be management. Any improvement through breeding can be assessed with the Increased milk production tab
B151: Changes between version 4 and version 5.1
B152: 1. Alteration of the global warming potentials for methane from 25 to 28 times that of carbon dioxide, and for nitrous oxide from 298 to 265 times that of carbon dioxide
B153: 2. Minor changes to a range of emission factors (EF), which has resulted in a net increase in indirect N2O losses (e.g. EF for N lost through leaching has increased from 0.0075 to 0.011 Gg N2O-N/Gg N)
B154: 3. Inclusion of carbon dioxide emissions associated with the breakdown of urea and lime when applied to pastures, leading to a loss of carbon dioxide emissions
B155: 4. Alteration of the emission factors for pre-farm embedded emissions (grain, forage, fertiliser) to align with the same factors used in the SB-GAF tool (estimation of sheep and beef GHG emissions)
B156: 5. Alterations to emission factors and reporting of electricity and diesel consumption. Scope 1 diesel emissions are those emitted on farm with the consumption of fuel in vehicles,
B157: tractors, irrigation pumps etc. Scope 3 diesel emissions are associated with the extraction and manufacturing of diesel (previously included in the total diesel GHG emission estimates).
B158: Scope 2 electricity emissions are associated with the generation and subsequent consumption of electricity on farm. Scope 3 electricity emissions are those associated with loss of electricity
B159: during the transmission and delivery process. For example, to supply 1kWh of power to farm, approx. 1.3 kWh need to be generated to take into consideration electricity lost in the transmission phase.
B160: 6. An explanation of each emission source has been included as a note in the results table.
B161: 7. Two 'Other stock' classes for non-replacement animals and young bulls. This was critical to allow for the inclusion of raising heifers and steers as dairy beef
B162: 8. New data entry required to estimate total meat sold from CFA cows, bulls and young stock.
B163: 9. Allocation of GHG emissions to milk vs meat, based on energy allocation as per the IDF (2022)
B164: 10. Emissions intensity for the farm analysed based on the proportion of emissions are allocated to milk, both still presented as kg CO2e/kg FPCM and kg CO2e/kg MS, and emissions intensity for meat presented as kg CO2e/kg liveweight
B165: 11. Typical average farm emissions based on assessment of the DFMP 2015/16 to 2020/21 datasets
B166: 12. Tree carbon sequestration estimations have been redesigned and based on those in other national GHG tools such as SB-GAF
B167: 13. Password to unprotect sheets, at the user's discretion, is Dairy_DGAS
B171: DairyBase Import Instructions
B172: To import farm data from DairyBase you must first export your data from the DairyBase website. | L172: Go to DairyBase website
B173: 1. Login to the DairyBase website and then click on the Carbon Calculator button at the top right of the page (1).
B200: 2. Select the dataset you wish to bring into the Australian Dairy Carbon Calculator spreadsheet by clicking on it (1).
B229: 3. Confirm you want to load the carbon dataset by clicking on the 'Load Carbon Dataset' button (1).
B258: 4. Once the dataset has loaded click on the 'Download Spreadsheet' text at the top of the window (1). You may need to confirm the download or select a location to save the file to. If this is the case choose your Downloads folder.
B287: 5. The downloaded will be named something like 'DairyBaseData_1278_17774_08-09-4-13.xlsx' with the numbers varying depending on your user ID and the date and time.
B288: 6. Now we have the DairyBase data in a file we can import the data into the Australian Dairy Carbon Calculator spreadsheet by clicking on the 'Import from DairyBase' button at the top right of the Baseline farm sheet.
B289: 7. The importer will first ask you to confirm you wish to overwrite all the existing data on already entered into the Baseline farm sheet. If this is okay click 'Yes' to continue.
B309: 8. A file selection window will open for you to select the spreadsheet file you previously downloaded from the DairyBase website to your 'Downloads' folder.
B325: Allowing the DairyBase import macro to run
B358: 9. As shown in the figure above navigate to the Downloads folder and select the DairyBase file. Then click the 'OK' button.
B359: 10. The importer will now run copying the data from the DairyBase file into the Baseline farm sheet. This may take a minute, and then the importer will tell you it has finished.
B361: Return to the Baseline farm sheet
B365: Changing Macro Security Settings (Excel for Windows, Excel for Mac instructions are below)
B366: In order to run the macro to import your data from a DairyBase file the Excel macro security settings must set correctly.
B367: If they are too high you will get a message like the one below when you open the spreadsheet.
B380: 1. If you get the message above click on the 'Trust Center' button to go straight to the macro security settings options you can go to step 3.
B381: If you get a red warning similar to the one below continue.
B385: 2. Click on the 'File' menu at the top left of the Excel window. Now click on 'Options' at the bottom left (1).
B424: 3. Within the Options window click on the 'Trust Center' from the left side menu (1), the 'Trust Center Settings' button on the right (2).
B459: 4. Within the Trust Center, select the 'Macro Settings' of the left (1), then change the Macro Settings to the second level down (2) 'Disable VBA macros with notification'.
B460: You can then click on the 'Okay' button (3) two times to return to the spreadsheet window.
B495: Now when a spreadsheet containing a macro opens for the first time you will be prompted at the top of the window that macros have been disabled, but you
B496: can enable then if the spreadsheet is from a trusted source by clicking on the 'Enable Content' button as shown below.
B509: Warning: Never enable macros in a spreadsheet unless you are sure it can be trusted! Macros in Office documents are a common source of malicious content.
B511: Return to the Baseline farm sheet
B515: Changing Macro Security Settings (Excel for Mac, Excel for Windows instructions are above)
B516: In order to run the macro to import your data from a DairyBase file the Excel macro security settings must set correctly.
B517: If they are too high you will get a message like the one below when you attempt to import DairyBase data.
B540: 1. Go to the Excel menu at the top right of the screen and click on the Preferences sub-menu.
B569: 2. Click on the 'Security' preferences in the 'Sharing and Privacy' section.
B592: 3. Set the Macro Security setting to the second level, 'Disable all macros with notification' as shown above (1).
B593: 4. Exit the Preferences by clicking on the red close button and return to the spreadsheet window.
B595: Now when a spreadsheet containing a macro opens for the first time you will be prompted at the top of the window that macros have been disabled, but you
B596: can enable then if the spreadsheet is from a trusted source by clicking on the 'Enable Content' button as shown below.
B624: Warning: Never enable macros in a spreadsheet unless you are sure it can be trusted! Macros in Office documents are a common source of malicious content.
B626: Return to the Baseline farm sheet

Sheet Baseline farm
B2: Australian Dairy Carbon Calculator Baseline farm system
B7: Enter your farm data in the white cells and select from the drop-down boxes (arrow on right hand side will appear once you go into the white cells) | K7: DairyBase import help
B8: Additional information for individual questions will appear if the question as a red triangle in the top right corner. Hover over the heading/ question and a comment will appear. | K8: Cannot run macro help | M8: NOTES: | N8: Use inside this boxed area to enter any comments, notes, calculations to determine data entry
N9: You can enter notes outside of this box but it will not be deleted if you select the 'Clear input cells' button
B10: Farmer details
C11: Owner or sharefarmer ID | G11: Supplier Number
C13: Address | G13: Year reviewed
C15: Choose your state in Australia | F15: Choose your region/ farm system comparison
B17: Livestock dynamics | D17: Milking Cows | E17: Heifers >1 yr age | F17: Heifers <1 yr age | G17: Mature bulls | H17: Other stock < 1 yr age | I17: Other stock > 1 yr age | J17: Calves
C19: Livestock numbers | K19: head
C21: Liveweight | K21: kg/head
C23: Liveweight gain | K23: kg/day
C25: Number of stock sold each year | K25: head
C27: Liveweight at point of sale | K27: kg/head
G29: Clear here for help with Other stock data entry | J29: =SUMPRODUCT(D25:J25,D27:J27)/1000 -> 0 | K29: t LW/annum
B31: Milk production
C32: Select option for milk production | F32: Amount of milk produced | I32: =IF(V230="1","litres of milk per herd per annum","kg milksolids per herd per annum") -> kg milksolids per herd per annum
C34: Average annual milk fat (%) | E34: % | F34: Average annual milk protein | I34: %
C36: Average lactation length (days) | E36: days | F36: Average milk production | H36: =R225 ->  | I36: litres per cow per day
B38: Milkers average annual diet intakes and quality | D38: Intake (kg DM/day) | F38: Dry matter digestibility (DMD; %) | H38: Crude protein (CP; %)
C39: Pastures
B40: Estimated intake based | C40: Concentrates/ grain
B41: on data entry | C41: Silage
B42: =R229 &" kg DM/cow.day" ->  | C42: Hay
C43: By-products
B44: Click here for help regarding feed quality | C44: Other
C45: Total (kg DM/day) or average (%) | D45: =SUM(D39:E44) -> 0 | F45: =R227 ->  | H45: =R228 -> 
B47: Average annual dry matter digestibility (DMD) for all other stock (%) | E47: %
B48: Average annual crude protein (CP) for all other stock (%) | E48: %
B50: Fertilisers
C51: How do you which to enter the fertiliser rates? | I51: Click here to work out fertiliser rates
C53: Area of N fertiliser | G53: Rate of N fert.
B54: Area of pastures fertilised with N | D54: ha | E54: Amount of N applied to pastures | H54: =IF($V$218="1","kg per ha per annum","t per annum") -> t per annum
B56: Area of crops fertilised with N | D56: ha | E56: Amount of N applied to crops | H56: =H54 -> t per annum
E58: Percentage of N fertiliser that is urea | H58: %
C60: Area of P K S & Lime fertiliser | G60: Rate of P fert. | H60: Rate of K fert. | I60: Rate of S fert. | J60: Rate of Lime/dolomite
B61: Area of pastures fertilised with P K S & Lime | D61: ha | E61: Rate of P K S & Lime/dolomite to pastures | K61: =H54 -> t per annum
B63: Area of crops fertilised with P K S & Lime | D63: ha | E63: Rate of P K S & Lime/dolomite to crops | K63: =H54 -> t per annum
B65: Energy consumption
B66: Annual Electricity Use | D66: kWh | E66: Annual purchased diesel/ unleaded petrol | H66: litres
B68: Where does your electricity come from? | E68: Annual contractor diesel/ unleaded petrol | H68: litres
B70: What % of electricity is from renewables? | D70: %
B72: Purchased supplementary feed
B73: Purchased pasture, cereal, lucerne or legume hay (t DM) | D73: t DM | E73: Purchased pasture, cereal or maize silage (t DM) | I73: t DM
B75: Percentage of purchased hay fed on the milking platform | D75: % | E75: Percentage of purchased silage fed on the milking platform | I75: %
B77: Purchased grain and concentrates (t DM) | D77: t DM | E77: Purchased by-products (t DM) | I77: t DM
B79: Percentage of purchased grain & concentrates fed on the milking platform | D79: % | E79: Percentage of purchased by-products fed on the milking platform | I79: %
B81: Carbon sequestration in tree plantations
B82: How are you estimating this? | F82: Area of trees (ha) | H82: Age of Trees
B84: Choose your region of Australia
F85: Amount of carbon sequestered using other tools | I85: t CO2e/ha.annum
B86: Choose the type of trees planted
B88: Manure management
C89: Choose which option you are using to estimate how animal waste is handled | H89: Volatile solids | I89: =D261 ->  | J89: kg VS/head.day for the milking cows
B90: % waste to each manure management system
C91: Anaerobic lagoon | D91: Sump dispersal | E91: Drain to paddock | F91: Solid storage | G91: Pasture
B92: Milkers | C92: =AJ243 ->  | D92: =AK243 ->  | E92: =AL243 ->  | F92: =AN243 ->  | G92: =AI243 -> 
B93: All other stock | C93: =AJ246 -> 0 | D93: =AK246 -> 0 | E93: =AL246 -> 0 | F93: =AN246 -> 0 | G93: =AI246 -> 100
B95: Only answer the following questions if you which to enter your own farm management practices to estimate the percentage of waste to each of the abovementioned manure management systems. In addition, you must have selected the User-defined factors and fractions option in the drop-down list at the beginning of this section otherwise the results with still reflect the default state-based fractions and factors.
B99: Milkers | G99: Hours per day | H99: Days per annum
B100: Number of hours per day and days per annum a milker spends at the dairy and adjacent yards where the waste is flushed with water
B102: Percentage of waste that is flushed and then drains to the paddock with no treatment/ removal of solids | H102: %
B103: Percentage of waste that is flushed and then spread daily from a sump/dispersal system (with or without removal of solids) | H103: %
B104: Balance assumed to be flushed and then enter a pond/lagoon system | G104: =(100-(G102+G103)) -> 100 | H104: %
B106: Do you pre-treat the waste prior to spreading daily from a sump system or entering the lagoon (e.g. weeping wall, solids trap, mechanical separator to remove a fraction of the solids)?
B107: If yes, what percentage of the waste is removed via the pre-treatment process? | H107: %
G109: Hours per day | H109: Days per annum
B110: Number of hours per day and days per annum a milker spend on a feedpad or loafing area or are housed (TMR farm)
B112: Select the option which best describes how the majority of this waste from the feedpad or loafing area is best handled | H112: Integrated MCF | I112: =AP243 ->  | J112: %
B114: Heifers | G114: Hours per day | H114: Days per annum
B115: Number of hours per day and days per annum the heifers spend in yards or are housed where the waste is deposited
B117: Select the option which best describes how this waste from the feedpad or loafing area is best handled | H117: Integrated MCF | I117: =AP246 -> 1 | J117: %
B120: Results for baseline farm system
D121: =D17 -> Milking Cows | E121: Heifers >1 yr age | F121: Heifers <1 yr age | G121: Mature bulls | H121: Other stock < 1 yr age | I121: Other stock > 1 yr age | J121: N fertiliser | K121: Total GHG (tonnes CO2e/annum) | L121: % of total GHG (exc. C sequestration in trees) | M121: kg CO2e/kg FPCM (your farm) | N121: kg CO2e/kg FPCM (industry comparison) | O121: Source of emissions
B123: Methane (Scope 1): | C123: Enteric fermentation | D123: =D249*'Emission factors'!$C$4*10^3 ->  | E123: =E249*'Emission factors'!$C$4*10^3 -> 0 | F123: =(F249+I249)*'Emission factors'!$C$4*10^3 -> 0 | G123: =G249*'Emission factors'!$C$4*10^3 -> 0 | H123: =(H249+J249)*'Emission factors'!$C$4*10^3 -> 0 | I123: =(K249)*'Emission factors'!$C$4*10^3 -> 0 | K123: =SUM(D123:I123) ->  | L123: =K123/$K$139 ->  | M123: =K123*1000/$R$223*$Q$282 ->  | N123: ='Industry averages'!U7 ->  | O123: Enteric fermentation
C124: Manure management | D124: =D274*'Emission factors'!$C$4*10^3 ->  | E124: =E274*'Emission factors'!$C$4*10^3 -> 0 | F124: =(F274+I274)*'Emission factors'!$C$4*10^3 -> 0 | G124: =G274*'Emission factors'!$C$4*10^3 -> 0 | H124: =(H274+J274)*'Emission factors'!$C$4*10^3 -> 0 | I124: =(K274)*'Emission factors'!$C$4*10^3 -> 0 | K124: =SUM(D124:I124) ->  | L124: =K124/$K$139 ->  | M124: =K124*1000/$R$223*$Q$282 ->  | N124: ='Industry averages'!U8 ->  | O124: Manure management
B125: Nitrous oxide (Scope 1): | C125: Direct from dung & urine voided onto pastures | D125: =D457*'Emission factors'!$C$5*10^3 ->  | E125: =E457*'Emission factors'!$C$5*10^3 ->  | F125: =(F457+I457)*'Emission factors'!$C$5*10^3 ->  | G125: =G457*'Emission factors'!$C$5*10^3 ->  | H125: =(H457+J457)*'Emission factors'!$C$5*10^3 ->  | I125: =(K457)*'Emission factors'!$C$5*10^3 ->  | K125: =SUM(D125:I125) ->  | N125: ='Industry averages'!U9 ->  | O125: Direct from dung & urine voided onto pastures
C126: Direct from manure (storage & spread) | D126: =(D336+D412)*'Emission factors'!$C$5*10^3 ->  | E126: =(E336+E412)*'Emission factors'!$C$5*10^3 ->  | F126: =((F336+I336)+(F412+I412))*'Emission factors'!$C$5*10^3 ->  | G126: =(G336+G412)*'Emission factors'!$C$5*10^3 ->  | H126: =((H336+J336)+(H412+J412))*'Emission factors'!$C$5*10^3 ->  | I126: =((K336+K412))*'Emission factors'!$C$5*10^3 ->  | K126: =SUM(D126:I126) ->  | N126: ='Industry averages'!U10 ->  | O126: Direct from manure (storage & spread)
C127: Indirect N waste | D127: =(D351+D360+D494+D528)*'Emission factors'!$C$5*10^3 ->  | E127: =(E351+E360+E494+E528)*'Emission factors'!$C$5*10^3 ->  | F127: =(F351+F360+F494+F528+I351+I360+I494+I528)*'Emission factors'!$C$5*10^3 ->  | G127: =(G351+G360+G494+G528)*'Emission factors'!$C$5*10^3 ->  | H127: =(H351+H360+H494+H528+J351+J360+J494+J528)*'Emission factors'!$C$5*10^3 ->  | I127: =(K351+K360+K494+K528)*'Emission factors'!$C$5*10^3 ->  | K127: =SUM(D127:I127) ->  | N127: ='Industry averages'!U11 ->  | O127: Indirect N waste
C128: Direct N fertiliser | J128: =C390 -> 0 | K128: =J128 -> 0 | N128: ='Industry averages'!U12 ->  | O128: Direct N fertiliser
C129: Indirect N fertiliser | J129: =(SUM(D489:D490)+SUM(D523:D524))*'Emission factors'!$C$5*10^3 -> 0 | K129: =J129 -> 0 | N129: ='Industry averages'!U13 ->  | O129: Indirect N fertiliser
B130: Carbon dioxide: | C130: Electricity (Scope 2) | K130: =J551 -> 0 | M130: =(K130+K131)*1000/$R$223*$Q$282 ->  | N130: ='Industry averages'!U14 ->  | O130: Electricity (Scope 2 &3)
C131: Electricity (Scope 3) | K131: =J555 -> 0
C132: Diesel and unleaded petrol (Scope 1) | K132: =H543 -> 0 | M132: =(K132+K133)*1000/$R$223*$Q$282 ->  | N132: ='Industry averages'!U15 ->  | O132: Diesel and unleaded petrol (Scope 1 & 3)
C133: Diesel and unleaded petrol (Scope 3) | K133: =J543 -> 0
C134: Urea and Lime/dolomite (Scope 1) | K134: =C592+C599 -> 0 | M134: =K134*1000/$R$223*$Q$282 ->  | N134: ='Industry averages'!U16 ->  | O134: Urea and Lime/dolomite
B135: Pre-farm gate embedded (Scope 3) | C135: Grain/ concentrates | K135: =E568 -> 0 | M135: =K135*1000/$R$223*$Q$282 ->  | N135: ='Industry averages'!U17 ->  | O135: Grain/ concentrates
C136: Forages | K136: =SUM(E566:E567) -> 0 | M136: =K136*1000/$R$223*$Q$282 ->  | N136: ='Industry averages'!U18 ->  | O136: Forages
C137: Fertilisers | J137: =K137+J130 -> 0 | K137: =E585 -> 0 | M137: =K137*1000/$R$223*$Q$282 ->  | N137: ='Industry averages'!U19 ->  | O137: Fertilisers
B139: Total GHG emissions | D139: =SUM(D123:D137) ->  | J139: 0 | L139: t CO2e/annum
B140: % of total GHG emissions (before carbon sequestration is taken into account) | D140: =D139/SUM($K$123:$K$137) -> 
B142: Carbon sequestration | C142: Tree plantings, with negative figures representing amount of carbon sequestered | K142: =IF(C82="",0,IF(V225=1,0,IF(V225=3,H85*G82*-1,F610*-1))) -> 0 | L142: t CO2e/annum
B144: Net GHG emissions | K144: =K139+K142 ->  | L144: t CO2e/annum
B146: GHG emissions intensity (kg CO2e/kg fat and protein corrected milk (FPCM)) | M146: =S279 ->  | N146: ='Industry averages'!U4 ->  | O146: kg CO2e/kg FPCM (post carbon sequestration)
B147: GHG emissions intensity (kg CO2e/kg milksolids) | M147: =S280 ->  | N147: ='Industry averages'!U6 ->  | O147: kg CO2e/kg milksolids (post-carbon sequestration)
B148: GHG emissions intensity (kg CO2e/kg liveweight) | M148: =S281 ->  | N148: ='Industry averages'!U5 ->  | O148: kg CO2e/kg liveweight meat (post-carbon sequestration)
B150: Proportion of net emissions allocated to milk | M150: =Q282 ->  | N150: ='Industry averages'!U20 ->  | O150: Proportion of emissions allocated to milk
B151: Proportion of net emissions allocated to meat | M151: =Q283 ->  | N151: ='Industry averages'!U21 ->  | O151: Proportion of emissions allocated to meat
B156: Note: Total GHG emissions for each stock class does not include carbon sequestered in trees. However, Net GHG emissions and emissions intensities includes any carbon sequestration in tree plantings.
B158: Typical GHG emissions intensity, based on 70-90% of net emissions allocated to milk production, should range between 0.6 and 1.2 kg CO2e/ kg FPCM or between 8 and 18 kg CO2e/kg milksolids. If your emissions intensity is outside these ranges, review your data entry for potential errors.
B203: State and dairy region for tree plantings
C205: State | D205: Victoria | E205: New South Wales | F205: Tasmania | G205: Queensland | H205: South Australia | I205: Western Australia
B206: 1 | C206: Victoria | D206: Mallee region VIC | E206: Northern coastal NSW | F206: North East TAS | G206: Northern QLD | H206: South East SA | I206: South West WA
B207: 2 | C207: New.South.Wales | D207: Northern region VIC | E207: Southern coastal NSW | F207: Central North & Midlands TAS | G207: Southern QLD | H207: Murray River SA
B208: 3 | C208: Tasmania | D208: North East region VIC | E208: Central Inland & Riverina NSW | F208: Southern TAS
B209: 4 | C209: Queensland | D209: East Gippsland | F209: North West TAS
B210: 5 | C210: South.Australia | D210: South & West Gippsland
B211: 6 | C211: Western.Australia | D211: South West VIC
K213: RDPs for linking to Industry average farm
J214: 1 | K214: Australia-wide | AI214: Milkers- dairy | AR214: Milkers | AV214: Heifers
B215: Selected State | C215: =D15 -> 0 | D215: Selected Region | E215: =C84 -> 0 | G215: Calves sold | H215: Calves sold soon after birth | J215: 2 | K215: Victoria | P215: Milk production | T215: N fertiliser rates | U215: kg of element per ha per annum | W215: Graphs | AC215: Manure management | AD215: 1 | AE215: Default state factors and fractions | AI215: Hours per day at dairy | AJ215: =G100 -> 0 | AM215: Heifers | AR215: % to grazing | AT215: =1-((AJ215/24*AJ216/365)+(AJ220/24*AJ221/365)) -> 1 | AV215: % to grazing | AW215: =1-(AO216/24*AO217/365) -> 1 | AZ215: MCF calculations- milkers
H216: Calves sold post-weaning | J216: 3 | K216: Victoria- Gippsland | U216: tonnes of element per annum | W216: Enteric methane | X216: =L123 ->  | AD216: 2 | AE216: User-defined factors and fractions | AI216: Days per annum at dairy | AJ216: =H100 -> 0 | AM216: Hours per day | AO216: =G115 -> 0 | AR216: % from dairy & drains to paddock | AT216: =(AJ215/24)*(AJ216/365)*(AJ217/100) -> 0 | AV216: % drains to paddock | AW216: =IF(AN229=1,((AO216/24)*(AO217/365)),0) -> 0 | BA216: Lagoon | BB216: Sump and dispersal | BC216: Drains to paddock | BD216: Solids storage | BE216: Voided pasture
G217: Selected | H217: =IF(K17=H215,1,2) -> 2 | J217: 4 | K217: Victoria- Northern | P217: Litres per annum | R217: =IF(V230="1",H32,0) -> 0 | W217: Waste methane | X217: =L124 ->  | AD217: Selected | AE217: =IF(F89="",1,IF(F89=AE215,1,2)) -> 1 | AI217: % drained daily from sump | AJ217: =G102 -> 0 | AM217: Days per annum | AO217: =H115 -> 0 | AR217: % from dairy & spread daily | AT217: =(AJ215/24*AJ216/365*AJ218/100)*IF(AE222=2,(1-AE225),1) -> 0 | AV217: % spread sump/dispersal system | AW217: =IF(AN229=2,AO216/24*AO217/365*IF(AE222=2,0.8,1),0) -> 0 | AY217: 1 | AZ217: Victoria | BA217: 73 | BB217: 0.5 | BC217: 17 | BD217: 2 | BE217: 1
H218: =IF(H217=1,H215,H216) -> Calves sold post-weaning | J218: 5 | K218: Victoria- South West | P218: MS per annum | R218: =IF(V230="2",H32,0) -> 0 | T218: Selected | U218: =E51 -> 0 | V218: =IF(U218="kg of element per ha per annum","1","2") -> 2 | W218: Direct N2O waste | X218: =L125+L126 ->  | AI218: % spread daily from sump | AJ218: =G103 -> 0 | AR218: % from dairy & spread daily & treated so its solid storage | AT218: =(AJ215/24*AJ216/365*AJ218/100)*IF(AE222=1,0,AE225) -> 0 | AV218: % of spread daily to SS | AW218: =IF(AN229=2,AO216/24*AO217/365)*IF(AE222=2,0.2,0) -> 0 | AY218: 2 | AZ218: New.South.Wales | BA218: 76 | BB218: 0.5 | BC218: 18 | BD218: 2 | BE218: 1
J219: 6 | K219: New South Wales | P219: Fat % | R219: =(IF(D34="",4,D34)) -> 4 | W219: Direct N2O N fertiliser | X219: =L128 ->  | AI219: % to lagoon | AJ219: =G104 -> 100 | AR219: % from dairy & to lagoon (no pre-treatment) | AT219: =IF(AE222=1,(AJ215/24*AJ216/365*AJ219/100),(AJ215/24*AJ216/365*AJ219/100)*(1-AE225)) -> 0 | AV219: % to lagoon (no pre-treatment) | AW219: =IF(AN229=3,(AO216/24*AO217/365)*IF(AE222=2,0.8,1),0) -> 0 | AY219: 3 | AZ219: Tasmania | BA219: 69 | BB219: 0.1 | BC219: 13 | BD219: 2 | BE219: 1
J220: 7 | K220: NSW- North | P220: Protein % | R220: =IF(H34="",3.3,H34) -> 3.3 | W220: Indirect N2O waste | X220: =L127 ->  | AC220: Pre-treat | AD220: 1 | AE220: NO | AI220: Hours per day on feedpad | AJ220: =G110 -> 0 | AR220: % from dairy & to lagoon (pre-treated & to solid storage fraction) | AT220: =IF(AE222=1,0,(AJ215/24*AJ216/365*AJ219/100)*AE225) -> 0 | AV220: % to lagoon (pre-treated & to solid storage) | AW220: =IF(AN229=3,(AO216/24*AO217/365*IF(AE222=2,0.2,0)),0) -> 0 | AY220: 4 | AZ220: Queensland | BA220: 78 | BB220: 0.5 | BC220: 24 | BD220: 2 | BE220: 1
J221: 8 | K221: NSW- South | P221: DGAS estimated kg MS if litres entered | R221: =IF(R217=0,R218,(R217*(R219+R220)/100)) -> 0 | T221: Tree sequestration | U221: No estimate of carbon sequestration | W221: Indirect N2O N fertiliser | X221: =L129 ->  | AD221: 2 | AE221: YES | AI221: Days per annum on feedpad | AJ221: =H110 -> 0 | AR221: % from feedpad and drains to paddock | AT221: =IF(AI229=1,(AJ220/24*AJ221/365),0) -> 0 | AV221: % to solid storage | AW221: =IF(AN229=4,AO216/24*AO217/365,0) -> 0 | AY221: 5 | AZ221: South.Australia | BA221: 74 | BB221: 0.5 | BC221: 17 | BD221: 2 | BE221: 1
J222: 9 | K222: Queensland | P222: DGAS estimated litres per annum | R222: =IF(R217=0,(R218/((R219+R220)/100)),R217) -> 0 | U222: Based on data entered here | W222: Energy consumption | X222: =L130+L132 ->  | AD222: Selected | AE222: =IF(G106="",1,IF(G106=AE220,1,2)) -> 1 | AR222: % from feedpad spread daily | AT222: =IF(AI229=2,(AJ220/24*AJ221/365),0)*IF(AE222=2,(1-AE225),1) -> 0 | AV222: % sum solid storage | AW222: =AW218+AW220+AW221 -> 0 | AY222: 6 | AZ222: Western.Australia | BA222: 76 | BB222: 0.5 | BC222: 18 | BD222: 2 | BE222: 1
J223: 10 | K223: QLD- North | P223: FPCM (kg per annum; IDF equation) | R223: =(R222*1.03)*(0.2534+0.1226*R219+0.0776*R220) -> 0 | U223: Carbon sequestered using other tools | W223: Pre-farm embedded | X223: =SUM(L135:L137) ->  | AI223: Milkers- feedpad | AL223: Heifers- feedpad | AR223: % of feedpad spread daily going to SS | AT223: =IF(AI229=2,(AJ220/24*AJ221/365)*IF(AE222=2,AE225,0),0) -> 0 | AV223: % drains to paddock | AW223: =AW216 -> 0
J224: 11 | K224: QLD- South | P224: kg milk per cow per day | R224: =ROUND((R223/D19/D36),1) ->  | AR224: % from feedpad to lagoon without treatment | AT224: =IF(AI229=3,(AJ220/24*AJ221/365*IF(AE222=2,(1-AE225),1)),0) -> 0 | AV224: % sum lagoon | AW224: =AW219 -> 0 | AY224: Selected | AZ224: =VLOOKUP($D$15,$AZ$217:$BE$223,1,FALSE) ->  | BA224: =VLOOKUP($D$15,$AZ$217:$BE$223,2,FALSE) ->  | BB224: =VLOOKUP($D$15,$AZ$217:$BE$223,3,FALSE) ->  | BC224: =VLOOKUP($D$15,$AZ$217:$BE$223,4,FALSE) ->  | BD224: =VLOOKUP($D$15,$AZ$217:$BE$223,5,FALSE) ->  | BE224: =VLOOKUP($D$15,$AZ$217:$BE$223,6,FALSE) -> 
J225: 12 | K225: South Australia | P225: litres per cow per day | R225: =(R222/D19/D36) ->  | T225: Selected | U225: =C82 -> 0 | V225: =IF(C82="",0,IF(C82=U221,1,IF(C82=U222,2,3))) -> 0 | AC225: Pre-treat percentage | AE225: =IF(G107="",0.2,G107/100) -> 0.2 | AH225: 1 | AI225: Flushed & drains daily to the paddock | AL225: Feedpad waste- heifers | AM225: 1 | AN225: Flushed & drains daily to the paddock | AR225: % from feedpad and to lagoon but with pre-treatment to make it solid storage | AT225: =(IF(AI229=3,(AJ220/24*AJ221/365*IF(AE222=2,AE225,0)),0)) -> 0 | AV225: % sum sump and dispersal | AW225: =AW217 -> 0
J226: 13 | K226: Tasmania | P226: kg MS per cow per day | R226: =(R225*((R219+R220)/100)) ->  | AH226: 2 | AI226: Flushed & spread daily from a sump | AM226: 2 | AN226: Flushed & spread daily from a sump | AR226: % from feedpad wet-lotted (solid storage) | AT226: =(IF(AI229=4,(AJ220/24*AJ221/365),0)) -> 0 | AY226: Milker MCF | BA226: =BA224*AT229 ->  | BB226: =BB224*AT230 ->  | BC226: =BC224*AT228 ->  | BD226: =BD224*AT227 ->  | BE226: =BE224*AT215 -> 
J227: 14 | K227: Western Australia | P227: Average DMD | R227: =((D39*F39)+(D40*F40)+(D41*F41)+(D42*F42)+(D43*F43)+(D44*F44))/D45 ->  | T227: Milk production | U227: litres per herd per annum | AH227: 3 | AI227: Flushed to a pond/lagoon system | AM227: 3 | AN227: Flushed to a pond/lagoon system | AR227: % sum solid storage | AT227: =AT218+AT223+AT226+AT220+AT225 -> 0 | AY227: Integrated MCF | BE227: =SUM(BA226:BE226) -> 
J228: 15 | K228: Low grain (< 1 t DM/cow.annum) | P228: Average CP | R228: =((D39*H39)+(D40*H40)+(D41*H41)+(D42*H42)+(D43*H43)+(D44*H44))/D45 ->  | U228: kg milksolids per herd per annum | AH228: 4 | AI228: Scrapped & stockpiled | AM228: 4 | AN228: Scrapped & stockpiled | AR228: % drains to paddock | AT228: =AT216+AT221 -> 0
J229: 16 | K229: Medium grain (1-2 t DM/cow.annum) | P229: Average intake required | R229: =ROUND((1.185+(0.00454*D21)-(0.0000026*(D21)^2)+((0.315*0)))^2*1.1+((R225*D36/365)*3.054/0.6/(0.00795*R227-0.0014)/18.4),1) ->  | AH229: Selected | AI229: =IF(F112=AI225,1,IF(F112=AI226,2,IF(F112=AI227,3,4))) -> 4 | AM229: Selected | AN229: =IF(F117=AN225,1,IF(F117=AN226,2,IF(F117=AN227,3,4))) -> 4 | AR229: % sum lagoon | AT229: =AT219+AT224 -> 0 | AY229: Other stock MCF | BA229: =BA224*AW224 ->  | BB229: =BB224*AW225 ->  | BC229: =BC224*AW223 ->  | BD229: =BD224*AW222 ->  | BE229: =BE224*AW215 -> 
J230: 17 | K230: High grain (> 2 t DM/cow.annum) | T230: Selected | U230: =D32 -> 0 | V230: =IF(D32=U227,"1","2") -> 2 | AR230: % sum sump and dispersal | AT230: =AT217+AT222 -> 0 | AY230: Integrated MCF | BE230: =SUM(BA229:BE229) -> 
J231: Selected | K231: =H15 -> 0 | P231: Net GHG emissions (kg) | R231: =K144*1000 -> 
P232: EI (litres FPCM) | R232: =R231/R223 ->  | AI232: Pasture | AJ232: Lagoon | AK232: Sump/dispersal | AL232: Drain to paddock | AN232: Solid storage | AP232: Integrated MCF | AW232: MCF % | AX232: % of waste to this system | AY232: multiplication of these two factors | AZ232: % of total
B233: Methane Calculation | C233: Seasons | D233: =D17 -> Milking Cows | E233: =E17 -> Heifers >1 yr age | F233: =F17 -> Heifers <1 yr age | G233: =G17 -> Mature bulls | H233: =H17 -> Other stock < 1 yr age | I233: Unweaned heifers | J233: Unweaned bulls | K233: Bulls/steers (1-2 yrs) | L233: Units | M233: Inventory reference | P233: EI (kg MS) | R233: =R231/R221 ->  | AG233: 1 | AH233: Victoria | AI233: 83.9 | AJ233: 10.8 | AK233: 0.9 | AL233: 0.2 | AN233: 4.2 | AP233: 8.92 | AV233: Pastures | AW233: 1 | AX233: 84.29 | AY233: =AW233*AX233 -> 84.29 | AZ233: =AY233/$AY$238 -> 0.08803041222
AG234: 2 | AH234: New.South.Wales | AI234: 78.7 | AJ234: 9 | AK234: 2 | AL234: 1.9 | AN234: 8.4 | AP234: 8.05 | AV234: Lagoon | AW234: 74 | AX234: 11.6 | AY234: =AW234*AX234 -> 858.4 | AZ234: =AY234/$AY$238 -> 0.8964919426
B235: Feed Intake | D235: I = (1.185 +(0.00454 x W) - (0.0000026 x (W)^2) + ((0.315 x LWG)))^2 x MR + MI | M235: 3A.1a_1 | P235: FPCM (kg per annum based on IDF equation) | R235: =R223 -> 0 | AG235: 3 | AH235: Tasmania | AI235: 86.5 | AJ235: 8.4 | AK235: 2.4 | AL235: 0.8 | AN235: 2 | AP235: 6.9 | AV235: Sump and dispersal | AW235: 0.5 | AX235: 1.1 | AY235: =AW235*AX235 -> 0.55 | AZ235: =AY235/$AY$238 -> 0.0005744065336
C236: Annual | D236: =(1.185+(0.00454*D21)-(0.0000026*(D21)^2)+((0.315*D23)))^2*1.1+D240 ->  | E236: =(1.185+(0.00454*E21)-(0.0000026*(E21)^2)+((0.315*E23)))^2*1+E240 -> 1.404225 | F236: =(1.185+(0.00454*F21)-(0.0000026*(F21)^2)+((0.315*F23)))^2*1+F240 -> 1.404225 | G236: =(1.185+(0.00454*G21)-(0.0000026*(G21)^2)+((0.315*G23)))^2*1+G240 -> 1.404225 | H236: =(1.185+(0.00454*H21)-(0.0000026*(H21)^2)+((0.315*H23)))^2*1+H240 -> 1.404225 | K236: =(1.185+(0.00454*I21)-(0.0000026*(I21)^2)+((0.315*I23)))^2*1+K240 -> 1.404225 | L236: kg DM/head/day | P236: Meat production | R236: Cull cows | S236: Heifers < 1 | T236: Heifers > 1 | U236: Bulls | V236: Other stock < 1 | W236: Other stock > 1 | AG236: 4 | AH236: Queensland | AI236: 78.7 | AJ236: 7.3 | AK236: 3.3 | AL236: 2.4 | AN236: 8.4 | AP236: 7.99 | AV236: Drains to paddock | AW236: 17 | AX236: 0.55 | AY236: =AW236*AX236 -> 9.35 | AZ236: =AY236/$AY$238 -> 0.009764911071
P237: Cull cows | R237: =IF(AND(D25>0,D27=""),(D25*D21),(D25*D27)) -> 0 | S237: 0 | T237: 0 | U237: 0 | V237: 0 | W237: 0 | AG237: 5 | AH237: South.Australia | AI237: 80.5 | AJ237: 10.4 | AK237: 1.4 | AL237: 0.8 | AN237: 6.9 | AP237: 2.55 | AV237: Solids storage | AW237: 2 | AX237: 2.46 | AY237: =AW237*AX237 -> 4.92 | AZ237: =AY237/$AY$238 -> 0.005138327537
B238: Additional intake for milk production | D238: MI = MP x 1.03 x NE / k / qm / 18.4 | P238: Total meat | R238: =SUM(R237:W237) -> 0 | AG238: 6 | AH238: Western.Australia | AI238: 79.9 | AJ238: 10 | AK238: 1.9 | AL238: 0.9 | AN238: 7.4 | AP238: 8.6 | AV238: Total | AX238: =SUM(AX233:AX237) -> 100 | AY238: =SUM(AY233:AY237) -> 957.51
D239: MP x 1.03 (convert litres to kg milk) x 3.054 (MJ net energy/kg milk) / 0.6 / (0.00795 x DMD - 0.0014) / 18.4 | M239: 3A.1a_2
C240: Annual | D240: =(R225*1.03*D36/365)*3.054/0.6/((0.00795*F45)-0.0014)/18.4 ->  | E240: =0*3.054/0.6/(0.00795*$R$241-0.0014)/18.4 -> 0 | F240: =0*3.054/0.6/(0.00795*$R$241-0.0014)/18.4 -> 0 | G240: =0*3.054/0.6/(0.00795*$R$241-0.0014)/18.4 -> 0 | H240: =0*3.054/0.6/(0.00795*$R$241-0.0014)/18.4 -> 0 | K240: =0*3.054/0.6/(0.00795*$R$241-0.0014)/18.4 -> 0 | L240: kg DM/head/day
P241: Other livestock DMD | R241: =IF(FeedFedOtherStockDigestibilityPercent="",75,FeedFedOtherStockDigestibilityPercent) -> 75 | AG241: Default fractions | AH241: =C215 -> 0 | AI241: =VLOOKUP($D$15,$AH$233:$AP$239,2,FALSE) ->  | AJ241: =VLOOKUP($D$15,$AH$233:$AP$239,3,FALSE) ->  | AK241: =VLOOKUP($D$15,$AH$233:$AP$239,4,FALSE) ->  | AL241: =VLOOKUP($D$15,$AH$233:$AP$239,5,FALSE) ->  | AN241: =VLOOKUP($D$15,$AH$233:$AP$239,7,FALSE) ->  | AP241: =VLOOKUP($D$15,$AH$233:$AP$239,9,FALSE) -> 
B242: Daily Methane Yield (M) | D242: M = 20.7 x I/1000 | M242: 3A.1a_3 | P242: Other livestock CP | R242: =IF(FeedFedOtherStockProteinPercent="",20,FeedFedOtherStockProteinPercent) -> 20 | AG242: Milker User defined fractions | AI242: =AT215*100 -> 100 | AJ242: =AT229*100 -> 0 | AK242: =AT230*100 -> 0 | AL242: =AT228*100 -> 0 | AN242: =AT227*100 -> 0 | AP242: =BE227 -> 
AG243: Which fractions and MCF to use for milkers | AI243: =IF($AE$217=1,AI241,AI242) ->  | AJ243: =IF($AE$217=1,AJ241,AJ242) ->  | AK243: =IF($AE$217=1,AK241,AK242) ->  | AL243: =IF($AE$217=1,AL241,AL242) ->  | AN243: =IF($AE$217=1,AN241,AN242) ->  | AP243: =IF($AE$217=1,AP241,AP242) -> 
C244: Annual | D244: =20.7*D236/1000 ->  | E244: =20.7*E236/1000 -> 0.0290674575 | F244: =20.7*F236/1000 -> 0.0290674575 | G244: =20.7*G236/1000 -> 0.0290674575 | H244: =20.7*H236/1000 -> 0.0290674575 | I244: 0.0176 | J244: 0.0204 | K244: =20.7*K236/1000 -> 0.0290674575 | L244: kg CH4/head/day | AG244: Default other stock fractions | AI244: 100 | AJ244: 0 | AK244: 0 | AL244: 0 | AN244: 0 | AP244: 1
AG245: Other stock User defined fraction | AI245: =AW215*100 -> 100 | AJ245: =AW224*100 -> 0 | AK245: =AW225*100 -> 0 | AL245: =AW223*100 -> 0 | AN245: =AW222*100 -> 0 | AP245: =BE230 -> 
B246: Annual Australian methane production (Gg) for all classes of dairy cattle across all states | AG246: Which fractions and MCF to use for other stock | AI246: =IF($AE$217=1,AI244,AI245) -> 100 | AJ246: =IF($AE$217=1,AJ244,AJ245) -> 0 | AK246: =IF($AE$217=1,AK244,AK245) -> 0 | AL246: =IF($AE$217=1,AL244,AL245) -> 0 | AN246: =IF($AE$217=1,AN244,AN245) -> 0 | AP246: =IF($AE$217=1,AP244,AP245) -> 1
D247: E =(365 x N x M) x 10^-6 for > 1, (281 x N x M) x 10^-6 for weaned 0-1 years and (84 x N x M) x 10^-6 for unweaned | M247: 3A.1a_4
C249: Annual | D249: =(365*D19*D244)*10^-6 ->  | E249: =(365*E19*E244)*10^-6 -> 0 | F249: =(281*F19*F244)*10^-6 -> 0 | G249: =(365*G19*G244)*10^-6 -> 0 | H249: =(281*H19*H244)*10^-6 -> 0 | I249: =(84*F19*I244)*10^-6 -> 0 | J249: =(84*H19*J244)*10^-6 -> 0 | K249: =(365*I19*K244)*10^-6 -> 0 | L249: Gg CH4/farm/annum
P250: New IDF (2022)-aligned method of estimating milk and meat allocations and emissions intensities | AH250: Old values no longer used
B251: Grand Total | C251: =SUM(D249:K249) ->  | H251: =H249 -> 0 | J251: =J249 -> 0 | L251: Gg CH4/year/farm | AJ251: Pasture | AK251: Lagoon | AL251: Sump/dispersal | AM251: Drain to paddock | AN251: Solid storage | AO251: Integrated MCF
B252: Grand Total | C252: =C251*'Emission factors'!$C$4 ->  | H252: =H251*'Emission factors'!$C$4 -> 0 | J252: =J251*'Emission factors'!$C$4 -> 0 | L252: Gg CO2-e/year/farm | P252: Liveweight Cull Cows (inc bulls) | Q252: =D25*D27+BullSalesNumber*BullSalesLiveweight -> 0 | AI252: Victoria | AJ252: 84.29 | AK252: 11.6 | AL252: 1.1 | AM252: 0.55 | AN252: 2.46 | AO252: 9.5751
B253: Grand Total | C253: =C252*10^3 ->  | H253: =H252*10^3 -> 0 | J253: =J252*10^3 -> 0 | K253: =J253+H253 -> 0 | L253: t CO2-e/year/farm | P253: Liveweight Calves at Birth | Q253: =IF(H217=1,J25*J27,0) -> 0 | AI253: New.South.Wales | AJ253: 79.25 | AK253: 12.04 | AL253: 2.42 | AM253: 1.21 | AN253: 5.08 | AO253: 10.154
P254: Liveweight Calves Weaned | Q254: =IF(H217=2,J25*J27,0) -> 0 | AI254: Tasmania | AJ254: 85.19 | AK254: 7.98 | AL254: 3.41 | AM254: 1.43 | AN254: 1.99 | AO254: 6.69561
B255: Methane from waste | D255: =D233 -> Milking Cows | E255: Heifers >1 yr age | F255: Heifers <1 yr age | G255: Mature bulls | H255: Other stock < 1 yr age | I255: Unweaned heifers | J255: Unweaned bulls | K255: Bulls/steers (1-2 yrs) | L255: Units | M255: Inventory reference | P255: Liveweight Fattened Dairy Livestock | Q255: =SUMPRODUCT(E25:F25,E27:F27) -> 0 | AI255: Queensland | AJ255: 79.37 | AK255: 9.68 | AL255: 2.64 | AM255: 3.3 | AN255: 5.01 | AO255: 9.1527
B256: Ash content (A) | C256: 0.08 | L256: fraction | P256: Liveweight Fattened Other Livestock | Q256: =SUMPRODUCT(H25:I25,H27:I27) -> 0 | AI256: South.Australia | AJ256: 80.67 | AK256: 10.81 | AL256: 3.52 | AM256: 0.66 | AN256: 4.34 | AO256: 9.0227
B257: Emission potential (Bo) | C257: 0.24 | L257: m3 CH4/kg VS | P257: Total Liveweight Sold | Q257: =SUM(Q252:Q256) -> 0 | AI257: Western.Australia | AJ257: 81.86 | AK257: 10.35 | AL257: 2.53 | AM257: 1.54 | AN257: 3.72 | AO257: 8.94535
B258: Density of methane (r) | C258: 0.6784 | L258: kg/m3
Q259: Factor | R259: Dairy | S259: % of Dairy Meat | T259: All Meat | U259: % of All Meat
B260: Volatile solids (VS) | C260: VS = (I x (1 - DMD) + (0.04 x I)) x (1 - A) | M260: 3B.1a_1 | P260: Energy Demand Cull Cows | Q260: 15 | R260: =Q252*Q260 -> 0 | S260: =R260/$R$265 ->  | T260: =Q252*Q260 -> 0 | U260: =T260/$T$265 -> 
C261: Annual | D261: =(D236*(1-(F45/100))+(0.04*D236))*(1-$C$256) ->  | E261: =(E236*(1-($R$241/100))+(0.04*E236))*(1-$C$256) -> 0.37464723 | F261: =(F236*(1-($R$241/100))+(0.04*F236))*(1-$C$256) -> 0.37464723 | G261: =(G236*(1-($R$241/100))+(0.04*G236))*(1-$C$256) -> 0.37464723 | H261: =(H236*(1-($R$241/100))+(0.04*H236))*(1-$C$256) -> 0.37464723 | I261: 0.2685 | J261: 0.3003 | K261: =(K236*(1-($R$241/100))+(0.04*K236))*(1-$C$256) -> 0.37464723 | L261: kg/head/day | P261: Energy Demand Calves at Birth | Q261: 27.5 | R261: =Q253*Q261 -> 0 | S261: =R261/$R$265 ->  | T261: =Q253*Q261 -> 0 | U261: =T261/$T$265 -> 
P262: Energy Demand Calves Weaned | Q262: 15 | R262: =Q254*Q262 -> 0 | S262: =R262/$R$265 ->  | T262: =Q254*Q262 -> 0 | U262: =T262/$T$265 -> 
B263: Methane production from manure | C263: M = VS x Bo x MCF x r | M263: 3B.1a_2 | P263: Energy Demand Fattened Dairy Livestock | Q263: 11 | R263: =Q255*Q263 -> 0 | S263: =R263/$R$265 ->  | T263: =Q255*Q263 -> 0 | U263: =T263/$T$265 -> 
C264: MCF = Integrated methane conversion factor - based on the proportion of different manure management regimes | P264: Energy Demand Fattened Other Livestock | Q264: 11 | S264: =R264/$R$265 ->  | T264: =Q256*Q264 -> 0 | U264: =T264/$T$265 -> 
P265: Total Energy Demand Meat | R265: =SUM(R260:R264) -> 0 | S265: =SUM(S260:S264) ->  | T265: =SUM(T260:T264) -> 0 | U265: =SUM(U260:U264) -> 
C267: Methane for each manure management system and MCF associated, for each class of cattle separately | P267: Energy Demand Milk | Q267: 3.1 | R267: =R235*Q267 -> 0 | T267: =R267 -> 0
C269: Annual | D269: =D261*$C$257*I112%*$C$258 ->  | E269: =E261*$C$257*I117%*$C$258 -> 0.000609985634 | F269: =F261*$C$257*I117%*$C$258 -> 0.000609985634 | G269: =G261*$C$257*I117%*$C$258 -> 0.000609985634 | H269: =H261*$C$257*I117%*$C$258 -> 0.000609985634 | I269: =I261*$C$257*$I$117%*$C$258 -> 0.00043716096 | J269: =J261*$C$257*$I$117%*$C$258 -> 0.000488936448 | K269: =K261*$C$257*$I$117%*$C$258 -> 0.000609985634 | L269: kg CH4/head/day | P269: Total Energy Demand | R269: =R267+R265 -> 0 | T269: =T267+T265 -> 0
B271: The annual methane production (Gg) from the manure of dairy cattle | P271: % Milk of Energy | R271: =R267/R269 ->  | T271: =T267/T269 -> 
C272: Total = (365 x N x M) x 10^-6 for > 1 yr olds, (281 x N x M) x 10^-6 for 0 to 1 yr olds and (84 x N x M) x 10^-6 for unweaned | M272: 3B.1a_3
P273: Milk only C02 (Electricity + Pre-farmgate milk platform feed) | Q273: =K130+K131+D577 -> 0
C274: Annual | D274: =(365*D19*D269)*10^-6 ->  | E274: =(365*E19*E269)*10^-6 -> 0 | F274: =(281*F19*F269)*10^-6 -> 0 | G274: =(365*G19*G269)*10^-6 -> 0 | H274: =(281*H19*H269)*10^-6 -> 0 | I274: =(84*F19*I269)*10^-6 -> 0 | J274: =(84*H19*J269)*10^-6 -> 0 | K274: =(365*I19*K269)*10^-6 -> 0 | L274: Gg CH4/farm/annum | P274: Meat only CO2 (Other Livestock) | Q274: =H139+I139 -> 
P275: Dairy Livestock CO2 (Dairy Livestock) | Q275: =D139+E139+F139+G139 -> 
B276: Grand total | C276: =SUM(D274:K274) ->  | L276: Gg CH4/farm/year | P276: General Farm CO2 (Fertiliser + Fuel + Support block supp feed - Trees) | Q276: =SUM(K128:K129)+SUM(K132:K134)+K137+E577+K142 -> 0
B277: Grand total | C277: =C276*'Emission factors'!$C$4 ->  | L277: Gg CO2-e/farm/year | P277: Total Farm CO2 | Q277: =SUM(Q273:Q276) -> 
B278: Grand total | C278: =C277*10^3 ->  | L278: t CO2-e/farm/year | S278: Calculated from spreadsheet data
P279: Total milk CO2 allocated emissions | Q279: =Q273+Q275*R271+Q276*T271 ->  | S279: =Q279*1000/R235 ->  | T279: kg CO2 / kg FPCM
B280: Faecal nitrous oxide calculation | C280: Seasons | D280: =D255 -> Milking Cows | E280: =E255 -> Heifers >1 yr age | F280: Heifers <1 yr age | G280: Mature bulls | H280: Other stock < 1 yr age | I280: Unweaned heifers | J280: Unweaned bulls | K280: Bulls/steers (1-2 yrs) | L280: Units | M280: Inventory reference | P280: Total meat CO2 allocated emissions | Q280: =Q274+Q275*(1-R271)+Q276*(1-T271) ->  | S280: =Q279*1000/R221 ->  | T280: kg CO2 / kg MS
S281: =Q280*1000/Q257 ->  | T281: kg CO2 / kg LW
B282: The crude protein intake of dairy cattle | D282: CPI = I x CP | M282: 3B.1a_4 | P282: % of total CO2 allocated to milk | Q282: =Q279/Q277 -> 
C283: Annual | D283: =D236*H45% ->  | E283: =E236*$R$242% -> 0.280845 | F283: =F236*$R$242% -> 0.280845 | G283: =G236*R242% -> 0.280845 | H283: =H236*R242% -> 0.280845 | K283: =K236*R242% -> 0.280845 | L283: kg/head/day | P283: % of total CO2 allocated to meat | Q283: =Q280/Q277 -> 
B285: Nitrogen excreted in faeces (F) | D285: F = {0.3 x (CPI x (1 - [(DMD + 10) / 100])) + 0.105 x (ME x I x 0.008) + (0.0152 x I)} / 6.25 | M285: 3B.1a_6 | P285: Meat Allocation Detail | Q285: kg LW sold | S285: tonnes of CO2 | T285: % of Meat | U285: % of CO2 | V285: kg CO2 / kg LW
D286: ME (Metabolisable energy) = 0.1604 x DMD - 1.037 | P286: Cull Cows/bulls | Q286: =Q252 -> 0 | S286: =$Q$275*(1-$R$271)*S260+Q$276*(1-$T$271)*U260 ->  | T286: =S286/$S$291 ->  | U286: =T286*$Q$283 ->  | V286: =S286*1000/Q286 -> 
D287: 1 / 6.25 = Factor for converting crude protein into nitrogen | P287: Calves at Birth | Q287: 0 | S287: =$Q$275*(1-$R$271)*S261+Q$276*(1-$T$271)*U261 ->  | T287: =S287/$S$291 ->  | U287: =T287*$Q$283 -> 
C288: Annual | D288: =(0.3*((D283*(1-((F45+10)/100))))+(0.105*((0.1604*F45-1.037)*D236*0.008))+(0.0152*D236))/6.25 ->  | E288: =(0.3*((E283*(1-(($R$241+10)/100))))+(0.105*((0.1604*D47-1.037)*E236*0.008))+(0.0152*E236))/6.25 -> 0.00524144843 | F288: =(0.3*((F283*(1-(($R$241+10)/100))))+(0.105*((0.1604*D47-1.037)*F236*0.008))+(0.0152*F236))/6.25 -> 0.00524144843 | G288: =(0.3*((G283*(1-(($R$241+10)/100))))+(0.105*((0.1604*D47-1.037)*G236*0.008))+(0.0152*G236))/6.25 -> 0.00524144843 | H288: =(0.3*((H283*(1-(($R$241+10)/100))))+(0.105*((0.1604*D47-1.037)*H236*0.008))+(0.0152*H236))/6.25 -> 0.00524144843 | I288: 0.0055 | J288: 0.005 | K288: =(0.3*((K283*(1-(($R$241+10)/100))))+(0.105*((0.1604*D47-1.037)*K236*0.008))+(0.0152*K236))/6.25 -> 0.00524144843 | L288: kg/head/day | P288: Calves Weaned | Q288: 0 | S288: =$Q$275*(1-$R$271)*S262+Q$276*(1-$T$271)*U262 ->  | T288: =S288/$S$291 ->  | U288: =T288*$Q$283 -> 
P289: Fattened Dairy Livestock | Q289: 0 | S289: =$Q$275*(1-$R$271)*S263+Q$276*(1-$T$271)*U263 ->  | T289: =S289/$S$291 ->  | U289: =T289*$Q$283 -> 
B290: Nitrogen retained (NR) by the body | D290: NR = {(0.032 x MP x 1.03/6.38) + {0.212-0.008 x (L - 2) - [(0.140 - 0.008 x (L - 2)) / (1+exp x (-6 x (Z - 0.4)))]} x (LWG x 0.92)} /6.25 | M290: 3B.1a_5 | P290: Fattened Other Livestock | Q290: 0 | S290: =Q274+Q276*(1-T271)*U264 ->  | T290: =S290/$S$291 ->  | U290: =T290*$Q$283 -> 
P291: Total Meat | Q291: 0 | S291: =SUM(S286:S290) ->  | T291: =SUM(T286:T290) ->  | U291: =SUM(U286:U290) -> 
C292: Dairy cattle standard reference weight to calculate relative size (Z) | M292: Table 5.A.3
D293: Milking Cows | E293: Heifers >1 | F293: Heifers <1 | G293: Mature bulls | H293: Dairy Bulls <1 | I293: Dairy Bulls >1
B294: 1 | C294: Victoria | D294: 590 | E294: 590 | F294: 590 | G294: 770 | H294: 770 | I294: 770
B295: 2 | C295: New.South.Wales | D295: 590 | E295: 590 | F295: 590 | G295: 770 | H295: 770 | I295: 770
B296: 3 | C296: Tasmania | D296: 590 | E296: 590 | F296: 590 | G296: 770 | H296: 770 | I296: 770
B297: 4 | C297: Queensland | D297: 590 | E297: 590 | F297: 590 | G297: 770 | H297: 770 | I297: 770
B298: 5 | C298: South.Australia | D298: 590 | E298: 590 | F298: 590 | G298: 770 | H298: 770 | I298: 770
B299: 6 | C299: Western.Australia | D299: 590 | E299: 590 | F299: 590 | G299: 770 | H299: 770 | I299: 770
B300: 7 | C300: Northern.Territory | D300: 590 | E300: 590 | F300: 590 | G300: 770 | H300: 770 | I300: 770
B301: Selected | C301: =VLOOKUP($D$15,$C$294:$I$300,1,FALSE) ->  | D301: =VLOOKUP($D$15,$C$294:$I$300,2,FALSE) ->  | E301: =VLOOKUP($D$15,$C$294:$I$300,3,FALSE) ->  | F301: =VLOOKUP($D$15,$C$294:$I$300,4,FALSE) ->  | G301: =VLOOKUP($D$15,$C$294:$I$300,5,FALSE) ->  | H301: =VLOOKUP($D$15,$C$294:$I$300,6,FALSE) ->  | I301: =VLOOKUP($D$15,$C$294:$I$300,7,FALSE) -> 
C302: Z | D302: =IF(D301>0,D21/D301,0) -> 
B304: L intake relative that that needed for maintenance | D304: =D236/(1.185+(0.00454*D21)-(0.0000026*(D21)^2)+((0.315*0)))^2 ->  | E304: =E236/(1.185+(0.00454*E21)-(0.0000026*(E21)^2)+((0.315*0)))^2 -> 1 | F304: =F236/(1.185+(0.00454*F21)-(0.0000026*(F21)^2)+((0.315*0)))^2 -> 1 | G304: =G236/(1.185+(0.00454*G21)-(0.0000026*(G21)^2)+((0.315*0)))^2 -> 1 | H304: =H236/(1.185+(0.00454*H21)-(0.0000026*(H21)^2)+((0.315*0)))^2 -> 1 | I304: =K236/(1.185+(0.00454*I21)-(0.0000026*(I21)^2)+((0.315*0)))^2 -> 1
B306: Nitrogen retained (NR) by the body | C306: Annual | D306: =((0.032*(R225*1.03*D36/365)/6.38)+((0.212-0.008*(D304-2)-((0.14-0.008*(D304-2))/(1+EXP(-6*(D$302-0.4)))))*(D23*0.92))/6.25) ->  | E306: =((0.032*0)+((0.212-0.008*(E304-2)-((0.14-0.008*(E304-2))/(1+EXP(-6*(E$302-0.4)))))*(E23*0.92))/6.25) ->  | F306: =((0.032*0)+((0.212-0.008*(F304-2)-((0.14-0.008*(F304-2))/(1+EXP(-6*(F$302-0.4)))))*(F23*0.92))/6.25) ->  | G306: =((0.032*0)+((0.212-0.008*(G304-2)-((0.14-0.008*(G304-2))/(1+EXP(-6*(G$302-0.4)))))*(G23*0.92))/6.25) ->  | H306: =((0.032*0)+((0.212-0.008*(H304-2)-((0.14-0.008*(H304-2))/(1+EXP(-6*(H$302-0.4)))))*(H23*0.92))/6.25) ->  | I306: =((0.032*0)+((0.212-0.008*(I304-2)-((0.14-0.008*(I304-2))/(1+EXP(-6*(I$302-0.4)))))*(I23*0.92))/6.25) ->  | L306: kg N/head/day
B308: Nitrogen excreted in urine (U) | D308: U = (CPI / 6.25) - NR - F - [(1.1 x 10^-4 x W^0.75) / 6.25] | M308: 3B.1a_7
C309: Annual | D309: =(D283/6.25)-D306-D288-((1.1*10^-4*D21^0.75)/6.25) ->  | E309: =(E283/6.25)-E306-E288-((1.1*10^-4*E21^0.75)/6.25) ->  | F309: =(F283/6.25)-F306-F288-((1.1*10^-4*F21^0.75)/6.25) ->  | G309: =(G283/6.25)-G306-G288-((1.1*10^-4*G21^0.75)/6.25) ->  | H309: =(H283/6.25)-H306-H288-((1.1*10^-4*H21^0.75)/6.25) ->  | I309: 0.0082 | J309: 0.0042 | K309: =(K283/6.25)-I306-K288-((1.1*10^-4*I21^0.75)/6.25) ->  | L309: kg N/head/day
B311: Total annual faecal (AF) nitrogen excreted | D311: AF = ∑ (365 x N x F) x 10^-6 for > 1 yr olds, (281 x N X F) x 10^-6 for 0 to 1 yr olds and (84 x N x F) x 10^-6 for unweaned | M311: 3B.1a_8a
C313: Annual | D313: =(365*D19*D288)*10^-6 ->  | E313: =(365*E19*E288)*10^-6 -> 0 | F313: =(281*F19*F288)*10^-6 -> 0 | G313: =(365*G19*G288)*10^-6 -> 0 | H313: =(281*H19*H288)*10^-6 -> 0 | I313: =(84*F19*I288)*10^-6 -> 0 | J313: =(84*H19*J288)*10^-6 -> 0 | K313: =(365*I19*K288)*10^-6 -> 0 | L313: Gg N/farm/annum
B315: Total annual urinary (AU) nitrogen excreted | D315: AU = ∑ (365 x N x U) x 10^-6 for > 1 yr olds, (281 x N X U) x 10^-6 for 0 to 1 yr olds and (84 x N x U) x 10^-6 for unweaned | M315: 3B.1a_8b
... 408 more rows

Sheet Strategy farm
B2: Whole farm abatement strategy
B4: Unlike all other abatement strategies in the carbon calculator where only a component of the farm system is reviewed, with this strategy the user has the ability to change any or all aspects of the baseline farm system and see the effect of this change on total farm GHG emissions and the emissions intensity of milk production.
B5: On first opening this strategy worksheet, most data will appear exactly the same as per the baseline farm system as each cell is referenced back to its corresponding baseline farm system cell. You will see this by clicking any of the data entry cells that it is referenced to the corresponding cells from the Baseline farm worksheet. The one exception to this is drop-down lists for tree carbon sequestration do not always match the baseline farm. Users need to select if the tool is being used to estimate tree carbon, and if yes, select the same region, tree species and soil type from the corresponding drop-down lists as per the baseline farm. The box will change from red to white if the correct selection has been made.
B6: When the user changes any particular data entry to reflect the abatement strategy being explored (e.g. change in stock numbers, N fertiliser inputs, diet quality etc), the cell will change from white to red and the text will change from black to white to indicate that the data here is different to the baseline figure. The best way to change the data entry is not to over-write the baseline figure with a new figure, as this removes the equation. The best option is to put a plus (+) or minus (-) and the amount you want to add or subtract. This retains the baseline equation and can then be easily reverted back to the original baseline figure or further altered.
B7: For example, the baseline milk production was 150,000 kg milksolids/annum but you want to add an additional 10,000 kg milksolids/annum. In the corresponding cell, just put "+ 10,000" behind the reference to the baseline worksheet to reflect 160,000 kg MS/annum.
B8: Economic data can be entered below the Bar graph to explore the implications of a carbon price on reducing GHG emissions and any additional income associated with altered expenses and incomes, including additional milk production income.
B10: Farmer details
C11: Owner or sharefarmer ID | D11: ='Baseline farm'!D11:F11 -> 0 | G11: Supplier Number | H11: ='Baseline farm'!H11 -> 0
C13: Address | D13: ='Baseline farm'!D13 -> 0 | G13: Year reviewed | H13: ='Baseline farm'!H13 -> 0
C15: Choose your state in Australia | D15: ='Baseline farm'!D15 -> 0 | F15: Choose your region/ farm system comparison | H15: ='Baseline farm'!H15 -> 0
B17: Livestock dynamics | D17: Milking Cows | E17: Heifers >1 yr age | F17: Heifers <1 yr age | G17: Mature bulls | H17: Other stock < 1 yr age | I17: Other stock > 1 yr age | J17: Calves | K17: ='Baseline farm'!K17 -> 0
C19: Livestock numbers | D19: ='Baseline farm'!D19 -> 0 | E19: ='Baseline farm'!E19 -> 0 | F19: ='Baseline farm'!F19 -> 0 | G19: ='Baseline farm'!G19 -> 0 | H19: ='Baseline farm'!H19 -> 0 | I19: ='Baseline farm'!I19 -> 0 | K19: head
C21: Liveweight | D21: ='Baseline farm'!D21 -> 0 | E21: ='Baseline farm'!E21 -> 0 | F21: ='Baseline farm'!F21 -> 0 | G21: ='Baseline farm'!G21 -> 0 | H21: ='Baseline farm'!H21 -> 0 | I21: ='Baseline farm'!I21 -> 0 | K21: kg/head
C23: Liveweight gain | E23: ='Baseline farm'!E23 -> 0 | F23: ='Baseline farm'!F23 -> 0 | H23: ='Baseline farm'!H23 -> 0 | I23: ='Baseline farm'!I23 -> 0 | K23: kg/day
C25: Number of stock sold each year | D25: ='Baseline farm'!D25 -> 0 | E25: ='Baseline farm'!E25 -> 0 | F25: ='Baseline farm'!F25 -> 0 | G25: ='Baseline farm'!G25 -> 0 | H25: ='Baseline farm'!H25 -> 0 | I25: ='Baseline farm'!I25 -> 0 | J25: ='Baseline farm'!J25 -> 0 | K25: head
C27: Liveweight at point of sale | D27: ='Baseline farm'!D27 -> 0 | E27: ='Baseline farm'!E27 -> 0 | F27: ='Baseline farm'!F27 -> 0 | G27: ='Baseline farm'!G27 -> 0 | H27: ='Baseline farm'!H27 -> 0 | I27: ='Baseline farm'!I27 -> 0 | J27: ='Baseline farm'!J27 -> 0 | K27: kg/head
J29: =SUMPRODUCT(D25:J25,D27:J27)/1000 -> 0 | K29: t LW/annum
B31: Milk production
C32: Select option for milk production | D32: ='Baseline farm'!D32 -> 0 | F32: Amount of milk produced | H32: ='Baseline farm'!H32 -> 0 | I32: =IF(U273="1","litres of milk per herd her annum","kg milksolids per herd per annum") -> kg milksolids per herd per annum
C34: Average annual milk fat (%) | D34: ='Baseline farm'!D34 -> 0 | E34: % | F34: Average annual milk protein (%) | H34: ='Baseline farm'!H34 -> 0 | I34: %
C36: Average lactation length (days) | D36: ='Baseline farm'!D36 -> 0 | E36: days | F36: Average milk production (litres/cow per day) | H36: =Q267 ->  | I36: litres per cow per day
B38: Milkers average annual diet intakes and quality | D38: Intake (kg DM/day) | F38: Dry matter digestibility (DMD; %) | H38: Crude protein (CP; %)
C39: Pastures | D39: ='Baseline farm'!D39 -> 0 | F39: ='Baseline farm'!F39 -> 0 | H39: ='Baseline farm'!H39 -> 0
B40: Estimated intake based | C40: Concentrates/ grain | D40: ='Baseline farm'!D40 -> 0 | F40: ='Baseline farm'!F40 -> 0 | H40: ='Baseline farm'!H40 -> 0
B41: on data entry | C41: Silage | D41: ='Baseline farm'!D41 -> 0 | F41: ='Baseline farm'!F41 -> 0 | H41: ='Baseline farm'!H41 -> 0
B42: =Q271 &" kg DM/cow.day" ->  | C42: Hay | D42: ='Baseline farm'!D42 -> 0 | F42: ='Baseline farm'!F42 -> 0 | H42: ='Baseline farm'!H42 -> 0
C43: By-products | D43: ='Baseline farm'!D43 -> 0 | F43: ='Baseline farm'!F43 -> 0 | H43: ='Baseline farm'!H43 -> 0
B44: Click here for help with feed quality | C44: Other | D44: ='Baseline farm'!D44 -> 0 | F44: ='Baseline farm'!F44 -> 0 | H44: ='Baseline farm'!H44 -> 0
C45: Total (kg DM/day) or average (%) | D45: =SUM(D39:E44) -> 0 | F45: =Q269 ->  | H45: =Q270 -> 
B47: Average annual dry matter digestibility (DMD) for all other stock (%) | D47: ='Baseline farm'!R241 -> 75 | E47: %
B48: Average annual crude protein (CP) for all other stock (%) | D48: ='Baseline farm'!R242 -> 20 | E48: %
B50: Fertilisers
C51: How do you which to enter the fertiliser rates? | E51: =FertiliserRateUnits -> 0 | H51: Click here to work out fertiliser rates
C53: Area of N fertiliser | G53: Rate of N fert.
B54: Area of pastures fertilised with N | C54: =IF('Baseline farm'!C54="","",'Baseline farm'!C54) ->  | D54: ha | E54: Amount of N applied to pastures | G54: ='Baseline farm'!G54 -> 0 | H54: ='Baseline farm'!H54 -> t per annum
B56: Area of crops fertilised with N | C56: =IF('Baseline farm'!C56="","",'Baseline farm'!C56) ->  | D56: ha | E56: Amount of N applied to crops | G56: ='Baseline farm'!G56 -> 0 | H56: =H54 -> t per annum
E58: Percentage of N fertiliser that is urea | G58: ='Baseline farm'!G58 -> 0 | H58: %
C60: Area of PKS & Lime fertiliser (ha) | G60: Rate of P fert. | H60: Rate of K fert. | I60: Rate of S fert. | J60: Rate of Lime
B61: Area of pastures fertilised with P K S & Lime | C61: =IF('Baseline farm'!C61="","",'Baseline farm'!C61) ->  | D61: ha | E61: Rate of P K S & Lime/dolomite to pastures | G61: ='Baseline farm'!G61 -> 0 | H61: ='Baseline farm'!H61 -> 0 | I61: ='Baseline farm'!I61 -> 0 | J61: ='Baseline farm'!J61 -> 0 | K61: =H54 -> t per annum
B63: Area of crops fertilised with P K S & Lime | C63: =IF('Baseline farm'!C63="","",'Baseline farm'!C63) ->  | D63: ha | E63: Rate of P K S & Lime/dolomite to crops | G63: ='Baseline farm'!G63 -> 0 | H63: ='Baseline farm'!H63 -> 0 | I63: ='Baseline farm'!I63 -> 0 | J63: ='Baseline farm'!J63 -> 0 | K63: =H54 -> t per annum
B65: Energy consumption
B66: Annual Electricity Use (kWh) | C66: ='Baseline farm'!C66 -> 0 | D66: kWh | E66: Annual purchased diesel/ unleaded petrol | G66: ='Baseline farm'!G66 -> 0 | H66: litres
B68: Where does your electricity come from? | C68: ='Baseline farm'!C68 -> 0 | E68: Annual contractor diesel/ unleaded petrol | G68: ='Baseline farm'!G68 -> 0 | H68: litres
B70: What % of electricity is from renewables? | C70: ='Baseline farm'!C70 -> 0 | D70: %
B72: Purchased supplementary feed
B73: Purchased pasture, cereal, lucerne or legume hay (t DM) | C73: ='Baseline farm'!C73 -> 0 | D73: t DM | E73: Purchased pasture, cereal or maize silage (t DM) | G73: ='Baseline farm'!G73 -> 0 | I73: t DM
B75: Percentage of purchased hay fed on the milking platform | C75: ='Baseline farm'!C573 -> 0 | D75: % | E75: Percentage of purchased silage fed on the milking platform | G75: ='Baseline farm'!C574 -> 0 | I75: %
B77: Purchased grain and concentrates (t DM) | C77: ='Baseline farm'!C77 -> 0 | D77: t DM | E77: Purchased by-products (t DM) | G77: ='Baseline farm'!G77:H77 -> 0 | I77: t DM
B79: Percentage of purchased grain & concentrates fed on the milking platform | C79: ='Baseline farm'!C575 -> 0 | D79: % | E79: Percentage of purchased by-products fed on the milking platform | G79: ='Baseline farm'!C576 -> 0 | I79: %
B81: Carbon sequestration in tree plantations
B82: How are you estimating this? | C82: ='Baseline farm'!C82 -> 0 | F82: Area of trees (ha) | G82: ='Baseline farm'!G82 -> 0 | H82: Age of trees | I82: ='Baseline farm'!I82 -> 0
B84: Choose your region in Australia | C84: ='Baseline farm'!C84 -> 0
F85: Amount of carbon sequestered using other tools | H85: =IF('Baseline farm'!H85=0,"",'Baseline farm'!H85) ->  | I85: t CO2e/ha.annum
B86: Choose the type of trees planted | C86: ='Baseline farm'!C86 -> 0
B88: Manure management
C89: Choose which option you are using to estimate how animal waste is handled | F89: ='Baseline farm'!F89 -> 0 | H89: Volatile solids | I89: =D304 ->  | J89: kg VS/head.day for the milking cows
B90: % waste to each manure management system
C91: Anaerobic lagoon | D91: Sump dispersal | E91: Drain to paddock | F91: Solid storage | G91: Pasture
B92: Milkers | C92: =AI285 -> 0 | D92: =AJ285 -> 0 | E92: =AK285 -> 0 | F92: =AM285 -> 0 | G92: =AH285 -> 100
B93: All other stock | C93: =AI288 -> 0 | D93: =AJ288 -> 0 | E93: =AK288 -> 0 | F93: =AM288 -> 0 | G93: =AH288 -> 100
B95: Only answer the following questions if you which to enter your own farm management practices to estimate the percentage of waste to each of the abovementioned manure management systems. In addition, you must have selected the User-defined factors and fractions option in the drop-down list at the beginning of this section otherwise the results with still reflect the default state-based fractions and factors.
B98: Milkers | G98: Hours per day | H98: Days per annum
B99: Number of hours per day and days per annum a milker spends at the dairy and adjacent yards where the waste is flushed with water | G99: ='Baseline farm'!G100 -> 0 | H99: ='Baseline farm'!H100 -> 0
B101: Percentage of waste that is flushed and then drains to the paddock with no treatment/ removal of solids | G101: ='Baseline farm'!G102 -> 0 | H101: %
B102: Percentage of waste that is flushed and then spread daily from a sump/dispersal system (with or without removal of solids) | G102: ='Baseline farm'!G103 -> 0 | H102: %
B103: Balance assumed to be flushed and then enter a pond/lagoon system | G103: =(100-SUM(G101:G102)) -> 100 | H103: %
B105: Do you pre-treat the waste prior to spreading daily or entering the lagoon (e.g. weeping wall, solids trap, mechanical separator to remove a fraction of the solids)? | G105: ='Baseline farm'!G106 -> 0
B106: If yes, what percentage of the waste is removed via the pre-treatment process? | G106: =IF('Baseline farm'!G107="",20,PercentageManureTreatedNotImported) -> 20 | H106: %
G108: Hours per day | H108: Days per annum
B109: Number of hours per day and days per annum a milker spend on a feedpad or loafing area or are housed (TMR farm) | G109: ='Baseline farm'!G110 -> 0 | H109: ='Baseline farm'!H110 -> 0
B111: Select the option which best describes how the majority of this waste from the feedpad or loafing area is best handled | F111: ='Baseline farm'!F112 -> 0 | H111: Integrated MCF | I111: =AO285 ->  | J111: %
B113: Heifers | G113: Hours per day | H113: Days per annum
B114: Number of hours per day and days per annum the heifers spend in yards or are housed where the waste is deposited | G114: ='Baseline farm'!G115 -> 0 | H114: ='Baseline farm'!H115 -> 0
B116: Select the option which best describes how this waste from the feedpad or loafing area is best handled | F116: ='Baseline farm'!F117 -> 0 | H116: Integrated MCF | I116: =AO288 ->  | J116: %
B119: Results for strategy farm system
D120: Milking Cows | E120: Heifers >1 yr age | F120: Heifers <1 yr age | G120: Mature bulls | H120: Other stock < 1 yr age | I120: Other stock > 1 yr age | J120: N fertiliser | K120: Total GHG (tonnes CO2e/annum) | L120: % of total GHG (exc. C sequestration in trees) | M120: kg CO2e/kg FPCM (your baseline farm) | N120: kg CO2e/kg FPCM (your strategy farm) | O120: kg CO2e/kg FPCM (industry comparison)
B122: Methane (Scope 1): | C122: Enteric fermentation | D122: =D292*'Emission factors'!$C$4*10^3 ->  | E122: =E292*'Emission factors'!$C$4*10^3 -> 0 | F122: =(F292+I292)*'Emission factors'!$C$4*10^3 -> 0 | G122: =G292*'Emission factors'!$C$4*10^3 -> 0 | H122: =(H292+J292)*'Emission factors'!$C$4*10^3 -> 0 | I122: =K292*'Emission factors'!$C$4*10^3 -> 0 | K122: =SUM(D122:I122) ->  | L122: =K122/$K$138 ->  | M122: ='Baseline farm'!M123 ->  | N122: =K122*1000/$Q$265*$P$324 ->  | O122: ='Baseline farm'!N123 ->  | P122: Enteric fermentation
C123: Manure management | D123: =D317*'Emission factors'!$C$4*10^3 ->  | E123: =E317*'Emission factors'!$C$4*10^3 ->  | F123: =(F317+I317)*'Emission factors'!$C$4*10^3 ->  | G123: =G317*'Emission factors'!$C$4*10^3 ->  | H123: =(H317+J317)*'Emission factors'!$C$4*10^3 ->  | I123: =K317*'Emission factors'!$C$4*10^3 ->  | K123: =SUM(D123:I123) ->  | M123: ='Baseline farm'!M124 ->  | N123: =K123*1000/$Q$265*$P$324 ->  | O123: ='Baseline farm'!N124 ->  | P123: Manure management
B124: Nitrous oxide (Scope 1): | C124: Direct from dung & urine voided onto pastures | D124: =D504*'Emission factors'!$C$5*10^3 ->  | E124: =E504*'Emission factors'!$C$5*10^3 ->  | F124: =(F504+I504)*'Emission factors'!$C$5*10^3 ->  | G124: =G504*'Emission factors'!$C$5*10^3 ->  | H124: =(H504+J504)*'Emission factors'!$C$5*10^3 ->  | I124: =K504*'Emission factors'!$C$5*10^3 ->  | K124: =SUM(D124:I124) ->  | M124: ='Baseline farm'!M125 ->  | O124: ='Baseline farm'!N125 ->  | P124: Direct from dung & urine voided onto pastures
C125: Direct from manure (storage & spread) | D125: =(D383+D459)*'Emission factors'!$C$5*10^3 ->  | E125: =(E383+E459)*'Emission factors'!$C$5*10^3 ->  | F125: =(F383+F459+I383+I459)*'Emission factors'!$C$5*10^3 ->  | G125: =(G383+G459)*'Emission factors'!$C$5*10^3 ->  | H125: =(H383+H459+J383+J459)*'Emission factors'!$C$5*10^3 ->  | I125: =(K383+K459)*'Emission factors'!$C$5*10^3 ->  | K125: =SUM(D125:I125) ->  | M125: ='Baseline farm'!M126 ->  | O125: ='Baseline farm'!N126 ->  | P125: Direct from manure (storage & spread)
C126: Indirect N waste | D126: =(D398+D407+D541+D575)*'Emission factors'!$C$5*10^3 ->  | E126: =(E398+E407+E541+E575)*'Emission factors'!$C$5*10^3 ->  | F126: =(F398+F407+F541+F575+I398+I407+I541+I575)*'Emission factors'!$C$5*10^3 ->  | G126: =(G398+G407+G541+G575)*'Emission factors'!$C$5*10^3 ->  | H126: =(H398+H407+H541+H575+J398+J407+J541+J575)*'Emission factors'!$C$5*10^3 ->  | I126: =(K398+K407+K541+K575)*'Emission factors'!$C$5*10^3 ->  | K126: =SUM(D126:I126) ->  | M126: ='Baseline farm'!M127 ->  | O126: ='Baseline farm'!N127 ->  | P126: Indirect N waste
C127: Direct N fertiliser | J127: =C437 -> 0 | K127: =J127 -> 0 | M127: ='Baseline farm'!M128 ->  | O127: ='Baseline farm'!N128 ->  | P127: Direct N fertiliser
C128: Indirect N fertiliser | J128: =(SUM(D536:D539)+SUM(D570:D573))*'Emission factors'!$C$5*10^3 -> 0 | K128: =J128 -> 0 | M128: ='Baseline farm'!M129 ->  | O128: ='Baseline farm'!N129 ->  | P128: Indirect N fertiliser
B129: Carbon dioxide: | C129: Electricity (Scope 2) | K129: =J599 -> 0 | M129: ='Baseline farm'!M130 ->  | N129: =(K129+K130)*1000/$Q$265*$P$324 ->  | O129: ='Baseline farm'!N130 ->  | P129: Electricity (Scope 2 &3)
C130: Electricity (Scope 3) | K130: =J603 -> 0
C131: Diesel and unleaded petrol (Scope 1) | K131: =H591 -> 0 | M131: ='Baseline farm'!M132 ->  | N131: =(K131+K132)*1000/$Q$265*$P$324 ->  | O131: ='Baseline farm'!N132 ->  | P131: Diesel and unleaded petrol (Scope 1 & 3)
C132: Diesel and unleaded petrol (Scope 3) | K132: =J591 -> 0
C133: Urea and Lime/dolomite | K133: =C641+C648 -> 0 | M133: ='Baseline farm'!M134 ->  | N133: =K133*1000/$Q$265*$P$324 ->  | O133: ='Baseline farm'!N134 ->  | P133: Urea and Lime/dolomite
B134: Pre-farm gate embedded (Scope 3) | C134: Grain/ concentrates | K134: =E616 -> 0 | M134: ='Baseline farm'!M135 ->  | N134: =K134*1000/$Q$265*$P$324 ->  | O134: ='Baseline farm'!N135 ->  | P134: Grain/ concentrates
C135: Forages | K135: =SUM(E614:E615) -> 0 | M135: ='Baseline farm'!M136 ->  | N135: =K135*1000/$Q$265*$P$324 ->  | O135: ='Baseline farm'!N136 ->  | P135: Forages
C136: Fertilisers | K136: =E634 -> 0 | M136: ='Baseline farm'!M137 ->  | N136: =K136*1000/$Q$265*$P$324 ->  | O136: ='Baseline farm'!N137 ->  | P136: Fertilisers
B138: Total GHG emissions | D138: =SUM(D122:D136) ->  | I138: =SUM(I122:I136) ->  | J138: 0 | K138: =SUM(K122:K136) ->  | L138: t CO2e/annum
B139: % of total GHG emissions | D139: =D138/SUM($K$122:$K$136) -> 
B141: Carbon sequestration | C141: Tree plantings, with negative figures representing amount of carbon sequestered | K141: =IF(C82="",0,IF(U267="1",0,IF(U267=2,(F660*-1),(H85*G82*-1)))) ->  | L141: t CO2e/annum
B143: Net GHG emissions | K143: =K138+K141 ->  | L143: t CO2e/annum
B145: Reduction in net GHG emissions | K145: ='Baseline farm'!K144-'Strategy farm'!K143 ->  | L145: t CO2e/annum
B146: Percentage change in net GHG emissions- Positive number in a green cell means a positive outcome, negative number in a red cell means a negative outcome | K146: =('Baseline farm'!K144-'Strategy farm'!K143)/'Baseline farm'!K144*100 ->  | L146: %
B148: GHG emissions intensity (kg CO2e/kg fat and protein corrected milk (FPCM)) | M148: ='Baseline farm'!M146 ->  | N148: =R321 ->  | O148: ='Baseline farm'!N146 ->  | P148: kg CO2e/kg FPCM
B149: GHG emissions intensity (kg CO2e/kg milksolids) | M149: ='Baseline farm'!M147 ->  | N149: =R322 ->  | O149: ='Baseline farm'!N147 ->  | P149: kg CO2e/kg milksolids
B150: GHG emissions intensity (kg CO2e/kg liveweight) | M150: ='Baseline farm'!M148 ->  | N150: =R323 ->  | O150: ='Baseline farm'!N148 ->  | P150: kg CO2e/kg liveweight meat
B152: Change in GHG emissions intensity relative to the Baseline farm system- Positive number in a green cell means a positive outcome, negative number in a red cell means a negative outcome | N152: ='Baseline farm'!M146-'Strategy farm'!N148 ->  | P152: Change in kg CO2e/kg FPCM
B153: Change in GHG emissions intensity relative to the Baseline farm system- Positive number in a green cell means a positive outcome, negative number in a red cell means a negative outcome | N153: ='Baseline farm'!M147-'Strategy farm'!N149 ->  | P153: Change in kg CO2e/kg milksolids
B154: Change in GHG emissions intensity relative to the Baseline farm system- Positive number in a green cell means a positive outcome, negative number in a red cell means a negative outcome | N154: ='Baseline farm'!M148-'Strategy farm'!N150 ->  | P154: Change in kg CO2e/kg liveweight meat
B156: Proportion of net emissions allocated to milk | M156: =P324 ->  | N156: =P324 ->  | O156: ='Baseline farm'!N150 ->  | P156: Proportion of emissions allocated to milk
B157: Proportion of net emissions allocated to meat | M157: =P325 ->  | N157: =P325 ->  | O157: ='Baseline farm'!N151 ->  | P157: Proportion of emissions allocated to meat
C188: Note: If trees sequester carbon, this is reported as a positive figure in this graph just for simplification of scaling
C192: Economic implications of changing the baseline farm system
C194: Enter the cost to implement the change on farm ($ per annum) | G194: =C248/1 -> 0
C196: Enter any savings that may occur due to implementing the change on farm ($ per annum) | G196: =C249/1 -> 6500
C198: Enter the milk price when the changes are implemented ($/litre milk) | G198: =C250/1000 -> 0.675
C200: Enter on farm price received for a t CO2e ($) | G200: =C251/100 -> 35
C202: Calculated potential carbon credit ($ per farm) | G202: =F248 -> 0
C204: Calculated net expense to implement the strategy ($ per farm) | G204: =F251 -> -6500
C206: Benefit as stand alone abatement ($ per farm) | G206: =F252 -> 6500
C208: Estimated additional milk income ($ per farm) | G208: =F253 -> 0
C210: Estimated total farm benefit from strategy ($ per farm) | G210: =F254 -> 6500
B248: Cost to implement ($ per annum) | C248: 0 | E248: Carbon income | F248: =IF(ISERROR(K145),0,IF(J225<0,0,(K145*G200))) -> 0 | L248: RDPs for linking to Industry average farm
B249: Savings in expenses ($ per annum) | C249: 6500 | E249: Expenses to implement | F249: =IF(ISERROR(G194),0,(G194)) -> 0 | K249: 1 | L249: Australia-wide
B250: Milk price ($/litre milk) | C250: 675 | E250: Savings from implementing | F250: =IF(ISERROR(G196),0,(G196)) -> 6500 | K250: 2 | L250: Victoria
B251: Carbon price ($/t CO2e) | C251: 3500 | E251: Net expense of implementing | F251: =F249-F250 -> -6500 | K251: 3 | L251: Victoria- Gippsland
E252: Benefit as stand alone | F252: =IF(F248>1,(F248-F251),(F251*-1)) -> 6500 | K252: 4 | L252: Victoria- Northern
E253: Estimated additional milk income | F253: =IF(ISERROR((Q265-'Baseline farm'!R223)*'Strategy farm'!G198),0,(Q265-'Baseline farm'!R223)*'Strategy farm'!G198) -> 0 | K253: 5 | L253: Victoria- South West
E254: Estimated total farm benefit | F254: =IF(ISERROR(F248-F249+F253+G196),0,(F248-F249+F253+G196)) -> 6500 | K254: 6 | L254: New South Wales
E255: Estimated carbon credit if paid on reduction in GHG | F255: =IF(ISERROR(K151/1000*Q265*G200),0,(K151/1000*Q265*G200)) -> 0 | K255: 7 | L255: NSW- North
K256: 8 | L256: NSW- South | AB256: Manure management | AH256: Milkers-dairy | AQ256: Milkers | AU256: Heifers
C257: State | D257: Victoria | E257: New South Wales | F257: Tasmania | G257: Queensland | H257: South Australia | I257: Western Australia | K257: 9 | L257: Queensland | O257: Milk production | S257: N fertiliser rates | T257: kg of element per ha per annum | AC257: 1 | AD257: Default state factors and fractions | AG257: Milkers- dairy | AH257: Hours per day at dairy | AI257: =G99 -> 0 | AK257: Heifers | AL257: Hours per day | AN257: =G114 -> 0 | AQ257: % to grazing | AS257: =1-((AI257/24*AI258/365)+(AI262/24*AI263/365)) -> 1 | AU257: % to grazing | AV257: =1-(AN257/24*AN258/365) -> 1 | AY257: MCF calculations- milkers
B258: 1 | C258: Victoria | D258: Mallee region VIC | E258: Northern coastal NSW | F258: North East TAS | G258: Northern QLD | H258: South East SA | I258: South West WA | K258: 10 | L258: QLD- North | T258: tonnes of element per annum | AC258: 2 | AD258: User-defined factors and fractions | AH258: Days per annum at dairy | AI258: =H99 -> 0 | AL258: Days per annum | AN258: =H114 -> 0 | AQ258: % from dairy & drains to paddock | AS258: =(AI257/24)*(AI258/365)*(AI259/100) -> 0 | AU258: % drains to paddock | AV258: =IF(AM270=1,AN257/24*AN258/365,0) -> 0 | AZ258: Lagoon | BA258: Sump and dispersal | BB258: Drains to paddock | BC258: Solids storage | BD258: Voided pasture
B259: 2 | C259: New.South.Wales | D259: Northern region VIC | E259: Southern coastal NSW | F259: Central North & Midlands TAS | G259: Southern QLD | H259: Murray River SA | K259: 11 | L259: QLD- South | O259: Litres per annum | Q259: =IF(U273="1",H32,0) -> 0 | AC259: Selected | AD259: =IF(F89=AD257,1,2) -> 2 | AH259: % drained daily from sump | AI259: =G101 -> 0 | AQ259: % from dairy & spread daily | AS259: =(AI257/24*AI258/365*AI260/100)*IF(AD264=2,(1-AD266),1) -> 0 | AU259: % spread sump/dispersal system | AV259: =IF(AM270=2,(AN257/24*AN258/365*IF(AD264=2,0.8,1)),0) -> 0 | AX259: 1 | AY259: Victoria | AZ259: 73 | BA259: 0.5 | BB259: 17 | BC259: 2 | BD259: 1
B260: 3 | C260: Tasmania | D260: North East region VIC | E260: Central Inland & Riverina NSW | F260: Southern TAS | K260: 12 | L260: South Australia | O260: MS per annum | Q260: =IF(U273="2",H32,0) -> 0 | S260: Selected | T260: =E51 -> 0 | U260: =IF(T260="kg of element per ha per annum","1","2") -> 2 | AH260: % spread daily from sump | AI260: =G102 -> 0 | AQ260: % from dairy & spread daily & treated so its solid storage | AS260: =(AI257/24*AI258/365*AI260/100)*IF(AD264=1,0,AD266) -> 0 | AU260: % of spread daily to SS | AV260: =IF(AM270=2,(AN257/24*AN258/365*IF(AD264=2,0.2,0)),0) -> 0 | AX260: 2 | AY260: New.South.Wales | AZ260: 76 | BA260: 0.5 | BB260: 18 | BC260: 2 | BD260: 1
B261: 4 | C261: Queensland | D261: East Gippsland | F261: North West TAS | K261: 13 | L261: Tasmania | O261: Fat % | Q261: =IF(D34="",4,D34) -> 0 | AB261: Pre-treat manure storage | AH261: % to lagoon | AI261: =G103 -> 100 | AQ261: % from dairy & to lagoon (no pre-treatment) | AS261: =IF(AD264=1,(AI257/24*AI258/365*AI261/100),(AI257/24*AI258/365*AI261/100)*(1-AD266)) -> 0 | AU261: % to lagoon (no pre-treatment) | AV261: =IF(AM270=3,AN257/24*AN258/365*IF(AD264=2,0.8,1),0) -> 0 | AX261: 3 | AY261: Tasmania | AZ261: 69 | BA261: 0.1 | BB261: 13 | BC261: 2 | BD261: 1
B262: 5 | C262: South.Australia | D262: South & West Gippsland | K262: 14 | L262: Western Australia | O262: Protein % | Q262: =IF(H34="",3.3,H34) -> 0 | AC262: 1 | AD262: NO | AH262: Hours per day on feedpad | AI262: =G109 -> 0 | AQ262: % from dairy & to lagoon (pre-treated & to solid storage fraction) | AS262: =IF(AD264=1,0,(AI257/24*AI258/365*AI261/100)*AD266) -> 0 | AU262: % to lagoon (pre-treated & to solid storage) | AV262: =IF(AM270=3,AN257/24*AN258/365*IF(AD264=2,0.2,0),0) -> 0 | AX262: 4 | AY262: Queensland | AZ262: 78 | BA262: 0.5 | BB262: 24 | BC262: 2 | BD262: 1
B263: 6 | C263: Western.Australia | D263: South West VIC | K263: 15 | L263: Low grain (< 1 t DM/cow.annum) | O263: DGAS estimated kg MS if litres entered | Q263: =IF(Q259=0,Q260,(Q259*(Q261+Q262)/100)) -> 0 | S263: Tree sequestration | T263: No estimate of carbon sequestration | AC263: 2 | AD263: YES | AH263: Days per annum on feedpad | AI263: =H109 -> 0 | AQ263: % from feedpad and drains to paddock | AS263: =IF(AH271=1,(AI262/24*AI263/365),0) -> 0 | AU263: % to solid storage | AV263: =IF(AM270=4,AN257/24*AN258/365,0) -> 0 | AX263: 5 | AY263: South.Australia | AZ263: 74 | BA263: 0.5 | BB263: 17 | BC263: 2 | BD263: 1
K264: 16 | L264: Medium grain (1-2 t DM/cow.annum) | O264: DGAS estimated litres per annum | Q264: =IF(Q259=0,(Q260/((Q261+Q262)/100)),Q259) ->  | T264: Based on data entered here | AC264: Selected | AD264: =IF(G105="",1,IF(G105=0,1,(IF(G105=AD262,1,2)))) -> 1 | AQ264: % from feedpad spread daily | AS264: =IF(AH271=2,AI257/24*AI258/365*IF(AD264=2,(1-AD266),1),0) -> 0 | AU264: % sum solid storage | AV264: =AV260+AV262+AV263 -> 0 | AX264: 6 | AY264: Western.Australia | AZ264: 76 | BA264: 0.5 | BB264: 18 | BC264: 2 | BD264: 1
K265: 17 | L265: High grain (> 2 t DM/cow.annum) | O265: FPCM (kg per annum) | Q265: =(Q264*1.03)*(0.2534+0.1226*Q261+0.0776*Q262) ->  | T265: Carbon sequestered using other tools | AG265: Milkers- feedpad | AK265: Heifers- feedpad | AQ265: % of feedpad spread daily going to SS | AS265: =IF(AH271=2,(AI262/24*AI263/365*IF(AD264=2,AD266,0)),0) -> 0 | AU265: % drains to paddock | AV265: =AV258 -> 0
B266: Selected State | C266: =D15 -> 0 | D266: Selected Region | E266: =C84 -> 0 | K266: Selected | L266: =H15 -> 0 | O266: kg milk per cow per day | Q266: =ROUND((Q265/D19/D36),1) ->  | AB266: Pre-treated percentage | AD266: =G106/100 -> 0.2 | AL266: 1 | AM266: Flushed & drains daily to the paddock | AQ266: % from feedpad to lagoon without treatment | AS266: =(IF(AH271=3,(AI262/24*AI263/365*IF(AD264=2,(1-AD266),1)),0)) -> 0 | AU266: % sum lagoon | AV266: =AV261 -> 0 | AX266: Selected | AY266: =VLOOKUP($D$15,$AY$259:$BD$265,1,FALSE) ->  | AZ266: =VLOOKUP($D$15,$AY$259:$BD$265,2,FALSE) ->  | BA266: =VLOOKUP($D$15,$AY$259:$BD$265,3,FALSE) ->  | BB266: =VLOOKUP($D$15,$AY$259:$BD$265,4,FALSE) ->  | BC266: =VLOOKUP($D$15,$AY$259:$BD$265,5,FALSE) ->  | BD266: =VLOOKUP($D$15,$AY$259:$BD$265,6,FALSE) -> 
O267: litres per cow per day | Q267: =(Q264/D19/D36) ->  | S267: Selected | T267: =C82 -> 0 | U267: =IF(C82="",0,IF(C82=T263,"1",IF(C82=T264,2,3))) -> 3 | AG267: 1 | AH267: Flushed & drains daily to the paddock | AK267: Feedpad waste- heifers | AL267: 2 | AM267: Flushed & spread daily from a sump | AQ267: % from feedpad and to lagoon but with pre-treatment to make it solid storage | AS267: =(IF(AH271=3,(AI262/24*AI263/365*IF(AD264=2,AD266,0)),0)) -> 0 | AU267: % sum sump and dispersal | AV267: =AV259 -> 0
K268: Calves sold | L268: Calves sold soon after birth | AG268: 2 | AH268: Flushed & spread daily from a sump | AL268: 3 | AM268: Flushed to a pond/lagoon system | AQ268: % from feedpad to solid storage | AS268: =IF(AH271=4,(AI262/24*AI263/365),0) -> 0 | AX268: Milker MCF | AZ268: =AZ266*AS271 ->  | BA268: =BA266*AS272 ->  | BB268: =BB266*AS270 ->  | BC268: =BC266*AS269 ->  | BD268: =BD266*AS257 -> 
L269: Calves sold post-weaning | O269: Average DMD | Q269: =((D39*F39)+(D40*F40)+(D41*F41)+(D42*F42)+(D43*F43)+(D44*F44))/D45 ->  | AG269: 3 | AH269: Flushed to a pond/lagoon system | AL269: 4 | AM269: Scrapped & stockpiled | AQ269: % sum solid storage | AS269: =AS260+AS262+AS265+AS267+AS268 -> 0 | AX269: Integrated MCF | BD269: =SUM(AZ268:BD268) -> 
K270: Selected | L270: =IF(K17=L268,1,2) -> 2 | O270: Average CP | Q270: =((D39*H39)+(D40*H40)+(D41*H41)+(D42*H42)+(D43*H43)+(D44*H44))/D45 ->  | S270: Milk production | T270: litres per herd per annum | AG270: 4 | AH270: Scrapped & stockpiled | AL270: Selected | AM270: =IF(F116=AM266,1,IF(F116=AM267,2,IF(F116=AM268,3,4))) -> 4 | AQ270: % drains to paddock | AS270: =AS258+AS263 -> 0
L271: =IF(L270=1,L268,L269) -> Calves sold post-weaning | O271: Average intake required | Q271: =ROUND((1.185+(0.00454*D21)-(0.0000026*(D21)^2)+((0.315*0)))^2*1.1+((Q267*D36/365)*3.054/0.6/(0.00795*Q269-0.0014)/18.4),1) ->  | T271: kg milksolids per herd per annum | AG271: Selected | AH271: =IF(F111=AH267,1,IF(F111=AH268,2,IF(F111=AH269,3,4))) -> 4 | AQ271: % sum lagoon | AS271: =AS261+AS266 -> 0 | AX271: Other stock MCF | AZ271: =AZ266*AV266 ->  | BA271: =BA266*AV267 ->  | BB271: =BB266*AV265 ->  | BC271: =BC266*AV264 ->  | BD271: =BD266*AV257 -> 
B272: Baseline farm GHG emissions estimations | AQ272: % sum sump and dispersal | AS272: =AS259+AS264 -> 0 | AX272: Integrated MCF | BD272: =SUM(AZ271:BD271) -> 
O273: Net GHG emissions (kg) | Q273: =K143*1000 ->  | S273: Selected | T273: =D32 -> 0 | U273: =IF(D32=T270,"1","2") -> 2
B274: Methane Calculation | C274: Seasons | D274: =D17 -> Milking Cows | E274: =E17 -> Heifers >1 yr age | F274: =F17 -> Heifers <1 yr age | G274: =G17 -> Mature bulls | H274: =H17 -> Other stock < 1 yr age | I274: Unweaned heifers | J274: Unweaned bulls | K274: =I17 -> Other stock > 1 yr age | L274: Units | M274: Inventory reference | O274: EI (litres FPCM) | Q274: =Q273/Q265 ->  | AH274: Pasture | AI274: Lagoon | AJ274: Sump/dispersal | AK274: Drain to paddock | AM274: Solid storage | AO274: Integrated MCF
O275: EI (kg MS) | Q275: =Q273/Q263 ->  | AF275: 1 | AG275: Victoria | AH275: 83.9 | AI275: 10.8 | AJ275: 0.9 | AK275: 0.2 | AM275: 4.2 | AO275: 8.92
B276: Feed Intake | D276: I = (1.185 +(0.00454 x W) - (0.0000026 x (W)^2) + ((0.315 x LWG)))^2 x MR + MI | M276: 3A.1a_1 | AF276: 2 | AG276: New.South.Wales | AH276: 78.7 | AI276: 9 | AJ276: 2 | AK276: 1.9 | AM276: 8.4 | AO276: 8.05
C277: Annual | D277: =(1.185+(0.00454*D21)-(0.0000026*(D21)^2)+((0.315*E24)))^2*1.1+D281 ->  | E277: =(1.185+(0.00454*E21)-(0.0000026*(E21)^2)+((0.315*E23)))^2*1+E281 -> 1.404225 | F277: =(1.185+(0.00454*F21)-(0.0000026*(F21)^2)+((0.315*F23)))^2*1+F281 -> 1.404225 | G277: =(1.185+(0.00454*G21)-(0.0000026*(G21)^2)+((0.315*G23)))^2*1+G281 -> 1.404225 | H277: =(1.185+(0.00454*H21)-(0.0000026*(H21)^2)+((0.315*H23)))^2*1+H281 -> 1.404225 | K277: =(1.185+(0.00454*I21)-(0.0000026*(I21)^2)+((0.315*I23)))^2*1+K281 -> 1.404225 | L277: kg DM/head/day | O277: FPCM (kg per annum based on IDF equation) | Q277: =Q265 ->  | AF277: 3 | AG277: Tasmania | AH277: 86.5 | AI277: 8.4 | AJ277: 2.4 | AK277: 0.8 | AM277: 2 | AO277: 6.9
O278: Meat production | Q278: Cull cows | R278: Heifers < 1 | S278: Heifers > 1 | T278: Bulls | U278: Other stock < 1 | V278: Other stock > 1 | AF278: 4 | AG278: Queensland | AH278: 78.7 | AI278: 7.3 | AJ278: 3.3 | AK278: 2.4 | AM278: 8.4 | AO278: 7.99
B279: Additional intake for milk production | D279: MI = MP x 1.03 x NE / k / qm / 18.4 | O279: Cull cows | Q279: =D25*D27 -> 0 | R279: 0 | S279: 0 | T279: 0 | U279: 0 | V279: 0 | AF279: 5 | AG279: South.Australia | AH279: 80.5 | AI279: 10.4 | AJ279: 1.4 | AK279: 0.8 | AM279: 6.9 | AO279: 2.55
D280: MP x 1.03 x 3.054 (MJ net energy/kg milk) / 0.6 / (0.00795 x DMD - 0.0014) / 18.4 | M280: 3A.1a_2 | O280: Total meat | Q280: =SUM(Q279:V279) -> 0 | AF280: 6 | AG280: Western.Australia | AH280: 79.9 | AI280: 10 | AJ280: 1.9 | AK280: 0.9 | AM280: 7.4 | AO280: 8.6
C281: Annual | D281: =(Q267*1.03 *D36/365)*3.054/0.6/((0.00795*F45)-0.0014)/18.4 ->  | E281: =0*3.054/0.6/(0.00795*D47-0.0014)/18.4 -> 0 | F281: =0*3.054/0.6/(0.00795*D48-0.0014)/18.4 -> 0 | G281: =0*3.054/0.6/(0.00795*D47-0.0014)/18.4 -> 0 | H281: =0*3.054/0.6/(0.00795*D47-0.0014)/18.4 -> 0 | K281: =0*3.054/0.6/(0.00795*D47-0.0014)/18.4 -> 0 | L281: kg DM/head/day
B283: Intake relative to maintenance | D283: L = I / (1.185 + 0.00454 x W - 0.0000026 x W^2 + (0.315 x 0))^2 | M283: Used for waste CH4 estimations | AF283: Default fractions | AG283: =C266 -> 0 | AH283: =VLOOKUP($AG$283,$AG$275:$AO$281,2,FALSE) ->  | AI283: =VLOOKUP($AG$283,$AG$275:$AO$281,3,FALSE) ->  | AJ283: =VLOOKUP($AG$283,$AG$275:$AO$281,4,FALSE) ->  | AK283: =VLOOKUP($AG$283,$AG$275:$AO$281,5,FALSE) ->  | AM283: =VLOOKUP($AG$283,$AG$275:$AO$281,7,FALSE) ->  | AO283: =VLOOKUP($AG$283,$AG$275:$AO$281,9,FALSE) -> 
C284: Annual | D284: =D277/(1.185+(0.00454*D21)-(0.0000026*(D21)^2)+((0.315*0)))^2 ->  | E284: =E277/(1.185+(0.00454*E21)-(0.0000026*(E21)^2)+((0.315*0)))^2 -> 1 | F284: =F277/(1.185+(0.00454*F21)-(0.0000026*(F21)^2)+((0.315*0)))^2 -> 1 | G284: =G277/(1.185+(0.00454*G21)-(0.0000026*(G21)^2)+((0.315*0)))^2 -> 1 | H284: =H277/(1.185+(0.00454*H21)-(0.0000026*(H21)^2)+((0.315*0)))^2 -> 1 | K284: =K277/(1.185+(0.00454*L21)-(0.0000026*(L21)^2)+((0.315*0)))^2 -> 1 | L284: kg DM/head/day | AF284: Milker User defined fractions | AH284: =AS257*100 -> 100 | AI284: =AS271*100 -> 0 | AJ284: =AS272*100 -> 0 | AK284: =AS270*100 -> 0 | AM284: =AS269*100 -> 0 | AO284: =BD269 -> 
AF285: Which fractions and MCF to use for milkers | AH285: =IF($AD$259=1,AH283,AH284) -> 100 | AI285: =IF($AD$259=1,AI283,AI284) -> 0 | AJ285: =IF($AD$259=1,AJ283,AJ284) -> 0 | AK285: =IF($AD$259=1,AK283,AK284) -> 0 | AM285: =IF($AD$259=1,AM283,AM284) -> 0 | AO285: =IF($AD$259=1,AO283,AO284) -> 
B286: Daily Methane Yield (M) | D286: M = 20.7 x I/1000 | M286: 3A.1a_3 | AF286: Default other stock fractions | AH286: 100 | AI286: 0 | AJ286: 0 | AK286: 0 | AM286: 0 | AO286: 1
C287: Annual | D287: =20.7*D277/1000 ->  | E287: =20.7*E277/1000 -> 0.0290674575 | F287: =20.7*F277/1000 -> 0.0290674575 | G287: =20.7*G277/1000 -> 0.0290674575 | H287: =20.7*H277/1000 -> 0.0290674575 | I287: 0.0176 | J287: 0.0204 | K287: =20.7*K277/1000 -> 0.0290674575 | L287: kg CH4/head/day | AF287: Other stock User defined fraction | AH287: =AV257*100 -> 100 | AI287: =AV266*100 -> 0 | AJ287: =AV267*100 -> 0 | AK287: =AV265*100 -> 0 | AM287: =AV264*100 -> 0 | AO287: =BD272 -> 
AF288: Which fractions and MCF to use for other stock | AH288: =IF($AD$259=1,AH286,AH287) -> 100 | AI288: =IF($AD$259=1,AI286,AI287) -> 0 | AJ288: =IF($AD$259=1,AJ286,AJ287) -> 0 | AK288: =IF($AD$259=1,AK286,AK287) -> 0 | AM288: =IF($AD$259=1,AM286,AM287) -> 0 | AO288: =IF($AD$259=1,AO286,AO287) -> 
B289: Annual Australian methane production (Gg) for all classes of dairy cattle across all states
D290: E =(365 x N x M) x 10^-6 for > 1, (281 x N x M) x 10^-6 for weaned 0-1 years and (84 x N x M) x 10^-6 for unweaned
M291: 3A.1a_4
C292: Annual | D292: =(365*D19*D287)*10^-6 ->  | E292: =(365*E19*E287)*10^-6 -> 0 | F292: =(281*F19*F287)*10^-6 -> 0 | G292: =(365*G19*G287)*10^-6 -> 0 | H292: =(281*H19*H287)*10^-6 -> 0 | I292: =(84*F19*I287)*10^-6 -> 0 | J292: =(84*H19*J287)*10^-6 -> 0 | K292: =(365*I19*K287)*10^-6 -> 0 | L292: Gg CH4/farm/annum | O292: New IDF (2022)-aligned method of estimating milk and meat allocations and emissions intensities
B294: Grand Total | C294: =SUM(D292:K292) ->  | L294: Gg CH4/year/farm | O294: Liveweight Cull Cows (inc bulls) | P294: =D25*D27+G25*G27 -> 0
B295: Grand Total | C295: =C294*'Emission factors'!$C$4 ->  | L295: Gg CO2-e/year/farm | O295: Liveweight Calves at Birth | P295: =IF(L270=1,J25*J27,0) -> 0
B296: Grand Total | C296: =C295*10^3 ->  | L296: t CO2-e/year/farm | O296: Liveweight Calves Weaned | P296: =IF(L270=2,J25*J27,0) -> 0
O297: Liveweight Fattened Dairy Livestock | P297: =SUMPRODUCT(E25:F25,E27:F27) -> 0
B298: Methane from waste | D298: =D17 -> Milking Cows | E298: =E17 -> Heifers >1 yr age | F298: =F17 -> Heifers <1 yr age | G298: =G17 -> Mature bulls | H298: =H17 -> Other stock < 1 yr age | I298: Unweaned heifers | J298: Unweaned bulls | K298: =I17 -> Other stock > 1 yr age | L298: Units | M298: Inventory reference | O298: Liveweight Fattened Other Livestock | P298: =SUMPRODUCT(H25:I25,H27:I27) -> 0
B299: Ash content (A) | C299: 0.08 | L299: fraction | O299: Total Liveweight Sold | P299: =SUM(P294:P298) -> 0
B300: Emission potential (Bo) | C300: 0.24 | L300: m3 CH4/kg VS
B301: Density of methane (r) | C301: 0.6784 | L301: kg/m3 | P301: Factor | Q301: Dairy | R301: % of Dairy Meat | S301: All Meat | T301: % of All Meat
O302: Energy Demand Cull Cows | P302: 15 | Q302: =P294*P302 -> 0 | R302: =Q302/$Q$307 ->  | S302: =P294*P302 -> 0 | T302: =S302/$S$307 -> 
B303: Volatile solids (VS) | C303: VS = (I x (1 - DMD) x (0.04 x I)) x (1 - A) | M303: 4B.1a_1 | O303: Energy Demand Calves at Birth | P303: 27.5 | Q303: =P295*P303 -> 0 | R303: =Q303/$Q$307 ->  | S303: =P295*P303 -> 0 | T303: =S303/$S$307 -> 
C304: Annual | D304: =(D277*(1-(F45/100))+(0.04*D277))*(1-$C$299) ->  | E304: =(E277*(1-($D$47/100))+(0.04*E277))*(1-$C$299) -> 0.37464723 | F304: =(F277*(1-($D$47/100))+(0.04*F277))*(1-$C$299) -> 0.37464723 | G304: =(G277*(1-($D$47/100))+(0.04*G277))*(1-$C$299) -> 0.37464723 | H304: =(H277*(1-($D$47/100))+(0.04*H277))*(1-$C$299) -> 0.37464723 | I304: 0.2685 | J304: 0.3003 | K304: =(K277*(1-($D$47/100))+(0.04*K277))*(1-$C$299) -> 0.37464723 | L304: kg/head/day | O304: Energy Demand Calves Weaned | P304: 15 | Q304: =P296*P304 -> 0 | R304: =Q304/$Q$307 ->  | S304: =P296*P304 -> 0 | T304: =S304/$S$307 -> 
O305: Energy Demand Fattened Dairy Livestock | P305: 11 | Q305: =P297*P305 -> 0 | R305: =Q305/$Q$307 ->  | S305: =P297*P305 -> 0 | T305: =S305/$S$307 -> 
B306: Methane production from manure | C306: M = VS x Bo x MCF x r | M306: 4B.1a_2 | O306: Energy Demand Fattened Other Livestock | P306: 11 | R306: =Q306/$Q$307 ->  | S306: =P298*P306 -> 0 | T306: =S306/$S$307 -> 
C307: MCF = Integrated methane conversion factor - based on the proportion of different manure management regimes | O307: Total Energy Demand Meat | Q307: =SUM(Q302:Q306) -> 0 | R307: =SUM(R302:R306) ->  | S307: =SUM(S302:S306) -> 0 | T307: =SUM(T302:T306) -> 
O309: Energy Demand Milk | P309: 3.1 | Q309: =Q277*P309 ->  | S309: =Q309 -> 
C310: Methane for each manure management system and MCF associated, for each class of cattle separately
O311: Total Energy Demand | Q311: =Q309+Q307 ->  | S311: =S309+S307 -> 
C312: Annual | D312: =D304*$C$300*I111%*$C$301 ->  | E312: =E304*$C$300*$I$116%*$C$301 ->  | L312: kg CH4/head/day
O313: % Milk of Energy | Q313: =Q309/Q311 ->  | S313: =S309/S311 -> 
B314: The annual methane production (Gg) from the manure of dairy cattle
C315: Total = (365 x N x M) x 10^-6 for > 1 yr olds, (281 x N x M) x 10^-6 for 0 to 1 yr olds and (84 x N x M) x 10^-6 for unweaned | M315: 4B.1a_3 | O315: Milk only C02 (Electricity + Pre-farmgate feed) | P315: =K129+K130+D625 -> 0
O316: Meat only CO2 (Other Livestock) | P316: =H138+I138 -> 
C317: Annual | D317: =(365*D19*D312)*10^-6 ->  | E317: =(365*E19*E312)*10^-6 ->  | F317: =(281*F19*F312)*10^-6 ->  | G317: =(365*G19*G312)*10^-6 ->  | H317: =(281*H19*H312)*10^-6 ->  | I317: =(84*F19*I312)*10^-6 ->  | J317: =(84*H19*J312)*10^-6 ->  | K317: =(365*I19*K312)*10^-6 ->  | L317: Gg CH4/farm/annum | O317: Dairy Livestock CO2 (Dairy Livestock) | P317: =SUM(D138:G138) -> 
O318: General Farm CO2 (Fertiliser + Fuel - Trees) | P318: =SUM(K127:K128)+SUM(K131:K133)+K136+K141+E625 -> 
B319: Grand total | C319: =SUM(D317:K317) ->  | L319: Gg CH4/farm/year | O319: Total Farm CO2 | P319: =SUM(P315:P318) -> 
B320: Grand total | C320: =C319*'Emission factors'!$C$4 ->  | L320: Gg CO2-e/farm/year | R320: Calculated from spreadsheet data
B321: Grand total | C321: =C320*10^3 ->  | L321: t CO2-e/farm/year | O321: Total milk CO2 allocated emissions | P321: =P315+P317*Q313+P318*S313 ->  | R321: =P321*1000/Q277 ->  | S321: kg CO2 / kg FPCM
O322: Total meat CO2 allocated emissions | P322: =P316+P317*(1-Q313)+P318*(1-S313) ->  | R322: =P321*1000/Q263 ->  | S322: kg CO2 / kg MS
B323: Faecal nitrous oxide calculation | C323: Seasons | D323: =D17 -> Milking Cows | E323: =E17 -> Heifers >1 yr age | F323: =F17 -> Heifers <1 yr age | G323: =G17 -> Mature bulls | H323: =H17 -> Other stock < 1 yr age | I323: Unweaned heifers | J323: Unweaned bulls | K323: Bulls/steers (1-2 yrs) | L323: Units | M323: Inventory reference | R323: =P322*1000/P299 ->  | S323: kg CO2 / kg LW
O324: % of total CO2 allocated to milk | P324: =P321/P319 -> 
B325: The crude protein intake of dairy cattle | D325: CPI = I x CP | M325: 3B.1a_4 | O325: % of total CO2 allocated to meat | P325: =P322/P319 -> 
C326: Annual | D326: =D277*H45% ->  | E326: =E277*D48% -> 0.280845 | F326: =F277*D48% -> 0.280845 | G326: =G277*D48% -> 0.280845 | H326: =H277*D48% -> 0.280845 | K326: =K277*D48% -> 0.280845 | L326: kg/head/day
O327: Meat Allocation Detail | P327: kg LW sold | R327: tonnes of CO2 | S327: % of Meat | T327: % of CO2 | U327: kg CO2 / kg LW
B328: Nitrogen excreted in faeces (F) | D328: F = {0.3 x (CPI x (1 - [(DMD + 10) / 100])) + 0.105 x (ME x I x 0.008) + (0.0152 x I)} / 6.25 | M328: 3B.1a_6 | O328: Cull Cows/bulls | P328: =P294 -> 0 | R328: =$P$317*(1-$Q$313)*R302+$P$318*(1-$S$313)*T302 ->  | S328: =R328/$R$333 ->  | T328: =S328*$P$325 ->  | U328: =R328*1000/P328 -> 
D329: ME (Metabolisable energy) = 0.1604 x DMD - 1.037 | O329: Calves at Birth | P329: 0 | R329: =$P$317*(1-$Q$313)*R303+$P$318*(1-$S$313)*T303 ->  | S329: =R329/$R$333 ->  | T329: =S329*$P$325 -> 
D330: 1 / 6.25 = Factor for converting crude protein into nitrogen | O330: Calves Weaned | P330: 0 | R330: =$P$317*(1-$Q$313)*R304+$P$318*(1-$S$313)*T304 ->  | S330: =R330/$R$333 ->  | T330: =S330*$P$325 -> 
C331: Annual | D331: =(0.3*((D326*(1-((F45+10)/100))))+(0.105*((0.1604*F45-1.037)*D277*0.008))+(0.0152*D277))/6.25 ->  | E331: =(0.3*((E326*(1-((D47+10)/100))))+(0.105*((0.1604*D47-1.037)*E277*0.008))+(0.0152*E277))/6.25 -> 0.007511844345 | F331: =(0.3*((F326*(1-((D47+10)/100))))+(0.105*((0.1604*D47-1.037)*F277*0.008))+(0.0152*F277))/6.25 -> 0.007511844345 | G331: =(0.3*((G326*(1-((D47+10)/100))))+(0.105*((0.1604*D47-1.037)*G277*0.008))+(0.0152*G277))/6.25 -> 0.007511844345 | H331: =(0.3*((H326*(1-((D47+10)/100))))+(0.105*((0.1604*D47-1.037)*H277*0.008))+(0.0152*H277))/6.25 -> 0.007511844345 | I331: 0.0055 | J331: 0.005 | K331: =(0.3*((K326*(1-((D47+10)/100))))+(0.105*((0.1604*D47-1.037)*K277*0.008))+(0.0152*K277))/6.25 -> 0.007511844345 | L331: kg/head/day | O331: Fattened Dairy Livestock | P331: 0 | R331: =$P$317*(1-$Q$313)*R305+$P$318*(1-$S$313)*T305 ->  | S331: =R331/$R$333 ->  | T331: =S331*$P$325 -> 
O332: Fattened Other Livestock | P332: 0 | R332: =P316+P318*(1-S313)*T306 ->  | S332: =R332/$R$333 ->  | T332: =S332*$P$325 -> 
B333: Nitrogen retained (NR) by the body | D333: NR = {(0.032 x MP x 1.03) + {0.212-0.008 x (L - 2) - [(0.140 - 0.008 x (L - 2)) / (1+exp x (-6 x (Z - 0.4)))]} x (LWG x 0.92)} /6.38 | M333: 3B.1a_5 | O333: Total Meat | P333: 0 | R333: =SUM(R328:R332) ->  | S333: =SUM(S328:S332) ->  | T333: =SUM(T328:T332) -> 
C335: Dairy cattle standard reference weight to calculate relative size (Z) | M335: Table 5.A.3
... 427 more rows

Sheet Data Summary
B2: Dairy Farm Carbon Calculation
B6: Completed for | D6: ='Baseline farm'!D11 -> 0
B7: Completed by
B8: Year Reviewed | D8: ="FY "&'Baseline farm'!H13 -> FY
B9: Total Production | D9: =(_xlfn.CONCAT(TEXT('Baseline farm'!H32,"#,###"))&" "&'Baseline farm'!I32) -> kg milksolids per herd per annum
B10: Average production | D10: =ROUND('Baseline farm'!H36,1)&" "&'Baseline farm'!I36 -> 
B12: Annual emissions footprint summary
B13: Total emissions | D13: =_xlfn.CONCAT(TEXT('Baseline farm'!K139,"#,###"))& " t CO₂e/annum" -> 
B14: Carbon sequestered | D14: =_xlfn.CONCAT(TEXT(('Baseline farm'!K142*-1),"#,###"))& " t CO₂e/annum" -> t CO₂e/annum
B15: Net emissions | D15: =_xlfn.CONCAT(TEXT('Baseline farm'!K144,"#,###"))& " t CO₂e/annum" -> 
B16: Emission intensity
B17: Milk (FPCM) | D17: =_xlfn.CONCAT(ROUND('Baseline farm'!$M$146,2)&" kg CO₂e/kg FPCM (post-carbon sequestration)") -> 
B18: Milk (MS) | D18: =_xlfn.CONCAT(TEXT('Baseline farm'!M147,"#,###.##"))& " kg CO₂e/kg MS (post-carbon sequestration)" -> 
B19: Meat | D19: =_xlfn.CONCAT(TEXT('Baseline farm'!M148,"#,###.##"))& " kg CO₂e/kg meat liveweight (post-carbon sequestration)" -> 
B20: Proportion of emissions allocated to outputs
B21: Milk | D21: =ROUND('Baseline farm'!M150,3)*100&"% " -> 
B22: Meat | D22: =ROUND('Baseline farm'!M151,3)*100&"% " -> 

Sheet Vegetation
B1: VEGETATION
B3: Area 1 | C3: State
C4: Region
C5: Species of Tree
C6: Area of Trees | E6: ha | H6: Areas 1 to 4 implements the regional average results based on FullCAM simulations. It is the same as if you had selected the "Based on data entered here" option from the drop-down list on the Baseline farm tab
C7: Age of Trees | E7: years
H8: Areas 5 to 7 can be used if you have site-specific data from other tools such as FullCAM or LOOC-C or are enrolled in a tree carbon project. It is the same as if you had selected the "Carbon sequestered using other tools" option from the drop-down list on the Baseline farm tab
B9: Area 2 | C9: State
C10: Region | H10: Make sure you enter from the top and work your way down the sheet as altering the tree species before you alter the state or region within a state may result in an error
C11: Species of Tree
C12: Area of Trees | E12: ha | H12: Area of Trees can be a decimal point but Age of Trees must be a whole number otherwise the calculations do not work
C13: Age of Trees | E13: years
H14: You can also use this tab to work through soil carbon sequestration rates if you have data from another tool or calculator (e.g. LOOC-C or an carbon market project)
B15: Area 3 | C15: State
C16: Region | H16: In that instance, enter the data in either Area 5, 6 or 7 where area of trees becomes area of paddock/project area.
C17: Species of Tree
C18: Area of Trees | E18: ha | H18: An example of three different areas of trees is presented from row 58 onwards
C19: Age of Trees | E19: years
B21: Area 4 | C21: State
C22: Region
C23: Species of Tree
C24: Area of Trees | E24: ha
C25: Age of Trees | E25: years
B27: Area 5 | C27: Area of Trees | E27: ha
C28: Age of trees | E28: years
C29: Sequestration rate | E29: t CO2e/ha.annum
B31: Area 6 | C31: Area of Trees | E31: ha
C32: Age of trees | E32: years
C33: Sequestration rate | E33: t CO2e/ha.annum
B35: Area 7 | C35: Area of Trees | E35: ha
C36: Age of trees | E36: years
C37: Sequestration rate | E37: t CO2e/ha.annum
B40: Tonnes sequestered | C40: Area 1 | D40: =IF(D6="","",IF(D6=0,"",' Trees'!E5)) ->  | E40: t CO2e/ha
C41: Area 2 | D41: =IF(D12="","",IF(D12=0,"",' Trees'!Z5)) ->  | E41: t CO2e/ha
C42: Area 3 | D42: =IF(D18="","",IF(D18=0,"",' Trees'!AU7)) ->  | E42: t CO2e/ha
C43: Area 4 | D43: =IF(D24="","",IF(D24=0,"",' Trees'!BP7)) ->  | E43: t CO2e/ha
C44: Area 5 | D44: =IF(D27="","",IF(D27=0,"",D29)) ->  | E44: t CO2e/ha
C45: Area 6 | D45: =IF(D31="","",IF(D31=0,"",D33)) ->  | E45: t CO2e/ha
C46: Area 7 | D46: =IF(D35="","",IF(D35=0,"",D37)) ->  | E46: t CO2e/ha
C47: Total hectares | D47: =IF(SUM(D6,D12,D18,D24,D27,D31,D35)=0,"",SUM(D6,D12,D18,D24,D27,D31,D35)) ->  | E47: ha
C48: Average carbon sequestered | D48: =IFERROR(((IF(D6="",0,D6*D40)+IF(D12="",0,D12*D41)+IF(D18="",0,D18*D42)+IF(D24="",0,D24*D43)+IF(D27="",0,D27*D44)+IF(D31="",0,D31*D45)+IF(D35="",0,D35*D46)))/D47,"") ->  | E48: t CO2e/ha
C49: Average tree age across the farm | D49: =IFERROR(((D6*D7)+(D12*D13)+(D18*D19)+(D24*D25)+(D27*D28)+(D31*D32)+(D35*D36))/D47,"") ->  | E49: years
C50: Total across the farm | D50: =IFERROR(D47*D48,"") ->  | E50: t CO2e/annum
B52: When entering the total amount of carbon sequestered estimated here, enter the necessary data to estimate the total tonnes sequestered. On the Baseline tab, select 'Carbon sequestered using other tools' from the drop-down list.
B53: You then have two options, you can either enter 1 hectare of trees and enter the result in cell D50 from this tab into the Baseline farm tab cell H85. This will then match the total amount of carbon sequestered.
B54: Alternatively, and what may make more sense, is take the total hectares and average carbon sequestered data (cells D47 and D48) from this tab and enter these numbers into the Baseline farm tab cells G82 and H85. This way you are making sure you have captured the total area of trees planted
B55: For either option, we don't need to know the age of the trees, this is just reported here for your records.
B56: Irrespective of which option you select, make sure that the value in cell D50 on this tab matches the Baseline farm tab results table cell K140, keeping in mind that the value in the Baseline farm results table will be a negative value to reflect a removal of carbon.
B58: Example of data entry
B60: Below is a protected and cut-down example of a farm with two areas of trees estimated within ADCC (areas 1 and 2) and one area estimated via an external calculator (LOOC-C; area 5). A total of 25 hectares, with an average age of 11 years, sequestered
B62: Area 1 | C62: State | D62: NSW
C63: Region | D63: Northern coastal NSW
C64: Species of Tree | D64: Mixed species (Environmental Plantings)
C65: Area of Trees | D65: 5 | E65: ha
C66: Age of Trees | D66: 5 | E66: years
B68: Area 2 | C68: State | D68: NSW
C69: Region | D69: Northern coastal NSW
C70: Species of Tree | D70: Mixed species (Environmental Plantings)
C71: Area of Trees | D71: 10 | E71: ha
C72: Age of Trees | D72: 10 | E72: years
B74: Area 5 | C74: Area of Trees | D74: 10 | E74: ha
B75: LOOC-C estimate | C75: Age of trees | D75: 15 | E75: years
C76: Sequestration rate | D76: 3.7 | E76: t CO2e/ha.annum
B78: Tonnes sequestered | C78: Area 1 | D78: 9.2117 | E78: t CO2e/ha
C79: Area 2 | D79: 20.4786 | E79: t CO2e/ha
C80: Area 5 | D80: 3.7 | E80: t CO2e/ha
C81: Total hectares | D81: 30 | E81: ha
C82: Average carbon sequestered | D82: 9.594816667 | E82: t CO2e/ha
C83: Average tree age across the farm | D83: 9.17 | E83: years
C84: Total across the farm | D84: =D82*D81 -> 287.8445 | E84: t CO2e/annum

Sheet Trees (hidden)
A1: Trees 1 | V1: Trees 2 | AQ1: Trees 3 | BL1: Trees 4
A2: Data Input | D2: Amount of carbon sequestered by trees | H2: Location | P2: Chart source data | V2: Data Input | Y2: Amount of carbon sequestered by trees | AC2: Location | AK2: Chart source data | AQ2: Data Input | AT2: Amount of carbon sequestered by trees | AX2: Location | BF2: Chart source data | BL2: Data Input | BO2: Amount of carbon sequestered by trees | BS2: Location | CA2: Chart source data
A3: State | B3: =Vegetation!D3 -> 0 | D3: =CONCATENATE("Amount of carbon grown in the trees between Year ",FIXED(B10-1,0)," and Year ",FIXED(B10,0)," = ") -> Amount of carbon grown in the trees between Year -1 and Year 0 = | E3: =IF(ISERROR(E27),"",E27) -> 0 | F3: tonnes per hectare | H3: NSW | V3: State | W3: =Vegetation!D9 -> 0 | Y3: =CONCATENATE("Amount of carbon grown in the trees between Year ",FIXED(W10-1,0)," and Year ",FIXED(W10,0)," = ") -> Amount of carbon grown in the trees between Year -1 and Year 0 = | Z3: =IF(ISERROR(Z27),"",Z27) -> 0 | AA3: tonnes per hectare | AC3: NSW | AQ3: State | AR3: =Vegetation!D15 -> 0 | AT3: =CONCATENATE("Amount of carbon grown in the trees between Year ",FIXED(AR10-1,0)," and Year ",FIXED(AR10,0)," = ") -> Amount of carbon grown in the trees between Year -1 and Year 0 = | AU3: =IF(ISERROR(AU27),"",AU27) -> 0 | AV3: tonnes per hectare | AX3: NSW | BL3: State | BM3: =Vegetation!D21 -> 0 | BO3: =CONCATENATE("Amount of carbon grown in the trees between Year ",FIXED(BM10-1,0)," and Year ",FIXED(BM10,0)," = ") -> Amount of carbon grown in the trees between Year -1 and Year 0 = | BP3: =IF(ISERROR(BP27),"",BP27) -> 0 | BQ3: tonnes per hectare | BS3: NSW
A4: Region | B4: =Vegetation!D4 -> 0 | H4: TAS | P4: Location | Q4: =CONCATENATE(B3," -- ",B4) -> 0 -- 0 | V4: Region | W4: =Vegetation!D10 -> 0 | AC4: TAS | AK4: Location | AL4: =CONCATENATE(W3," -- ",W4) -> 0 -- 0 | AQ4: Region | AR4: =Vegetation!D16 -> 0 | AX4: TAS | BF4: Location | BG4: =CONCATENATE(AR3," -- ",AR4) -> 0 -- 0 | BL4: Region | BM4: =Vegetation!D22 -> 0 | BS4: TAS | CA4: Location | CB4: =CONCATENATE(BM3," -- ",BM4) -> 0 -- 0
D5: Annual CO2 equivalent (1 tonne tree carbon = 3.67 tonnes CO2) = | E5: =IF(ISERROR(-E3*E10),"",E3*E10) -> 0 | F5: tonnes per hectare | H5: WA | P5: Tree type | Q5: =B6 -> 0 | Y5: Annual CO2 equivalent (1 tonne tree carbon = 3.67 tonnes CO2) = | Z5: =IF(ISERROR(-Z3*Z10),"",Z3*Z10) -> 0 | AA5: tonnes per hectare | AC5: WA | AK5: Tree type | AL5: =W6 -> 0 | AT5: Annual CO2 equivalent (1 tonne tree carbon = 3.67 tonnes CO2) = | AU5: =IF(ISERROR(-AU3*AU10),"",AU3*AU10) -> 0 | AV5: tonnes per hectare | AX5: WA | BF5: Tree type | BG5: =AR6 -> 0 | BO5: Annual CO2 equivalent (1 tonne tree carbon = 3.67 tonnes CO2) = | BP5: =IF(ISERROR(-BP3*BP10),"",BP3*BP10) -> 0 | BQ5: tonnes per hectare | BS5: WA | CA5: Tree type | CB5: =BM6 -> 0
A6: Species of Tree | B6: =Vegetation!D5 -> 0 | H6: SA | P6: Soil type | Q6: =B7 -> 0 | V6: Species of Tree | W6: =Vegetation!D11 -> 0 | AC6: SA | AK6: Soil type | AL6: =W7 -> 0 | AQ6: Species of Tree | AR6: =Vegetation!D17 -> 0 | AX6: SA | BF6: Soil type | BG6: =AR7 -> 0 | BL6: Species of Tree | BM6: =Vegetation!D23 -> 0 | BS6: SA | CA6: Soil type | CB6: =BM7 -> 0
D7: =CONCATENATE("Annual amount of CO2-e sequestered by trees on the ",FIXED(B9,0)," hectares = ") -> Annual amount of CO2-e sequestered by trees on the 0 hectares = | E7: =IF(ISERROR(E5*Vegetation!D6),0,(E5*Vegetation!D6)) -> 0 | F7: =IF(E5>0,CONCATENATE("Total tonnes CO2 sequestered in Year ",Vegetation!C6),"") ->  | H7: VIC | P7: Years | Q7: Total Tree Carbon production | S7: Annual Carbon production | T7: Current year | Y7: =CONCATENATE("Annual amount of CO2-e sequestered by trees on the ",FIXED(W9,0)," hectares = ") -> Annual amount of CO2-e sequestered by trees on the 0 hectares = | Z7: =IF(ISERROR(Z5*Vegetation!D12),0,(Z5*Vegetation!D12)) -> 0 | AA7: =IF(Z5>0,CONCATENATE("Total tonnes CO2 sequestered in Year ",Vegetation!P6),"") ->  | AC7: VIC | AK7: Years | AL7: Total Tree Carbon production | AN7: Annual Carbon production | AO7: Current year | AT7: =CONCATENATE("Annual amount of CO2-e sequestered by trees on the ",FIXED(AR9,0)," hectares = ") -> Annual amount of CO2-e sequestered by trees on the 0 hectares = | AU7: =IF(ISERROR(AU5*Vegetation!D18),0,(AU5*Vegetation!D18)) -> 0 | AV7: =IF(AU5>0,CONCATENATE("Total tonnes CO2 sequestered in Year ",Vegetation!AK6),"") ->  | AX7: VIC | BF7: Years | BG7: Total Tree Carbon production | BI7: Annual Carbon production | BJ7: Current year | BL7: Soil Type | BO7: =CONCATENATE("Annual amount of CO2-e sequestered by trees on the ",FIXED(BM9,0)," hectares = ") -> Annual amount of CO2-e sequestered by trees on the 0 hectares = | BP7: =IF(ISERROR(BP5*Vegetation!D24),0,(BP5*Vegetation!D24)) -> 0 | BQ7: =IF(BP5>0,CONCATENATE("Total tonnes CO2 sequestered in Year ",Vegetation!BF6),"") ->  | BS7: VIC | CA7: Years | CB7: Total Tree Carbon production | CD7: Annual Carbon production | CE7: Current year
H8: QLD | P8: 0 | Q8: 0 | S8: 0 | T8: =IF(P8=D25,Q8-0,"") -> 0 | AC8: QLD | AK8: 0 | AL8: 0 | AN8: 0 | AO8: =IF(AK8=Y25,AL8-0,"") -> 0 | AX8: QLD | BF8: 0 | BG8: 0 | BI8: 0 | BJ8: =IF(BF8=AT25,BG8-0,"") -> 0 | BS8: QLD | CA8: 0 | CB8: 0 | CD8: 0 | CE8: =IF(CA8=BO25,CB8-0,"") -> 0
A9: Area of trees | B9: =Vegetation!D6 -> 0 | P9: 1 | Q9: =IF($E$27>0,HLOOKUP($D$22,$B$116:$UI$216,P9+1,FALSE),0) -> 0 | S9: =AVERAGE(S8,S10) -> 0 | T9: =IF(P9=D25,Q9-0,"") ->  | V9: Area of trees | W9: =Vegetation!D12 -> 0 | AK9: 1 | AL9: =IF($Z$27>0,HLOOKUP($Y$22,$B$116:$UI$216,AK9+1,FALSE),0) -> 0 | AN9: =AVERAGE(AN8,AN10) -> 0 | AO9: =IF(AK9=Y25,AL9-0,"") ->  | AQ9: Area of trees | AR9: =Vegetation!D18 -> 0 | BF9: 1 | BG9: =IF($AU$27>0,HLOOKUP($AT$22,$B$116:$UI$216,BF9+1,FALSE),0) -> 0 | BI9: =AVERAGE(BI8,BI10) -> 0 | BJ9: =IF(BF9=AT25,BG9-0,"") ->  | BL9: Area of trees | BM9: =Vegetation!D24 -> 0 | CA9: 1 | CB9: =IF($BP$27>0,HLOOKUP($BO$22,$B$116:$UI$216,CA9+1,FALSE),0) -> 0 | CD9: =AVERAGE(CD8,CD10) -> 0 | CE9: =IF(CA9=BO25,CB9-0,"") -> 
A10: Age of trees | B10: =Vegetation!D7 -> 0 | D10: CO2 -equivalent factor (per tonne of tree carbon grown): | E10: 3.67 | P10: 2 | Q10: =IF($E$27>0,HLOOKUP($D$22,$B$116:$UI$216,P10+1,FALSE),0) -> 0 | S10: =Q10-Q9 -> 0 | T10: =IF(P10=D25,Q10-Q9,"") ->  | V10: Age of trees | W10: =Vegetation!D13 -> 0 | Y10: CO2 -equivalent factor (per tonne of tree carbon grown): | Z10: 3.67 | AK10: 2 | AL10: =IF($Z$27>0,HLOOKUP($Y$22,$B$116:$UI$216,AK10+1,FALSE),0) -> 0 | AN10: =AL10-AL9 -> 0 | AO10: =IF(AK10=Y25,AL10-AL9,"") ->  | AQ10: Age of trees | AR10: =Vegetation!D19 -> 0 | AT10: CO2 -equivalent factor (per tonne of tree carbon grown): | AU10: 3.67 | BF10: 2 | BG10: =IF($AU$27>0,HLOOKUP($AT$22,$B$116:$UI$216,BF10+1,FALSE),0) -> 0 | BI10: =BG10-BG9 -> 0 | BJ10: =IF(BF10=AT25,BG10-BG9,"") ->  | BL10: Age of trees | BM10: =Vegetation!D25 -> 0 | BO10: CO2 -equivalent factor (per tonne of tree carbon grown): | BP10: 3.67 | CA10: 2 | CB10: =IF($BP$27>0,HLOOKUP($BO$22,$B$116:$UI$216,CA10+1,FALSE),0) -> 0 | CD10: =CB10-CB9 -> 0 | CE10: =IF(CA10=BO25,CB10-CB9,"") -> 
E11: Tonnes per Ha | F11: Total Tonnes | P11: 3 | Q11: 0 | S11: 0 | T11: =IF(P11=D25,Q11-Q10,"") ->  | Z11: Tonnes per Ha | AA11: Total Tonnes | AK11: 3 | AL11: 0 | AN11: 0 | AO11: =IF(AK11=Y25,AL11-AL10,"") ->  | AU11: Tonnes per Ha | AV11: Total Tonnes | BF11: 3 | BG11: 0 | BI11: 0 | BJ11: =IF(BF11=AT25,BG11-BG10,"") ->  | BP11: Tonnes per Ha | BQ11: Total Tonnes | CA11: 3 | CB11: 0 | CD11: 0 | CE11: =IF(CA11=BO25,CB11-CB10,"") -> 
D12: Average yearly increase in Tree Carbon = (over the long term - 100 years) | E12: =IF(ISERROR(E27),"",E28) -> 0 | F12: =IF(AND(E12>0,Vegetation!D7>0),E12*Vegetation!D7,0) -> 0 | P12: 4 | Q12: 0 | S12: 0 | T12: =IF(P12=D25,Q12-Q11,"") ->  | Y12: Average yearly increase in Tree Carbon = (over the long term - 100 years) | Z12: =IF(ISERROR(Z27),"",Z28) -> 0 | AA12: =IF(AND(Z12>0,Vegetation!D13>0),Z12*Vegetation!D13,0) -> 0 | AK12: 4 | AL12: 0 | AN12: 0 | AO12: =IF(AK12=Y25,AL12-AL11,"") ->  | AT12: Average yearly increase in Tree Carbon = (over the long term - 100 years) | AU12: =IF(ISERROR(AU27),"",AU28) -> 0 | AV12: =IF(AND(AU12>0,Vegetation!D19>0),AU12*Vegetation!D19,0) -> 0 | BF12: 4 | BG12: 0 | BI12: 0 | BJ12: =IF(BF12=AT25,BG12-BG11,"") ->  | BO12: Average yearly increase in Tree Carbon = (over the long term - 100 years) | BP12: =IF(ISERROR(BP27),"",BP28) -> 0 | BQ12: =IF(AND(BP12>0,Vegetation!D25>0),BP12*Vegetation!D25,0) -> 0 | CA12: 4 | CB12: 0 | CD12: 0 | CE12: =IF(CA12=BO25,CB12-CB11,"") -> 
D13: Tonnes CO2 equivalent = | E13: =IF(E12>0,(E10*E12),"") ->  | F13: =IF(F12>0,(F12*E10),"") ->  | P13: 5 | Q13: 0 | S13: 0 | T13: =IF(P13=D25,Q13-Q12,"") ->  | Y13: Tonnes CO2 equivalent = | Z13: =IF(Z12>0,(Z10*Z12),"") ->  | AA13: =IF(AA12>0,(AA12*E10),"") ->  | AK13: 5 | AL13: =IF($Z$27>0,HLOOKUP($Y$22,$B$116:$UI$216,AK13+1,FALSE),0) -> 0 | AN13: 0 | AO13: =IF(AK13=Y25,AL13-AL12,"") ->  | AT13: Tonnes CO2 equivalent = | AU13: =IF(AU12>0,(AU10*AU12),"") ->  | AV13: =IF(AV12>0,(AV12*E10),"") ->  | BF13: 5 | BG13: 0 | BI13: 0 | BJ13: =IF(BF13=AT25,BG13-BG12,"") ->  | BO13: Tonnes CO2 equivalent = | BP13: =IF(BP12>0,(BP10*BP12),"") ->  | BQ13: =IF(BQ12>0,(BQ12*E10),"") ->  | CA13: 5 | CB13: 0 | CD13: 0 | CE13: =IF(CA13=BO25,CB13-CB12,"") -> 
P14: 6 | Q14: 0 | S14: 0 | T14: =IF(P14=D25,Q14-Q13,"") ->  | AK14: 6 | AL14: 0 | AN14: 0 | AO14: =IF(AK14=Y25,AL14-AL13,"") ->  | BF14: 6 | BG14: 0 | BI14: 0 | BJ14: =IF(BF14=AT25,BG14-BG13,"") ->  | CA14: 6 | CB14: 0 | CD14: 0 | CE14: =IF(CA14=BO25,CB14-CB13,"") -> 
P15: 7 | Q15: 0 | S15: 0 | T15: =IF(P15=D25,Q15-Q14,"") ->  | AK15: 7 | AL15: 0 | AN15: 0 | AO15: =IF(AK15=Y25,AL15-AL14,"") ->  | BF15: 7 | BG15: 0 | BI15: 0 | BJ15: =IF(BF15=AT25,BG15-BG14,"") ->  | CA15: 7 | CB15: 0 | CD15: 0 | CE15: =IF(CA15=BO25,CB15-CB14,"") -> 
P16: 8 | Q16: 0 | S16: 0 | T16: =IF(P16=D25,Q16-Q15,"") ->  | AK16: 8 | AL16: 0 | AN16: 0 | AO16: =IF(AK16=Y25,AL16-AL15,"") ->  | BF16: 8 | BG16: 0 | BI16: 0 | BJ16: =IF(BF16=AT25,BG16-BG15,"") ->  | CA16: 8 | CB16: 0 | CD16: 0 | CE16: =IF(CA16=BO25,CB16-CB15,"") -> 
A17: Calculation of annual increment in tree carbon | P17: 9 | Q17: 0 | S17: 0 | T17: =IF(P17=D25,Q17-Q16,"") ->  | V17: Calculation of annual increment in tree carbon | AK17: 9 | AL17: 0 | AN17: 0 | AO17: =IF(AK17=Y25,AL17-AL16,"") ->  | AQ17: Calculation of annual increment in tree carbon | BF17: 9 | BG17: 0 | BI17: 0 | BJ17: =IF(BF17=AT25,BG17-BG16,"") ->  | BL17: Calculation of annual increment in tree carbon | CA17: 9 | CB17: 0 | CD17: 0 | CE17: =IF(CA17=BO25,CB17-CB16,"") -> 
B18: State/Territory : | C18: =B3 -> 0 | D18: Codes | P18: 10 | Q18: 0 | S18: 0 | T18: =IF(P18=D25,Q18-Q17,"") ->  | W18: State/Territory : | X18: =W3 -> 0 | Y18: Codes | AK18: 10 | AL18: 0 | AN18: 0 | AO18: =IF(AK18=Y25,AL18-AL17,"") ->  | AR18: State/Territory : | AS18: =AR3 -> 0 | AT18: Codes | BF18: 10 | BG18: 0 | BI18: 0 | BJ18: =IF(BF18=AT25,BG18-BG17,"") ->  | BM18: State/Territory : | BN18: =BM3 -> 0 | BO18: Codes | CA18: 10 | CB18: 0 | CD18: 0 | CE18: =IF(CA18=BO25,CB18-CB17,"") -> 
B19: Region : | C19: =B4 -> 0 | D19: =IF(ISERROR(VLOOKUP(C19,B33:C50,2,FALSE)),0,VLOOKUP(C19,B33:C50,2,FALSE)) -> 0 | P19: 11 | Q19: 0 | S19: 0 | T19: =IF(P19=D25,Q19-Q18,"") ->  | W19: Region : | X19: =W4 -> 0 | Y19: =IF(ISERROR(VLOOKUP(X19,B33:C50,2,FALSE)),0,VLOOKUP(X19,B33:C50,2,FALSE)) -> 0 | AK19: 11 | AL19: 0 | AN19: 0 | AO19: =IF(AK19=Y25,AL19-AL18,"") ->  | AR19: Region : | AS19: =AR4 -> 0 | AT19: =IF(ISERROR(VLOOKUP(AS19,B33:C50,2,FALSE)),0,VLOOKUP(AS19,B33:C50,2,FALSE)) -> 0 | BF19: 11 | BG19: 0 | BI19: 0 | BJ19: =IF(BF19=AT25,BG19-BG18,"") ->  | BM19: Region : | BN19: =BM4 -> 0 | BO19: =IF(ISERROR(VLOOKUP(BN19,B33:C50,2,FALSE)),0,VLOOKUP(BN19,B33:C50,2,FALSE)) -> 0 | CA19: 11 | CB19: 0 | CD19: 0 | CE19: =IF(CA19=BO25,CB19-CB18,"") -> 
B20: Tree Species : | C20: =B6 -> 0 | D20: =IF(VLOOKUP(D19,C33:L50,5,FALSE)=C20,1,IF(VLOOKUP(D19,C33:L50,6,FALSE)=C20,2,IF(VLOOKUP(D19,C33:L50,7,FALSE)=C20,3,IF(VLOOKUP(D19,C33:L50,8,FALSE)=C20,4,IF(VLOOKUP(D19,C33:L50,9,FALSE)=C20,5,IF(VLOOKUP(D19,C33:L50,10,FALSE)=C20,6,0)))))) ->  | P20: 12 | Q20: 0 | S20: 0 | T20: =IF(P20=D25,Q20-Q19,"") ->  | W20: Tree Species : | X20: =W6 -> 0 | Y20: =IF(VLOOKUP(Y19,C33:L50,5,FALSE)=X20,1,IF(VLOOKUP(Y19,C33:L50,6,FALSE)=X20,2,IF(VLOOKUP(Y19,C33:L50,7,FALSE)=X20,3,IF(VLOOKUP(Y19,C33:L50,8,FALSE)=X20,4,IF(VLOOKUP(Y19,C33:L50,9,FALSE)=X20,5,IF(VLOOKUP(Y19,C33:L50,10,FALSE)=X20,6,0)))))) ->  | AK20: 12 | AL20: 0 | AN20: 0 | AO20: =IF(AK20=Y25,AL20-AL19,"") ->  | AR20: Tree Species : | AS20: =AR6 -> 0 | AT20: =IF(VLOOKUP(AT19,C33:L50,5,FALSE)=AS20,1,IF(VLOOKUP(AT19,C33:L50,6,FALSE)=AS20,2,IF(VLOOKUP(AT19,C33:L50,7,FALSE)=AS20,3,IF(VLOOKUP(AT19,C33:L50,8,FALSE)=AS20,4,IF(VLOOKUP(AT19,C33:L50,9,FALSE)=AS20,5,IF(VLOOKUP(AT19,C33:L50,10,FALSE)=AS20,6,0)))))) ->  | BF20: 12 | BG20: 0 | BI20: 0 | BJ20: =IF(BF20=AT25,BG20-BG19,"") ->  | BM20: Tree Species : | BN20: =BM6 -> 0 | BO20: =IF(VLOOKUP(BO19,C33:L50,5,FALSE)=BN20,1,IF(VLOOKUP(BO19,C33:L50,6,FALSE)=BN20,2,IF(VLOOKUP(BO19,C33:L50,7,FALSE)=BN20,3,IF(VLOOKUP(BO19,C33:L50,8,FALSE)=BN20,4,IF(VLOOKUP(BO19,C33:L50,9,FALSE)=BN20,5,IF(VLOOKUP(BO19,C33:L50,10,FALSE)=BN20,6,0)))))) ->  | CA20: 12 | CB20: 0 | CD20: 0 | CE20: =IF(CA20=BO25,CB20-CB19,"") -> 
B21: Soil Type : | D21: 1 | P21: 13 | Q21: 0 | S21: 0 | T21: =IF(P21=D25,Q21-Q20,"") ->  | W21: Soil Type : | Y21: 1 | AK21: 13 | AL21: 0 | AN21: 0 | AO21: =IF(AK21=Y25,AL21-AL20,"") ->  | AR21: Soil Type : | AT21: 1 | BF21: 13 | BG21: 0 | BI21: 0 | BJ21: =IF(BF21=AT25,BG21-BG20,"") ->  | BM21: Soil Type : | BO21: 1 | CA21: 13 | CB21: 0 | CD21: 0 | CE21: =IF(CA21=BO25,CB21-CB20,"") -> 
C22: Tree Lookup Code : | D22: =CONCATENATE("R",D19,"T",D20,"S",D21) ->  | P22: 14 | Q22: 0 | S22: 0 | T22: =IF(P22=D25,Q22-Q21,"") ->  | X22: Tree Lookup Code : | Y22: =CONCATENATE("R",Y19,"T",Y20,"S",Y21) ->  | AK22: 14 | AL22: 0 | AN22: 0 | AO22: =IF(AK22=Y25,AL22-AL21,"") ->  | AS22: Tree Lookup Code : | AT22: =CONCATENATE("R",AT19,"T",AT20,"S",AT21) ->  | BF22: 14 | BG22: 0 | BI22: 0 | BJ22: =IF(BF22=AT25,BG22-BG21,"") ->  | BN22: Tree Lookup Code : | BO22: =CONCATENATE("R",BO19,"T",BO20,"S",BO21) ->  | CA22: 14 | CB22: 0 | CD22: 0 | CE22: =IF(CA22=BO25,CB22-CB21,"") -> 
P23: 15 | Q23: 0 | S23: 0 | T23: =IF(P23=D25,Q23-Q22,"") ->  | AK23: 15 | AL23: 0 | AN23: 0 | AO23: =IF(AK23=Y25,AL23-AL22,"") ->  | BF23: 15 | BG23: 0 | BI23: 0 | BJ23: =IF(BF23=AT25,BG23-BG22,"") ->  | CA23: 15 | CB23: 0 | CD23: 0 | CE23: =IF(CA23=BO25,CB23-CB22,"") -> 
D24: Year | E24: Carbon (t/ha) | P24: 16 | Q24: 0 | S24: 0 | T24: =IF(P24=D25,Q24-Q23,"") ->  | Y24: Year | Z24: Carbon (t/ha) | AK24: 16 | AL24: 0 | AN24: 0 | AO24: =IF(AK24=Y25,AL24-AL23,"") ->  | AT24: Year | AU24: Carbon (t/ha) | BF24: 16 | BG24: 0 | BI24: 0 | BJ24: =IF(BF24=AT25,BG24-BG23,"") ->  | BO24: Year | BP24: Carbon (t/ha) | CA24: 16 | CB24: 0 | CD24: 0 | CE24: =IF(CA24=BO25,CB24-CB23,"") -> 
B25: Tree carbon mass in year: | D25: =IF(Vegetation!D7>0,Vegetation!D7,0) -> 0 | E25: =IF(D25>0,HLOOKUP(D22,A116:UH216,(D25+1),FALSE),0) -> 0 | P25: 17 | Q25: 0 | S25: 0 | T25: =IF(P25=D25,Q25-Q24,"") ->  | W25: Tree carbon mass in year: | Y25: =IF(Vegetation!D13>0,Vegetation!D13,0) -> 0 | Z25: =IF(Y25>0,HLOOKUP(Y22,A116:UH216,(Y25+1),FALSE),0) -> 0 | AK25: 17 | AL25: 0 | AN25: 0 | AO25: =IF(AK25=Y25,AL25-AL24,"") ->  | AR25: Tree carbon mass in year: | AT25: =IF(Vegetation!D19>0,Vegetation!D19,0) -> 0 | AU25: =IF(AT25>0,HLOOKUP(AT22,A116:UH216,(AT25+1),FALSE),0) -> 0 | BF25: 17 | BG25: 0 | BI25: 0 | BJ25: =IF(BF25=AT25,BG25-BG24,"") ->  | BM25: Tree carbon mass in year: | BO25: =IF(Vegetation!D25>0,Vegetation!D25,0) -> 0 | BP25: =IF(BO25>0,HLOOKUP(BO22,A116:UH216,(BO25+1),FALSE),0) -> 0 | CA25: 17 | CB25: 0 | CD25: 0 | CE25: =IF(CA25=BO25,CB25-CB24,"") -> 
B26: Tree carbon mass in year: | D26: =IF(D25>0,D25-1,0) -> 0 | E26: =IF(D26>0,HLOOKUP(D22,B116:UI216,(D26+1),FALSE),0) -> 0 | P26: 18 | Q26: 0 | S26: 0 | T26: =IF(P26=D25,Q26-Q25,"") ->  | W26: Tree carbon mass in year: | Y26: =IF(Y25>0,Y25-1,0) -> 0 | Z26: =IF(Y26>0,HLOOKUP(Y22,B116:UI216,(Y26+1),FALSE),0) -> 0 | AK26: 18 | AL26: 0 | AN26: 0 | AO26: =IF(AK26=Y25,AL26-AL25,"") ->  | AR26: Tree carbon mass in year: | AT26: =IF(AT25>0,AT25-1,0) -> 0 | AU26: =IF(AT26>0,HLOOKUP(AT22,B116:UI216,(AT26+1),FALSE),0) -> 0 | BF26: 18 | BG26: 0 | BI26: 0 | BJ26: =IF(BF26=AT25,BG26-BG25,"") ->  | BM26: Tree carbon mass in year: | BO26: =IF(BO25>0,BO25-1,0) -> 0 | BP26: =IF(BO26>0,HLOOKUP(BO22,B116:UI216,(BO26+1),FALSE),0) -> 0 | CA26: 18 | CB26: 0 | CD26: 0 | CE26: =IF(CA26=BO25,CB26-CB25,"") -> 
D27: Change: | E27: =E25-E26 -> 0 | P27: 19 | Q27: 0 | S27: 0 | T27: =IF(P27=D25,Q27-Q26,"") ->  | Y27: Change: | Z27: =Z25-Z26 -> 0 | AK27: 19 | AL27: 0 | AN27: 0 | AO27: =IF(AK27=Y25,AL27-AL26,"") ->  | AT27: Change: | AU27: =AU25-AU26 -> 0 | BF27: 19 | BG27: 0 | BI27: 0 | BJ27: =IF(BF27=AT25,BG27-BG26,"") ->  | BO27: Change: | BP27: =BP25-BP26 -> 0 | CA27: 19 | CB27: 0 | CD27: 0 | CE27: =IF(CA27=BO25,CB27-CB26,"") -> 
D28: Average annual carbon sequestration: | E28: =IF(OR(ISERROR(E27),E27=0),0,AVERAGE(S9:S108)) -> 0 | P28: 20 | Q28: 0 | S28: 0 | T28: =IF(P28=D25,Q28-Q27,"") ->  | Y28: Average annual carbon sequestration: | Z28: =IF(OR(ISERROR(Z27),Z27=0),0,AVERAGE(AN9:AN108)) -> 0 | AK28: 20 | AL28: 0 | AN28: 0 | AO28: =IF(AK28=Y25,AL28-AL27,"") ->  | AT28: Average annual carbon sequestration: | AU28: =IF(OR(ISERROR(AU27),AU27=0),0,AVERAGE(BI9:BI108)) -> 0 | BF28: 20 | BG28: 0 | BI28: 0 | BJ28: =IF(BF28=AT25,BG28-BG27,"") ->  | BO28: Average annual carbon sequestration: | BP28: =IF(OR(ISERROR(BP27),BP27=0),0,AVERAGE(CD9:CD108)) -> 0 | CA28: 20 | CB28: 0 | CD28: 0 | CE28: =IF(CA28=BO25,CB28-CB27,"") -> 
P29: 21 | Q29: 0 | S29: 0 | T29: =IF(P29=D25,Q29-Q28,"") ->  | AK29: 21 | AL29: 0 | AN29: 0 | AO29: =IF(AK29=Y25,AL29-AL28,"") ->  | BF29: 21 | BG29: 0 | BI29: 0 | BJ29: =IF(BF29=AT25,BG29-BG28,"") ->  | CA29: 21 | CB29: 0 | CD29: 0 | CE29: =IF(CA29=BO25,CB29-CB28,"") -> 
P30: 22 | Q30: 0 | S30: 0 | T30: =IF(P30=D25,Q30-Q29,"") ->  | AK30: 22 | AL30: 0 | AN30: 0 | AO30: =IF(AK30=Y25,AL30-AL29,"") ->  | BF30: 22 | BG30: 0 | BI30: 0 | BJ30: =IF(BF30=AT25,BG30-BG29,"") ->  | CA30: 22 | CB30: 0 | CD30: 0 | CE30: =IF(CA30=BO25,CB30-CB29,"") -> 
A31: Lookup table for zones | C31: REGION No (Nathan's) | D31: Soil Types (2 per region) | G31: Tree Species (up to 6) | P31: 23 | Q31: 0 | S31: 0 | T31: =IF(P31=D25,Q31-Q30,"") ->  | V31: Lookup table for zones | X31: REGION No (Nathan's) | Y31: Soil Types (2 per region) | AB31: Tree Species (up to 6) | AK31: 23 | AL31: 0 | AN31: 0 | AO31: =IF(AK31=Y25,AL31-AL30,"") ->  | AQ31: Lookup table for zones | AS31: REGION No (Nathan's) | AT31: Soil Types (2 per region) | AW31: Tree Species (up to 6) | BF31: 23 | BG31: 0 | BI31: 0 | BJ31: =IF(BF31=AT25,BG31-BG30,"") ->  | BL31: Lookup table for zones | BN31: REGION No (Nathan's) | BO31: Soil Types (2 per region) | BR31: Tree Species (up to 6) | CA31: 23 | CB31: 0 | CD31: 0 | CE31: =IF(CA31=BO25,CB31-CB30,"") -> 
A32: State/Territory | B32: Rainfall region | C32: R | D32: S1 | E32: S2 | G32: T1 | H32: T2 | I32: T3 | J32: T4 | K32: T5 | L32: T6 | P32: 24 | Q32: 0 | S32: 0 | T32: =IF(P32=D25,Q32-Q31,"") ->  | V32: State/Territory | W32: Rainfall region | X32: R | Y32: S1 | Z32: S2 | AB32: T1 | AC32: T2 | AD32: T3 | AE32: T4 | AF32: T5 | AG32: T6 | AK32: 24 | AL32: 0 | AN32: 0 | AO32: =IF(AK32=Y25,AL32-AL31,"") ->  | AQ32: State/Territory | AR32: Rainfall region | AS32: R | AT32: S1 | AU32: S2 | AW32: T1 | AX32: T2 | AY32: T3 | AZ32: T4 | BA32: T5 | BB32: T6 | BF32: 24 | BG32: 0 | BI32: 0 | BJ32: =IF(BF32=AT25,BG32-BG31,"") ->  | BL32: State/Territory | BM32: Rainfall region | BN32: R | BO32: S1 | BP32: S2 | BR32: T1 | BS32: T2 | BT32: T3 | BU32: T4 | BV32: T5 | BW32: T6 | CA32: 24 | CB32: 0 | CD32: 0 | CE32: =IF(CA32=BO25,CB32-CB31,"") -> 
A33: Western Australia | B33: South West WA | C33: 1 | D33: Sandy Duplexes | G33: Mixed species (Environmental Plantings) | H33: Tasmanian Blue Gum | I33: Sydney Blue Gum | J33: Maritime Pine | K33: Pinus Radiata | L33: No tree data available | P33: 25 | Q33: 0 | S33: 0 | T33: =IF(P33=D25,Q33-Q32,"") ->  | V33: Western Australia | W33: South West WA | X33: 1 | Y33: Sandy Duplexes | AB33: Mixed species (Environmental Plantings) | AC33: Tasmanian Blue Gum | AD33: Sydney Blue Gum | AE33: Maritime Pine | AF33: Pinus Radiata | AG33: No tree data available | AK33: 25 | AL33: 0 | AN33: 0 | AO33: =IF(AK33=Y25,AL33-AL32,"") ->  | AQ33: Western Australia | AR33: South West WA | AS33: 1 | AT33: Sandy Duplexes | AW33: Mixed species (Environmental Plantings) | AX33: Tasmanian Blue Gum | AY33: Sydney Blue Gum | AZ33: Maritime Pine | BA33: Pinus Radiata | BB33: No tree data available | BF33: 25 | BG33: 0 | BI33: 0 | BJ33: =IF(BF33=AT25,BG33-BG32,"") ->  | BL33: Western Australia | BM33: South West WA | BN33: 1 | BO33: Sandy Duplexes | BR33: Mixed species (Environmental Plantings) | BS33: Tasmanian Blue Gum | BT33: Sydney Blue Gum | BU33: Maritime Pine | BV33: Pinus Radiata | BW33: No tree data available | CA33: 25 | CB33: 0 | CD33: 0 | CE33: =IF(CA33=BO25,CB33-CB32,"") -> 
A34: New South Wales | B34: Northern coastal NSW | C34: 10 | D34: Clay & Red Loam | G34: Mixed species (Environmental Plantings) | H34: Spotted Gum | I34: Dunn's White Gum | J34: Flooded Gum | K34: Slash Pine | L34: Loblolly Pine | P34: 26 | Q34: 0 | S34: 0 | T34: =IF(P34=D25,Q34-Q33,"") ->  | V34: New South Wales | W34: Northern coastal NSW | X34: 10 | Y34: Clay & Red Loam | AB34: Mixed species (Environmental Plantings) | AC34: Spotted Gum | AD34: Dunn's White Gum | AE34: Flooded Gum | AF34: Slash Pine | AG34: Loblolly Pine | AK34: 26 | AL34: 0 | AN34: 0 | AO34: =IF(AK34=Y25,AL34-AL33,"") ->  | AQ34: New South Wales | AR34: Northern coastal NSW | AS34: 10 | AT34: Clay & Red Loam | AW34: Mixed species (Environmental Plantings) | AX34: Spotted Gum | AY34: Dunn's White Gum | AZ34: Flooded Gum | BA34: Slash Pine | BB34: Loblolly Pine | BF34: 26 | BG34: 0 | BI34: 0 | BJ34: =IF(BF34=AT25,BG34-BG33,"") ->  | BL34: New South Wales | BM34: Northern coastal NSW | BN34: 10 | BO34: Clay & Red Loam | BR34: Mixed species (Environmental Plantings) | BS34: Spotted Gum | BT34: Dunn's White Gum | BU34: Flooded Gum | BV34: Slash Pine | BW34: Loblolly Pine | CA34: 26 | CB34: 0 | CD34: 0 | CE34: =IF(CA34=BO25,CB34-CB33,"") -> 
A35: New South Wales | B35: Southern coastal NSW | C35: 11 | D35: Loam | G35: Mixed species (Environmental Plantings) | H35: Sugar Gum | I35: Tasmanian Blue Gum | J35: Red Ironbark | K35: Radiata Pine (low input) | L35: Radiata Pine (high input) | P35: 27 | Q35: 0 | S35: 0 | T35: =IF(P35=D25,Q35-Q34,"") ->  | V35: New South Wales | W35: Southern coastal NSW | X35: 11 | Y35: Loam | AB35: Mixed species (Environmental Plantings) | AC35: Sugar Gum | AD35: Tasmanian Blue Gum | AE35: Red Ironbark | AF35: Radiata Pine (low input) | AG35: Radiata Pine (high input) | AK35: 27 | AL35: 0 | AN35: 0 | AO35: =IF(AK35=Y25,AL35-AL34,"") ->  | AQ35: New South Wales | AR35: Southern coastal NSW | AS35: 11 | AT35: Loam | AW35: Mixed species (Environmental Plantings) | AX35: Sugar Gum | AY35: Tasmanian Blue Gum | AZ35: Red Ironbark | BA35: Radiata Pine (low input) | BB35: Radiata Pine (high input) | BF35: 27 | BG35: 0 | BI35: 0 | BJ35: =IF(BF35=AT25,BG35-BG34,"") ->  | BL35: New South Wales | BM35: Southern coastal NSW | BN35: 11 | BO35: Loam | BR35: Mixed species (Environmental Plantings) | BS35: Sugar Gum | BT35: Tasmanian Blue Gum | BU35: Red Ironbark | BV35: Radiata Pine (low input) | BW35: Radiata Pine (high input) | CA35: 27 | CB35: 0 | CD35: 0 | CE35: =IF(CA35=BO25,CB35-CB34,"") -> 
A36: New South Wales | B36: Central Inland & Riverina NSW | C36: 15 | D36: Loam | G36: Mixed species (Environmental Plantings) | H36: Sugar Gum | I36: Tasmanian Blue Gum | J36: Red Ironbark | K36: Radiata Pine (low input) | L36: Radiata Pine (high input) | P36: 28 | Q36: 0 | S36: 0 | T36: =IF(P36=D25,Q36-Q35,"") ->  | V36: New South Wales | W36: Central Inland & Riverina NSW | X36: 15 | Y36: Loam | AB36: Mixed species (Environmental Plantings) | AC36: Sugar Gum | AD36: Tasmanian Blue Gum | AE36: Red Ironbark | AF36: Radiata Pine (low input) | AG36: Radiata Pine (high input) | AK36: 28 | AL36: 0 | AN36: 0 | AO36: =IF(AK36=Y25,AL36-AL35,"") ->  | AQ36: New South Wales | AR36: Central Inland & Riverina NSW | AS36: 15 | AT36: Loam | AW36: Mixed species (Environmental Plantings) | AX36: Sugar Gum | AY36: Tasmanian Blue Gum | AZ36: Red Ironbark | BA36: Radiata Pine (low input) | BB36: Radiata Pine (high input) | BF36: 28 | BG36: 0 | BI36: 0 | BJ36: =IF(BF36=AT25,BG36-BG35,"") ->  | BL36: New South Wales | BM36: Central Inland & Riverina NSW | BN36: 15 | BO36: Loam | BR36: Mixed species (Environmental Plantings) | BS36: Sugar Gum | BT36: Tasmanian Blue Gum | BU36: Red Ironbark | BV36: Radiata Pine (low input) | BW36: Radiata Pine (high input) | CA36: 28 | CB36: 0 | CD36: 0 | CE36: =IF(CA36=BO25,CB36-CB35,"") -> 
A37: Tasmania | B37: North East TAS | C37: 17 | D37: All other Soils | G37: Mixed species (Environmental Plantings) | H37: Tasmanian Blue Gum | I37: Shining Gum | J37: Radiata Pine (low input) | K37: Radiata Pine (high input) | L37: No tree data available | P37: 29 | Q37: 0 | S37: 0 | T37: =IF(P37=D25,Q37-Q36,"") ->  | V37: Tasmania | W37: North East TAS | X37: 17 | Y37: All other Soils | AB37: Mixed species (Environmental Plantings) | AC37: Tasmanian Blue Gum | AD37: Shining Gum | AE37: Radiata Pine (low input) | AF37: Radiata Pine (high input) | AG37: No tree data available | AK37: 29 | AL37: 0 | AN37: 0 | AO37: =IF(AK37=Y25,AL37-AL36,"") ->  | AQ37: Tasmania | AR37: North East TAS | AS37: 17 | AT37: All other Soils | AW37: Mixed species (Environmental Plantings) | AX37: Tasmanian Blue Gum | AY37: Shining Gum | AZ37: Radiata Pine (low input) | BA37: Radiata Pine (high input) | BB37: No tree data available | BF37: 29 | BG37: 0 | BI37: 0 | BJ37: =IF(BF37=AT25,BG37-BG36,"") ->  | BL37: Tasmania | BM37: North East TAS | BN37: 17 | BO37: All other Soils | BR37: Mixed species (Environmental Plantings) | BS37: Tasmanian Blue Gum | BT37: Shining Gum | BU37: Radiata Pine (low input) | BV37: Radiata Pine (high input) | BW37: No tree data available | CA37: 29 | CB37: 0 | CD37: 0 | CE37: =IF(CA37=BO25,CB37-CB36,"") -> 
A38: Tasmania | B38: Central North & Midlands TAS | C38: 19 | D38: All other Soils | G38: Mixed species (Environmental Plantings) | H38: Tasmanian Blue Gum | I38: Shining Gum | J38: Radiata Pine (low input) | K38: Radiata Pine (high input) | L38: No tree data available | P38: 30 | Q38: 0 | S38: 0 | T38: =IF(P38=D25,Q38-Q37,"") ->  | V38: Tasmania | W38: Central North & Midlands TAS | X38: 19 | Y38: All other Soils | AB38: Mixed species (Environmental Plantings) | AC38: Tasmanian Blue Gum | AD38: Shining Gum | AE38: Radiata Pine (low input) | AF38: Radiata Pine (high input) | AG38: No tree data available | AK38: 30 | AL38: 0 | AN38: 0 | AO38: =IF(AK38=Y25,AL38-AL37,"") ->  | AQ38: Tasmania | AR38: Central North & Midlands TAS | AS38: 19 | AT38: All other Soils | AW38: Mixed species (Environmental Plantings) | AX38: Tasmanian Blue Gum | AY38: Shining Gum | AZ38: Radiata Pine (low input) | BA38: Radiata Pine (high input) | BB38: No tree data available | BF38: 30 | BG38: 0 | BI38: 0 | BJ38: =IF(BF38=AT25,BG38-BG37,"") ->  | BL38: Tasmania | BM38: Central North & Midlands TAS | BN38: 19 | BO38: All other Soils | BR38: Mixed species (Environmental Plantings) | BS38: Tasmanian Blue Gum | BT38: Shining Gum | BU38: Radiata Pine (low input) | BV38: Radiata Pine (high input) | BW38: No tree data available | CA38: 30 | CB38: 0 | CD38: 0 | CE38: =IF(CA38=BO25,CB38-CB37,"") -> 
A39: Tasmania | B39: Southern & Derwent Valley TAS | C39: 20 | D39: All other Soils | G39: Mixed species (Environmental Plantings) | H39: Tasmanian Blue Gum | I39: Shining Gum | J39: Radiata Pine (low input) | K39: Radiata Pine (high input) | L39: No tree data available | P39: 31 | Q39: 0 | S39: 0 | T39: =IF(P39=D25,Q39-Q38,"") ->  | V39: Tasmania | W39: Southern & Derwent Valley TAS | X39: 20 | Y39: All other Soils | AB39: Mixed species (Environmental Plantings) | AC39: Tasmanian Blue Gum | AD39: Shining Gum | AE39: Radiata Pine (low input) | AF39: Radiata Pine (high input) | AG39: No tree data available | AK39: 31 | AL39: 0 | AN39: 0 | AO39: =IF(AK39=Y25,AL39-AL38,"") ->  | AQ39: Tasmania | AR39: Southern & Derwent Valley TAS | AS39: 20 | AT39: All other Soils | AW39: Mixed species (Environmental Plantings) | AX39: Tasmanian Blue Gum | AY39: Shining Gum | AZ39: Radiata Pine (low input) | BA39: Radiata Pine (high input) | BB39: No tree data available | BF39: 31 | BG39: 0 | BI39: 0 | BJ39: =IF(BF39=AT25,BG39-BG38,"") ->  | BL39: Tasmania | BM39: Southern & Derwent Valley TAS | BN39: 20 | BO39: All other Soils | BR39: Mixed species (Environmental Plantings) | BS39: Tasmanian Blue Gum | BT39: Shining Gum | BU39: Radiata Pine (low input) | BV39: Radiata Pine (high input) | BW39: No tree data available | CA39: 31 | CB39: 0 | CD39: 0 | CE39: =IF(CA39=BO25,CB39-CB38,"") -> 
A40: Tasmania | B40: North West TAS | C40: 22 | D40: All other Soils | G40: Mixed species (Environmental Plantings) | H40: Tasmanian Blue Gum | I40: Shining Gum | J40: Radiata Pine (low input) | K40: Radiata Pine (high input) | L40: No tree data available | P40: 32 | Q40: 0 | S40: 0 | T40: =IF(P40=D25,Q40-Q39,"") ->  | V40: Tasmania | W40: North West TAS | X40: 22 | Y40: All other Soils | AB40: Mixed species (Environmental Plantings) | AC40: Tasmanian Blue Gum | AD40: Shining Gum | AE40: Radiata Pine (low input) | AF40: Radiata Pine (high input) | AG40: No tree data available | AK40: 32 | AL40: 0 | AN40: 0 | AO40: =IF(AK40=Y25,AL40-AL39,"") ->  | AQ40: Tasmania | AR40: North West TAS | AS40: 22 | AT40: All other Soils | AW40: Mixed species (Environmental Plantings) | AX40: Tasmanian Blue Gum | AY40: Shining Gum | AZ40: Radiata Pine (low input) | BA40: Radiata Pine (high input) | BB40: No tree data available | BF40: 32 | BG40: 0 | BI40: 0 | BJ40: =IF(BF40=AT25,BG40-BG39,"") ->  | BL40: Tasmania | BM40: North West TAS | BN40: 22 | BO40: All other Soils | BR40: Mixed species (Environmental Plantings) | BS40: Tasmanian Blue Gum | BT40: Shining Gum | BU40: Radiata Pine (low input) | BV40: Radiata Pine (high input) | BW40: No tree data available | CA40: 32 | CB40: 0 | CD40: 0 | CE40: =IF(CA40=BO25,CB40-CB39,"") -> 
A41: South Australia | B41: South East SA | C41: 23 | D41: Cracking Clays | G41: Mixed species (Environmental Plantings) | H41: Tasmanian Blue Gum | I41: Pinus Radiata | J41: No tree data available | K41: No tree data available | L41: No tree data available | P41: 33 | Q41: 0 | S41: 0 | T41: =IF(P41=D25,Q41-Q40,"") ->  | V41: South Australia | W41: South East SA | X41: 23 | Y41: Cracking Clays | AB41: Mixed species (Environmental Plantings) | AC41: Tasmanian Blue Gum | AD41: Pinus Radiata | AE41: No tree data available | AF41: No tree data available | AG41: No tree data available | AK41: 33 | AL41: 0 | AN41: 0 | AO41: =IF(AK41=Y25,AL41-AL40,"") ->  | AQ41: South Australia | AR41: South East SA | AS41: 23 | AT41: Cracking Clays | AW41: Mixed species (Environmental Plantings) | AX41: Tasmanian Blue Gum | AY41: Pinus Radiata | AZ41: No tree data available | BA41: No tree data available | BB41: No tree data available | BF41: 33 | BG41: 0 | BI41: 0 | BJ41: =IF(BF41=AT25,BG41-BG40,"") ->  | BL41: South Australia | BM41: South East SA | BN41: 23 | BO41: Cracking Clays | BR41: Mixed species (Environmental Plantings) | BS41: Tasmanian Blue Gum | BT41: Pinus Radiata | BU41: No tree data available | BV41: No tree data available | BW41: No tree data available | CA41: 33 | CB41: 0 | CD41: 0 | CE41: =IF(CA41=BO25,CB41-CB40,"") -> 
A42: South Australia | B42: Murray River SA | C42: 24 | D42: Cracking Clays | G42: Mixed species (Environmental Plantings) | H42: Tasmanian Blue Gum | I42: Pinus Radiata | J42: No tree data available | K42: No tree data available | L42: No tree data available | P42: 34 | Q42: 0 | S42: =Q42-Q41 -> 0 | T42: =IF(P42=D25,Q42-Q41,"") ->  | V42: South Australia | W42: Murray River SA | X42: 24 | Y42: Cracking Clays | AB42: Mixed species (Environmental Plantings) | AC42: Tasmanian Blue Gum | AD42: Pinus Radiata | AE42: No tree data available | AF42: No tree data available | AG42: No tree data available | AK42: 34 | AL42: 0 | AN42: =AL42-AL41 -> 0 | AO42: =IF(AK42=Y25,AL42-AL41,"") ->  | AQ42: South Australia | AR42: Murray River SA | AS42: 24 | AT42: Cracking Clays | AW42: Mixed species (Environmental Plantings) | AX42: Tasmanian Blue Gum | AY42: Pinus Radiata | AZ42: No tree data available | BA42: No tree data available | BB42: No tree data available | BF42: 34 | BG42: 0 | BI42: =BG42-BG41 -> 0 | BJ42: =IF(BF42=AT25,BG42-BG41,"") ->  | BL42: South Australia | BM42: Murray River SA | BN42: 24 | BO42: Cracking Clays | BR42: Mixed species (Environmental Plantings) | BS42: Tasmanian Blue Gum | BT42: Pinus Radiata | BU42: No tree data available | BV42: No tree data available | BW42: No tree data available | CA42: 34 | CB42: 0 | CD42: =CB42-CB41 -> 0 | CE42: =IF(CA42=BO25,CB42-CB41,"") -> 
A43: Victoria | B43: Mallee region VIC | C43: 28 | D43: Yellow Duplex | G43: Mixed species (Environmental Plantings) | H43: Sugar Gum | I43: Tasmanian Blue Gum | J43: Shining Gum | K43: Pinus Radiata (low input) | L43: Pinus Radiata (high input) | P43: 35 | Q43: 0 | S43: 0 | T43: =IF(P43=D25,Q43-Q42,"") ->  | V43: Victoria | W43: Mallee region VIC | X43: 28 | Y43: Yellow Duplex | AB43: Mixed species (Environmental Plantings) | AC43: Sugar Gum | AD43: Tasmanian Blue Gum | AE43: Shining Gum | AF43: Pinus Radiata (low input) | AG43: Pinus Radiata (high input) | AK43: 35 | AL43: 0 | AN43: 0 | AO43: =IF(AK43=Y25,AL43-AL42,"") ->  | AQ43: Victoria | AR43: Mallee region VIC | AS43: 28 | AT43: Yellow Duplex | AW43: Mixed species (Environmental Plantings) | AX43: Sugar Gum | AY43: Tasmanian Blue Gum | AZ43: Shining Gum | BA43: Pinus Radiata (low input) | BB43: Pinus Radiata (high input) | BF43: 35 | BG43: 0 | BI43: 0 | BJ43: =IF(BF43=AT25,BG43-BG42,"") ->  | BL43: Victoria | BM43: Mallee region VIC | BN43: 28 | BO43: Yellow Duplex | BR43: Mixed species (Environmental Plantings) | BS43: Sugar Gum | BT43: Tasmanian Blue Gum | BU43: Shining Gum | BV43: Pinus Radiata (low input) | BW43: Pinus Radiata (high input) | CA43: 35 | CB43: 0 | CD43: 0 | CE43: =IF(CA43=BO25,CB43-CB42,"") -> 
A44: Victoria | B44: Northern region VIC | C44: 30 | D44: Red Duplex | G44: Mixed species (Environmental Plantings) | H44: Sugar Gum | I44: Tasmanian Blue Gum | J44: Shining Gum | K44: Pinus Radiata | L44: No tree data available | P44: 36 | Q44: 0 | S44: 0 | T44: =IF(P44=D25,Q44-Q43,"") ->  | V44: Victoria | W44: Northern region VIC | X44: 30 | Y44: Red Duplex | AB44: Mixed species (Environmental Plantings) | AC44: Sugar Gum | AD44: Tasmanian Blue Gum | AE44: Shining Gum | AF44: Pinus Radiata | AG44: No tree data available | AK44: 36 | AL44: 0 | AN44: 0 | AO44: =IF(AK44=Y25,AL44-AL43,"") ->  | AQ44: Victoria | AR44: Northern region VIC | AS44: 30 | AT44: Red Duplex | AW44: Mixed species (Environmental Plantings) | AX44: Sugar Gum | AY44: Tasmanian Blue Gum | AZ44: Shining Gum | BA44: Pinus Radiata | BB44: No tree data available | BF44: 36 | BG44: 0 | BI44: 0 | BJ44: =IF(BF44=AT25,BG44-BG43,"") ->  | BL44: Victoria | BM44: Northern region VIC | BN44: 30 | BO44: Red Duplex | BR44: Mixed species (Environmental Plantings) | BS44: Sugar Gum | BT44: Tasmanian Blue Gum | BU44: Shining Gum | BV44: Pinus Radiata | BW44: No tree data available | CA44: 36 | CB44: 0 | CD44: 0 | CE44: =IF(CA44=BO25,CB44-CB43,"") -> 
A45: Victoria | B45: North East region VIC | C45: 31 | D45: Red Duplex | G45: Mixed species (Environmental Plantings) | H45: Sugar Gum | I45: Tasmanian Blue Gum | J45: Shining Gum | K45: Pinus Radiata | L45: No tree data available | P45: 37 | Q45: 0 | S45: 0 | T45: =IF(P45=D25,Q45-Q44,"") ->  | V45: Victoria | W45: North East region VIC | X45: 31 | Y45: Red Duplex | AB45: Mixed species (Environmental Plantings) | AC45: Sugar Gum | AD45: Tasmanian Blue Gum | AE45: Shining Gum | AF45: Pinus Radiata | AG45: No tree data available | AK45: 37 | AL45: 0 | AN45: 0 | AO45: =IF(AK45=Y25,AL45-AL44,"") ->  | AQ45: Victoria | AR45: North East region VIC | AS45: 31 | AT45: Red Duplex | AW45: Mixed species (Environmental Plantings) | AX45: Sugar Gum | AY45: Tasmanian Blue Gum | AZ45: Shining Gum | BA45: Pinus Radiata | BB45: No tree data available | BF45: 37 | BG45: 0 | BI45: 0 | BJ45: =IF(BF45=AT25,BG45-BG44,"") ->  | BL45: Victoria | BM45: North East region VIC | BN45: 31 | BO45: Red Duplex | BR45: Mixed species (Environmental Plantings) | BS45: Sugar Gum | BT45: Tasmanian Blue Gum | BU45: Shining Gum | BV45: Pinus Radiata | BW45: No tree data available | CA45: 37 | CB45: 0 | CD45: 0 | CE45: =IF(CA45=BO25,CB45-CB44,"") -> 
A46: Victoria | B46: East Gippsland | C46: 32 | D46: Yellow Duplex | G46: Mixed species (Environmental Plantings) | H46: Tasmanian Blue Gum | I46: Shining Gum | J46: Pinus Radiata | K46: No tree data available | L46: No tree data available | P46: 38 | Q46: 0 | S46: 0 | T46: =IF(P46=D25,Q46-Q45,"") ->  | V46: Victoria | W46: East Gippsland | X46: 32 | Y46: Yellow Duplex | AB46: Mixed species (Environmental Plantings) | AC46: Tasmanian Blue Gum | AD46: Shining Gum | AE46: Pinus Radiata | AF46: No tree data available | AG46: No tree data available | AK46: 38 | AL46: 0 | AN46: 0 | AO46: =IF(AK46=Y25,AL46-AL45,"") ->  | AQ46: Victoria | AR46: East Gippsland | AS46: 32 | AT46: Yellow Duplex | AW46: Mixed species (Environmental Plantings) | AX46: Tasmanian Blue Gum | AY46: Shining Gum | AZ46: Pinus Radiata | BA46: No tree data available | BB46: No tree data available | BF46: 38 | BG46: 0 | BI46: 0 | BJ46: =IF(BF46=AT25,BG46-BG45,"") ->  | BL46: Victoria | BM46: East Gippsland | BN46: 32 | BO46: Yellow Duplex | BR46: Mixed species (Environmental Plantings) | BS46: Tasmanian Blue Gum | BT46: Shining Gum | BU46: Pinus Radiata | BV46: No tree data available | BW46: No tree data available | CA46: 38 | CB46: 0 | CD46: 0 | CE46: =IF(CA46=BO25,CB46-CB45,"") -> 
A47: Victoria | B47: South & West Gippsland | C47: 33 | D47: Gradational soils | G47: Mixed species (Environmental Plantings) | H47: Tasmanian Blue Gum | I47: Shining Gum | J47: Mountain Ash | K47: Pinus Radiata | L47: No tree data available | P47: 39 | Q47: 0 | S47: 0 | T47: =IF(P47=D25,Q47-Q46,"") ->  | V47: Victoria | W47: South & West Gippsland | X47: 33 | Y47: Gradational soils | AB47: Mixed species (Environmental Plantings) | AC47: Tasmanian Blue Gum | AD47: Shining Gum | AE47: Mountain Ash | AF47: Pinus Radiata | AG47: No tree data available | AK47: 39 | AL47: 0 | AN47: 0 | AO47: =IF(AK47=Y25,AL47-AL46,"") ->  | AQ47: Victoria | AR47: South & West Gippsland | AS47: 33 | AT47: Gradational soils | AW47: Mixed species (Environmental Plantings) | AX47: Tasmanian Blue Gum | AY47: Shining Gum | AZ47: Mountain Ash | BA47: Pinus Radiata | BB47: No tree data available | BF47: 39 | BG47: 0 | BI47: 0 | BJ47: =IF(BF47=AT25,BG47-BG46,"") ->  | BL47: Victoria | BM47: South & West Gippsland | BN47: 33 | BO47: Gradational soils | BR47: Mixed species (Environmental Plantings) | BS47: Tasmanian Blue Gum | BT47: Shining Gum | BU47: Mountain Ash | BV47: Pinus Radiata | BW47: No tree data available | CA47: 39 | CB47: 0 | CD47: 0 | CE47: =IF(CA47=BO25,CB47-CB46,"") -> 
A48: Victoria | B48: South West VIC | C48: 35 | D48: Red Duplex | G48: Mixed species (Environmental Plantings) | H48: Sugar Gum | I48: Tasmanian Blue Gum | J48: Shining Gum | K48: Pinus Radiata | L48: No tree data available | P48: 40 | Q48: 0 | S48: 0 | T48: =IF(P48=D25,Q48-Q47,"") ->  | V48: Victoria | W48: South West VIC | X48: 35 | Y48: Red Duplex | AB48: Mixed species (Environmental Plantings) | AC48: Sugar Gum | AD48: Tasmanian Blue Gum | AE48: Shining Gum | AF48: Pinus Radiata | AG48: No tree data available | AK48: 40 | AL48: 0 | AN48: 0 | AO48: =IF(AK48=Y25,AL48-AL47,"") ->  | AQ48: Victoria | AR48: South West VIC | AS48: 35 | AT48: Red Duplex | AW48: Mixed species (Environmental Plantings) | AX48: Sugar Gum | AY48: Tasmanian Blue Gum | AZ48: Shining Gum | BA48: Pinus Radiata | BB48: No tree data available | BF48: 40 | BG48: 0 | BI48: 0 | BJ48: =IF(BF48=AT25,BG48-BG47,"") ->  | BL48: Victoria | BM48: South West VIC | BN48: 35 | BO48: Red Duplex | BR48: Mixed species (Environmental Plantings) | BS48: Sugar Gum | BT48: Tasmanian Blue Gum | BU48: Shining Gum | BV48: Pinus Radiata | BW48: No tree data available | CA48: 40 | CB48: 0 | CD48: 0 | CE48: =IF(CA48=BO25,CB48-CB47,"") -> 
A49: Queensland | B49: Northern QLD | C49: 36 | D49: Duplex | G49: Mixed species (Environmental Plantings) | H49: Hoop Pine | I49: Lemon-scented Gum | J49: Western White Gum | K49: Blackbutt | L49: Pinus Hybrids | P49: 41 | Q49: 0 | S49: 0 | T49: =IF(P49=D25,Q49-Q48,"") ->  | V49: Queensland | W49: Northern QLD | X49: 36 | Y49: Duplex | AB49: Mixed species (Environmental Plantings) | AC49: Hoop Pine | AD49: Lemon-scented Gum | AE49: Western White Gum | AF49: Blackbutt | AG49: Pinus Hybrids | AK49: 41 | AL49: 0 | AN49: 0 | AO49: =IF(AK49=Y25,AL49-AL48,"") ->  | AQ49: Queensland | AR49: Northern QLD | AS49: 36 | AT49: Duplex | AW49: Mixed species (Environmental Plantings) | AX49: Hoop Pine | AY49: Lemon-scented Gum | AZ49: Western White Gum | BA49: Blackbutt | BB49: Pinus Hybrids | BF49: 41 | BG49: 0 | BI49: 0 | BJ49: =IF(BF49=AT25,BG49-BG48,"") ->  | BL49: Queensland | BM49: Northern QLD | BN49: 36 | BO49: Duplex | BR49: Mixed species (Environmental Plantings) | BS49: Hoop Pine | BT49: Lemon-scented Gum | BU49: Western White Gum | BV49: Blackbutt | BW49: Pinus Hybrids | CA49: 41 | CB49: 0 | CD49: 0 | CE49: =IF(CA49=BO25,CB49-CB48,"") -> 
A50: Queensland | B50: Southern QLD | C50: 40 | D50: Duplex Woodland | G50: Mixed species (Environmental Plantings) | H50: Hoop Pine | I50: Lemon-scented Gum | J50: Western White Gum | K50: Blackbutt | L50: Pinus Hybrids | P50: 42 | Q50: 0 | S50: 0 | T50: =IF(P50=D25,Q50-Q49,"") ->  | V50: Queensland | W50: Southern QLD | X50: 40 | Y50: Duplex Woodland | AB50: Mixed species (Environmental Plantings) | AC50: Hoop Pine | AD50: Lemon-scented Gum | AE50: Western White Gum | AF50: Blackbutt | AG50: Pinus Hybrids | AK50: 42 | AL50: 0 | AN50: 0 | AO50: =IF(AK50=Y25,AL50-AL49,"") ->  | AQ50: Queensland | AR50: Southern QLD | AS50: 40 | AT50: Duplex Woodland | AW50: Mixed species (Environmental Plantings) | AX50: Hoop Pine | AY50: Lemon-scented Gum | AZ50: Western White Gum | BA50: Blackbutt | BB50: Pinus Hybrids | BF50: 42 | BG50: 0 | BI50: 0 | BJ50: =IF(BF50=AT25,BG50-BG49,"") ->  | BL50: Queensland | BM50: Southern QLD | BN50: 40 | BO50: Duplex Woodland | BR50: Mixed species (Environmental Plantings) | BS50: Hoop Pine | BT50: Lemon-scented Gum | BU50: Western White Gum | BV50: Blackbutt | BW50: Pinus Hybrids | CA50: 42 | CB50: 0 | CD50: 0 | CE50: =IF(CA50=BO25,CB50-CB49,"") -> 
P51: 43 | Q51: 0 | S51: 0 | T51: =IF(P51=D25,Q51-Q50,"") ->  | AK51: 43 | AL51: 0 | AN51: 0 | AO51: =IF(AK51=Y25,AL51-AL50,"") ->  | BF51: 43 | BG51: 0 | BI51: 0 | BJ51: =IF(BF51=AT25,BG51-BG50,"") ->  | CA51: 43 | CB51: 0 | CD51: 0 | CE51: =IF(CA51=BO25,CB51-CB50,"") -> 
P52: 44 | Q52: 0 | S52: 0 | T52: =IF(P52=D25,Q52-Q51,"") ->  | AK52: 44 | AL52: 0 | AN52: 0 | AO52: =IF(AK52=Y25,AL52-AL51,"") ->  | BF52: 44 | BG52: 0 | BI52: 0 | BJ52: =IF(BF52=AT25,BG52-BG51,"") ->  | CA52: 44 | CB52: 0 | CD52: 0 | CE52: =IF(CA52=BO25,CB52-CB51,"") -> 
P53: 45 | Q53: 0 | S53: 0 | T53: =IF(P53=D25,Q53-Q52,"") ->  | AK53: 45 | AL53: 0 | AN53: 0 | AO53: =IF(AK53=Y25,AL53-AL52,"") ->  | BF53: 45 | BG53: 0 | BI53: 0 | BJ53: =IF(BF53=AT25,BG53-BG52,"") ->  | CA53: 45 | CB53: 0 | CD53: 0 | CE53: =IF(CA53=BO25,CB53-CB52,"") -> 
P54: 46 | Q54: 0 | S54: 0 | T54: =IF(P54=D25,Q54-Q53,"") ->  | AK54: 46 | AL54: 0 | AN54: 0 | AO54: =IF(AK54=Y25,AL54-AL53,"") ->  | BF54: 46 | BG54: 0 | BI54: 0 | BJ54: =IF(BF54=AT25,BG54-BG53,"") ->  | CA54: 46 | CB54: 0 | CD54: 0 | CE54: =IF(CA54=BO25,CB54-CB53,"") -> 
P55: 47 | Q55: 0 | S55: 0 | T55: =IF(P55=D25,Q55-Q54,"") ->  | AK55: 47 | AL55: 0 | AN55: 0 | AO55: =IF(AK55=Y25,AL55-AL54,"") ->  | BF55: 47 | BG55: 0 | BI55: 0 | BJ55: =IF(BF55=AT25,BG55-BG54,"") ->  | CA55: 47 | CB55: 0 | CD55: 0 | CE55: =IF(CA55=BO25,CB55-CB54,"") -> 
P56: 48 | Q56: 0 | S56: 0 | T56: =IF(P56=D25,Q56-Q55,"") ->  | AK56: 48 | AL56: 0 | AN56: 0 | AO56: =IF(AK56=Y25,AL56-AL55,"") ->  | BF56: 48 | BG56: 0 | BI56: 0 | BJ56: =IF(BF56=AT25,BG56-BG55,"") ->  | CA56: 48 | CB56: 0 | CD56: 0 | CE56: =IF(CA56=BO25,CB56-CB55,"") -> 
P57: 49 | Q57: 0 | S57: 0 | T57: =IF(P57=D25,Q57-Q56,"") ->  | AK57: 49 | AL57: 0 | AN57: 0 | AO57: =IF(AK57=Y25,AL57-AL56,"") ->  | BF57: 49 | BG57: 0 | BI57: 0 | BJ57: =IF(BF57=AT25,BG57-BG56,"") ->  | CA57: 49 | CB57: 0 | CD57: 0 | CE57: =IF(CA57=BO25,CB57-CB56,"") -> 
P58: 50 | Q58: 0 | S58: 0 | T58: =IF(P58=D25,Q58-Q57,"") ->  | AK58: 50 | AL58: 0 | AN58: 0 | AO58: =IF(AK58=Y25,AL58-AL57,"") ->  | BF58: 50 | BG58: 0 | BI58: 0 | BJ58: =IF(BF58=AT25,BG58-BG57,"") ->  | CA58: 50 | CB58: 0 | CD58: 0 | CE58: =IF(CA58=BO25,CB58-CB57,"") -> 
P59: 51 | Q59: 0 | S59: 0 | T59: =IF(P59=D25,Q59-Q58,"") ->  | AK59: 51 | AL59: 0 | AN59: 0 | AO59: =IF(AK59=Y25,AL59-AL58,"") ->  | BF59: 51 | BG59: 0 | BI59: 0 | BJ59: =IF(BF59=AT25,BG59-BG58,"") ->  | CA59: 51 | CB59: 0 | CD59: 0 | CE59: =IF(CA59=BO25,CB59-CB58,"") -> 
P60: 52 | Q60: 0 | S60: 0 | T60: =IF(P60=D25,Q60-Q59,"") ->  | AK60: 52 | AL60: 0 | AN60: 0 | AO60: =IF(AK60=Y25,AL60-AL59,"") ->  | BF60: 52 | BG60: 0 | BI60: 0 | BJ60: =IF(BF60=AT25,BG60-BG59,"") ->  | CA60: 52 | CB60: 0 | CD60: 0 | CE60: =IF(CA60=BO25,CB60-CB59,"") -> 
P61: 53 | Q61: 0 | S61: 0 | T61: =IF(P61=D25,Q61-Q60,"") ->  | AK61: 53 | AL61: 0 | AN61: 0 | AO61: =IF(AK61=Y25,AL61-AL60,"") ->  | BF61: 53 | BG61: 0 | BI61: 0 | BJ61: =IF(BF61=AT25,BG61-BG60,"") ->  | CA61: 53 | CB61: 0 | CD61: 0 | CE61: =IF(CA61=BO25,CB61-CB60,"") -> 
P62: 54 | Q62: 0 | S62: 0 | T62: =IF(P62=D25,Q62-Q61,"") ->  | AK62: 54 | AL62: 0 | AN62: 0 | AO62: =IF(AK62=Y25,AL62-AL61,"") ->  | BF62: 54 | BG62: 0 | BI62: 0 | BJ62: =IF(BF62=AT25,BG62-BG61,"") ->  | CA62: 54 | CB62: 0 | CD62: 0 | CE62: =IF(CA62=BO25,CB62-CB61,"") -> 
P63: 55 | Q63: 0 | S63: 0 | T63: =IF(P63=D25,Q63-Q62,"") ->  | AK63: 55 | AL63: 0 | AN63: 0 | AO63: =IF(AK63=Y25,AL63-AL62,"") ->  | BF63: 55 | BG63: 0 | BI63: 0 | BJ63: =IF(BF63=AT25,BG63-BG62,"") ->  | CA63: 55 | CB63: 0 | CD63: 0 | CE63: =IF(CA63=BO25,CB63-CB62,"") -> 
P64: 56 | Q64: 0 | S64: 0 | T64: =IF(P64=D25,Q64-Q63,"") ->  | AK64: 56 | AL64: 0 | AN64: 0 | AO64: =IF(AK64=Y25,AL64-AL63,"") ->  | BF64: 56 | BG64: 0 | BI64: 0 | BJ64: =IF(BF64=AT25,BG64-BG63,"") ->  | CA64: 56 | CB64: 0 | CD64: 0 | CE64: =IF(CA64=BO25,CB64-CB63,"") -> 
P65: 57 | Q65: 0 | S65: 0 | T65: =IF(P65=D25,Q65-Q64,"") ->  | AK65: 57 | AL65: 0 | AN65: 0 | AO65: =IF(AK65=Y25,AL65-AL64,"") ->  | BF65: 57 | BG65: 0 | BI65: 0 | BJ65: =IF(BF65=AT25,BG65-BG64,"") ->  | CA65: 57 | CB65: 0 | CD65: 0 | CE65: =IF(CA65=BO25,CB65-CB64,"") -> 
P66: 58 | Q66: 0 | S66: 0 | T66: =IF(P66=D25,Q66-Q65,"") ->  | AK66: 58 | AL66: 0 | AN66: 0 | AO66: =IF(AK66=Y25,AL66-AL65,"") ->  | BF66: 58 | BG66: 0 | BI66: 0 | BJ66: =IF(BF66=AT25,BG66-BG65,"") ->  | CA66: 58 | CB66: 0 | CD66: 0 | CE66: =IF(CA66=BO25,CB66-CB65,"") -> 
P67: 59 | Q67: 0 | S67: 0 | T67: =IF(P67=D25,Q67-Q66,"") ->  | AK67: 59 | AL67: 0 | AN67: 0 | AO67: =IF(AK67=Y25,AL67-AL66,"") ->  | BF67: 59 | BG67: 0 | BI67: 0 | BJ67: =IF(BF67=AT25,BG67-BG66,"") ->  | CA67: 59 | CB67: 0 | CD67: 0 | CE67: =IF(CA67=BO25,CB67-CB66,"") -> 
P68: 60 | Q68: 0 | S68: 0 | T68: =IF(P68=D25,Q68-Q67,"") ->  | AK68: 60 | AL68: 0 | AN68: 0 | AO68: =IF(AK68=Y25,AL68-AL67,"") ->  | BF68: 60 | BG68: 0 | BI68: 0 | BJ68: =IF(BF68=AT25,BG68-BG67,"") ->  | CA68: 60 | CB68: 0 | CD68: 0 | CE68: =IF(CA68=BO25,CB68-CB67,"") -> 
P69: 61 | Q69: 0 | S69: 0 | T69: =IF(P69=D25,Q69-Q68,"") ->  | AK69: 61 | AL69: 0 | AN69: 0 | AO69: =IF(AK69=Y25,AL69-AL68,"") ->  | BF69: 61 | BG69: 0 | BI69: 0 | BJ69: =IF(BF69=AT25,BG69-BG68,"") ->  | CA69: 61 | CB69: 0 | CD69: 0 | CE69: =IF(CA69=BO25,CB69-CB68,"") -> 
P70: 62 | Q70: 0 | S70: 0 | T70: =IF(P70=D25,Q70-Q69,"") ->  | AK70: 62 | AL70: 0 | AN70: 0 | AO70: =IF(AK70=Y25,AL70-AL69,"") ->  | BF70: 62 | BG70: 0 | BI70: 0 | BJ70: =IF(BF70=AT25,BG70-BG69,"") ->  | CA70: 62 | CB70: 0 | CD70: 0 | CE70: =IF(CA70=BO25,CB70-CB69,"") -> 
P71: 63 | Q71: 0 | S71: 0 | T71: =IF(P71=D25,Q71-Q70,"") ->  | AK71: 63 | AL71: 0 | AN71: 0 | AO71: =IF(AK71=Y25,AL71-AL70,"") ->  | BF71: 63 | BG71: 0 | BI71: 0 | BJ71: =IF(BF71=AT25,BG71-BG70,"") ->  | CA71: 63 | CB71: 0 | CD71: 0 | CE71: =IF(CA71=BO25,CB71-CB70,"") -> 
P72: 64 | Q72: 0 | S72: 0 | T72: =IF(P72=D25,Q72-Q71,"") ->  | AK72: 64 | AL72: 0 | AN72: 0 | AO72: =IF(AK72=Y25,AL72-AL71,"") ->  | BF72: 64 | BG72: 0 | BI72: 0 | BJ72: =IF(BF72=AT25,BG72-BG71,"") ->  | CA72: 64 | CB72: 0 | CD72: 0 | CE72: =IF(CA72=BO25,CB72-CB71,"") -> 
P73: 65 | Q73: 0 | S73: 0 | T73: =IF(P73=D25,Q73-Q72,"") ->  | AK73: 65 | AL73: 0 | AN73: 0 | AO73: =IF(AK73=Y25,AL73-AL72,"") ->  | BF73: 65 | BG73: 0 | BI73: 0 | BJ73: =IF(BF73=AT25,BG73-BG72,"") ->  | CA73: 65 | CB73: 0 | CD73: 0 | CE73: =IF(CA73=BO25,CB73-CB72,"") -> 
P74: 66 | Q74: =IF($E$27>0,HLOOKUP($D$22,$B$116:$UI$216,P74+1,FALSE),0) -> 0 | S74: =Q74-Q73 -> 0 | T74: =IF(P74=D25,Q74-Q73,"") ->  | AK74: 66 | AL74: =IF($Z$27>0,HLOOKUP($Y$22,$B$116:$UI$216,AK74+1,FALSE),0) -> 0 | AN74: =AL74-AL73 -> 0 | AO74: =IF(AK74=Y25,AL74-AL73,"") ->  | BF74: 66 | BG74: =IF($AU$27>0,HLOOKUP($AT$22,$B$116:$UI$216,BF74+1,FALSE),0) -> 0 | BI74: =BG74-BG73 -> 0 | BJ74: =IF(BF74=AT25,BG74-BG73,"") ->  | CA74: 66 | CB74: =IF($BP$27>0,HLOOKUP($BO$22,$B$116:$UI$216,CA74+1,FALSE),0) -> 0 | CD74: =CB74-CB73 -> 0 | CE74: =IF(CA74=BO25,CB74-CB73,"") -> 
P75: 67 | Q75: 0 | S75: 0 | T75: =IF(P75=D25,Q75-Q74,"") ->  | AK75: 67 | AL75: 0 | AN75: 0 | AO75: =IF(AK75=Y25,AL75-AL74,"") ->  | BF75: 67 | BG75: 0 | BI75: 0 | BJ75: =IF(BF75=AT25,BG75-BG74,"") ->  | CA75: 67 | CB75: 0 | CD75: 0 | CE75: =IF(CA75=BO25,CB75-CB74,"") -> 
P76: 68 | Q76: 0 | S76: 0 | T76: =IF(P76=D25,Q76-Q75,"") ->  | AK76: 68 | AL76: 0 | AN76: 0 | AO76: =IF(AK76=Y25,AL76-AL75,"") ->  | BF76: 68 | BG76: 0 | BI76: 0 | BJ76: =IF(BF76=AT25,BG76-BG75,"") ->  | CA76: 68 | CB76: 0 | CD76: 0 | CE76: =IF(CA76=BO25,CB76-CB75,"") -> 
P77: 69 | Q77: 0 | S77: 0 | T77: =IF(P77=D25,Q77-Q76,"") ->  | AK77: 69 | AL77: 0 | AN77: 0 | AO77: =IF(AK77=Y25,AL77-AL76,"") ->  | BF77: 69 | BG77: 0 | BI77: 0 | BJ77: =IF(BF77=AT25,BG77-BG76,"") ->  | CA77: 69 | CB77: 0 | CD77: 0 | CE77: =IF(CA77=BO25,CB77-CB76,"") -> 
P78: 70 | Q78: 0 | S78: 0 | T78: =IF(P78=D25,Q78-Q77,"") ->  | AK78: 70 | AL78: 0 | AN78: 0 | AO78: =IF(AK78=Y25,AL78-AL77,"") ->  | BF78: 70 | BG78: 0 | BI78: 0 | BJ78: =IF(BF78=AT25,BG78-BG77,"") ->  | CA78: 70 | CB78: 0 | CD78: 0 | CE78: =IF(CA78=BO25,CB78-CB77,"") -> 
P79: 71 | Q79: 0 | S79: 0 | T79: =IF(P79=D25,Q79-Q78,"") ->  | AK79: 71 | AL79: 0 | AN79: 0 | AO79: =IF(AK79=Y25,AL79-AL78,"") ->  | BF79: 71 | BG79: 0 | BI79: 0 | BJ79: =IF(BF79=AT25,BG79-BG78,"") ->  | CA79: 71 | CB79: 0 | CD79: 0 | CE79: =IF(CA79=BO25,CB79-CB78,"") -> 
P80: 72 | Q80: 0 | S80: 0 | T80: =IF(P80=D25,Q80-Q79,"") ->  | AK80: 72 | AL80: 0 | AN80: 0 | AO80: =IF(AK80=Y25,AL80-AL79,"") ->  | BF80: 72 | BG80: 0 | BI80: 0 | BJ80: =IF(BF80=AT25,BG80-BG79,"") ->  | CA80: 72 | CB80: 0 | CD80: 0 | CE80: =IF(CA80=BO25,CB80-CB79,"") -> 
P81: 73 | Q81: 0 | S81: 0 | T81: =IF(P81=D25,Q81-Q80,"") ->  | AK81: 73 | AL81: 0 | AN81: 0 | AO81: =IF(AK81=Y25,AL81-AL80,"") ->  | BF81: 73 | BG81: 0 | BI81: 0 | BJ81: =IF(BF81=AT25,BG81-BG80,"") ->  | CA81: 73 | CB81: 0 | CD81: 0 | CE81: =IF(CA81=BO25,CB81-CB80,"") -> 
P82: 74 | Q82: 0 | S82: 0 | T82: =IF(P82=D25,Q82-Q81,"") ->  | AK82: 74 | AL82: 0 | AN82: 0 | AO82: =IF(AK82=Y25,AL82-AL81,"") ->  | BF82: 74 | BG82: 0 | BI82: 0 | BJ82: =IF(BF82=AT25,BG82-BG81,"") ->  | CA82: 74 | CB82: 0 | CD82: 0 | CE82: =IF(CA82=BO25,CB82-CB81,"") -> 
P83: 75 | Q83: 0 | S83: 0 | T83: =IF(P83=D25,Q83-Q82,"") ->  | AK83: 75 | AL83: 0 | AN83: 0 | AO83: =IF(AK83=Y25,AL83-AL82,"") ->  | BF83: 75 | BG83: 0 | BI83: 0 | BJ83: =IF(BF83=AT25,BG83-BG82,"") ->  | CA83: 75 | CB83: 0 | CD83: 0 | CE83: =IF(CA83=BO25,CB83-CB82,"") -> 
P84: 76 | Q84: 0 | S84: 0 | T84: =IF(P84=D25,Q84-Q83,"") ->  | AK84: 76 | AL84: 0 | AN84: 0 | AO84: =IF(AK84=Y25,AL84-AL83,"") ->  | BF84: 76 | BG84: 0 | BI84: 0 | BJ84: =IF(BF84=AT25,BG84-BG83,"") ->  | CA84: 76 | CB84: 0 | CD84: 0 | CE84: =IF(CA84=BO25,CB84-CB83,"") -> 
P85: 77 | Q85: 0 | S85: 0 | T85: =IF(P85=D25,Q85-Q84,"") ->  | AK85: 77 | AL85: 0 | AN85: 0 | AO85: =IF(AK85=Y25,AL85-AL84,"") ->  | BF85: 77 | BG85: 0 | BI85: 0 | BJ85: =IF(BF85=AT25,BG85-BG84,"") ->  | CA85: 77 | CB85: 0 | CD85: 0 | CE85: =IF(CA85=BO25,CB85-CB84,"") -> 
P86: 78 | Q86: 0 | S86: 0 | T86: =IF(P86=D25,Q86-Q85,"") ->  | AK86: 78 | AL86: 0 | AN86: 0 | AO86: =IF(AK86=Y25,AL86-AL85,"") ->  | BF86: 78 | BG86: 0 | BI86: 0 | BJ86: =IF(BF86=AT25,BG86-BG85,"") ->  | CA86: 78 | CB86: 0 | CD86: 0 | CE86: =IF(CA86=BO25,CB86-CB85,"") -> 
P87: 79 | Q87: 0 | S87: 0 | T87: =IF(P87=D25,Q87-Q86,"") ->  | AK87: 79 | AL87: 0 | AN87: 0 | AO87: =IF(AK87=Y25,AL87-AL86,"") ->  | BF87: 79 | BG87: 0 | BI87: 0 | BJ87: =IF(BF87=AT25,BG87-BG86,"") ->  | CA87: 79 | CB87: 0 | CD87: 0 | CE87: =IF(CA87=BO25,CB87-CB86,"") -> 
P88: 80 | Q88: 0 | S88: 0 | T88: =IF(P88=D25,Q88-Q87,"") ->  | AK88: 80 | AL88: 0 | AN88: 0 | AO88: =IF(AK88=Y25,AL88-AL87,"") ->  | BF88: 80 | BG88: 0 | BI88: 0 | BJ88: =IF(BF88=AT25,BG88-BG87,"") ->  | CA88: 80 | CB88: 0 | CD88: 0 | CE88: =IF(CA88=BO25,CB88-CB87,"") -> 
P89: 81 | Q89: 0 | S89: 0 | T89: =IF(P89=D25,Q89-Q88,"") ->  | AK89: 81 | AL89: 0 | AN89: 0 | AO89: =IF(AK89=Y25,AL89-AL88,"") ->  | BF89: 81 | BG89: 0 | BI89: 0 | BJ89: =IF(BF89=AT25,BG89-BG88,"") ->  | CA89: 81 | CB89: 0 | CD89: 0 | CE89: =IF(CA89=BO25,CB89-CB88,"") -> 
P90: 82 | Q90: 0 | S90: 0 | T90: =IF(P90=D25,Q90-Q89,"") ->  | AK90: 82 | AL90: 0 | AN90: 0 | AO90: =IF(AK90=Y25,AL90-AL89,"") ->  | BF90: 82 | BG90: 0 | BI90: 0 | BJ90: =IF(BF90=AT25,BG90-BG89,"") ->  | CA90: 82 | CB90: 0 | CD90: 0 | CE90: =IF(CA90=BO25,CB90-CB89,"") -> 
P91: 83 | Q91: 0 | S91: 0 | T91: =IF(P91=D25,Q91-Q90,"") ->  | AK91: 83 | AL91: 0 | AN91: 0 | AO91: =IF(AK91=Y25,AL91-AL90,"") ->  | BF91: 83 | BG91: 0 | BI91: 0 | BJ91: =IF(BF91=AT25,BG91-BG90,"") ->  | CA91: 83 | CB91: 0 | CD91: 0 | CE91: =IF(CA91=BO25,CB91-CB90,"") -> 
P92: 84 | Q92: 0 | S92: 0 | T92: =IF(P92=D25,Q92-Q91,"") ->  | AK92: 84 | AL92: 0 | AN92: 0 | AO92: =IF(AK92=Y25,AL92-AL91,"") ->  | BF92: 84 | BG92: 0 | BI92: 0 | BJ92: =IF(BF92=AT25,BG92-BG91,"") ->  | CA92: 84 | CB92: 0 | CD92: 0 | CE92: =IF(CA92=BO25,CB92-CB91,"") -> 
P93: 85 | Q93: 0 | S93: 0 | T93: =IF(P93=D25,Q93-Q92,"") ->  | AK93: 85 | AL93: 0 | AN93: 0 | AO93: =IF(AK93=Y25,AL93-AL92,"") ->  | BF93: 85 | BG93: 0 | BI93: 0 | BJ93: =IF(BF93=AT25,BG93-BG92,"") ->  | CA93: 85 | CB93: 0 | CD93: 0 | CE93: =IF(CA93=BO25,CB93-CB92,"") -> 
P94: 86 | Q94: 0 | S94: 0 | T94: =IF(P94=D25,Q94-Q93,"") ->  | AK94: 86 | AL94: 0 | AN94: 0 | AO94: =IF(AK94=Y25,AL94-AL93,"") ->  | BF94: 86 | BG94: 0 | BI94: 0 | BJ94: =IF(BF94=AT25,BG94-BG93,"") ->  | CA94: 86 | CB94: 0 | CD94: 0 | CE94: =IF(CA94=BO25,CB94-CB93,"") -> 
P95: 87 | Q95: 0 | S95: 0 | T95: =IF(P95=D25,Q95-Q94,"") ->  | AK95: 87 | AL95: 0 | AN95: 0 | AO95: =IF(AK95=Y25,AL95-AL94,"") ->  | BF95: 87 | BG95: 0 | BI95: 0 | BJ95: =IF(BF95=AT25,BG95-BG94,"") ->  | CA95: 87 | CB95: 0 | CD95: 0 | CE95: =IF(CA95=BO25,CB95-CB94,"") -> 
P96: 88 | Q96: 0 | S96: 0 | T96: =IF(P96=D25,Q96-Q95,"") ->  | AK96: 88 | AL96: 0 | AN96: 0 | AO96: =IF(AK96=Y25,AL96-AL95,"") ->  | BF96: 88 | BG96: 0 | BI96: 0 | BJ96: =IF(BF96=AT25,BG96-BG95,"") ->  | CA96: 88 | CB96: 0 | CD96: 0 | CE96: =IF(CA96=BO25,CB96-CB95,"") -> 
P97: 89 | Q97: 0 | S97: 0 | T97: =IF(P97=D25,Q97-Q96,"") ->  | AK97: 89 | AL97: 0 | AN97: 0 | AO97: =IF(AK97=Y25,AL97-AL96,"") ->  | BF97: 89 | BG97: 0 | BI97: 0 | BJ97: =IF(BF97=AT25,BG97-BG96,"") ->  | CA97: 89 | CB97: 0 | CD97: 0 | CE97: =IF(CA97=BO25,CB97-CB96,"") -> 
P98: 90 | Q98: 0 | S98: 0 | T98: =IF(P98=D25,Q98-Q97,"") ->  | AK98: 90 | AL98: 0 | AN98: 0 | AO98: =IF(AK98=Y25,AL98-AL97,"") ->  | BF98: 90 | BG98: 0 | BI98: 0 | BJ98: =IF(BF98=AT25,BG98-BG97,"") ->  | CA98: 90 | CB98: 0 | CD98: 0 | CE98: =IF(CA98=BO25,CB98-CB97,"") -> 
P99: 91 | Q99: 0 | S99: 0 | T99: =IF(P99=D25,Q99-Q98,"") ->  | AK99: 91 | AL99: 0 | AN99: 0 | AO99: =IF(AK99=Y25,AL99-AL98,"") ->  | BF99: 91 | BG99: 0 | BI99: 0 | BJ99: =IF(BF99=AT25,BG99-BG98,"") ->  | CA99: 91 | CB99: 0 | CD99: 0 | CE99: =IF(CA99=BO25,CB99-CB98,"") -> 
P100: 92 | Q100: 0 | S100: 0 | T100: =IF(P100=D25,Q100-Q99,"") ->  | AK100: 92 | AL100: 0 | AN100: 0 | AO100: =IF(AK100=Y25,AL100-AL99,"") ->  | BF100: 92 | BG100: 0 | BI100: 0 | BJ100: =IF(BF100=AT25,BG100-BG99,"") ->  | CA100: 92 | CB100: 0 | CD100: 0 | CE100: =IF(CA100=BO25,CB100-CB99,"") -> 
P101: 93 | Q101: 0 | S101: 0 | T101: =IF(P101=D25,Q101-Q100,"") ->  | AK101: 93 | AL101: 0 | AN101: 0 | AO101: =IF(AK101=Y25,AL101-AL100,"") ->  | BF101: 93 | BG101: 0 | BI101: 0 | BJ101: =IF(BF101=AT25,BG101-BG100,"") ->  | CA101: 93 | CB101: 0 | CD101: 0 | CE101: =IF(CA101=BO25,CB101-CB100,"") -> 
P102: 94 | Q102: 0 | S102: 0 | T102: =IF(P102=D25,Q102-Q101,"") ->  | AK102: 94 | AL102: 0 | AN102: 0 | AO102: =IF(AK102=Y25,AL102-AL101,"") ->  | BF102: 94 | BG102: 0 | BI102: 0 | BJ102: =IF(BF102=AT25,BG102-BG101,"") ->  | CA102: 94 | CB102: 0 | CD102: 0 | CE102: =IF(CA102=BO25,CB102-CB101,"") -> 
P103: 95 | Q103: 0 | S103: 0 | T103: =IF(P103=D25,Q103-Q102,"") ->  | AK103: 95 | AL103: 0 | AN103: 0 | AO103: =IF(AK103=Y25,AL103-AL102,"") ->  | BF103: 95 | BG103: 0 | BI103: 0 | BJ103: =IF(BF103=AT25,BG103-BG102,"") ->  | CA103: 95 | CB103: 0 | CD103: 0 | CE103: =IF(CA103=BO25,CB103-CB102,"") -> 
P104: 96 | Q104: 0 | S104: 0 | T104: =IF(P104=D25,Q104-Q103,"") ->  | AK104: 96 | AL104: 0 | AN104: 0 | AO104: =IF(AK104=Y25,AL104-AL103,"") ->  | BF104: 96 | BG104: 0 | BI104: 0 | BJ104: =IF(BF104=AT25,BG104-BG103,"") ->  | CA104: 96 | CB104: 0 | CD104: 0 | CE104: =IF(CA104=BO25,CB104-CB103,"") -> 
P105: 97 | Q105: 0 | S105: 0 | T105: =IF(P105=D25,Q105-Q104,"") ->  | AK105: 97 | AL105: 0 | AN105: 0 | AO105: =IF(AK105=Y25,AL105-AL104,"") ->  | BF105: 97 | BG105: 0 | BI105: 0 | BJ105: =IF(BF105=AT25,BG105-BG104,"") ->  | CA105: 97 | CB105: 0 | CD105: 0 | CE105: =IF(CA105=BO25,CB105-CB104,"") -> 
P106: 98 | Q106: 0 | S106: 0 | T106: =IF(P106=D25,Q106-Q105,"") ->  | AK106: 98 | AL106: 0 | AN106: 0 | AO106: =IF(AK106=Y25,AL106-AL105,"") ->  | BF106: 98 | BG106: 0 | BI106: 0 | BJ106: =IF(BF106=AT25,BG106-BG105,"") ->  | CA106: 98 | CB106: 0 | CD106: 0 | CE106: =IF(CA106=BO25,CB106-CB105,"") -> 
P107: 99 | Q107: 0 | S107: 0 | T107: =IF(P107=D25,Q107-Q106,"") ->  | AK107: 99 | AL107: 0 | AN107: 0 | AO107: =IF(AK107=Y25,AL107-AL106,"") ->  | BF107: 99 | BG107: 0 | BI107: 0 | BJ107: =IF(BF107=AT25,BG107-BG106,"") ->  | CA107: 99 | CB107: 0 | CD107: 0 | CE107: =IF(CA107=BO25,CB107-CB106,"") -> 
P108: 100 | Q108: 0 | S108: 0 | T108: =IF(P108=D25,Q108-Q107,"") ->  | AK108: 100 | AL108: 0 | AN108: 0 | AO108: =IF(AK108=Y25,AL108-AL107,"") ->  | BF108: 100 | BG108: 0 | BI108: 0 | BJ108: =IF(BF108=AT25,BG108-BG107,"") ->  | CA108: 100 | CB108: 0 | CD108: 0 | CE108: =IF(CA108=BO25,CB108-CB107,"") -> 
PP110: R35T1S0
A112: FullCAM: Outputs from Plot Simulations
A113: Carbon (tree only) - tonnes/hectare
B114: 1 | C114: 1 | D114: 1 | E114: 1 | F114: 1 | G114: 1 | H114: 1 | I114: 1 | J114: 1 | K114: 1 | L114: 1 | M114: 1 | N114: 2 | O114: 2 | P114: 2 | Q114: 2 | R114: 2 | S114: 2 | T114: 2 | U114: 2 | V114: 2 | W114: 2 | X114: 2 | Y114: 2 | Z114: 3 | AA114: 3 | AB114: 3 | AC114: 3 | AD114: 3 | AE114: 3 | AF114: 3 | AG114: 3 | AH114: 3 | AI114: 3 | AJ114: 3 | AK114: 3 | AL114: 4 | AM114: 4 | AN114: 4 | AO114: 4 | AP114: 4 | AQ114: 4 | AR114: 4 | AS114: 4 | AT114: 4 | AU114: 4 | AV114: 4 | AW114: 4 | AX114: 5 | AY114: 5 | AZ114: 5 | BA114: 5 | BB114: 5 | BC114: 5 | BD114: 5 | BE114: 5 | BF114: 5 | BG114: 5 | BH114: 5 | BI114: 5 | BJ114: 6 | BK114: 6 | BL114: 6 | BM114: 6 | BN114: 6 | BO114: 6 | BP114: 6 | BQ114: 6 | BR114: 6 | BS114: 6 | BT114: 6 | BU114: 6 | BV114: 7 | BW114: 7 | BX114: 7 | BY114: 7 | BZ114: 7 | CA114: 7 | CB114: 7 | CC114: 7 | CD114: 7 | CE114: 7 | CF114: 7 | CG114: 7 | CH114: 8 | CI114: 8 | CJ114: 8 | CK114: 8 | CL114: 8 | CM114: 8 | CN114: 8 | CO114: 8 | CP114: 8 | CQ114: 8 | CR114: 8 | CS114: 8 | CT114: 9 | CU114: 9 | CV114: 9 | CW114: 9 | CX114: 9 | CY114: 9 | CZ114: 9 | DA114: 9 | DB114: 9 | DC114: 9 | DD114: 9 | DE114: 9 | DF114: 10 | DG114: 10 | DH114: 10 | DI114: 10 | DJ114: 10 | DK114: 10 | DL114: 10 | DM114: 10 | DN114: 10 | DO114: 10 | DP114: 10 | DQ114: 10 | DR114: 10 | DS114: 10 | DT114: 10 | DU114: 10 | DV114: 10 | DW114: 10 | DX114: 10 | DY114: 10 | DZ114: 10 | EA114: 10 | EB114: 10 | EC114: 10 | ED114: 11 | EE114: 11 | EF114: 11 | EG114: 11 | EH114: 11 | EI114: 11 | EJ114: 11 | EK114: 11 | EL114: 11 | EM114: 11 | EN114: 11 | EO114: 11 | EP114: 11 | EQ114: 11 | ER114: 12 | ES114: 12 | ET114: 12 | EU114: 12 | EV114: 12 | EW114: 12 | EX114: 12 | EY114: 12 | EZ114: 12 | FA114: 12 | FB114: 12 | FC114: 12 | FD114: 13 | FE114: 13 | FF114: 13 | FG114: 13 | FH114: 13 | FI114: 13 | FJ114: 13 | FK114: 13 | FL114: 13 | FM114: 13 | FN114: 13 | FO114: 13 | FP114: 14 | FQ114: 14 | FR114: 14 | FS114: 14 | FT114: 14 | FU114: 14 | FV114: 14 | FW114: 14 | FX114: 14 | FY114: 14 | FZ114: 14 | GA114: 14 | GB114: 15 | GC114: 15 | GD114: 15 | GE114: 15 | GF114: 15 | GG114: 15 | GH114: 15 | GI114: 15 | GJ114: 15 | GK114: 15 | GL114: 15 | GM114: 15 | GN114: 16 | GO114: 16 | GP114: 16 | GQ114: 16 | GR114: 16 | GS114: 16 | GT114: 16 | GU114: 16 | GV114: 16 | GW114: 16 | GX114: 16 | GY114: 16 | GZ114: 17 | HA114: 17 | HB114: 17 | HC114: 17 | HD114: 17 | HE114: 17 | HF114: 17 | HG114: 17 | HH114: 17 | HI114: 17 | HJ114: 17 | HK114: 17 | HL114: 18 | HM114: 18 | HN114: 18 | HO114: 18 | HP114: 18 | HQ114: 18 | HR114: 18 | HS114: 18 | HT114: 18 | HU114: 18 | HV114: 18 | HW114: 18 | HX114: 19 | HY114: 19 | HZ114: 19 | IA114: 19 | IB114: 19 | IC114: 19 | ID114: 19 | IE114: 19 | IF114: 19 | IG114: 19 | IH114: 19 | II114: 19 | IJ114: 20 | IK114: 20 | IL114: 20 | IM114: 20 | IN114: 20 | IO114: 20 | IP114: 20 | IQ114: 20 | IR114: 20 | IS114: 20 | IT114: 20 | IU114: 20 | IV114: 21 | IW114: 21 | IX114: 21 | IY114: 21 | IZ114: 21 | JA114: 21 | JB114: 21 | JC114: 21 | JD114: 21 | JE114: 21 | JF114: 21 | JG114: 21 | JH114: 22 | JI114: 22 | JJ114: 22 | JK114: 22 | JL114: 22 | JM114: 22 | JN114: 22 | JO114: 22 | JP114: 22 | JQ114: 22 | JR114: 22 | JS114: 22 | JT114: 23 | JU114: 23 | JV114: 23 | JW114: 23 | JX114: 23 | JY114: 23 | JZ114: 23 | KA114: 23 | KB114: 23 | KC114: 23 | KD114: 23 | KE114: 23 | KF114: 24 | KG114: 24 | KH114: 24 | KI114: 24 | KJ114: 24 | KK114: 24 | KL114: 24 | KM114: 24 | KN114: 24 | KO114: 24 | KP114: 24 | KQ114: 24 | KR114: 25 | KS114: 25 | KT114: 25 | KU114: 25 | KV114: 25 | KW114: 25 | KX114: 25 | KY114: 25 | KZ114: 25 | LA114: 25 | LB114: 25 | LC114: 25 | LD114: 26 | LE114: 26 | LF114: 26 | LG114: 26 | LH114: 26 | LI114: 26 | LJ114: 26 | LK114: 26 | LL114: 26 | LM114: 26 | LN114: 26 | LO114: 26 | LP114: 27 | LQ114: 27 | LR114: 27 | LS114: 27 | LT114: 27 | LU114: 27 | LV114: 27 | LW114: 27 | LX114: 27 | LY114: 27 | LZ114: 27 | MA114: 27 | MB114: 28 | MC114: 28 | MD114: 28 | ME114: 28 | MF114: 28 | MG114: 28 | MH114: 28 | MI114: 28 | MJ114: 28 | MK114: 28 | ML114: 28 | MM114: 28 | MN114: 29 | MO114: 29 | MP114: 29 | MQ114: 29 | MR114: 29 | MS114: 29 | MT114: 29 | MU114: 29 | MV114: 29 | MW114: 29 | MX114: 29 | MY114: 29 | MZ114: 30 | NA114: 30 | NB114: 30 | NC114: 30 | ND114: 30 | NE114: 30 | NF114: 30 | NG114: 30 | NH114: 30 | NI114: 30 | NJ114: 30 | NK114: 30 | NL114: 31 | NM114: 31 | NN114: 31 | NO114: 31 | NP114: 31 | NQ114: 31 | NR114: 31 | NS114: 31 | NT114: 31 | NU114: 31 | NV114: 31 | NW114: 31 | NX114: 32 | NY114: 32 | NZ114: 32 | OA114: 32 | OB114: 32 | OC114: 32 | OD114: 32 | OE114: 32 | OF114: 32 | OG114: 32 | OH114: 32 | OI114: 32 | OJ114: 33 | OK114: 33 | OL114: 33 | OM114: 33 | ON114: 33 | OO114: 33 | OP114: 33 | OQ114: 33 | OR114: 33 | OS114: 33 | OT114: 33 | OU114: 33 | OV114: 34 | OW114: 34 | OX114: 34 | OY114: 34 | OZ114: 34 | PA114: 34 | PB114: 34 | PC114: 34 | PD114: 34 | PE114: 34 | PF114: 34 | PG114: 34 | PH114: 35 | PI114: 35 | PJ114: 35 | PK114: 35 | PL114: 35 | PM114: 35 | PN114: 35 | PO114: 35 | PP114: 35 | PQ114: 35 | PR114: 35 | PS114: 35 | PT114: 36 | PU114: 36 | PV114: 36 | PW114: 36 | PX114: 36 | PY114: 36 | PZ114: 36 | QA114: 36 | QB114: 36 | QC114: 36 | QD114: 36 | QE114: 36 | QF114: 37 | QG114: 37 | QH114: 37 | QI114: 37 | QJ114: 37 | QK114: 37 | QL114: 37 | QM114: 37 | QN114: 37 | QO114: 37 | QP114: 37 | QQ114: 37 | QR114: 38 | QS114: 38 | QT114: 38 | QU114: 38 | QV114: 38 | QW114: 38 | QX114: 38 | QY114: 38 | QZ114: 38 | RA114: 38 | RB114: 38 | RC114: 38 | RD114: 39 | RE114: 39 | RF114: 39 | RG114: 39 | RH114: 39 | RI114: 39 | RJ114: 39 | RK114: 39 | RL114: 39 | RM114: 39 | RN114: 39 | RO114: 39 | RP114: 40 | RQ114: 40 | RR114: 40 | RS114: 40 | RT114: 40 | RU114: 40 | RV114: 40 | RW114: 40 | RX114: 40 | RY114: 40 | RZ114: 40 | SA114: 40 | SB114: 41 | SC114: 41 | SD114: 41 | SE114: 41 | SF114: 41 | SG114: 41 | SH114: 41 | SI114: 41 | SJ114: 41 | SK114: 41 | SL114: 41 | SM114: 41 | SN114: 42 | SO114: 42 | SP114: 42 | SQ114: 42 | SR114: 42 | SS114: 42 | ST114: 42 | SU114: 42 | SV114: 42 | SW114: 42 | SX114: 42 | SY114: 42 | SZ114: 43 | TA114: 43 | TB114: 43 | TC114: 43 | TD114: 43 | TE114: 43 | TF114: 43 | TG114: 43 | TH114: 43 | TI114: 43 | TJ114: 43 | TK114: 43 | TL114: 44 | TM114: 44 | TN114: 44 | TO114: 44 | TP114: 44 | TQ114: 44 | TR114: 44 | TS114: 44 | TT114: 44 | TU114: 44 | TV114: 44 | TW114: 44 | TX114: 45 | TY114: 45
A115: LookUp Ref | B115: WA | C115: WA | D115: WA | E115: WA | F115: WA | G115: WA | H115: WA | I115: WA | J115: WA | K115: WA | L115: WA | M115: WA | N115: WA | O115: WA | P115: WA | Q115: WA | R115: WA | S115: WA | T115: WA | U115: WA | V115: WA | W115: WA | X115: WA | Y115: WA | Z115: WA | AA115: WA | AB115: WA | AC115: WA | AD115: WA | AE115: WA | AF115: WA | AG115: WA | AH115: WA | AI115: WA | AJ115: WA | AK115: WA | AL115: WA | AM115: WA | AN115: WA | AO115: WA | AP115: WA | AQ115: WA | AR115: WA | AS115: WA | AT115: WA | AU115: WA | AV115: WA | AW115: WA | AX115: WA | AY115: WA | AZ115: WA | BA115: WA | BB115: WA | BC115: WA | BD115: WA | BE115: WA | BF115: WA | BG115: WA | BH115: WA | BI115: WA | BJ115: WA | BK115: WA | BL115: WA | BM115: WA | BN115: WA | BO115: WA | BP115: WA | BQ115: WA | BR115: WA | BS115: WA | BT115: WA | BU115: WA | BV115: WA | BW115: WA | BX115: WA | BY115: WA | BZ115: WA | CA115: WA | CB115: WA | CC115: WA | CD115: WA | CE115: WA | CF115: WA | CG115: WA | CH115: WA | CI115: WA | CJ115: WA | CK115: WA | CL115: WA | CM115: WA | CN115: WA | CO115: WA | CP115: WA | CQ115: WA | CR115: WA | CS115: WA | CT115: WA | CU115: WA | CV115: WA | CW115: WA | CX115: WA | CY115: WA | CZ115: WA | DA115: WA | DB115: WA | DC115: WA | DD115: WA | DE115: WA | DF115: NSW | DG115: NSW | DH115: NSW | DI115: NSW | DJ115: NSW | DK115: NSW | DL115: NSW | DM115: NSW | DN115: NSW | DO115: NSW | DP115: NSW | DQ115: NSW | DR115: NSW | DS115: NSW | DT115: NSW | DU115: NSW | DV115: NSW | DW115: NSW | DX115: NSW | DY115: NSW | DZ115: NSW | EA115: NSW | EB115: NSW | EC115: NSW | ED115: NSW | EE115: NSW | EF115: NSW | EG115: NSW | EH115: NSW | EI115: NSW | EJ115: NSW | EK115: NSW | EL115: NSW | EM115: NSW | EN115: NSW | EO115: NSW | EP115: NSW | EQ115: NSW | ER115: NSW | ES115: NSW | ET115: NSW | EU115: NSW | EV115: NSW | EW115: NSW | EX115: NSW | EY115: NSW | EZ115: NSW | FA115: NSW | FB115: NSW | FC115: NSW | FD115: NSW | FE115: NSW | FF115: NSW | FG115: NSW | FH115: NSW | FI115: NSW | FJ115: NSW | FK115: NSW | FL115: NSW | FM115: NSW | FN115: NSW | FO115: NSW | FP115: NSW | FQ115: NSW | FR115: NSW | FS115: NSW | FT115: NSW | FU115: NSW | FV115: NSW | FW115: NSW | FX115: NSW | FY115: NSW | FZ115: NSW | GA115: NSW | GB115: NSW | GC115: NSW | GD115: NSW | GE115: NSW | GF115: NSW | GG115: NSW | GH115: NSW | GI115: NSW | GJ115: NSW | GK115: NSW | GL115: NSW | GM115: NSW | GN115: NSW | GO115: NSW | GP115: NSW | GQ115: NSW | GR115: NSW | GS115: NSW | GT115: NSW | GU115: NSW | GV115: NSW | GW115: NSW | GX115: NSW | GY115: NSW | GZ115: Tas | HA115: Tas | HB115: Tas | HC115: Tas | HD115: Tas | HE115: Tas | HF115: Tas | HG115: Tas | HH115: Tas | HI115: Tas | HJ115: Tas | HK115: Tas | HL115: Tas | HM115: Tas | HN115: Tas | HO115: Tas | HP115: Tas | HQ115: Tas | HR115: Tas | HS115: Tas | HT115: Tas | HU115: Tas | HV115: Tas | HW115: Tas | HX115: Tas | HY115: Tas | HZ115: Tas | IA115: Tas | IB115: Tas | IC115: Tas | ID115: Tas | IE115: Tas | IF115: Tas | IG115: Tas | IH115: Tas | II115: Tas | IJ115: Tas | IK115: Tas | IL115: Tas | IM115: Tas | IN115: Tas | IO115: Tas | IP115: Tas | IQ115: Tas | IR115: Tas | IS115: Tas | IT115: Tas | IU115: Tas | IV115: Tas | IW115: Tas | IX115: Tas | IY115: Tas | IZ115: Tas | JA115: Tas | JB115: Tas | JC115: Tas | JD115: Tas | JE115: Tas | JF115: Tas | JG115: Tas | JH115: Tas | JI115: Tas | JJ115: Tas | JK115: Tas | JL115: Tas | JM115: Tas | JN115: Tas | JO115: Tas | JP115: Tas | JQ115: Tas | JR115: Tas | JS115: Tas | JT115: SA | JU115: SA | JV115: SA | JW115: SA | JX115: SA | JY115: SA | JZ115: SA | KA115: SA | KB115: SA | KC115: SA | KD115: SA | KE115: SA | KF115: SA | KG115: SA | KH115: SA | KI115: SA | KJ115: SA | KK115: SA | KL115: SA | KM115: SA | KN115: SA | KO115: SA | KP115: SA | KQ115: SA | KR115: SA | KS115: SA | KT115: SA | KU115: SA | KV115: SA | KW115: SA | KX115: SA | KY115: SA | KZ115: SA | LA115: SA | LB115: SA | LC115: SA | LD115: SA | LE115: SA | LF115: SA | LG115: SA | LH115: SA | LI115: SA | LJ115: SA | LK115: SA | LL115: SA | LM115: SA | LN115: SA | LO115: SA | LP115: SA | LQ115: SA | LR115: SA | LS115: SA | LT115: SA | LU115: SA | LV115: SA | LW115: SA | LX115: SA | LY115: SA | LZ115: SA | MA115: SA | MB115: Vic | MC115: Vic | MD115: Vic | ME115: Vic | MF115: Vic | MG115: Vic | MH115: Vic | MI115: Vic | MJ115: Vic | MK115: Vic | ML115: Vic | MM115: Vic | MN115: Vic | MO115: Vic | MP115: Vic | MQ115: Vic | MR115: Vic | MS115: Vic | MT115: Vic | MU115: Vic | MV115: Vic | MW115: Vic | MX115: Vic | MY115: Vic | MZ115: Vic | NA115: Vic | NB115: Vic | NC115: Vic | ND115: Vic | NE115: Vic | NF115: Vic | NG115: Vic | NH115: Vic | NI115: Vic | NJ115: Vic | NK115: Vic | NL115: Vic | NM115: Vic | NN115: Vic | NO115: Vic | NP115: Vic | NQ115: Vic | NR115: Vic | NS115: Vic | NT115: Vic | NU115: Vic | NV115: Vic | NW115: Vic | NX115: Vic | NY115: Vic | NZ115: Vic | OA115: Vic | OB115: Vic | OC115: Vic | OD115: Vic | OE115: Vic | OF115: Vic | OG115: Vic | OH115: Vic | OI115: Vic | OJ115: Vic | OK115: Vic | OL115: Vic | OM115: Vic | ON115: Vic | OO115: Vic | OP115: Vic | OQ115: Vic | OR115: Vic | OS115: Vic | OT115: Vic | OU115: Vic | OV115: Vic | OW115: Vic | OX115: Vic | OY115: Vic | OZ115: Vic | PA115: Vic | PB115: Vic | PC115: Vic | PD115: Vic | PE115: Vic | PF115: Vic | PG115: Vic | PH115: Vic | PI115: Vic | PJ115: Vic | PK115: Vic | PL115: Vic | PM115: Vic | PN115: Vic | PO115: Vic | PP115: Vic | PQ115: Vic | PR115: Vic | PS115: Vic | PT115: Qld | PU115: Qld | PV115: Qld | PW115: Qld | PX115: Qld | PY115: Qld | PZ115: Qld | QA115: Qld | QB115: Qld | QC115: Qld | QD115: Qld | QE115: Qld | QF115: Qld | QG115: Qld | QH115: Qld | QI115: Qld | QJ115: Qld | QK115: Qld | QL115: Qld | QM115: Qld | QN115: Qld | QO115: Qld | QP115: Qld | QQ115: Qld | QR115: Qld | QS115: Qld | QT115: Qld | QU115: Qld | QV115: Qld | QW115: Qld | QX115: Qld | QY115: Qld | QZ115: Qld | RA115: Qld | RB115: Qld | RC115: Qld | RD115: Qld | RE115: Qld | RF115: Qld | RG115: Qld | RH115: Qld | RI115: Qld | RJ115: Qld | RK115: Qld | RL115: Qld | RM115: Qld | RN115: Qld | RO115: Qld | RP115: Qld | RQ115: Qld | RR115: Qld | RS115: Qld | RT115: Qld | RU115: Qld | RV115: Qld | RW115: Qld | RX115: Qld | RY115: Qld | RZ115: Qld | SA115: Qld | SB115: Qld | SC115: Qld | SD115: Qld | SE115: Qld | SF115: Qld | SG115: Qld | SH115: Qld | SI115: Qld | SJ115: Qld | SK115: Qld | SL115: Qld | SM115: Qld | SN115: NT | SO115: NT | SP115: NT | SQ115: NT | SR115: NT | SS115: NT | ST115: NT | SU115: NT | SV115: NT | SW115: NT | SX115: NT | SY115: NT | SZ115: NT | TA115: NT | TB115: NT | TC115: NT | TD115: NT | TE115: NT | TF115: NT | TG115: NT | TH115: NT | TI115: NT | TJ115: NT | TK115: NT | TL115: NT | TM115: NT | TN115: NT | TO115: NT | TP115: NT | TQ115: NT | TR115: NT | TS115: NT | TT115: NT | TU115: NT | TV115: NT | TW115: NT | TX115: NT | TY115: NT
A116: Year | B116: R1T1S1 | C116: R1T1S2 | D116: R1T2S1 | E116: R1T2S2 | F116: R1T3S1 | G116: R1T3S2 | H116: R1T4S1 | I116: R1T4S2 | J116: R1T5S1 | K116: R1T5S2 | L116: R1T6S1 | M116: R1T6S2 | N116: R2T1S1 | O116: R2T1S2 | P116: R2T2S1 | Q116: R2T2S2 | R116: R2T3S1 | S116: R2T3S2 | T116: R2T4S1 | U116: R2T4S2 | V116: R2T5S1 | W116: R2T5S2 | X116: R2T6S1 | Y116: R2T6S2 | Z116: R3T1S1 | AA116: R3T1S2 | AB116: R3T2S1 | AC116: R3T2S2 | AD116: R3T3S1 | AE116: R3T3S2 | AF116: R3T4S1 | AG116: R3T4S2 | AH116: R3T5S1 | AI116: R3T5S2 | AJ116: R3T6S1 | AK116: R3T6S2 | AL116: R4T1S1 | AM116: R4T1S2 | AN116: R4T2S1 | AO116: R4T2S2 | AP116: R4T3S1 | AQ116: R4T3S2 | AR116: R4T4S1 | AS116: R4T4S2 | AT116: R4T5S1 | AU116: R4T5S2 | AV116: R4T6S1 | AW116: R4T6S2 | AX116: R5T1S1 | AY116: R5T1S2 | AZ116: R5T2S1 | BA116: R5T2S2 | BB116: R5T3S1 | BC116: R5T3S2 | BD116: R5T4S1 | BE116: R5T4S2 | BF116: R5T5S1 | BG116: R5T5S2 | BH116: R5T6S1 | BI116: R5T6S2 | BJ116: R6T1S1 | BK116: R6T1S2 | BL116: R6T2S1 | BM116: R6T2S2 | BN116: R6T3S1 | BO116: R6T3S2 | BP116: R6T4S1 | BQ116: R6T4S2 | BR116: R6T5S1 | BS116: R6T5S2 | BT116: R6T6S1 | BU116: R6T6S2 | BV116: R7T1S1 | BW116: R7T1S2 | BX116: R7T2S1 | BY116: R7T2S2 | BZ116: R7T3S1 | CA116: R7T3S2 | CB116: R7T4S1 | CC116: R7T4S2 | CD116: R7T5S1 | CE116: R7T5S2 | CF116: R7T6S1 | CG116: R7T6S2 | CH116: R8T1S1 | CI116: R8T1S2 | CJ116: R8T2S1 | CK116: R8T2S2 | CL116: R8T3S1 | CM116: R8T3S2 | CN116: R8T4S1 | CO116: R8T4S2 | CP116: R8T5S1 | CQ116: R8T5S2 | CR116: R8T6S1 | CS116: R8T6S2 | CT116: R9T1S1 | CU116: R9T1S2 | CV116: R9T2S1 | CW116: R9T2S2 | CX116: R9T3S1 | CY116: R9T3S2 | CZ116: R9T4S1 | DA116: R9T4S2 | DB116: R9T5S1 | DC116: R9T5S2 | DD116: R9T6S1 | DE116: R9T6S2 | DF116: R10T1S1 | DG116: R10T1S2 | DH116: R10T1HGS1 | DI116: R10T1HGS2 | DJ116: R10T2S1 | DK116: R10T2S2 | DL116: R10T2HGS1 | DM116: R10T2HGS2 | DN116: R10T3S1 | DO116: R10T3S2 | DP116: R10T3HGS1 | DQ116: R10T3HGS2 | DR116: R10T4S1 | DS116: R10T4S2 | DT116: R10T4HGS1 | DU116: R10T4HGS2 | DV116: R10T5S1 | DW116: R10T5S2 | DX116: R10T5HGS1 | DY116: R10T5HGS2 | DZ116: R10T6S1 | EA116: R10T6S2 | EB116: R10T6HGS1 | EC116: R10T6HGS2 | ED116: R11T1S1 | EE116: R11T1S2 | EF116: R11T1HGS1 | EG116: R11T1HGS2 | EH116: R11T2S1 | EI116: R11T2S2 | EJ116: R11T3S1 | EK116: R11T3S2 | EL116: R11T4S1 | EM116: R11T4S2 | EN116: R11T5S1 | EO116: R11T5S2 | EP116: R11T6S1 | EQ116: R11T6S2 | ER116: R12T1S1 | ES116: R12T1S2 | ET116: R12T2S1 | EU116: R12T2S2 | EV116: R12T3S1 | EW116: R12T3S2 | EX116: R12T4S1 | EY116: R12T4S2 | EZ116: R12T5S1 | FA116: R12T5S2 | FB116: R12T6S1 | FC116: R12T6S2 | FD116: R13T1S1 | FE116: R13T1S2 | FF116: R13T2S1 | FG116: R13T2S2 | FH116: R13T3S1 | FI116: R13T3S2 | FJ116: R13T4S1 | FK116: R13T4S2 | FL116: R13T5S1 | FM116: R13T5S2 | FN116: R13T6S1 | FO116: R13T6S2 | FP116: R14T1S1 | FQ116: R14T1S2 | FR116: R14T2S1 | FS116: R14T2S2 | FT116: R14T3S1 | FU116: R14T3S2 | FV116: R14T4S1 | FW116: R14T4S2 | FX116: R14T5S1 | FY116: R14T5S2 | FZ116: R14T6S1 | GA116: R14T6S2 | GB116: R15T1S1 | GC116: R15T1S2 | GD116: R15T2S1 | GE116: R15T2S2 | GF116: R15T3S1 | GG116: R15T3S2 | GH116: R15T4S1 | GI116: R15T4S2 | GJ116: R15T5S1 | GK116: R15T5S2 | GL116: R15T6S1 | GM116: R15T6S2 | GN116: R16T1S1 | GO116: R16T1S2 | GP116: R16T2S1 | GQ116: R16T2S2 | GR116: R16T3S1 | GS116: R16T3S2 | GT116: R16T4S1 | GU116: R16T4S2 | GV116: R16T5S1 | GW116: R16T5S2 | GX116: R16T6S1 | GY116: R16T6S2 | GZ116: R17T1S1 | HA116: R17T1S2 | HB116: R17T2S1 | HC116: R17T2S2 | HD116: R17T3S1 | HE116: R17T3S2 | HF116: R17T4S1 | HG116: R17T4S2 | HH116: R17T5S1 | HI116: R17T5S2 | HJ116: R17T6S1 | HK116: R17T6S2 | HL116: R18T1S1 | HM116: R18T1S2 | HN116: R18T2S1 | HO116: R18T2S2 | HP116: R18T3S1 | HQ116: R18T3S2 | HR116: R18T4S1 | HS116: R18T4S2 | HT116: R18T5S1 | HU116: R18T5S2 | HV116: R18T6S1 | HW116: R18T6S2 | HX116: R19T1S1 | HY116: R19T1S2 | HZ116: R19T2S1 | IA116: R19T2S2 | IB116: R19T3S1 | IC116: R19T3S2 | ID116: R19T4S1 | IE116: R19T4S2 | IF116: R19T5S1 | IG116: R19T5S2 | IH116: R19T6S1 | II116: R19T6S2 | IJ116: R20T1S1 | IK116: R20T1S2 | IL116: R20T2S1 | IM116: R20T2S2 | IN116: R20T3S1 | IO116: R20T3S2 | IP116: R20T4S1 | IQ116: R20T4S2 | IR116: R20T5S1 | IS116: R20T5S2 | IT116: R20T6S1 | IU116: R20T6S2 | IV116: R21T1S1 | IW116: R21T1S2 | IX116: R21T2S1 | IY116: R21T2S2 | IZ116: R21T3S1 | JA116: R21T3S2 | JB116: R21T4S1 | JC116: R21T4S2 | JD116: R21T5S1 | JE116: R21T5S2 | JF116: R21T6S1 | JG116: R21T6S2 | JH116: R22T1S1 | JI116: R22T1S2 | JJ116: R22T2S1 | JK116: R22T2S2 | JL116: R22T3S1 | JM116: R22T3S2 | JN116: R22T4S1 | JO116: R22T4S2 | JP116: R22T5S1 | JQ116: R22T5S2 | JR116: R22T6S1 | JS116: R22T6S2 | JT116: R23T1S1 | JU116: R23T1S2 | JV116: R23T2S1 | JW116: R23T2S2 | JX116: R23T3S1 | JY116: R23T3S2 | JZ116: R23T4S1 | KA116: R23T4S2 | KB116: R23T5S1 | KC116: R23T5S2 | KD116: R23T6S1 | KE116: R23T6S2 | KF116: R24T1S1 | KG116: R24T1S2 | KH116: R24T2S1 | KI116: R24T2S2 | KJ116: R24T3S1 | KK116: R24T3S2 | KL116: R24T4S1 | KM116: R24T4S2 | KN116: R24T5S1 | KO116: R24T5S2 | KP116: R24T6S1 | KQ116: R24T6S2 | KR116: R25T1S1 | KS116: R25T1S2 | KT116: R25T2S1 | KU116: R25T2S2 | KV116: R25T3S1 | KW116: R25T3S2 | KX116: R25T4S1 | KY116: R25T4S2 | KZ116: R25T5S1 | LA116: R25T5S2 | LB116: R25T6S1 | LC116: R25T6S2 | LD116: R26T1S1 | LE116: R26T1S2 | LF116: R26T2S1 | LG116: R26T2S2 | LH116: R26T3S1 | LI116: R26T3S2 | LJ116: R26T4S1 | LK116: R26T4S2 | LL116: R26T5S1 | LM116: R26T5S2 | LN116: R26T6S1 | LO116: R26T6S2 | LP116: R27T1S1 | LQ116: R27T1S2 | LR116: R27T2S1 | LS116: R27T2S2 | LT116: R27T3S1 | LU116: R27T3S2 | LV116: R27T4S1 | LW116: R27T4S2 | LX116: R27T5S1 | LY116: R27T5S2 | LZ116: R27T6S1 | MA116: R27T6S2 | MB116: R28T1S1 | MC116: R28T1S2 | MD116: R28T2S1 | ME116: R28T2S2 | MF116: R28T3S1 | MG116: R28T3S2 | MH116: R28T4S1 | MI116: R28T4S2 | MJ116: R28T5S1 | MK116: R28T5S2 | ML116: R28T6S1 | MM116: R28T6S2 | MN116: R29T1S1 | MO116: R29T1S2 | MP116: R29T2S1 | MQ116: R29T2S2 | MR116: R29T3S1 | MS116: R29T3S2 | MT116: R29T4S1 | MU116: R29T4S2 | MV116: R29T5S1 | MW116: R29T5S2 | MX116: R29T6S1 | MY116: R29T6S2 | MZ116: R30T1S1 | NA116: R30T1S2 | NB116: R30T2S1 | NC116: R30T2S2 | ND116: R30T3S1 | NE116: R30T3S2 | NF116: R30T4S1 | NG116: R30T4S2 | NH116: R30T5S1 | NI116: R30T5S2 | NJ116: R30T6S1 | NK116: R30T6S2 | NL116: R31T1S1 | NM116: R31T1S2 | NN116: R31T2S1 | NO116: R31T2S2 | NP116: R31T3S1 | NQ116: R31T3S2 | NR116: R31T4S1 | NS116: R31T4S2 | NT116: R31T5S1 | NU116: R31T5S2 | NV116: R31T6S1 | NW116: R31T6S2 | NX116: R32T1S1 | NY116: R32T1S2 | NZ116: R32T2S1 | OA116: R32T2S2 | OB116: R32T3S1 | OC116: R32T3S2 | OD116: R32T4S1 | OE116: R32T4S2 | OF116: R32T5S1 | OG116: R32T5S2 | OH116: R32T6S1 | OI116: R32T6S2 | OJ116: R33T1S1 | OK116: R33T1S2 | OL116: R33T2S1 | OM116: R33T2S2 | ON116: R33T3S1 | OO116: R33T3S2 | OP116: R33T4S1 | OQ116: R33T4S2 | OR116: R33T5S1 | OS116: R33T5S2 | OT116: R33T6S1 | OU116: R33T6S2 | OV116: R34T1S1 | OW116: R34T1S2 | OX116: R34T2S1 | OY116: R34T2S2 | OZ116: R34T3S1 | PA116: R34T3S2 | PB116: R34T4S1 | PC116: R34T4S2 | PD116: R34T5S1 | PE116: R34T5S2 | PF116: R34T6S1 | PG116: R34T6S2 | PH116: R35T1S1 | PI116: R35T1S2 | PJ116: R35T2S1 | PK116: R35T2S2 | PL116: R35T3S1 | PM116: R35T3S2 | PN116: R35T4S1 | PO116: R35T4S2 | PP116: R35T5S1 | PQ116: R35T5S2 | PR116: R35T6S1 | PS116: R35T6S2 | PT116: R36T1S1 | PU116: R36T1S2 | PV116: R36T2S1 | PW116: R36T2S2 | PX116: R36T3S1 | PY116: R36T3S2 | PZ116: R36T4S1 | QA116: R36T4S2 | QB116: R36T5S1 | QC116: R36T5S2 | QD116: R36T6S1 | QE116: R36T6S2 | QF116: R37T1S1 | QG116: R37T1S2 | QH116: R37T2S1 | QI116: R37T2S2 | QJ116: R37T3S1 | QK116: R37T3S2 | QL116: R37T4S1 | QM116: R37T4S2 | QN116: R37T5S1 | QO116: R37T5S2 | QP116: R37T6S1 | QQ116: R37T6S2 | QR116: R38T1S1 | QS116: R38T1S2 | QT116: R38T2S1 | QU116: R38T2S2 | QV116: R38T3S1 | QW116: R38T3S2 | QX116: R38T4S1 | QY116: R38T4S2 | QZ116: R38T5S1 | RA116: R38T5S2 | RB116: R38T6S1 | RC116: R38T6S2 | RD116: R39T1S1 | RE116: R39T1S2 | RF116: R39T2S1 | RG116: R39T2S2 | RH116: R39T3S1 | RI116: R39T3S2 | RJ116: R39T4S1 | RK116: R39T4S2 | RL116: R39T5S1 | RM116: R39T5S2 | RN116: R39T6S1 | RO116: R39T6S2 | RP116: R40T1S1 | RQ116: R40T1S2 | RR116: R40T2S1 | RS116: R40T2S2 | RT116: R40T3S1 | RU116: R40T3S2 | RV116: R40T4S1 | RW116: R40T4S2 | RX116: R40T5S1 | RY116: R40T5S2 | RZ116: R40T6S1 | SA116: R40T6S2 | SB116: R41T1S1 | SC116: R41T1S2 | SD116: R41T2S1 | SE116: R41T2S2 | SF116: R41T3S1 | SG116: R41T3S2 | SH116: R41T4S1 | SI116: R41T4S2 | SJ116: R41T5S1 | SK116: R41T5S2 | SL116: R41T6S1 | SM116: R41T6S2 | SN116: R42T1S1 | SO116: R42T1S2 | SP116: R42T2S1 | SQ116: R42T2S2 | SR116: R42T3S1 | SS116: R42T3S2 | ST116: R42T4S1 | SU116: R42T4S2 | SV116: R42T5S1 | SW116: R42T5S2 | SX116: R42T6S1 | SY116: R42T6S2 | SZ116: R43T1S1 | TA116: R43T1S2 | TB116: R43T2S1 | TC116: R43T2S2 | TD116: R43T3S1 | TE116: R43T3S2 | TF116: R43T4S1 | TG116: R43T4S2 | TH116: R43T5S1 | TI116: R43T5S2 | TJ116: R43T6S1 | TK116: R43T6S2 | TL116: R44T1S1 | TM116: R44T1S2 | TN116: R44T2S1 | TO116: R44T2S2 | TP116: R44T3S1 | TQ116: R44T3S2 | TR116: R44T4S1 | TS116: R44T4S2 | TT116: R44T5S1 | TU116: R44T5S2 | TV116: R44T6S1 | TW116: R44T6S2 | TX116: R45T1S1 | TY116: R45T1S2
A117: 1 | B117: 0.29 | C117: 0.29 | D117: 0.29 | E117: 0.29 | F117: 0.33 | G117: 0.33 | H117: 0.31 | I117: 0.31 | J117: 0.31 | K117: 0.31 | N117: Data not available | Z117: 0.29 | AA117: Nil data for other trees & soils | AL117: 0.29 | AM117: 0.29 | AX117: 0.29 | AY117: 0.29 | BJ117: 0.29 | BK117: Nil soil and other tree data | BV117: 0.29 | CH117: 0.29 | CI117: 0.29 | DF117: 0.29 | DG117: 0.29 | DH117: 0.29 | DI117: 0.29 | DJ117: 0.29 | DK117: 0.29 | DL117: 0.29 | DM117: 0.29 | DN117: 0.29 | DO117: 0.29 | DP117: 0.29 | DQ117: 0.29 | DR117: 0.29 | DS117: 0.29 | DT117: 0.29 | DU117: 0.29 | DV117: 0.31 | DW117: 0.31 | DX117: 0.31 | DY117: 0.31 | DZ117: 0.31 | EA117: 0.31 | EB117: 0.31 | EC117: 0.31 | ED117: 0.29 | EE117: 0.29 | EF117: 0.29 | EG117: 0.29 | EH117: 0.29 | EI117: 0.29 | EJ117: 0.29 | EK117: 0.29 | EL117: 0.29 | EM117: 0.29 | EN117: 0.31 | EO117: 0.31 | EP117: 0.31 | EQ117: 0.31 | ER117: 0.29 | ES117: 0.29 | ET117: 0.29 | EU117: 0.29 | EV117: 0.29 | EW117: 0.29 | EX117: 0.29 | EY117: 0.29 | EZ117: 0.31 | FA117: 0.31 | FB117: 0.31 | FC117: 0.31 | FD117: 0.29 | FE117: 0.29 | FF117: 0.29 | FG117: 0.29 | FH117: 0.29 | FI117: 0.29 | FJ117: 0.29 | FK117: 0.29 | FL117: 0.29 | FM117: 0.29 | FN117: 0.29 | FO117: 0.29 | FP117: 0.29 | FQ117: 0.29 | FR117: 0.29 | FS117: 0.29 | FT117: 0.29 | FU117: 0.29 | FV117: 0.29 | FW117: 0.29 | FX117: 0.29 | FY117: 0.29 | FZ117: 0.29 | GA117: 0.29 | GB117: 0.29 | GC117: 0.29 | GD117: 0.29 | GE117: 0.29 | GF117: 0.29 | GG117: 0.29 | GH117: 0.29 | GI117: 0.29 | GJ117: 0.31 | GK117: 0.31 | GL117: 0.31 | GM117: 0.31 | GN117: 0.29 | GO117: 0.29 | GP117: 0.31 | GQ117: 0.31 | GZ117: 0.29 | HA117: 0.29 | HB117: 0.3 | HC117: 0.3 | HD117: 0.3 | HE117: 0.3 | HF117: 0.31 | HG117: 0.31 | HH117: 0.31 | HI117: 0.31 | HJ117: 0.31 | HK117: 0.31 | HL117: 0.31 | HM117: 0.31 | HN117: 0.3 | HO117: 0.3 | HP117: 0.3 | HQ117: 0.3 | HR117: 0.31 | HS117: 0.31 | HT117: 0.31 | HU117: 0.31 | HX117: 0.29 | HY117: 0.29 | HZ117: 0.3 | IA117: 0.3 | IB117: 0.29 | IC117: 0.29 | ID117: 0.31 | IE117: 0.31 | IJ117: 2.29 | IK117: 2.29 | IL117: 0.5 | IM117: 0.5 | IN117: 0.34 | IO117: 0.34 | IP117: 0.34 | IQ117: 0.34 | IV117: 2.29 | IW117: 2.29 | IX117: 0.5 | IY117: 0.5 | IZ117: 0.34 | JA117: 0.34 | JB117: 0.34 | JC117: 0.34 | JH117: 0.29 | JI117: 0.29 | JJ117: 0.43 | JK117: 0.43 | JL117: 0.43 | JM117: 0.43 | JN117: 0.33 | JO117: 0.33 | JP117: 0.33 | JQ117: 0.33 | JT117: 0.29 | JU117: 0.29 | JV117: 0.29 | JW117: 0.29 | JX117: 0.29 | JY117: 0.29 | KF117: 0.29 | KG117: 0.29 | KH117: 0.29 | KI117: 0.29 | KJ117: 0.29 | KK117: 0.29 | KR117: 0.29 | KS117: 0.29 | KT117: 0.29 | KU117: 0.29 | KV117: 0.31 | KW117: 0.31 | LD117: 0.31 | LE117: 0.31 | LF117: 0.31 | LG117: 0.31 | LH117: 0.26 | LI117: 0.26 | LP117: 0.29 | LQ117: 0.29 | LR117: 0.29 | LS117: 0.29 | LT117: 0.31 | LU117: 0.31 | MB117: 0.29 | MC117: 0.29 | MD117: 0.29 | ME117: 0.29 | MF117: 0.29 | MG117: 0.29 | MH117: 0.29 | MI117: 0.29 | MJ117: 0.31 | MK117: 0.31 | ML117: 0.31 | MM117: 0.29 | MN117: 0.29 | MO117: 0.29 | MP117: 0.29 | MQ117: 0.29 | MR117: 0.29 | MS117: 0.29 | MT117: 0.31 | MU117: 0.31 | MV117: 0.31 | MW117: 0.31 | MX117: 0.31 | MY117: 0.31 | MZ117: 0.29 | NA117: 0.29 | NB117: 0.3 | NC117: 0.3 | ND117: 0.3 | NE117: 0.3 | NF117: =AVERAGE(NB117,ND117) -> 0.3 | NG117: =AVERAGE(NC117,NE117) -> 0.3 | NH117: 0.31 | NI117: 0.31 | NL117: 0.29 | NM117: 0.29 | NN117: 0.3 | NO117: 0.3 | NP117: 0.3 | NQ117: 0.3 | NR117: 0.3 | NS117: 0.3 | NT117: 0.31 | NU117: 0.31 | NX117: 0.29 | NY117: 0.29 | NZ117: 0.31 | OA117: 0.31 | OB117: 0.31 | OC117: 0.31 | OD117: 0.32 | OE117: 0.32 | OJ117: 0.29 | OK117: 0.29 | OL117: 0.36 | OM117: 0.36 | ON117: 0.36 | OO117: 0.36 | OP117: 0.29 | OQ117: 0.29 | OR117: 0.31 | OS117: 0.31 | OV117: 0.29 | OW117: 0.29 | OX117: 0.29 | OY117: 0.29 | OZ117: 0.29 | PA117: 0.29 | PB117: 0.29 | PC117: 0.29 | PD117: 0.31 | PE117: 0.31 | PH117: 0.29 | PI117: 0.29 | PJ117: 0.29 | PK117: 0.29 | PL117: 0.29 | PM117: 0.29 | PN117: 0.29 | PO117: 0.29 | PP117: 0.31 | PQ117: 0.31 | PT117: 0.29 | PU117: 0.29 | PV117: 0.31 | PW117: 0.31 | PX117: 0.29 | PY117: 0.29 | PZ117: 0.29 | QA117: 0.29 | QB117: 0.29 | QC117: 0.29 | QD117: 0.31 | QE117: 0.31 | QF117: 0.29 | QG117: 0.29 | QH117: 0.31 | QI117: 0.31 | QJ117: 0.29 | QK117: 0.29 | QL117: 0.29 | QM117: 0.29 | QN117: 0.29 | QO117: 0.29 | QP117: 0.31 | QQ117: 0.31 | QR117: 0.29 | QS117: 0.29 | QT117: 0.31 | QU117: 0.31 | QV117: 0.29 | QW117: 0.29 | QX117: 0.29 | QY117: 0.29 | QZ117: 0.29 | RA117: 0.29 | RB117: 0.31 | RC117: 0.31 | RD117: 0.29 | RE117: 0.29 | RF117: 0.31 | RG117: 0.31 | RH117: 0.29 | RI117: 0.29 | RJ117: 0.29 | RK117: 0.29 | RL117: 0.29 | RM117: 0.29 | RN117: 0.31 | RO117: 0.31 | RP117: 0.29 | RQ117: 0.29 | RR117: 0.31 | RS117: 0.31 | RT117: 0.29 | RU117: 0.29 | RV117: 0.29 | RW117: 0.29 | RX117: 0.29 | RY117: 0.29 | RZ117: 0.31 | SA117: 0.31 | SB117: 0.29 | SC117: 0.29 | SD117: 0.31 | SE117: 0.31 | SF117: 0.29 | SG117: 0.29 | SH117: 0.29 | SI117: 0.29 | SJ117: 0.29 | SK117: 0.29 | SL117: 0.31 | SM117: 0.31 | SN117: 0.29 | SO117: 0.29 | SZ117: 0.29 | TA117: 0.29 | TX117: 0.29 | TY117: 0.29
A118: 2 | B118: 0.34 | C118: 0.34 | D118: 0.7 | E118: 0.7 | F118: 0.57 | G118: 0.57 | H118: 0.35 | I118: 0.35 | J118: 0.43 | K118: 0.43 | Z118: 0.3 | AL118: 0.32 | AM118: 0.31 | AX118: 0.32 | AY118: 0.32 | BJ118: 0.31 | BV118: 0.3 | CH118: 0.31 | CI118: 0.31 | DF118: 0.43 | DG118: 0.43 | DH118: 0.59 | DI118: 0.44 | DJ118: 0.34 | DK118: 0.34 | DL118: 0.34 | DM118: 0.34 | DN118: 0.34 | DO118: 0.34 | DP118: 0.34 | DQ118: 0.34 | DR118: 0.34 | DS118: 0.34 | DT118: 0.34 | DU118: 0.34 | DV118: 0.37 | DW118: 0.36 | DX118: 0.37 | DY118: 0.37 | DZ118: 0.36 | EA118: 0.36 | EB118: 0.47 | EC118: 0.47 | ED118: 0.37 | EE118: 0.36 | EF118: 0.36 | EG118: 0.36 | EH118: 0.36 | EI118: 0.36 | EJ118: 0.4 | EK118: 0.4 | EL118: 0.4 | EM118: 0.42 | EN118: 0.34 | EO118: 0.34 | EP118: 0.35 | EQ118: 0.35 | ER118: 0.36 | ES118: 0.43 | ET118: 0.49 | EU118: 0.49 | EV118: 0.49 | EW118: 0.49 | EX118: 0.49 | EY118: 0.31 | EZ118: 0.32 | FA118: 0.32 | FB118: 0.32 | FC118: 0.32 | FD118: 0.33 | FE118: 0.33 | FF118: 0.33 | FG118: 0.33 | FH118: 0.33 | FI118: 0.33 | FJ118: 0.3 | FK118: 0.3 | FL118: 0.3 | FM118: 0.3 | FN118: 0.29 | FO118: 0.29 | FP118: 0.34 | FQ118: 0.34 | FR118: 0.34 | FS118: 0.34 | FT118: 0.36 | FU118: 0.36 | FV118: 0.36 | FW118: 0.36 | FX118: 0.36 | FY118: 0.36 | FZ118: 0.36 | GA118: 0.36 | GB118: 0.33 | GC118: 0.33 | GD118: 0.3 | GE118: 0.3 | GF118: 0.34 | GG118: 0.34 | GH118: 0.3 | GI118: 0.3 | GJ118: 0.31 | GK118: 0.31 | GL118: 0.31 | GM118: 0.31 | GN118: 0.3 | GO118: 0.3 | GP118: 0.31 | GQ118: 0.31 | GZ118: 0.35 | HA118: 0.35 | HB118: 0.57 | HC118: 0.57 | HD118: 0.57 | HE118: 0.57 | HF118: 0.41 | HG118: 0.41 | HH118: 0.41 | HI118: 0.41 | HJ118: 0.41 | HK118: 0.41 | HL118: 0.43 | HM118: 0.43 | HN118: 0.4 | HO118: 0.4 | HP118: 0.4 | HQ118: 0.4 | HR118: 0.47 | HS118: 0.47 | HT118: 0.47 | HU118: 0.47 | HX118: 0.35 | HY118: 0.35 | HZ118: 0.53 | IA118: 0.53 | IB118: 0.39 | IC118: 0.39 | ID118: 0.4 | IE118: 0.4 | IJ118: 4.47 | IK118: 4.47 | IL118: 2.78 | IM118: 2.78 | IN118: 1.2 | IO118: 1.2 | IP118: 1.2 | IQ118: 1.2 | IV118: 4.47 | IW118: 4.47 | IX118: 2.78 | IY118: 2.78 | IZ118: 1.2 | JA118: 1.2 | JB118: 1.2 | JC118: 1.2 | JH118: 0.41 | JI118: 0.41 | JJ118: 2.17 | JK118: 2.17 | JL118: 2.17 | JM118: 2.17 | JN118: 0.99 | JO118: 0.99 | JP118: 0.99 | JQ118: 0.99 | JT118: 0.32 | JU118: 0.32 | JV118: 0.32 | JW118: 0.32 | JX118: 0.32 | JY118: 0.32 | KF118: 0.31 | KG118: 0.31 | KH118: 0.29 | KI118: 0.29 | KJ118: 0.29 | KK118: 0.29 | KR118: 0.33 | KS118: 0.33 | KT118: 0.33 | KU118: 0.33 | KV118: 0.32 | KW118: 0.32 | LD118: 0.31 | LE118: 0.31 | LF118: 0.31 | LG118: 0.31 | LH118: 0.26 | LI118: 0.26 | LP118: 0.31 | LQ118: 0.31 | LR118: 0.31 | LS118: 0.31 | LT118: 0.31 | LU118: 0.31 | MB118: 0.31 | MC118: 0.32 | MD118: 0.3 | ME118: 0.3 | MF118: 0.3 | MG118: 0.3 | MH118: 0.3 | MI118: 0.3 | MJ118: 0.31 | MK118: 0.31 | ML118: 0.31 | MM118: 0.3 | MN118: 0.33 | MO118: 0.33 | MP118: 0.3 | MQ118: 0.3 | MR118: 0.31 | MS118: 0.31 | MT118: 0.37 | MU118: 0.37 | MV118: 0.37 | MW118: 0.37 | MX118: 0.37 | MY118: 0.37 | MZ118: 0.35 | NA118: 0.35 | NB118: 0.42 | NC118: 0.42 | ND118: 0.4 | NE118: 0.4 | NF118: 0.41 | NG118: 0.41 | NH118: 0.45 | NI118: 0.45 | NL118: 0.34 | NM118: 0.34 | NN118: 0.39 | NO118: 0.39 | NP118: 0.39 | NQ118: 0.39 | NR118: 0.37 | NS118: 0.37 | NT118: 0.39 | NU118: 0.39 | NX118: 0.41 | NY118: 0.41 | NZ118: 0.64 | OA118: 0.64 | OB118: 0.64 | OC118: 0.64 | OD118: 0.67 | OE118: 0.67 | OJ118: 0.37 | OK118: 0.37 | OL118: 1.31 | OM118: 1.31 | ON118: 1.31 | OO118: 1.31 | OP118: 0.3 | OQ118: 0.3 | OR118: 0.43 | OS118: 0.43 | OV118: 0.33 | OW118: 0.33 | OX118: 0.3 | OY118: 0.3 | OZ118: 0.3 | PA118: 0.3 | PB118: 0.3 | PC118: 0.3 | PD118: 0.37 | PE118: 0.37 | PH118: 0.34 | PI118: 0.34 | PJ118: 0.31 | PK118: 0.31 | PL118: 0.31 | PM118: 0.3 | PN118: 0.3 | PO118: 0.3 | PP118: 0.38 | PQ118: 0.38 | PT118: 0.32 | PU118: 0.32 | PV118: 0.31 | PW118: 0.31 | PX118: 0.3 | PY118: 0.3 | PZ118: 0.3 | QA118: 0.3 | QB118: 0.3 | QC118: 0.3 | QD118: 0.31 | QE118: 0.31 | QF118: 0.3 | QG118: 0.3 | QH118: 0.31 | QI118: 0.31 | QJ118: 0.29 | QK118: 0.29 | QL118: 0.29 | QM118: 0.29 | QN118: 0.29 | QO118: 0.29 | QP118: 0.31 | QQ118: 0.31 | QR118: 0.3 | QS118: 0.3 | QT118: 0.31 | QU118: 0.31 | QV118: 0.29 | QW118: 0.29 | QX118: 0.29 | QY118: 0.29 | QZ118: 0.29 | RA118: 0.29 | RB118: 0.31 | RC118: 0.31 | RD118: 0.31 | RE118: 0.31 | RF118: 0.31 | RG118: 0.31 | RH118: 0.29 | RI118: 0.29 | RJ118: 0.29 | RK118: 0.29 | RL118: 0.29 | RM118: 0.29 | RN118: 0.31 | RO118: 0.31 | RP118: 0.34 | RQ118: 0.34 | RR118: 0.31 | RS118: 0.31 | RT118: 0.3 | RU118: 0.3 | RV118: 0.3 | RW118: 0.3 | RX118: 0.3 | RY118: 0.3 | RZ118: 0.31 | SA118: 0.31 | SB118: 0.32 | SC118: 0.32 | SD118: 0.31 | SE118: 0.31 | SF118: 0.3 | SG118: 0.3 | SH118: 0.3 | SI118: 0.3 | SJ118: 0.3 | SK118: 0.3 | SL118: 0.31 | SM118: 0.31 | SN118: 0.31 | SO118: 0.31 | SZ118: 0.31 | TA118: 0.31 | TX118: 0.31 | TY118: 0.31
A119: 3 | B119: 0.55 | C119: 0.55 | D119: 1.39 | E119: 1.39 | F119: 1.31 | G119: 1.31 | H119: 0.58 | I119: 0.58 | J119: 0.9 | K119: 0.9 | Z119: 0.34 | AL119: 0.41 | AM119: 0.41 | AX119: 0.43 | AY119: 0.43 | BJ119: 0.37 | BV119: 0.31 | CH119: 0.36 | CI119: 0.36 | DF119: 1.08 | DG119: 1.08 | DH119: 2.49 | DI119: 1.09 | DJ119: 0.64 | DK119: 0.64 | DL119: 0.62 | DM119: 0.62 | DN119: 0.64 | DO119: 0.64 | DP119: 0.62 | DQ119: 0.64 | DR119: 0.64 | DS119: 0.64 | DT119: 0.62 | DU119: 0.62 | DV119: 0.79 | DW119: 0.78 | DX119: 0.79 | DY119: 0.79 | DZ119: 0.78 | EA119: 0.78 | EB119: 1.19 | EC119: 1.19 | ED119: 0.72 | EE119: 0.69 | EF119: 0.69 | EG119: 0.69 | EH119: 1.1 | EI119: 1.1 | EJ119: 0.88 | EK119: 0.88 | EL119: 0.88 | EM119: 0.97 | EN119: 0.62 | EO119: 0.62 | EP119: 0.64 | EQ119: 0.64 | ER119: 0.66 | ES119: 1.38 | ET119: 0.86 | EU119: 0.86 | EV119: 0.86 | EW119: 0.86 | EX119: 0.86 | EY119: 0.39 | EZ119: 0.46 | FA119: 0.46 | FB119: 0.46 | FC119: 0.46 | FD119: 0.5 | FE119: 0.5 | FF119: 0.5 | FG119: 0.5 | FH119: 0.5 | FI119: 0.5 | FJ119: 0.33 | FK119: 0.33 | FL119: 0.33 | FM119: 0.33 | FN119: 0.31 | FO119: 0.31 | FP119: 0.55 | FQ119: 0.55 | FR119: 0.55 | FS119: 0.55 | FT119: 0.7 | FU119: 0.7 | FV119: 0.7 | FW119: 0.7 | FX119: 0.7 | FY119: 0.7 | FZ119: 0.7 | GA119: 0.7 | GB119: 0.5 | GC119: 0.5 | GD119: 0.31 | GE119: 0.31 | GF119: 0.49 | GG119: 0.49 | GH119: 0.31 | GI119: 0.31 | GJ119: 0.31 | GK119: 0.31 | GL119: 0.31 | GM119: 0.31 | GN119: 0.34 | GO119: 0.34 | GP119: 0.31 | GQ119: 0.31 | GZ119: 0.61 | HA119: 0.61 | HB119: 1.36 | HC119: 1.36 | HD119: 1.36 | HE119: 1.36 | HF119: 0.82 | HG119: 0.82 | HH119: 0.82 | HI119: 0.82 | HJ119: 0.82 | HK119: 0.82 | HL119: 0.95 | HM119: 0.95 | HN119: 0.81 | HO119: 0.81 | HP119: 0.81 | HQ119: 0.81 | HR119: 1.06 | HS119: 1.06 | HT119: 1.06 | HU119: 1.06 | HX119: 0.58 | HY119: 0.58 | HZ119: 1.22 | IA119: 1.22 | IB119: 0.84 | IC119: 0.84 | ID119: 0.77 | IE119: 0.77 | IJ119: 7.49 | IK119: 7.49 | IL119: 7.09 | IM119: 7.09 | IN119: 3.44 | IO119: 3.44 | IP119: 3.44 | IQ119: 3.44 | IV119: 7.49 | IW119: 7.49 | IX119: 7.09 | IY119: 7.09 | IZ119: 3.44 | JA119: 3.44 | JB119: 3.44 | JC119: 3.44 | JH119: 0.95 | JI119: 0.95 | JJ119: 5.67 | JK119: 5.67 | JL119: 5.67 | JM119: 5.67 | JN119: 2.8 | JO119: 2.8 | JP119: 2.8 | JQ119: 2.8 | JT119: 0.46 | JU119: 0.46 | JV119: 0.46 | JW119: 0.46 | JX119: 0.46 | JY119: 0.46 | KF119: 0.37 | KG119: 0.37 | KH119: 0.3 | KI119: 0.3 | KJ119: 0.3 | KK119: 0.3 | KR119: 0.47 | KS119: 0.47 | KT119: 0.47 | KU119: 0.47 | KV119: 0.42 | KW119: 0.42 | LD119: 0.32 | LE119: 0.32 | LF119: 0.32 | LG119: 0.32 | LH119: 0.26 | LI119: 0.26 | LP119: 0.38 | LQ119: 0.38 | LR119: 0.38 | LS119: 0.38 | LT119: 0.31 | LU119: 0.31 | MB119: 0.38 | MC119: 0.55 | MD119: 0.3 | ME119: 0.3 | MF119: 0.3 | MG119: 0.3 | MH119: 0.31 | MI119: 0.31 | MJ119: 0.32 | MK119: 0.32 | ML119: 0.32 | MM119: 0.31 | MN119: 0.48 | MO119: 0.48 | MP119: 0.33 | MQ119: 0.33 | MR119: 0.37 | MS119: 0.37 | MT119: 0.62 | MU119: 0.62 | MV119: 0.62 | MW119: 0.62 | MX119: 0.62 | MY119: 0.62 | MZ119: 0.65 | NA119: 0.65 | NB119: 0.98 | NC119: 0.98 | ND119: 0.88 | NE119: 0.88 | NF119: 0.93 | NG119: 0.93 | NH119: 1.06 | NI119: 1.06 | NL119: 0.6 | NM119: 0.6 | NN119: 0.8 | NO119: 0.8 | NP119: 0.8 | NQ119: 0.8 | NR119: 0.74 | NS119: 0.74 | NT119: 0.79 | NU119: 0.79 | NX119: 0.93 | NY119: 0.93 | NZ119: 1.65 | OA119: 1.65 | OB119: 1.65 | OC119: 1.65 | OD119: 1.72 | OE119: 1.72 | OJ119: 0.79 | OK119: 0.79 | OL119: 3.67 | OM119: 3.67 | ON119: 3.67 | OO119: 3.67 | OP119: 0.37 | OQ119: 0.37 | OR119: 0.97 | OS119: 0.97 | OV119: 0.51 | OW119: 0.51 | OX119: 0.34 | OY119: 0.34 | OZ119: 0.34 | PA119: 0.34 | PB119: 0.34 | PC119: 0.34 | PD119: 0.67 | PE119: 0.67 | PH119: 0.55 | PI119: 0.55 | PJ119: 0.35 | PK119: 0.35 | PL119: 0.35 | PM119: 0.34 | PN119: 0.34 | PO119: 0.34 | PP119: 0.71 | PQ119: 0.71 | PT119: 0.46 | PU119: 0.46 | PV119: 0.31 | PW119: 0.31 | PX119: 0.31 | PY119: 0.31 | PZ119: 0.31 | QA119: 0.31 | QB119: 0.31 | QC119: 0.31 | QD119: 0.32 | QE119: 0.32 | QF119: 0.34 | QG119: 0.34 | QH119: 0.31 | QI119: 0.31 | QJ119: 0.3 | QK119: 0.3 | QL119: 0.3 | QM119: 0.3 | QN119: 0.3 | QO119: 0.3 | QP119: 0.31 | QQ119: 0.31 | QR119: 0.35 | QS119: 0.35 | QT119: 0.31 | QU119: 0.31 | QV119: 0.3 | QW119: 0.3 | QX119: 0.3 | QY119: 0.3 | QZ119: 0.3 | RA119: 0.3 | RB119: 0.31 | RC119: 0.31 | RD119: 0.38 | RE119: 0.38 | RF119: 0.31 | RG119: 0.31 | RH119: 0.3 | RI119: 0.3 | RJ119: 0.3 | RK119: 0.3 | RL119: 0.3 | RM119: 0.3 | RN119: 0.31 | RO119: 0.31 | RP119: 0.52 | RQ119: 0.52 | RR119: 0.31 | RS119: 0.31 | RT119: 0.33 | RU119: 0.33 | RV119: 0.33 | RW119: 0.33 | RX119: 0.33 | RY119: 0.33 | RZ119: 0.32 | SA119: 0.32 | SB119: 0.41 | SC119: 0.41 | SD119: 0.31 | SE119: 0.31 | SF119: 0.31 | SG119: 0.31 | SH119: 0.31 | SI119: 0.31 | SJ119: 0.31 | SK119: 0.31 | SL119: 0.31 | SM119: 0.31 | SN119: 0.39 | SO119: 0.39 | SZ119: 0.4 | TA119: 0.4 | TX119: 0.36 | TY119: 0.36
A120: 4 | B120: 1.04 | C120: 1.04 | D120: 2.35 | E120: 2.35 | F120: 2.78 | G120: 2.78 | H120: 1.22 | I120: 1.22 | J120: 2.13 | K120: 2.13 | Z120: 0.44 | AL120: 0.64 | AM120: 0.64 | AX120: 0.69 | AY120: 0.69 | BJ120: 0.5 | BV120: 0.35 | CH120: 0.48 | CI120: 0.48 | DF120: 2.6 | DG120: 2.6 | DH120: 4.88 | DI120: 2.6 | DJ120: 1.47 | DK120: 1.47 | DL120: 1.43 | DM120: 1.43 | DN120: 1.47 | DO120: 1.47 | DP120: 1.43 | DQ120: 1.47 | DR120: 1.47 | DS120: 1.47 | DT120: 1.43 | DU120: 1.43 | DV120: 2.06 | DW120: 2.02 | DX120: 2.06 | DY120: 2.06 | DZ120: 2.02 | EA120: 2.02 | EB120: 2.91 | EC120: 2.91 | ED120: 1.53 | EE120: 1.46 | EF120: 1.46 | EG120: 1.46 | EH120: 3.65 | EI120: 3.65 | EJ120: 2.08 | EK120: 2.08 | EL120: 2.08 | EM120: 2.29 | EN120: 1.51 | EO120: 1.51 | EP120: 1.55 | EQ120: 1.55 | ER120: 1.36 | ES120: 2.54 | ET120: 1.83 | EU120: 1.83 | EV120: 1.83 | EW120: 1.83 | EX120: 1.83 | EY120: 0.61 | EZ120: 0.94 | FA120: 0.94 | FB120: 0.94 | FC120: 0.94 | FD120: 0.88 | FE120: 0.88 | FF120: 0.88 | FG120: 0.88 | FH120: 0.88 | FI120: 0.88 | FJ120: 0.4 | FK120: 0.4 | FL120: 0.41 | FM120: 0.41 | FN120: 0.41 | FO120: 0.41 | FP120: 1.04 | FQ120: 1.04 | FR120: 1.04 | FS120: 1.04 | FT120: 1.58 | FU120: 1.58 | FV120: 1.58 | FW120: 1.58 | FX120: 1.58 | FY120: 1.58 | FZ120: 1.58 | GA120: 1.58 | GB120: 0.94 | GC120: 0.94 | GD120: 0.36 | GE120: 0.36 | GF120: 0.8 | GG120: 0.8 | GH120: 0.36 | GI120: 0.36 | GJ120: 0.35 | GK120: 0.35 | GL120: 0.35 | GM120: 0.35 | GN120: 0.44 | GO120: 0.44 | GP120: 0.31 | GQ120: 0.31 | GZ120: 1.2 | HA120: 1.2 | HB120: 2.97 | HC120: 2.97 | HD120: 2.97 | HE120: 2.97 | HF120: 1.83 | HG120: 1.83 | HH120: 1.83 | HI120: 1.83 | HJ120: 1.83 | HK120: 1.83 | HL120: 2.2 | HM120: 2.2 | HN120: 1.83 | HO120: 1.83 | HP120: 1.83 | HQ120: 1.83 | HR120: 2.44 | HS120: 2.44 | HT120: 2.44 | HU120: 2.44 | HX120: 1.11 | HY120: 1.11 | HZ120: 2.65 | IA120: 2.65 | IB120: 1.95 | IC120: 1.95 | ID120: 1.68 | IE120: 1.68 | IJ120: 11.26 | IK120: 11.26 | IL120: 13.8 | IM120: 13.8 | IN120: 7.65 | IO120: 7.65 | IP120: 7.65 | IQ120: 7.65 | IV120: 11.26 | IW120: 11.26 | IX120: 13.8 | IY120: 13.8 | IZ120: 7.65 | JA120: 7.65 | JB120: 7.65 | JC120: 7.65 | JH120: 2.19 | JI120: 2.19 | JJ120: 11.3 | JK120: 11.3 | JL120: 11.3 | JM120: 11.3 | JN120: 6.34 | JO120: 6.34 | JP120: 6.34 | JQ120: 6.34 | JT120: 0.79 | JU120: 0.79 | JV120: 0.79 | JW120: 0.79 | JX120: 0.79 | JY120: 0.79 | KF120: 0.51 | KG120: 0.51 | KH120: 0.35 | KI120: 0.35 | KJ120: 0.35 | KK120: 0.35 | KR120: 0.81 | KS120: 0.81 | KT120: 0.81 | KU120: 0.81 | KV120: 0.79 | KW120: 0.79 | LD120: 0.35 | LE120: 0.35 | LF120: 0.35 | LG120: 0.35 | LH120: 0.26 | LI120: 0.26 | LP120: 0.54 | LQ120: 0.54 | LR120: 0.54 | LS120: 0.54 | LT120: 0.33 | LU120: 0.33 | MB120: 0.54 | MC120: 0.81 | MD120: 0.33 | ME120: 0.33 | MF120: 0.33 | MG120: 0.33 | MH120: 0.36 | MI120: 0.36 | MJ120: 0.35 | MK120: 0.35 | ML120: 0.35 | MM120: 0.35 | MN120: 0.89 | MO120: 0.89 | MP120: 0.43 | MQ120: 0.43 | MR120: 0.53 | MS120: 0.53 | MT120: 1.4 | MU120: 1.4 | MV120: 1.4 | MW120: 1.4 | MX120: 1.4 | MY120: 1.4 | MZ120: 1.29 | NA120: 1.29 | NB120: 2.19 | NC120: 2.19 | ND120: 1.97 | NE120: 1.97 | NF120: 2.08 | NG120: 2.08 | NH120: 2.39 | NI120: 2.39 | NL120: 1.03 | NM120: 1.03 | NN120: 1.54 | NO120: 1.54 | NP120: 1.54 | NQ120: 1.54 | NR120: 1.42 | NS120: 1.42 | NT120: 1.52 | NU120: 1.52 | NX120: 2.35 | NY120: 2.35 | NZ120: 4.08 | OA120: 4.08 | OB120: 4.08 | OC120: 4.08 | OD120: 4.25 | OE120: 4.25 | OJ120: 1.61 | OK120: 1.61 | OL120: 7.09 | OM120: 7.09 | ON120: 7.09 | OO120: 7.09 | OP120: 0.58 | OQ120: 0.58 | OR120: 2.07 | OS120: 2.07 | OV120: 0.96 | OW120: 0.96 | OX120: 0.45 | OY120: 0.45 | OZ120: 0.44 | PA120: 0.44 | PB120: 0.43 | PC120: 0.43 | PD120: 1.49 | PE120: 1.49 | PH120: 1.06 | PI120: 1.06 | PJ120: 0.48 | PK120: 0.48 | PL120: 0.48 | PM120: 0.46 | PN120: 0.46 | PO120: 0.46 | PP120: 1.53 | PQ120: 1.53 | PT120: 0.76 | PU120: 0.76 | PV120: 0.33 | PW120: 0.33 | PX120: 0.36 | PY120: 0.36 | PZ120: 0.36 | QA120: 0.36 | QB120: 0.36 | QC120: 0.36 | QD120: 0.35 | QE120: 0.35 | QF120: 0.43 | QG120: 0.43 | QH120: 0.31 | QI120: 0.31 | QJ120: 0.31 | QK120: 0.31 | QL120: 0.31 | QM120: 0.31 | QN120: 0.31 | QO120: 0.31 | QP120: 0.32 | QQ120: 0.32 | QR120: 0.45 | QS120: 0.45 | QT120: 0.31 | QU120: 0.31 | QV120: 0.31 | QW120: 0.31 | QX120: 0.31 | QY120: 0.31 | QZ120: 0.31 | RA120: 0.31 | RB120: 0.32 | RC120: 0.32 | RD120: 0.54 | RE120: 0.54 | RF120: 0.32 | RG120: 0.32 | RH120: 0.32 | RI120: 0.32 | RJ120: 0.32 | RK120: 0.32 | RL120: 0.32 | RM120: 0.32 | RN120: 0.33 | RO120: 0.33 | RP120: 0.95 | RQ120: 0.95 | RR120: 0.34 | RS120: 0.34 | RT120: 0.4 | RU120: 0.4 | RV120: 0.4 | RW120: 0.4 | RX120: 0.4 | RY120: 0.4 | RZ120: 0.38 | SA120: 0.38 | SB120: 0.64 | SC120: 0.64 | SD120: 0.32 | SE120: 0.32 | SF120: 0.33 | SG120: 0.33 | SH120: 0.33 | SI120: 0.33 | SJ120: 0.33 | SK120: 0.33 | SL120: 0.34 | SM120: 0.34 | SN120: 0.58 | SO120: 0.58 | SZ120: 0.61 | TA120: 0.61 | TX120: 0.49 | TY120: 0.49
A121: 5 | B121: 1.85 | C121: 1.85 | D121: 3.59 | E121: 3.59 | F121: 5.1 | G121: 5.1 | H121: 2.43 | I121: 2.43 | J121: 4.65 | K121: 4.65 | Z121: 0.59 | AL121: 1.01 | AM121: 1.01 | AX121: 1.11 | AY121: 1.11 | BJ121: 0.73 | BV121: 0.41 | CH121: 0.68 | CI121: 0.68 | DF121: 5.11 | DG121: 5.11 | DH121: 8.22 | DI121: 5.12 | DJ121: 3.13 | DK121: 3.13 | DL121: 3.03 | DM121: 3.03 | DN121: 3.13 | DO121: 3.13 | DP121: 3.03 | DQ121: 3.13 | DR121: 3.13 | DS121: 3.13 | DT121: 3.03 | DU121: 3.03 | DV121: 4.56 | DW121: 4.45 | DX121: 4.56 | DY121: 4.56 | DZ121: 4.45 | EA121: 4.45 | EB121: 5.93 | EC121: 5.93 | ED121: 2.87 | EE121: 2.74 | EF121: 2.74 | EG121: 2.74 | EH121: 5.64 | EI121: 5.64 | EJ121: 4.23 | EK121: 4.23 | EL121: 4.23 | EM121: 4.62 | EN121: 3.3 | EO121: 3.3 | EP121: 3.37 | EQ121: 3.37 | ER121: 2.52 | ES121: 4.14 | ET121: 3.22 | EU121: 3.22 | EV121: 3.22 | EW121: 3.22 | EX121: 3.22 | EY121: 1.03 | EZ121: 2 | FA121: 2 | FB121: 2 | FC121: 2 | FD121: 1.52 | FE121: 1.52 | FF121: 1.52 | FG121: 1.52 | FH121: 1.52 | FI121: 1.52 | FJ121: 0.57 | FK121: 0.57 | FL121: 0.57 | FM121: 0.57 | FN121: 0.58 | FO121: 0.58 | FP121: 1.85 | FQ121: 1.85 | FR121: 1.85 | FS121: 1.85 | FT121: 3.21 | FU121: 3.21 | FV121: 3.21 | FW121: 3.21 | FX121: 3.21 | FY121: 3.21 | FZ121: 3.21 | GA121: 3.21 | GB121: 1.76 | GC121: 1.76 | GD121: 0.45 | GE121: 0.45 | GF121: 1.28 | GG121: 1.28 | GH121: 0.47 | GI121: 0.47 | GJ121: 0.43 | GK121: 0.43 | GL121: 0.43 | GM121: 0.43 | GN121: 0.6 | GO121: 0.6 | GP121: 0.33 | GQ121: 0.33 | GZ121: 2.17 | HA121: 2.17 | HB121: 5.5 | HC121: 5.5 | HD121: 5.5 | HE121: 5.5 | HF121: 3.62 | HG121: 3.62 | HH121: 3.62 | HI121: 3.62 | HJ121: 3.62 | HK121: 3.62 | HL121: 4.44 | HM121: 4.44 | HN121: 3.69 | HO121: 3.69 | HP121: 3.69 | HQ121: 3.69 | HR121: 4.84 | HS121: 4.84 | HT121: 4.84 | HU121: 4.84 | HX121: 2 | HY121: 2 | HZ121: 4.93 | IA121: 4.93 | IB121: 3.88 | IC121: 3.88 | ID121: 3.35 | IE121: 3.35 | IJ121: 15.65 | IK121: 15.65 | IL121: 22.62 | IM121: 22.62 | IN121: 13.95 | IO121: 13.95 | IP121: 13.95 | IQ121: 13.95 | IV121: 15.65 | IW121: 15.65 | IX121: 22.62 | IY121: 22.62 | IZ121: 13.95 | JA121: 13.95 | JB121: 13.95 | JC121: 13.95 | JH121: 4.25 | JI121: 4.25 | JJ121: 18.9 | JK121: 18.9 | JL121: 18.9 | JM121: 18.9 | JN121: 11.75 | JO121: 11.75 | JP121: 11.75 | JQ121: 11.75 | JT121: 1.32 | JU121: 1.32 | JV121: 1.32 | JW121: 1.32 | JX121: 1.32 | JY121: 1.32 | KF121: 0.75 | KG121: 0.75 | KH121: 0.44 | KI121: 0.44 | KJ121: 0.44 | KK121: 0.44 | KR121: 1.38 | KS121: 1.38 | KT121: 1.38 | KU121: 1.38 | KV121: 1.6 | KW121: 1.6 | LD121: 0.42 | LE121: 0.42 | LF121: 0.42 | LG121: 0.42 | LH121: 0.26 | LI121: 0.26 | LP121: 0.8 | LQ121: 0.8 | LR121: 0.8 | LS121: 0.8 | LT121: 0.37 | LU121: 0.37 | MB121: 0.76 | MC121: 1.11 | MD121: 0.37 | ME121: 0.37 | MF121: 0.37 | MG121: 0.37 | MH121: 0.42 | MI121: 0.42 | MJ121: 0.4 | MK121: 0.4 | ML121: 0.4 | MM121: 0.42 | MN121: 1.43 | MO121: 1.43 | MP121: 0.58 | MQ121: 0.58 | MR121: 0.75 | MS121: 0.75 | MT121: 2.55 | MU121: 2.55 | MV121: 2.55 | MW121: 2.55 | MX121: 2.55 | MY121: 2.55 | MZ121: 1.98 | NA121: 1.98 | NB121: 3.6 | NC121: 3.6 | ND121: 3.27 | NE121: 3.27 | NF121: 3.435 | NG121: 3.435 | NH121: 3.92 | NI121: 3.92 | NL121: 1.73 | NM121: 1.73 | NN121: 2.83 | NO121: 2.83 | NP121: 2.83 | NQ121: 2.83 | NR121: 2.64 | NS121: 2.64 | NT121: 2.82 | NU121: 2.82 | NX121: 3.81 | NY121: 3.81 | NZ121: 6.46 | OA121: 6.46 | OB121: 6.46 | OC121: 6.46 | OD121: 6.72 | OE121: 6.72 | OJ121: 2.71 | OK121: 2.71 | OL121: 10.9 | OM121: 10.9 | ON121: 10.9 | OO121: 10.9 | OP121: 0.95 | OQ121: 0.95 | OR121: 3.61 | OS121: 3.61 | OV121: 1.53 | OW121: 1.53 | OX121: 0.62 | OY121: 0.62 | OZ121: 0.59 | PA121: 0.59 | PB121: 0.58 | PC121: 0.58 | PD121: 2.68 | PE121: 2.68 | PH121: 1.73 | PI121: 1.73 | PJ121: 0.71 | PK121: 0.71 | PL121: 0.71 | PM121: 0.66 | PN121: 0.66 | PO121: 0.66 | PP121: 3.03 | PQ121: 3.03 | PT121: 1.27 | PU121: 1.27 | PV121: 0.37 | PW121: 0.37 | PX121: 0.45 | PY121: 0.45 | PZ121: 0.45 | QA121: 0.45 | QB121: 0.45 | QC121: 0.45 | QD121: 0.42 | QE121: 0.42 | QF121: 0.57 | QG121: 0.57 | QH121: 0.32 | QI121: 0.32 | QJ121: 0.33 | QK121: 0.33 | QL121: 0.33 | QM121: 0.33 | QN121: 0.33 | QO121: 0.33 | QP121: 0.33 | QQ121: 0.33 | QR121: 0.62 | QS121: 0.62 | QT121: 0.32 | QU121: 0.32 | QV121: 0.33 | QW121: 0.33 | QX121: 0.33 | QY121: 0.33 | QZ121: 0.33 | RA121: 0.33 | RB121: 0.34 | RC121: 0.34 | RD121: 0.81 | RE121: 0.81 | RF121: 0.34 | RG121: 0.34 | RH121: 0.36 | RI121: 0.36 | RJ121: 0.36 | RK121: 0.36 | RL121: 0.36 | RM121: 0.36 | RN121: 0.36 | RO121: 0.36 | RP121: 1.67 | RQ121: 1.67 | RR121: 0.42 | RS121: 0.42 | RT121: 0.54 | RU121: 0.54 | RV121: 0.54 | RW121: 0.54 | RX121: 0.54 | RY121: 0.54 | RZ121: 0.5 | SA121: 0.5 | SB121: 1.01 | SC121: 1.01 | SD121: 0.35 | SE121: 0.35 | SF121: 0.4 | SG121: 0.4 | SH121: 0.4 | SI121: 0.4 | SJ121: 0.4 | SK121: 0.4 | SL121: 0.39 | SM121: 0.39 | SN121: 0.9 | SO121: 0.9 | SZ121: 0.95 | TA121: 0.95 | TX121: 0.71 | TY121: 0.71
A122: 6 | B122: 2.96 | C122: 2.96 | D122: 5.1 | E122: 5.1 | F122: 8.27 | G122: 8.27 | H122: 4.31 | I122: 4.31 | J122: 8.39 | K122: 8.39 | Z122: 0.81 | AL122: 1.53 | AM122: 1.53 | AX122: 1.7 | AY122: 1.7 | BJ122: 1.05 | BV122: 0.49 | CH122: 0.96 | CI122: 0.96 | DF122: 8.6 | DG122: 8.6 | DH122: 12.42 | DI122: 8.61 | DJ122: 5.76 | DK122: 5.76 | DL122: 5.56 | DM122: 5.56 | DN122: 5.76 | DO122: 5.76 | DP122: 5.56 | DQ122: 5.76 | DR122: 5.76 | DS122: 5.76 | DT122: 5.56 | DU122: 5.56 | DV122: 8.46 | DW122: 8.24 | DX122: 8.46 | DY122: 8.46 | DZ122: 8.24 | EA122: 8.24 | EB122: 10.31 | EC122: 10.31 | ED122: 4.72 | EE122: 4.52 | EF122: 4.52 | EG122: 4.52 | EH122: 8.03 | EI122: 8.03 | EJ122: 7.4 | EK122: 7.4 | EL122: 7.4 | EM122: 8.02 | EN122: 6.15 | EO122: 6.15 | EP122: 6.25 | EQ122: 6.25 | ER122: 4.12 | ES122: 6.13 | ET122: 5.02 | EU122: 5.02 | EV122: 5.02 | EW122: 5.02 | EX122: 5.02 | EY122: 1.67 | EZ122: 3.78 | FA122: 3.78 | FB122: 3.78 | FC122: 3.78 | FD122: 2.41 | FE122: 2.41 | FF122: 2.41 | FG122: 2.41 | FH122: 2.41 | FI122: 2.41 | FJ122: 0.84 | FK122: 0.84 | FL122: 0.84 | FM122: 0.84 | FN122: 0.85 | FO122: 0.85 | FP122: 2.97 | FQ122: 2.97 | FR122: 2.97 | FS122: 2.97 | FT122: 5.67 | FU122: 5.67 | FV122: 5.67 | FW122: 5.67 | FX122: 5.67 | FY122: 5.67 | FZ122: 5.67 | GA122: 5.67 | GB122: 2.99 | GC122: 2.99 | GD122: 0.59 | GE122: 0.59 | GF122: 1.93 | GG122: 1.93 | GH122: 0.65 | GI122: 0.65 | GJ122: 0.58 | GK122: 0.58 | GL122: 0.58 | GM122: 0.58 | GN122: 0.82 | GO122: 0.82 | GP122: 0.37 | GQ122: 0.37 | GZ122: 3.53 | HA122: 3.53 | HB122: 8.95 | HC122: 8.95 | HD122: 8.95 | HE122: 8.95 | HF122: 6.32 | HG122: 6.32 | HH122: 6.32 | HI122: 6.32 | HJ122: 6.32 | HK122: 6.32 | HL122: 7.79 | HM122: 7.79 | HN122: 6.48 | HO122: 6.48 | HP122: 6.48 | HQ122: 6.48 | HR122: 8.34 | HS122: 8.34 | HT122: 8.34 | HU122: 8.34 | HX122: 3.23 | HY122: 3.23 | HZ122: 8.07 | IA122: 8.07 | IB122: 6.69 | IC122: 6.69 | ID122: 5.87 | IE122: 5.87 | IJ122: 20.55 | IK122: 20.55 | IL122: 33.11 | IM122: 33.11 | IN122: 22.19 | IO122: 22.19 | IP122: 22.19 | IQ122: 22.19 | IV122: 20.55 | IW122: 20.55 | IX122: 33.11 | IY122: 33.11 | IZ122: 22.19 | JA122: 22.19 | JB122: 22.19 | JC122: 22.19 | JH122: 7.1 | JI122: 7.1 | JJ122: 28.08 | JK122: 28.08 | JL122: 28.08 | JM122: 28.08 | JN122: 18.97 | JO122: 18.97 | JP122: 18.97 | JQ122: 18.97 | JT122: 2.07 | JU122: 2.07 | JV122: 2.07 | JW122: 2.07 | JX122: 2.07 | JY122: 2.07 | KF122: 1.08 | KG122: 1.08 | KH122: 0.59 | KI122: 0.59 | KJ122: 0.59 | KK122: 0.59 | KR122: 2.16 | KS122: 2.16 | KT122: 2.16 | KU122: 2.16 | KV122: 2.99 | KW122: 2.99 | LD122: 0.55 | LE122: 0.55 | LF122: 0.55 | LG122: 0.55 | LH122: 0.28 | LI122: 0.28 | LP122: 1.17 | LQ122: 1.17 | LR122: 1.17 | LS122: 1.17 | LT122: 0.44 | LU122: 0.44 | MB122: 1.32 | MC122: 1.82 | MD122: 0.5 | ME122: 0.5 | MF122: 0.49 | MG122: 0.49 | MH122: 0.62 | MI122: 0.62 | MJ122: 0.56 | MK122: 0.56 | ML122: 0.56 | MM122: 0.6 | MN122: 2.75 | MO122: 2.75 | MP122: 1 | MQ122: 1 | MR122: 1.34 | MS122: 1.34 | MT122: 5.69 | MU122: 5.69 | MV122: 5.69 | MW122: 5.69 | MX122: 5.69 | MY122: 5.69 | MZ122: 4.31 | NA122: 4.31 | NB122: 8.66 | NC122: 8.66 | ND122: 7.97 | NE122: 7.97 | NF122: 8.315 | NG122: 8.315 | NH122: 9.39 | NI122: 9.39 | NL122: 3.57 | NM122: 3.57 | NN122: 6.49 | NO122: 6.49 | NP122: 6.49 | NQ122: 6.49 | NR122: 6.11 | NS122: 6.11 | NT122: 6.52 | NU122: 6.52 | NX122: 6.94 | NY122: 6.94 | NZ122: 11.48 | OA122: 11.48 | OB122: 11.48 | OC122: 11.48 | OD122: 11.93 | OE122: 11.93 | OJ122: 4.9 | OK122: 4.9 | OL122: 17.69 | OM122: 17.69 | ON122: 17.69 | OO122: 17.69 | OP122: 1.91 | OQ122: 1.91 | OR122: 6.9 | OS122: 6.9 | OV122: 2.7 | OW122: 2.7 | OX122: 0.99 | OY122: 0.99 | OZ122: 0.94 | PA122: 0.94 | PB122: 0.93 | PC122: 0.93 | PD122: 5.34 | PE122: 5.34 | PH122: 2.95 | PI122: 2.95 | PJ122: 1.06 | PK122: 1.06 | PL122: 1.06 | PM122: 0.99 | PN122: 0.99 | PO122: 0.99 | PP122: 5.31 | PQ122: 5.31 | PT122: 1.97 | PU122: 1.97 | PV122: 0.46 | PW122: 0.46 | PX122: 0.59 | PY122: 0.59 | PZ122: 0.59 | QA122: 0.59 | QB122: 0.59 | QC122: 0.59 | QD122: 0.55 | QE122: 0.55 | QF122: 0.77 | QG122: 0.77 | QH122: 0.34 | QI122: 0.34 | QJ122: 0.36 | QK122: 0.36 | QL122: 0.36 | QM122: 0.36 | QN122: 0.36 | QO122: 0.36 | QP122: 0.36 | QQ122: 0.36 | QR122: 0.85 | QS122: 0.85 | QT122: 0.35 | QU122: 0.35 | QV122: 0.37 | QW122: 0.37 | QX122: 0.37 | QY122: 0.37 | QZ122: 0.37 | RA122: 0.37 | RB122: 0.37 | RC122: 0.37 | RD122: 1.18 | RE122: 1.18 | RF122: 0.37 | RG122: 0.37 | RH122: 0.43 | RI122: 0.43 | RJ122: 0.43 | RK122: 0.43 | RL122: 0.43 | RM122: 0.43 | RN122: 0.42 | RO122: 0.42 | RP122: 2.65 | RQ122: 2.65 | RR122: 0.56 | RS122: 0.56 | RT122: 0.77 | RU122: 0.77 | RV122: 0.77 | RW122: 0.77 | RX122: 0.77 | RY122: 0.77 | RZ122: 0.7 | SA122: 0.7 | SB122: 1.53 | SC122: 1.53 | SD122: 0.41 | SE122: 0.41 | SF122: 0.5 | SG122: 0.5 | SH122: 0.5 | SI122: 0.5 | SJ122: 0.5 | SK122: 0.5 | SL122: 0.47 | SM122: 0.47 | SN122: 1.33 | SO122: 1.33 | SZ122: 1.43 | TA122: 1.43 | TX122: 1.01 | TY122: 1.01
A123: 7 | B123: 4.35 | C123: 4.35 | D123: 6.8 | E123: 6.8 | F123: 12.24 | G123: 12.24 | H123: 7.11 | I123: 7.11 | J123: 13.24 | K123: 13.24 | Z123: 1.08 | AL123: 2.17 | AM123: 2.17 | AX123: 2.44 | AY123: 2.44 | BJ123: 1.44 | BV123: 0.59 | CH123: 1.31 | CI123: 1.31 | DF123: 12.96 | DG123: 12.96 | DH123: 17.3 | DI123: 12.96 | DJ123: 9.41 | DK123: 9.41 | DL123: 9.08 | DM123: 9.08 | DN123: 9.41 | DO123: 9.41 | DP123: 9.08 | DQ123: 9.41 | DR123: 9.41 | DS123: 9.41 | DT123: 9.08 | DU123: 9.08 | DV123: 13.76 | DW123: 13.39 | DX123: 13.76 | DY123: 13.76 | DZ123: 13.39 | EA123: 13.39 | EB123: 16.02 | EC123: 16.02 | ED123: 7.03 | EE123: 6.73 | EF123: 6.73 | EG123: 6.73 | EH123: 10.76 | EI123: 10.76 | EJ123: 11.58 | EK123: 11.58 | EL123: 11.58 | EM123: 12.46 | EN123: 10.07 | EO123: 10.07 | EP123: 10.2 | EQ123: 10.2 | ER123: 6.12 | ES123: 8.46 | ET123: 7.19 | EU123: 7.19 | EV123: 7.19 | EW123: 7.19 | EX123: 7.19 | EY123: 2.56 | EZ123: 6.32 | FA123: 6.32 | FB123: 6.32 | FC123: 6.32 | FD123: 3.51 | FE123: 3.51 | FF123: 3.51 | FG123: 3.51 | FH123: 3.51 | FI123: 3.51 | FJ123: 1.22 | FK123: 1.22 | FL123: 1.23 | FM123: 1.23 | FN123: 1.23 | FO123: 1.23 | FP123: 4.37 | FQ123: 4.37 | FR123: 4.37 | FS123: 4.37 | FT123: 8.96 | FU123: 8.96 | FV123: 8.96 | FW123: 8.96 | FX123: 8.96 | FY123: 8.96 | FZ123: 8.96 | GA123: 8.96 | GB123: 4.65 | GC123: 4.65 | GD123: 0.85 | GE123: 0.85 | GF123: 2.73 | GG123: 2.73 | GH123: 0.9 | GI123: 0.9 | GJ123: 0.8 | GK123: 0.8 | GL123: 0.8 | GM123: 0.8 | GN123: 1.1 | GO123: 1.1 | GP123: 0.42 | GQ123: 0.42 | GZ123: 5.21 | HA123: 5.21 | HB123: 13.24 | HC123: 13.24 | HD123: 13.24 | HE123: 13.24 | HF123: 9.91 | HG123: 9.91 | HH123: 9.91 | HI123: 9.91 | HJ123: 9.91 | HK123: 9.91 | HL123: 12.27 | HM123: 12.27 | HN123: 10.24 | HO123: 10.24 | HP123: 10.24 | HQ123: 10.24 | HR123: 12.93 | HS123: 12.93 | HT123: 12.93 | HU123: 12.93 | HX123: 4.76 | HY123: 4.76 | HZ123: 12 | IA123: 12 | IB123: 10.35 | IC123: 10.35 | ID123: 9.25 | IE123: 9.25 | IJ123: 25.38 | IK123: 25.38 | IL123: 44.41 | IM123: 44.41 | IN123: 32.15 | IO123: 32.15 | IP123: 32.15 | IQ123: 32.15 | IV123: 25.38 | IW123: 25.38 | IX123: 44.41 | IY123: 44.41 | IZ123: 32.15 | JA123: 32.15 | JB123: 32.15 | JC123: 32.15 | JH123: 10.66 | JI123: 10.66 | JJ123: 38.57 | JK123: 38.57 | JL123: 38.57 | JM123: 38.57 | JN123: 27.79 | JO123: 27.79 | JP123: 27.79 | JQ123: 27.79 | JT123: 3 | JU123: 3 | JV123: 3 | JW123: 3 | JX123: 3 | JY123: 3 | KF123: 1.49 | KG123: 1.49 | KH123: 0.81 | KI123: 0.81 | KJ123: 0.81 | KK123: 0.81 | KR123: 3.12 | KS123: 3.12 | KT123: 3.12 | KU123: 3.12 | KV123: 5.01 | KW123: 5.01 | LD123: 0.73 | LE123: 0.73 | LF123: 0.73 | LG123: 0.73 | LH123: 0.29 | LI123: 0.29 | LP123: 1.62 | LQ123: 1.62 | LR123: 1.62 | LS123: 1.62 | LT123: 0.55 | LU123: 0.55 | MB123: 1.94 | MC123: 2.54 | MD123: 0.67 | ME123: 0.67 | MF123: 0.65 | MG123: 0.65 | MH123: 0.85 | MI123: 0.85 | MJ123: 0.75 | MK123: 0.75 | ML123: 0.76 | MM123: 0.83 | MN123: 4.19 | MO123: 4.19 | MP123: 1.5 | MQ123: 1.5 | MR123: 2.03 | MS123: 2.03 | MT123: 9.43 | MU123: 9.43 | MV123: 9.43 | MW123: 9.43 | MX123: 9.43 | MY123: 9.43 | MZ123: 6.55 | NA123: 6.55 | NB123: 13.86 | NC123: 13.86 | ND123: 12.85 | NE123: 12.85 | NF123: 13.355 | NG123: 13.355 | NH123: 14.99 | NI123: 14.99 | NL123: 5.43 | NM123: 5.43 | NN123: 10.48 | NO123: 10.48 | NP123: 10.48 | NQ123: 10.48 | NR123: 9.94 | NS123: 9.94 | NT123: 10.57 | NU123: 10.57 | NX123: 10.66 | NY123: 10.66 | NZ123: 17.47 | OA123: 17.47 | OB123: 17.47 | OC123: 17.47 | OD123: 18.13 | OE123: 18.13 | OJ123: 7.18 | OK123: 7.18 | OL123: 24.26 | OM123: 24.26 | ON123: 24.26 | OO123: 24.26 | OP123: 3.14 | OQ123: 3.14 | OR123: 10.53 | OS123: 10.53 | OV123: 3.85 | OW123: 3.85 | OX123: 1.41 | OY123: 1.41 | OZ123: 1.33 | PA123: 1.33 | PB123: 1.31 | PC123: 1.31 | PD123: 8.22 | PE123: 8.22 | PH123: 4.17 | PI123: 4.17 | PJ123: 1.55 | PK123: 1.55 | PL123: 1.55 | PM123: 1.43 | PN123: 1.43 | PO123: 1.43 | PP123: 8.38 | PQ123: 8.38 | PT123: 2.84 | PU123: 2.84 | PV123: 0.6 | PW123: 0.6 | PX123: 0.8 | PY123: 0.8 | PZ123: 0.8 | QA123: 0.8 | QB123: 0.8 | QC123: 0.8 | QD123: 0.75 | QE123: 0.75 | QF123: 1.01 | QG123: 1.01 | QH123: 0.37 | QI123: 0.37 | QJ123: 0.41 | QK123: 0.41 | QL123: 0.41 | QM123: 0.41 | QN123: 0.41 | QO123: 0.41 | QP123: 0.41 | QQ123: 0.41 | QR123: 1.14 | QS123: 1.14 | QT123: 0.38 | QU123: 0.38 | QV123: 0.43 | QW123: 0.43 | QX123: 0.43 | QY123: 0.43 | QZ123: 0.43 | RA123: 0.43 | RB123: 0.43 | RC123: 0.43 | RD123: 1.64 | RE123: 1.64 | RF123: 0.44 | RG123: 0.44 | RH123: 0.53 | RI123: 0.53 | RJ123: 0.53 | RK123: 0.53 | RL123: 0.53 | RM123: 0.53 | RN123: 0.51 | RO123: 0.51 | RP123: 3.88 | RQ123: 3.88 | RR123: 0.77 | RS123: 0.77 | RT123: 1.1 | RU123: 1.1 | RV123: 1.1 | RW123: 1.1 | RX123: 1.1 | RY123: 1.1 | RZ123: 1 | SA123: 1 | SB123: 2.17 | SC123: 2.17 | SD123: 0.5 | SE123: 0.5 | SF123: 0.64 | SG123: 0.64 | SH123: 0.64 | SI123: 0.64 | SJ123: 0.64 | SK123: 0.64 | SL123: 0.61 | SM123: 0.61 | SN123: 1.87 | SO123: 1.87 | SZ123: 2.02 | TA123: 2.02 | TX123: 1.39 | TY123: 1.39
A124: 8 | B124: 5.97 | C124: 5.97 | D124: 8.6 | E124: 8.6 | F124: 16.93 | G124: 16.93 | H124: 11.18 | I124: 11.18 | J124: 19.54 | K124: 19.54 | Z124: 1.39 | AL124: 2.92 | AM124: 2.92 | AX124: 3.29 | AY124: 3.29 | BJ124: 1.9 | BV124: 0.71 | CH124: 1.71 | CI124: 1.71 | DF124: 18.03 | DG124: 18.03 | DH124: 22.78 | DI124: 18.04 | DJ124: 14.07 | DK124: 14.07 | DL124: 13.58 | DM124: 13.58 | DN124: 14.07 | DO124: 14.07 | DP124: 13.58 | DQ124: 14.07 | DR124: 14.07 | DS124: 14.07 | DT124: 13.58 | DU124: 13.58 | DV124: 20.35 | DW124: 19.8 | DX124: 20.35 | DY124: 20.35 | DZ124: 19.8 | EA124: 19.8 | EB124: 22.93 | EC124: 22.93 | ED124: 9.71 | EE124: 9.31 | EF124: 9.31 | EG124: 9.31 | EH124: 13.62 | EI124: 13.62 | EJ124: 16.71 | EK124: 16.71 | EL124: 16.71 | EM124: 17.86 | EN124: 14.68 | EO124: 14.68 | EP124: 14.93 | EQ124: 14.93 | ER124: 8.44 | ES124: 11.04 | ET124: 9.65 | EU124: 9.65 | EV124: 9.65 | EW124: 9.65 | EX124: 9.65 | EY124: 3.68 | EZ124: 9.63 | FA124: 9.63 | FB124: 9.63 | FC124: 9.63 | FD124: 4.8 | FE124: 4.8 | FF124: 4.8 | FG124: 4.8 | FH124: 4.8 | FI124: 4.8 | FJ124: 1.72 | FK124: 1.72 | FL124: 1.73 | FM124: 1.73 | FN124: 1.73 | FO124: 1.73 | FP124: 5.99 | FQ124: 5.99 | FR124: 5.99 | FS124: 5.99 | FT124: 13.04 | FU124: 13.04 | FV124: 13.04 | FW124: 13.04 | FX124: 13.04 | FY124: 13.04 | FZ124: 13.04 | GA124: 13.04 | GB124: 6.7 | GC124: 6.7 | GD124: 1.19 | GE124: 1.19 | GF124: 3.65 | GG124: 3.65 | GH124: 1.24 | GI124: 1.24 | GJ124: 1.11 | GK124: 1.11 | GL124: 1.11 | GM124: 1.11 | GN124: 1.42 | GO124: 1.42 | GP124: 0.5 | GQ124: 0.5 | GZ124: 7.17 | HA124: 7.17 | HB124: 18.28 | HC124: 18.28 | HD124: 18.28 | HE124: 18.28 | HF124: 14.37 | HG124: 14.37 | HH124: 14.37 | HI124: 14.37 | HJ124: 14.37 | HK124: 14.37 | HL124: 17.82 | HM124: 17.82 | HN124: 14.93 | HO124: 14.93 | HP124: 14.93 | HQ124: 14.93 | HR124: 18.54 | HS124: 18.54 | HT124: 18.54 | HU124: 18.54 | HX124: 6.54 | HY124: 6.54 | HZ124: 16.64 | IA124: 16.64 | IB124: 14.76 | IC124: 14.76 | ID124: 13.48 | IE124: 13.48 | IJ124: 30.06 | IK124: 30.06 | IL124: 55.41 | IM124: 55.41 | IN124: 43.54 | IO124: 43.54 | IP124: 43.54 | IQ124: 43.54 | IV124: 30.06 | IW124: 30.06 | IX124: 55.41 | IY124: 55.41 | IZ124: 43.54 | JA124: 43.54 | JB124: 43.54 | JC124: 43.54 | JH124: 14.8 | JI124: 14.8 | JJ124: 48.91 | JK124: 48.91 | JL124: 48.91 | JM124: 48.91 | JN124: 38 | JO124: 38 | JP124: 38 | JQ124: 38 | JT124: 4.08 | JU124: 4.08 | JV124: 4.08 | JW124: 4.08 | JX124: 4.08 | JY124: 4.08 | KF124: 1.96 | KG124: 1.96 | KH124: 1.09 | KI124: 1.09 | KJ124: 1.09 | KK124: 1.09 | KR124: 4.25 | KS124: 4.25 | KT124: 4.25 | KU124: 4.25 | KV124: 7.67 | KW124: 7.67 | LD124: 0.97 | LE124: 0.97 | LF124: 0.97 | LG124: 0.97 | LH124: 0.32 | LI124: 0.32 | LP124: 2.15 | LQ124: 2.15 | LR124: 2.15 | LS124: 2.15 | LT124: 0.7 | LU124: 0.7 | MB124: 2.63 | MC124: 3.3 | MD124: 0.87 | ME124: 0.87 | MF124: 0.85 | MG124: 0.85 | MH124: 1.13 | MI124: 1.13 | MJ124: 0.98 | MK124: 0.98 | ML124: 1 | MM124: 1.1 | MN124: 5.59 | MO124: 5.59 | MP124: 2.03 | MQ124: 2.03 | MR124: 2.74 | MS124: 2.74 | MT124: 13.37 | MU124: 13.37 | MV124: 13.37 | MW124: 13.37 | MX124: 13.37 | MY124: 13.37 | MZ124: 9.15 | NA124: 9.15 | NB124: 20.24 | NC124: 20.24 | ND124: 18.89 | NE124: 18.89 | NF124: 19.565 | NG124: 19.565 | NH124: 21.81 | NI124: 21.81 | NL124: 7.51 | NM124: 7.51 | NN124: 15.25 | NO124: 15.25 | NP124: 15.25 | NQ124: 15.25 | NR124: 14.56 | NS124: 14.56 | NT124: 15.42 | NU124: 15.42 | NX124: 14.48 | NY124: 14.48 | NZ124: 23.67 | OA124: 23.67 | OB124: 23.67 | OC124: 23.67 | OD124: 24.53 | OE124: 24.53 | OJ124: 10.07 | OK124: 10.07 | OL124: 31.77 | OM124: 31.77 | ON124: 31.77 | OO124: 31.77 | OP124: 4.97 | OQ124: 4.97 | OR124: 15.36 | OS124: 15.36 | OV124: 5.34 | OW124: 5.34 | OX124: 1.99 | OY124: 1.99 | OZ124: 1.88 | PA124: 1.88 | PB124: 1.85 | PC124: 1.85 | PD124: 12.24 | PE124: 12.24 | PH124: 6.04 | PI124: 6.04 | PJ124: 2.15 | PK124: 2.15 | PL124: 2.15 | PM124: 2 | PN124: 2 | PO124: 2 | PP124: 12.22 | PQ124: 12.22 | PT124: 3.86 | PU124: 3.86 | PV124: 0.79 | PW124: 0.79 | PX124: 1.08 | PY124: 1.08 | PZ124: 1.08 | QA124: 1.08 | QB124: 1.08 | QC124: 1.08 | QD124: 1.01 | QE124: 1.01 | QF124: 1.3 | QG124: 1.3 | QH124: 0.42 | QI124: 0.42 | QJ124: 0.48 | QK124: 0.48 | QL124: 0.48 | QM124: 0.48 | QN124: 0.48 | QO124: 0.48 | QP124: 0.47 | QQ124: 0.47 | QR124: 1.48 | QS124: 1.48 | QT124: 0.44 | QU124: 0.44 | QV124: 0.51 | QW124: 0.51 | QX124: 0.51 | QY124: 0.51 | QZ124: 0.51 | RA124: 0.51 | RB124: 0.51 | RC124: 0.51 | RD124: 2.18 | RE124: 2.18 | RF124: 0.53 | RG124: 0.53 | RH124: 0.66 | RI124: 0.66 | RJ124: 0.66 | RK124: 0.66 | RL124: 0.66 | RM124: 0.66 | RN124: 0.64 | RO124: 0.64 | RP124: 5.31 | RQ124: 5.31 | RR124: 1.07 | RS124: 1.07 | RT124: 1.53 | RU124: 1.53 | RV124: 1.53 | RW124: 1.53 | RX124: 1.53 | RY124: 1.53 | RZ124: 1.39 | SA124: 1.39 | SB124: 2.92 | SC124: 2.92 | SD124: 0.64 | SE124: 0.64 | SF124: 0.83 | SG124: 0.83 | SH124: 0.83 | SI124: 0.83 | SJ124: 0.83 | SK124: 0.83 | SL124: 0.79 | SM124: 0.79 | SN124: 2.5 | SO124: 2.5 | SZ124: 2.71 | TA124: 2.71 | TX124: 1.82 | TY124: 1.82
A125: 9 | B125: 7.77 | C125: 7.77 | D125: 10.34 | E125: 10.34 | F125: 22.21 | G125: 22.21 | H125: 16.11 | I125: 16.11 | J125: 26.76 | K125: 26.76 | Z125: 1.75 | AL125: 3.76 | AM125: 3.75 | AX125: 4.25 | AY125: 4.25 | BJ125: 2.41 | BV125: 0.85 | CH125: 2.16 | CI125: 2.16 | DF125: 23.68 | DG125: 23.68 | DH125: 28.36 | DI125: 23.69 | DJ125: 19.67 | DK125: 19.67 | DL125: 18.98 | DM125: 18.98 | DN125: 19.67 | DO125: 19.67 | DP125: 18.98 | DQ125: 19.67 | DR125: 19.67 | DS125: 19.67 | DT125: 18.98 | DU125: 18.98 | DV125: 28.09 | DW125: 27.32 | DX125: 28.09 | DY125: 28.09 | DZ125: 27.32 | EA125: 27.32 | EB125: 30.88 | EC125: 30.88 | ED125: 12.7 | EE125: 12.19 | EF125: 12.19 | EG125: 12.19 | EH125: 16.41 | EI125: 16.41 | EJ125: 22.67 | EK125: 22.67 | EL125: 22.67 | EM125: 24.1 | EN125: 20.51 | EO125: 20.51 | EP125: 20.78 | EQ125: 20.78 | ER125: 11.03 | ES125: 13.6 | ET125: 12.22 | EU125: 12.22 | EV125: 12.22 | EW125: 12.22 | EX125: 12.22 | EY125: 5 | EZ125: 13.64 | FA125: 13.64 | FB125: 13.64 | FC125: 13.64 | FD125: 6.24 | FE125: 6.24 | FF125: 6.24 | FG125: 6.24 | FH125: 6.24 | FI125: 6.24 | FJ125: 2.33 | FK125: 2.33 | FL125: 2.33 | FM125: 2.33 | FN125: 2.33 | FO125: 2.33 | FP125: 7.8 | FQ125: 7.8 | FR125: 7.8 | FS125: 7.8 | FT125: 17.83 | FU125: 17.83 | FV125: 17.83 | FW125: 17.83 | FX125: 17.83 | FY125: 17.83 | FZ125: 17.83 | GA125: 17.83 | GB125: 9.1 | GC125: 9.1 | GD125: 1.6 | GE125: 1.6 | GF125: 4.67 | GG125: 4.67 | GH125: 1.65 | GI125: 1.65 | GJ125: 1.5 | GK125: 1.5 | GL125: 1.5 | GM125: 1.5 | GN125: 1.78 | GO125: 1.78 | GP125: 0.61 | GQ125: 0.6 | GZ125: 9.35 | HA125: 9.35 | HB125: 23.95 | HC125: 23.95 | HD125: 23.95 | HE125: 23.95 | HF125: 19.62 | HG125: 19.62 | HH125: 19.62 | HI125: 19.62 | HJ125: 19.62 | HK125: 19.62 | HL125: 24.35 | HM125: 24.35 | HN125: 20.47 | HO125: 20.47 | HP125: 20.47 | HQ125: 20.47 | HR125: 25.06 | HS125: 25.06 | HT125: 25.06 | HU125: 25.06 | HX125: 8.52 | HY125: 8.52 | HZ125: 21.88 | IA125: 21.88 | IB125: 19.84 | IC125: 19.84 | ID125: 18.47 | IE125: 18.47 | IJ125: 34.56 | IK125: 34.56 | IL125: 65.94 | IM125: 65.94 | IN125: 55.67 | IO125: 55.67 | IP125: 55.67 | IQ125: 55.67 | IV125: 34.56 | IW125: 34.56 | IX125: 65.94 | IY125: 65.94 | IZ125: 55.67 | JA125: 55.67 | JB125: 55.67 | JC125: 55.67 | JH125: 19.41 | JI125: 19.41 | JJ125: 58.91 | JK125: 58.91 | JL125: 58.91 | JM125: 58.91 | JN125: 49.36 | JO125: 49.36 | JP125: 49.36 | JQ125: 49.36 | JT125: 5.29 | JU125: 5.29 | JV125: 5.29 | JW125: 5.29 | JX125: 5.29 | JY125: 5.29 | KF125: 2.5 | KG125: 2.5 | KH125: 1.43 | KI125: 1.43 | KJ125: 1.43 | KK125: 1.43 | KR125: 5.51 | KS125: 5.51 | KT125: 5.51 | KU125: 5.51 | KV125: 10.95 | KW125: 10.95 | LD125: 1.26 | LE125: 1.26 | LF125: 1.26 | LG125: 1.26 | LH125: 0.35 | LI125: 0.35 | LP125: 2.74 | LQ125: 2.74 | LR125: 2.74 | LS125: 2.74 | LT125: 0.88 | LU125: 0.88 | MB125: 3.14 | MC125: 3.8 | MD125: 1.04 | ME125: 1.04 | MF125: 1.01 | MG125: 1.01 | MH125: 1.35 | MI125: 1.35 | MJ125: 1.17 | MK125: 1.17 | ML125: 1.2 | MM125: 1.31 | MN125: 6.72 | MO125: 6.72 | MP125: 2.49 | MQ125: 2.49 | MR125: 3.34 | MS125: 3.34 | MT125: 16.78 | MU125: 16.78 | MV125: 16.78 | MW125: 16.78 | MX125: 16.78 | MY125: 16.78 | MZ125: 10.59 | NA125: 10.59 | NB125: 23.96 | NC125: 23.96 | ND125: 22.44 | NE125: 22.44 | NF125: 23.2 | NG125: 23.2 | NH125: 25.77 | NI125: 25.77 | NL125: 8.86 | NM125: 8.86 | NN125: 18.52 | NO125: 18.52 | NP125: 18.52 | NQ125: 18.52 | NR125: 17.73 | NS125: 17.73 | NT125: 18.74 | NU125: 18.74 | NX125: 18.54 | NY125: 18.54 | NZ125: 30.34 | OA125: 30.34 | OB125: 30.34 | OC125: 30.34 | OD125: 31.4 | OE125: 31.4 | OJ125: 13.23 | OK125: 13.23 | OL125: 38.96 | OM125: 38.96 | ON125: 38.96 | OO125: 38.96 | OP125: 7.29 | OQ125: 7.29 | OR125: 20.91 | OS125: 20.91 | OV125: 6.42 | OW125: 6.42 | OX125: 2.44 | OY125: 2.44 | OZ125: 2.31 | PA125: 2.31 | PB125: 2.27 | PC125: 2.27 | PD125: 15.36 | PE125: 15.36 | PH125: 7.74 | PI125: 7.74 | PJ125: 2.88 | PK125: 2.88 | PL125: 2.88 | PM125: 2.69 | PN125: 2.69 | PO125: 2.69 | PP125: 16.77 | PQ125: 16.77 | PT125: 4.99 | PU125: 4.99 | PV125: 1.04 | PW125: 1.04 | PX125: 1.43 | PY125: 1.43 | PZ125: 1.43 | QA125: 1.43 | QB125: 1.43 | QC125: 1.43 | QD125: 1.34 | QE125: 1.34 | QF125: 1.62 | QG125: 1.62 | QH125: 0.48 | QI125: 0.48 | QJ125: 0.56 | QK125: 0.56 | QL125: 0.56 | QM125: 0.56 | QN125: 0.56 | QO125: 0.56 | QP125: 0.55 | QQ125: 0.55 | QR125: 1.86 | QS125: 1.86 | QT125: 0.51 | QU125: 0.51 | QV125: 0.61 | QW125: 0.61 | QX125: 0.61 | QY125: 0.61 | QZ125: 0.61 | RA125: 0.61 | RB125: 0.6 | RC125: 0.6 | RD125: 2.78 | RE125: 2.78 | RF125: 0.65 | RG125: 0.65 | RH125: 0.83 | RI125: 0.83 | RJ125: 0.83 | RK125: 0.83 | RL125: 0.83 | RM125: 0.83 | RN125: 0.8 | RO125: 0.8 | RP125: 6.9 | RQ125: 6.9 | RR125: 1.45 | RS125: 1.45 | RT125: 2.06 | RU125: 2.06 | RV125: 2.06 | RW125: 2.06 | RX125: 2.06 | RY125: 2.06 | RZ125: 1.89 | SA125: 1.89 | SB125: 3.75 | SC125: 3.75 | SD125: 0.81 | SE125: 0.81 | SF125: 1.08 | SG125: 1.08 | SH125: 1.08 | SI125: 1.08 | SJ125: 1.08 | SK125: 1.08 | SL125: 1.02 | SM125: 1.02 | SN125: 3.2 | SO125: 3.2 | SZ125: 3.48 | TA125: 3.48 | TX125: 2.31 | TY125: 2.31
A126: 10 | B126: 9.55 | C126: 9.55 | D126: 12.03 | E126: 12.03 | F126: 28.02 | G126: 28.02 | H126: 21.77 | I126: 21.77 | J126: 33.58 | K126: 33.58 | Z126: 2.09 | AL126: 4.58 | AM126: 4.58 | AX126: 5.19 | AY126: 5.19 | BJ126: 2.91 | BV126: 0.98 | CH126: 2.61 | CI126: 2.61 | DF126: 29.26 | DG126: 29.26 | DH126: 33.77 | DI126: 29.27 | DJ126: 26.12 | DK126: 26.12 | DL126: 25.2 | DM126: 25.2 | DN126: 26.12 | DO126: 26.12 | DP126: 25.2 | DQ126: 26.12 | DR126: 26.12 | DS126: 26.12 | DT126: 25.2 | DU126: 25.2 | DV126: 36.81 | DW126: 35.79 | DX126: 36.81 | DY126: 36.81 | DZ126: 35.79 | EA126: 35.79 | EB126: 39.72 | EC126: 39.72 | ED126: 15.65 | EE126: 15.03 | EF126: 15.03 | EG126: 15.03 | EH126: 19.11 | EI126: 19.11 | EJ126: 29.34 | EK126: 29.34 | EL126: 29.34 | EM126: 31.06 | EN126: 27.12 | EO126: 27.12 | EP126: 27.41 | EQ126: 27.41 | ER126: 13.58 | ES126: 16.07 | ET126: 14.73 | EU126: 14.73 | EV126: 14.73 | EW126: 14.73 | EX126: 14.73 | EY126: 6.52 | EZ126: 18.29 | FA126: 18.29 | FB126: 18.29 | FC126: 18.29 | FD126: 7.65 | FE126: 7.65 | FF126: 7.65 | FG126: 7.65 | FH126: 7.65 | FI126: 7.65 | FJ126: 3.03 | FK126: 3.03 | FL126: 3.04 | FM126: 3.04 | FN126: 3.04 | FO126: 3.04 | FP126: 9.58 | FQ126: 9.58 | FR126: 9.58 | FS126: 9.58 | FT126: 23.24 | FU126: 23.24 | FV126: 23.24 | FW126: 23.24 | FX126: 23.24 | FY126: 23.24 | FZ126: 23.24 | GA126: 23.24 | GB126: 11.82 | GC126: 11.82 | GD126: 2.09 | GE126: 2.09 | GF126: 5.67 | GG126: 5.67 | GH126: 2.14 | GI126: 2.14 | GJ126: 1.97 | GK126: 1.97 | GL126: 1.97 | GM126: 1.97 | GN126: 2.13 | GO126: 2.13 | GP126: 0.74 | GQ126: 0.72 | GZ126: 11.51 | HA126: 11.51 | HB126: 29.99 | HC126: 29.99 | HD126: 29.99 | HE126: 29.99 | HF126: 25.56 | HG126: 25.56 | HH126: 25.56 | HI126: 25.56 | HJ126: 25.56 | HK126: 25.56 | HL126: 31.75 | HM126: 31.75 | HN126: 26.78 | HO126: 26.78 | HP126: 26.78 | HQ126: 26.78 | HR126: 32.38 | HS126: 32.38 | HT126: 32.38 | HU126: 32.38 | HX126: 10.47 | HY126: 10.47 | HZ126: 27.6 | IA126: 27.6 | IB126: 25.48 | IC126: 25.48 | ID126: 24.14 | IE126: 24.14 | IJ126: 38.84 | IK126: 38.84 | IL126: 75.93 | IM126: 75.93 | IN126: 67.6 | IO126: 67.6 | IP126: 67.6 | IQ126: 67.6 | IV126: 38.84 | IW126: 38.84 | IX126: 75.93 | IY126: 75.93 | IZ126: 67.6 | JA126: 67.6 | JB126: 67.6 | JC126: 67.6 | JH126: 23.96 | JI126: 23.96 | JJ126: 68.45 | JK126: 68.45 | JL126: 68.45 | JM126: 68.45 | JN126: 60.65 | JO126: 60.65 | JP126: 60.65 | JQ126: 60.65 | JT126: 6.48 | JU126: 6.48 | JV126: 6.48 | JW126: 6.48 | JX126: 6.48 | JY126: 6.48 | KF126: 3.02 | KG126: 3.02 | KH126: 1.81 | KI126: 1.81 | KJ126: 1.81 | KK126: 1.81 | KR126: 6.75 | KS126: 6.75 | KT126: 6.75 | KU126: 6.75 | KV126: 14.78 | KW126: 14.78 | LD126: 1.61 | LE126: 1.61 | LF126: 1.61 | LG126: 1.61 | LH126: 0.39 | LI126: 0.39 | LP126: 3.32 | LQ126: 3.32 | LR126: 3.32 | LS126: 3.32 | LT126: 1.11 | LU126: 1.11 | MB126: 3.61 | MC126: 4.26 | MD126: 1.23 | ME126: 1.23 | MF126: 1.2 | MG126: 1.2 | MH126: 1.59 | MI126: 1.59 | MJ126: 1.38 | MK126: 1.38 | ML126: 1.41 | MM126: 1.55 | MN126: 7.66 | MO126: 7.66 | MP126: 2.95 | MQ126: 2.95 | MR126: 3.92 | MS126: 3.92 | MT126: 20.08 | MU126: 20.08 | MV126: 20.08 | MW126: 20.08 | MX126: 20.08 | MY126: 20.08 | MZ126: 12.4 | NA126: 12.4 | NB126: 29.34 | NC126: 29.34 | ND126: 27.59 | NE126: 27.59 | NF126: 28.465 | NG126: 28.465 | NH126: 31.47 | NI126: 31.47 | NL126: 10.25 | NM126: 10.25 | NN126: 22.39 | NO126: 22.39 | NP126: 22.39 | NQ126: 22.39 | NR126: 21.52 | NS126: 21.52 | NT126: 22.69 | NU126: 22.69 | NX126: 22.59 | NY126: 22.59 | NZ126: 37.57 | OA126: 37.57 | OB126: 37.57 | OC126: 37.57 | OD126: 38.68 | OE126: 38.68 | OJ126: 16.08 | OK126: 16.08 | OL126: 45.3 | OM126: 45.3 | ON126: 45.3 | OO126: 45.3 | OP126: 9.87 | OQ126: 9.87 | OR126: 26.62 | OS126: 26.62 | OV126: 7.78 | OW126: 7.78 | OX126: 3.11 | OY126: 3.11 | OZ126: 2.95 | PA126: 2.95 | PB126: 2.9 | PC126: 2.9 | PD126: 19.91 | PE126: 19.91 | PH126: 9.16 | PI126: 9.16 | PJ126: 3.72 | PK126: 3.72 | PL126: 3.72 | PM126: 3.47 | PN126: 3.47 | PO126: 3.47 | PP126: 21.96 | PQ126: 21.96 | PT126: 6.11 | PU126: 6.11 | PV126: 1.35 | PW126: 1.35 | PX126: 1.84 | PY126: 1.84 | PZ126: 1.84 | QA126: 1.84 | QB126: 1.84 | QC126: 1.84 | QD126: 1.73 | QE126: 1.73 | QF126: 1.93 | QG126: 1.93 | QH126: 0.55 | QI126: 0.55 | QJ126: 0.66 | QK126: 0.66 | QL126: 0.66 | QM126: 0.66 | QN126: 0.66 | QO126: 0.66 | QP126: 0.65 | QQ126: 0.65 | QR126: 2.23 | QS126: 2.23 | QT126: 0.6 | QU126: 0.6 | QV126: 0.73 | QW126: 0.73 | QX126: 0.73 | QY126: 0.73 | QZ126: 0.73 | RA126: 0.73 | RB126: 0.72 | RC126: 0.72 | RD126: 3.37 | RE126: 3.37 | RF126: 0.8 | RG126: 0.8 | RH126: 1.02 | RI126: 1.02 | RJ126: 1.02 | RK126: 1.02 | RL126: 1.02 | RM126: 1.02 | RN126: 0.99 | RO126: 0.99 | RP126: 8.47 | RQ126: 8.47 | RR126: 1.93 | RS126: 1.93 | RT126: 2.68 | RU126: 2.68 | RV126: 2.68 | RW126: 2.68 | RX126: 2.68 | RY126: 2.68 | RZ126: 2.49 | SA126: 2.49 | SB126: 4.57 | SC126: 4.57 | SD126: 1.03 | SE126: 1.03 | SF126: 1.36 | SG126: 1.36 | SH126: 1.36 | SI126: 1.36 | SJ126: 1.36 | SK126: 1.36 | SL126: 1.3 | SM126: 1.3 | SN126: 3.89 | SO126: 3.88 | SZ126: 4.23 | TA126: 4.23 | TX126: 2.78 | TY126: 2.78
A127: 11 | B127: 11.27 | C127: 11.27 | D127: 13.63 | E127: 13.63 | F127: 33.9 | G127: 33.9 | H127: 28.02 | I127: 28.02 | J127: 40.25 | K127: 40.25 | Z127: 2.43 | AL127: 5.37 | AM127: 5.37 | AX127: 6.1 | AY127: 6.1 | BJ127: 3.39 | BV127: 1.11 | CH127: 3.04 | CI127: 3.04 | DF127: 34.67 | DG127: 34.67 | DH127: 38.97 | DI127: 34.68 | DJ127: 33.31 | DK127: 33.31 | DL127: 32.15 | DM127: 32.15 | DN127: 33.31 | DO127: 33.31 | DP127: 32.15 | DQ127: 33.31 | DR127: 33.31 | DS127: 33.31 | DT127: 32.15 | DU127: 32.15 | DV127: 46.24 | DW127: 44.97 | DX127: 46.24 | DY127: 46.24 | DZ127: 44.97 | EA127: 44.97 | EB127: 48.87 | EC127: 48.87 | ED127: 18.51 | EE127: 17.78 | EF127: 17.78 | EG127: 17.78 | EH127: 21.67 | EI127: 21.67 | EJ127: 36.58 | EK127: 36.58 | EL127: 36.58 | EM127: 38.59 | EN127: 34.4 | EO127: 34.4 | EP127: 34.71 | EQ127: 34.71 | ER127: 16.05 | ES127: 18.44 | ET127: 17.15 | EU127: 17.15 | EV127: 17.15 | EW127: 17.15 | EX127: 17.15 | EY127: 8.2 | EZ127: 23.5 | FA127: 23.5 | FB127: 23.5 | FC127: 23.5 | FD127: 9.03 | FE127: 9.03 | FF127: 9.03 | FG127: 9.03 | FH127: 9.03 | FI127: 9.03 | FJ127: 3.83 | FK127: 3.83 | FL127: 3.83 | FM127: 3.83 | FN127: 3.83 | FO127: 3.83 | FP127: 11.31 | FQ127: 11.31 | FR127: 11.31 | FS127: 11.31 | FT127: 29.18 | FU127: 29.18 | FV127: 29.18 | FW127: 29.18 | FX127: 29.18 | FY127: 29.18 | FZ127: 29.18 | GA127: 29.18 | GB127: 14.81 | GC127: 14.81 | GD127: 2.64 | GE127: 2.64 | GF127: 6.65 | GG127: 6.65 | GH127: 2.69 | GI127: 2.69 | GJ127: 2.5 | GK127: 2.5 | GL127: 2.5 | GM127: 2.5 | GN127: 2.48 | GO127: 2.48 | GP127: 0.89 | GQ127: 0.87 | GZ127: 13.59 | HA127: 13.59 | HB127: 35.95 | HC127: 35.95 | HD127: 35.95 | HE127: 35.95 | HF127: 32.12 | HG127: 32.12 | HH127: 32.12 | HI127: 32.12 | HJ127: 32.12 | HK127: 32.12 | HL127: 39.92 | HM127: 39.92 | HN127: 33.76 | HO127: 33.76 | HP127: 33.76 | HQ127: 33.76 | HR127: 40.39 | HS127: 40.39 | HT127: 40.39 | HU127: 40.39 | HX127: 12.37 | HY127: 12.37 | HZ127: 33.25 | IA127: 33.25 | IB127: 31.26 | IC127: 31.26 | ID127: 30.43 | IE127: 30.43 | IJ127: 42.91 | IK127: 42.91 | IL127: 85.35 | IM127: 85.35 | IN127: 79.23 | IO127: 79.23 | IP127: 79.23 | IQ127: 79.23 | IV127: 42.91 | IW127: 42.91 | IX127: 85.35 | IY127: 85.35 | IZ127: 79.23 | JA127: 79.23 | JB127: 79.23 | JC127: 79.23 | JH127: 28.37 | JI127: 28.37 | JJ127: 77.51 | JK127: 77.51 | JL127: 77.51 | JM127: 77.51 | JN127: 71.71 | JO127: 71.71 | JP127: 71.71 | JQ127: 71.71 | JT127: 7.64 | JU127: 7.64 | JV127: 7.64 | JW127: 7.64 | JX127: 7.64 | JY127: 7.64 | KF127: 3.53 | KG127: 3.53 | KH127: 2.24 | KI127: 2.24 | KJ127: 2.24 | KK127: 2.24 | KR127: 7.95 | KS127: 7.95 | KT127: 7.95 | KU127: 7.95 | KV127: 19.11 | KW127: 19.11 | LD127: 2 | LE127: 2 | LF127: 2 | LG127: 2 | LH127: 0.43 | LI127: 0.43 | LP127: 3.89 | LQ127: 3.89 | LR127: 3.89 | LS127: 3.89 | LT127: 1.37 | LU127: 1.37 | MB127: 4.24 | MC127: 4.87 | MD127: 1.52 | ME127: 1.52 | MF127: 1.48 | MG127: 1.48 | MH127: 1.97 | MI127: 1.97 | MJ127: 1.7 | MK127: 1.7 | ML127: 1.74 | MM127: 1.91 | MN127: 9.04 | MO127: 9.04 | MP127: 3.72 | MQ127: 3.72 | MR127: 4.88 | MS127: 4.88 | MT127: 25.68 | MU127: 25.68 | MV127: 25.68 | MW127: 25.68 | MX127: 25.68 | MY127: 25.68 | MZ127: 15.13 | NA127: 15.13 | NB127: 38.54 | NC127: 38.54 | ND127: 36.43 | NE127: 36.43 | NF127: 37.485 | NG127: 37.485 | NH127: 41.17 | NI127: 41.17 | NL127: 12.35 | NM127: 12.35 | NN127: 29.07 | NO127: 29.07 | NP127: 29.07 | NQ127: 29.07 | NR127: 28.06 | NS127: 28.06 | NT127: 29.5 | NU127: 29.5 | NX127: 27.35 | NY127: 27.35 | NZ127: 46.21 | OA127: 46.21 | OB127: 46.21 | OC127: 46.21 | OD127: 47.39 | OE127: 47.39 | OJ127: 19.45 | OK127: 19.45 | OL127: 52.69 | OM127: 52.69 | ON127: 52.69 | OO127: 52.69 | OP127: 13.55 | OQ127: 13.55 | OR127: 34.27 | OS127: 34.27 | OV127: 9.18 | OW127: 9.18 | OX127: 3.9 | OY127: 3.9 | OZ127: 3.71 | PA127: 3.71 | PB127: 3.65 | PC127: 3.65 | PD127: 25.28 | PE127: 25.28 | PH127: 10.76 | PI127: 10.76 | PJ127: 4.65 | PK127: 4.65 | PL127: 4.65 | PM127: 4.35 | PN127: 4.35 | PO127: 4.35 | PP127: 27.71 | PQ127: 27.71 | PT127: 7.19 | PU127: 7.19 | PV127: 1.72 | PW127: 1.72 | PX127: 2.3 | PY127: 2.3 | PZ127: 2.3 | QA127: 2.3 | QB127: 2.3 | QC127: 2.3 | QD127: 2.19 | QE127: 2.19 | QF127: 2.24 | QG127: 2.24 | QH127: 0.64 | QI127: 0.64 | QJ127: 0.78 | QK127: 0.78 | QL127: 0.78 | QM127: 0.78 | QN127: 0.78 | QO127: 0.78 | QP127: 0.77 | QQ127: 0.77 | QR127: 2.59 | QS127: 2.59 | QT127: 0.71 | QU127: 0.71 | QV127: 0.87 | QW127: 0.87 | QX127: 0.87 | QY127: 0.87 | QZ127: 0.87 | RA127: 0.87 | RB127: 0.86 | RC127: 0.86 | RD127: 3.94 | RE127: 3.94 | RF127: 0.98 | RG127: 0.98 | RH127: 1.25 | RI127: 1.25 | RJ127: 1.25 | RK127: 1.25 | RL127: 1.25 | RM127: 1.25 | RN127: 1.22 | RO127: 1.22 | RP127: 10 | RQ127: 10 | RR127: 2.48 | RS127: 2.48 | RT127: 3.38 | RU127: 3.38 | RV127: 3.38 | RW127: 3.38 | RX127: 3.38 | RY127: 3.38 | RZ127: 3.17 | SA127: 3.17 | SB127: 5.37 | SC127: 5.37 | SD127: 1.28 | SE127: 1.28 | SF127: 1.69 | SG127: 1.69 | SH127: 1.69 | SI127: 1.69 | SJ127: 1.69 | SK127: 1.69 | SL127: 1.62 | SM127: 1.62 | SN127: 4.55 | SO127: 4.55 | SZ127: 4.97 | TA127: 4.97 | TX127: 3.25 | TY127: 3.25
A128: 12 | B128: 12.93 | C128: 12.93 | D128: 15.16 | E128: 15.16 | F128: 39.68 | G128: 39.68 | H128: 33.72 | I128: 33.72 | J128: 46.7 | K128: 46.7 | Z128: 2.75 | AL128: 6.14 | AM128: 6.14 | AX128: 6.97 | AY128: 6.97 | BJ128: 3.86 | BV128: 1.23 | CH128: 3.45 | CI128: 3.45 | DF128: 39.87 | DG128: 39.87 | DH128: 43.91 | DI128: 39.88 | DJ128: 41.16 | DK128: 41.16 | DL128: 39.72 | DM128: 39.72 | DN128: 41.16 | DO128: 41.16 | DP128: 39.72 | DQ128: 41.16 | DR128: 41.16 | DS128: 41.16 | DT128: 39.72 | DU128: 39.72 | DV128: 55.57 | DW128: 54.04 | DX128: 55.57 | DY128: 55.57 | DZ128: 54.04 | EA128: 54.04 | EB128: 57.87 | EC128: 57.87 | ED128: 21.26 | EE128: 20.42 | EF128: 20.42 | EG128: 20.42 | EH128: 24.12 | EI128: 24.12 | EJ128: 43.75 | EK128: 43.75 | EL128: 43.75 | EM128: 46.01 | EN128: 41.71 | EO128: 41.71 | EP128: 42.02 | EQ128: 42.02 | ER128: 18.43 | ES128: 20.7 | ET128: 19.45 | EU128: 19.45 | EV128: 19.45 | EW128: 19.45 | EX128: 19.45 | EY128: 10.02 | EZ128: 29.19 | FA128: 29.19 | FB128: 29.19 | FC128: 29.19 | FD128: 10.35 | FE128: 10.35 | FF128: 10.35 | FG128: 10.35 | FH128: 10.35 | FI128: 10.35 | FJ128: 4.7 | FK128: 4.7 | FL128: 4.7 | FM128: 4.7 | FN128: 4.7 | FO128: 4.7 | FP128: 12.97 | FQ128: 12.97 | FR128: 12.97 | FS128: 12.97 | FT128: 35.28 | FU128: 35.28 | FV128: 35.28 | FW128: 35.28 | FX128: 35.28 | FY128: 35.28 | FZ128: 35.28 | GA128: 35.28 | GB128: 17.87 | GC128: 17.87 | GD128: 3.25 | GE128: 3.25 | GF128: 7.59 | GG128: 7.59 | GH128: 3.31 | GI128: 3.31 | GJ128: 3.1 | GK128: 3.1 | GL128: 3.1 | GM128: 3.1 | GN128: 2.81 | GO128: 2.81 | GP128: 1.06 | GQ128: 1.04 | GZ128: 15.6 | HA128: 15.6 | HB128: 41.76 | HC128: 41.76 | HD128: 41.76 | HE128: 41.76 | HF128: 39.06 | HG128: 39.06 | HH128: 39.06 | HI128: 39.06 | HJ128: 39.06 | HK128: 39.06 | HL128: 48.56 | HM128: 48.56 | HN128: 41.33 | HO128: 41.33 | HP128: 41.33 | HQ128: 41.33 | HR128: 48.45 | HS128: 48.45 | HT128: 48.45 | HU128: 48.45 | HX128: 14.18 | HY128: 14.18 | HZ128: 38.77 | IA128: 38.77 | IB128: 36.94 | IC128: 36.94 | ID128: 37.19 | IE128: 37.19 | IJ128: 46.77 | IK128: 46.77 | IL128: 94.2 | IM128: 94.2 | IN128: 90.43 | IO128: 90.43 | IP128: 90.43 | IQ128: 90.43 | IV128: 46.77 | IW128: 46.77 | IX128: 94.2 | IY128: 94.2 | IZ128: 90.43 | JA128: 90.43 | JB128: 90.43 | JC128: 90.43 | JH128: 32.61 | JI128: 32.61 | JJ128: 86.06 | JK128: 86.06 | JL128: 86.06 | JM128: 86.06 | JN128: 82.43 | JO128: 82.43 | JP128: 82.43 | JQ128: 82.43 | JT128: 8.75 | JU128: 8.75 | JV128: 8.75 | JW128: 8.75 | JX128: 8.75 | JY128: 8.75 | KF128: 4.02 | KG128: 4.02 | KH128: 2.67 | KI128: 2.67 | KJ128: 2.67 | KK128: 2.67 | KR128: 9.11 | KS128: 9.11 | KT128: 9.11 | KU128: 9.11 | KV128: 23.89 | KW128: 23.89 | LD128: 2.43 | LE128: 2.43 | LF128: 2.43 | LG128: 2.43 | LH128: 0.48 | LI128: 0.48 | LP128: 4.43 | LQ128: 4.43 | LR128: 4.43 | LS128: 4.43 | LT128: 1.67 | LU128: 1.67 | MB128: 4.84 | MC128: 5.44 | MD128: 1.85 | ME128: 1.85 | MF128: 1.8 | MG128: 1.8 | MH128: 2.37 | MI128: 2.37 | MJ128: 2.06 | MK128: 2.06 | ML128: 2.11 | MM128: 2.3 | MN128: 10.36 | MO128: 10.36 | MP128: 4.55 | MQ128: 4.55 | MR128: 5.88 | MS128: 5.88 | MT128: 31.68 | MU128: 31.68 | MV128: 31.68 | MW128: 31.68 | MX128: 31.68 | MY128: 31.68 | MZ128: 17.09 | NA128: 17.09 | NB128: 45.92 | NC128: 45.92 | ND128: 43.54 | NE128: 43.54 | NF128: 44.73 | NG128: 44.73 | NH128: 48.55 | NI128: 48.55 | NL128: 13.95 | NM128: 13.95 | NN128: 34.79 | NO128: 34.79 | NP128: 34.79 | NQ128: 34.79 | NR128: 33.69 | NS128: 33.69 | NT128: 35.29 | NU128: 35.29 | NX128: 29.9 | NY128: 29.9 | NZ128: 50.91 | OA128: 50.91 | OB128: 50.91 | OC128: 50.91 | OD128: 52.12 | OE128: 52.12 | OJ128: 22.11 | OK128: 22.11 | OL128: 58.44 | OM128: 58.44 | ON128: 58.44 | OO128: 58.44 | OP128: 16.98 | OQ128: 16.98 | OR128: 40.68 | OS128: 40.68 | OV128: 10.34 | OW128: 10.34 | OX128: 4.65 | OY128: 4.65 | OZ128: 4.43 | PA128: 4.43 | PB128: 4.36 | PC128: 4.36 | PD128: 30.32 | PE128: 30.32 | PH128: 12.31 | PI128: 12.31 | PJ128: 5.66 | PK128: 5.66 | PL128: 5.66 | PM128: 5.31 | PN128: 5.31 | PO128: 5.31 | PP128: 33.94 | PQ128: 33.94 | PT128: 8.23 | PU128: 8.23 | PV128: 2.14 | PW128: 2.14 | PX128: 2.82 | PY128: 2.82 | PZ128: 2.82 | QA128: 2.82 | QB128: 2.82 | QC128: 2.82 | QD128: 2.7 | QE128: 2.7 | QF128: 2.53 | QG128: 2.53 | QH128: 0.75 | QI128: 0.75 | QJ128: 0.91 | QK128: 0.91 | QL128: 0.91 | QM128: 0.91 | QN128: 0.91 | QO128: 0.91 | QP128: 0.9 | QQ128: 0.9 | QR128: 2.94 | QS128: 2.94 | QT128: 0.84 | QU128: 0.84 | QV128: 1.03 | QW128: 1.03 | QX128: 1.03 | QY128: 1.03 | QZ128: 1.03 | RA128: 1.03 | RB128: 1.02 | RC128: 1.02 | RD128: 4.49 | RE128: 4.49 | RF128: 1.18 | RG128: 1.18 | RH128: 1.51 | RI128: 1.51 | RJ128: 1.51 | RK128: 1.51 | RL128: 1.51 | RM128: 1.51 | RN128: 1.47 | RO128: 1.47 | RP128: 11.46 | RQ128: 11.46 | RR128: 3.11 | RS128: 3.11 | RT128: 4.16 | RU128: 4.16 | RV128: 4.16 | RW128: 4.16 | RX128: 4.16 | RY128: 4.16 | RZ128: 3.93 | SA128: 3.93 | SB128: 6.13 | SC128: 6.13 | SD128: 1.58 | SE128: 1.58 | SF128: 2.06 | SG128: 2.06 | SH128: 2.06 | SI128: 2.06 | SJ128: 2.06 | SK128: 2.06 | SL128: 1.99 | SM128: 1.99 | SN128: 5.2 | SO128: 5.2 | SZ128: 5.67 | TA128: 5.67 | TX128: 3.69 | TY128: 3.69
A129: 13 | B129: 14.5 | C129: 14.5 | D129: 16.62 | E129: 16.62 | F129: 45.31 | G129: 45.31 | H129: 38.81 | I129: 38.81 | J129: 52.89 | K129: 52.89 | Z129: 3.06 | AL129: 6.87 | AM129: 6.87 | AX129: 7.8 | AY129: 7.8 | BJ129: 4.3 | BV129: 1.35 | CH129: 3.85 | CI129: 3.85 | DF129: 44.81 | DG129: 44.81 | DH129: 48.61 | DI129: 44.82 | DJ129: 49.22 | DK129: 49.22 | DL129: 47.5 | DM129: 47.5 | DN129: 49.22 | DO129: 49.22 | DP129: 47.5 | DQ129: 49.22 | DR129: 49.22 | DS129: 49.22 | DT129: 47.5 | DU129: 47.5 | DV129: 64.71 | DW129: 62.92 | DX129: 64.71 | DY129: 64.71 | DZ129: 62.92 | EA129: 62.92 | EB129: 66.65 | EC129: 66.65 | ED129: 23.86 | EE129: 22.93 | EF129: 22.93 | EG129: 22.93 | EH129: 26.45 | EI129: 26.45 | EJ129: 50.78 | EK129: 50.78 | EL129: 50.78 | EM129: 53.28 | EN129: 48.89 | EO129: 48.89 | EP129: 49.19 | EQ129: 49.19 | ER129: 20.68 | ES129: 22.84 | ET129: 21.64 | EU129: 21.64 | EV129: 21.64 | EW129: 21.64 | EX129: 21.64 | EY129: 11.86 | EZ129: 34.95 | FA129: 34.95 | FB129: 34.95 | FC129: 34.95 | FD129: 11.6 | FE129: 11.6 | FF129: 11.6 | FG129: 11.6 | FH129: 11.6 | FI129: 11.6 | FJ129: 5.64 | FK129: 5.64 | FL129: 5.64 | FM129: 5.64 | FN129: 6.07 | FO129: 6.07 | FP129: 14.54 | FQ129: 14.54 | FR129: 14.54 | FS129: 14.54 | FT129: 41.28 | FU129: 41.28 | FV129: 41.28 | FW129: 41.28 | FX129: 41.28 | FY129: 41.28 | FZ129: 41.28 | GA129: 41.28 | GB129: 20.89 | GC129: 20.89 | GD129: 3.92 | GE129: 3.92 | GF129: 8.49 | GG129: 8.49 | GH129: 3.97 | GI129: 3.97 | GJ129: 3.76 | GK129: 3.76 | GL129: 3.76 | GM129: 3.76 | GN129: 3.12 | GO129: 3.12 | GP129: 1.24 | GQ129: 1.22 | GZ129: 17.5 | HA129: 17.5 | HB129: 47.39 | HC129: 47.39 | HD129: 47.39 | HE129: 47.39 | HF129: 45.92 | HG129: 45.92 | HH129: 45.92 | HI129: 45.92 | HJ129: 45.92 | HK129: 45.92 | HL129: 57.11 | HM129: 57.11 | HN129: 48.88 | HO129: 48.88 | HP129: 48.88 | HQ129: 48.88 | HR129: 56.38 | HS129: 56.38 | HT129: 56.38 | HU129: 56.38 | HX129: 15.91 | HY129: 15.91 | HZ129: 44.14 | IA129: 44.14 | IB129: 42.47 | IC129: 42.47 | ID129: 43.9 | IE129: 43.9 | IJ129: 50.44 | IK129: 50.44 | IL129: 102.51 | IM129: 102.51 | IN129: 101.18 | IO129: 101.18 | IP129: 101.18 | IQ129: 101.18 | IV129: 50.44 | IW129: 50.44 | IX129: 102.51 | IY129: 102.51 | IZ129: 101.18 | JA129: 101.18 | JB129: 101.18 | JC129: 101.18 | JH129: 36.63 | JI129: 36.63 | JJ129: 94.12 | JK129: 94.12 | JL129: 94.12 | JM129: 94.12 | JN129: 92.75 | JO129: 92.75 | JP129: 92.75 | JQ129: 92.75 | JT129: 9.8 | JU129: 9.8 | JV129: 9.8 | JW129: 9.8 | JX129: 9.8 | JY129: 9.8 | KF129: 4.48 | KG129: 4.48 | KH129: 3.1 | KI129: 3.1 | KJ129: 3.1 | KK129: 3.1 | KR129: 10.2 | KS129: 10.2 | KT129: 10.2 | KU129: 10.2 | KV129: 29 | KW129: 29 | LD129: 2.88 | LE129: 2.88 | LF129: 2.88 | LG129: 2.88 | LH129: 0.54 | LI129: 0.54 | LP129: 4.94 | LQ129: 4.94 | LR129: 4.94 | LS129: 4.94 | LT129: 1.99 | LU129: 1.99 | MB129: 5.35 | MC129: 5.92 | MD129: 2.16 | ME129: 2.16 | MF129: 2.11 | MG129: 2.11 | MH129: 2.75 | MI129: 2.75 | MJ129: 2.4 | MK129: 2.4 | ML129: 2.46 | MM129: 2.66 | MN129: 11.6 | MO129: 11.6 | MP129: 5.45 | MQ129: 5.45 | MR129: 6.87 | MS129: 6.87 | MT129: 37.8 | MU129: 37.8 | MV129: 37.8 | MW129: 37.8 | MX129: 37.8 | MY129: 37.8 | MZ129: 19.09 | NA129: 19.09 | NB129: 53.81 | NC129: 53.81 | ND129: 51.17 | NE129: 51.17 | NF129: 52.49 | NG129: 52.49 | NH129: 56.42 | NI129: 56.42 | NL129: 15.51 | NM129: 15.51 | NN129: 40.7 | NO129: 40.7 | NP129: 40.7 | NQ129: 40.7 | NR129: 39.52 | NS129: 39.52 | NT129: 41.19 | NU129: 41.19 | NX129: 33.63 | NY129: 33.63 | NZ129: 57.94 | OA129: 57.94 | OB129: 57.94 | OC129: 57.94 | OD129: 59.19 | OE129: 59.19 | OJ129: 24.98 | OK129: 24.98 | OL129: 64.64 | OM129: 64.64 | ON129: 64.64 | OO129: 64.64 | OP129: 21.31 | OQ129: 21.31 | OR129: 47.88 | OS129: 47.88 | OV129: 11.69 | OW129: 11.69 | OX129: 5.63 | OY129: 5.63 | OZ129: 5.38 | PA129: 5.38 | PB129: 5.3 | PC129: 5.3 | PD129: 36.59 | PE129: 36.59 | PH129: 13.62 | PI129: 13.62 | PJ129: 6.73 | PK129: 6.73 | PL129: 6.73 | PM129: 6.33 | PN129: 6.33 | PO129: 6.33 | PP129: 40.14 | PQ129: 40.14 | PT129: 9.22 | PU129: 9.22 | PV129: 2.6 | PW129: 2.6 | PX129: 3.39 | PY129: 3.39 | PZ129: 3.39 | QA129: 3.39 | QB129: 3.39 | QC129: 3.39 | QD129: 3.26 | QE129: 3.26 | QF129: 2.81 | QG129: 2.81 | QH129: 0.87 | QI129: 0.87 | QJ129: 1.05 | QK129: 1.05 | QL129: 1.05 | QM129: 1.05 | QN129: 1.05 | QO129: 1.05 | QP129: 1.04 | QQ129: 1.04 | QR129: 3.27 | QS129: 3.27 | QT129: 0.98 | QU129: 0.98 | QV129: 1.2 | QW129: 1.2 | QX129: 1.2 | QY129: 1.2 | QZ129: 1.2 | RA129: 1.2 | RB129: 1.19 | RC129: 1.19 | RD129: 5.01 | RE129: 5.01 | RF129: 1.41 | RG129: 1.41 | RH129: 1.78 | RI129: 1.78 | RJ129: 1.78 | RK129: 1.78 | RL129: 1.78 | RM129: 1.78 | RN129: 1.75 | RO129: 1.75 | RP129: 12.85 | RQ129: 12.85 | RR129: 3.81 | RS129: 3.81 | RT129: 5.01 | RU129: 5.01 | RV129: 5.01 | RW129: 5.01 | RX129: 5.01 | RY129: 5.01 | RZ129: 4.76 | SA129: 4.76 | SB129: 6.86 | SC129: 6.86 | SD129: 1.91 | SE129: 1.91 | SF129: 2.46 | SG129: 2.46 | SH129: 2.46 | SI129: 2.46 | SJ129: 2.46 | SK129: 2.46 | SL129: 2.39 | SM129: 2.39 | SN129: 5.81 | SO129: 5.8 | SZ129: 6.34 | TA129: 6.34 | TX129: 4.12 | TY129: 4.12
A130: 14 | B130: 15.99 | C130: 15.99 | D130: 18 | E130: 18 | F130: 50.76 | G130: 50.76 | H130: 43.78 | I130: 43.78 | J130: 58.81 | K130: 58.81 | Z130: 3.35 | AL130: 7.56 | AM130: 7.56 | AX130: 8.59 | AY130: 8.59 | BJ130: 4.73 | BV130: 1.46 | CH130: 4.22 | CI130: 4.22 | DF130: 49.51 | DG130: 49.51 | DH130: 53.08 | DI130: 49.52 | DJ130: 57.18 | DK130: 57.18 | DL130: 55.18 | DM130: 55.18 | DN130: 57.18 | DO130: 57.18 | DP130: 55.18 | DQ130: 57.18 | DR130: 57.18 | DS130: 57.18 | DT130: 55.18 | DU130: 55.18 | DV130: 73.59 | DW130: 71.56 | DX130: 73.59 | DY130: 73.59 | DZ130: 71.56 | EA130: 71.56 | EB130: 75.17 | EC130: 75.17 | ED130: 26.34 | EE130: 25.32 | EF130: 25.32 | EG130: 25.32 | EH130: 28.66 | EI130: 28.66 | EJ130: 57.63 | EK130: 57.63 | EL130: 57.63 | EM130: 60.3 | EN130: 55.89 | EO130: 55.89 | EP130: 56.18 | EQ130: 56.18 | ER130: 22.83 | ES130: 24.88 | ET130: 23.72 | EU130: 23.72 | EV130: 23.72 | EW130: 23.72 | EX130: 23.72 | EY130: 13.65 | EZ130: 40.62 | FA130: 40.62 | FB130: 40.62 | FC130: 40.62 | FD130: 12.8 | FE130: 12.8 | FF130: 12.8 | FG130: 12.8 | FH130: 12.8 | FI130: 12.8 | FJ130: 6.58 | FK130: 6.58 | FL130: 6.58 | FM130: 6.58 | FN130: 7.5 | FO130: 7.5 | FP130: 16.04 | FQ130: 16.04 | FR130: 16.04 | FS130: 16.04 | FT130: 47.16 | FU130: 47.16 | FV130: 47.16 | FW130: 47.16 | FX130: 47.16 | FY130: 47.16 | FZ130: 47.16 | GA130: 47.16 | GB130: 23.84 | GC130: 23.84 | GD130: 4.61 | GE130: 4.61 | GF130: 9.35 | GG130: 9.35 | GH130: 4.66 | GI130: 4.66 | GJ130: 4.45 | GK130: 4.45 | GL130: 4.45 | GM130: 4.45 | GN130: 3.42 | GO130: 3.42 | GP130: 1.45 | GQ130: 1.42 | GZ130: 19.31 | HA130: 19.31 | HB130: 52.82 | HC130: 52.82 | HD130: 52.82 | HE130: 52.82 | HF130: 52.67 | HG130: 52.67 | HH130: 52.67 | HI130: 52.67 | HJ130: 52.67 | HK130: 52.67 | HL130: 65.51 | HM130: 65.51 | HN130: 56.33 | HO130: 56.33 | HP130: 56.33 | HQ130: 56.33 | HR130: 64.13 | HS130: 64.13 | HT130: 64.13 | HU130: 64.13 | HX130: 17.55 | HY130: 17.55 | HZ130: 49.33 | IA130: 49.33 | IB130: 47.83 | IC130: 47.83 | ID130: 50.51 | IE130: 50.51 | IJ130: 53.91 | IK130: 53.91 | IL130: 110.29 | IM130: 110.29 | IN130: 111.45 | IO130: 111.45 | IP130: 111.45 | IQ130: 111.45 | IV130: 53.91 | IW130: 53.91 | IX130: 110.29 | IY130: 110.29 | IZ130: 111.45 | JA130: 111.45 | JB130: 111.45 | JC130: 111.45 | JH130: 40.46 | JI130: 40.46 | JJ130: 101.7 | JK130: 101.7 | JL130: 101.7 | JM130: 101.7 | JN130: 102.65 | JO130: 102.65 | JP130: 102.65 | JQ130: 102.65 | JT130: 10.81 | JU130: 10.81 | JV130: 10.81 | JW130: 10.81 | JX130: 10.81 | JY130: 10.81 | KF130: 4.93 | KG130: 4.93 | KH130: 3.52 | KI130: 3.52 | KJ130: 3.52 | KK130: 3.52 | KR130: 11.25 | KS130: 11.25 | KT130: 11.25 | KU130: 11.25 | KV130: 34.07 | KW130: 34.07 | LD130: 3.34 | LE130: 3.34 | LF130: 3.34 | LG130: 3.34 | LH130: 0.6 | LI130: 0.6 | LP130: 5.43 | LQ130: 5.43 | LR130: 5.43 | LS130: 5.43 | LT130: 2.33 | LU130: 2.33 | MB130: 5.78 | MC130: 6.33 | MD130: 2.46 | ME130: 2.46 | MF130: 2.41 | MG130: 2.41 | MH130: 3.08 | MI130: 3.08 | MJ130: 2.71 | MK130: 2.71 | ML130: 2.77 | MM130: 2.98 | MN130: 12.66 | MO130: 12.66 | MP130: 6.25 | MQ130: 6.25 | MR130: 7.74 | MS130: 7.74 | MT130: 43.22 | MU130: 43.22 | MV130: 43.22 | MW130: 43.22 | MX130: 43.22 | MY130: 43.22 | MZ130: 20.78 | NA130: 20.78 | NB130: 60.63 | NC130: 60.63 | ND130: 57.82 | NE130: 57.82 | NF130: 59.225 | NG130: 59.225 | NH130: 63.26 | NI130: 63.26 | NL130: 16.95 | NM130: 16.95 | NN130: 46.31 | NO130: 46.31 | NP130: 46.31 | NQ130: 46.31 | NR130: 45.09 | NS130: 45.09 | NT130: 46.81 | NU130: 46.81 | NX130: 37.16 | NY130: 37.16 | NZ130: 64.7 | OA130: 64.7 | OB130: 64.7 | OC130: 64.7 | OD130: 65.98 | OE130: 65.98 | OJ130: 27.05 | OK130: 27.05 | OL130: 69.08 | OM130: 69.08 | ON130: 69.08 | OO130: 69.08 | OP130: 24.89 | OQ130: 24.89 | OR130: 53.22 | OS130: 53.22 | OV130: 12.74 | OW130: 12.74 | OX130: 6.43 | OY130: 6.43 | OZ130: 6.17 | PA130: 6.17 | PB130: 6.07 | PC130: 6.07 | PD130: 41.68 | PE130: 41.68 | PH130: 14.79 | PI130: 14.79 | PJ130: 7.78 | PK130: 7.78 | PL130: 7.78 | PM130: 7.34 | PN130: 7.34 | PO130: 7.34 | PP130: 46.26 | PQ130: 46.26 | PT130: 10.16 | PU130: 10.16 | PV130: 3.11 | PW130: 3.11 | PX130: 4 | PY130: 4 | PZ130: 4 | QA130: 4 | QB130: 4 | QC130: 4 | QD130: 3.87 | QE130: 3.87 | QF130: 3.07 | QG130: 3.07 | QH130: 1 | QI130: 1 | QJ130: 1.21 | QK130: 1.21 | QL130: 1.21 | QM130: 1.21 | QN130: 1.21 | QO130: 1.21 | QP130: 1.2 | QQ130: 1.2 | QR130: 3.58 | QS130: 3.58 | QT130: 1.13 | QU130: 1.13 | QV130: 1.38 | QW130: 1.38 | QX130: 1.38 | QY130: 1.38 | QZ130: 1.38 | RA130: 1.38 | RB130: 1.37 | RC130: 1.37 | RD130: 5.5 | RE130: 5.5 | RF130: 1.66 | RG130: 1.66 | RH130: 2.09 | RI130: 2.09 | RJ130: 2.09 | RK130: 2.09 | RL130: 2.09 | RM130: 2.09 | RN130: 2.05 | RO130: 2.05 | RP130: 14.17 | RQ130: 14.17 | RR130: 4.57 | RS130: 4.57 | RT130: 5.91 | RU130: 5.91 | RV130: 5.91 | RW130: 5.91 | RX130: 5.91 | RY130: 5.91 | RZ130: 5.65 | SA130: 5.65 | SB130: 7.55 | SC130: 7.55 | SD130: 2.27 | SE130: 2.27 | SF130: 2.89 | SG130: 2.89 | SH130: 2.89 | SI130: 2.89 | SJ130: 2.89 | SK130: 2.89 | SL130: 2.82 | SM130: 2.82 | SN130: 6.39 | SO130: 6.38 | SZ130: 6.98 | TA130: 6.98 | TX130: 4.52 | TY130: 4.52
